Workbook

Sheet AER Changes
A4: Issues | B4: Location | C4: Comment
A6: =A3+1 -> 1 | B6: DNSP Inputs General'!J20:N20 | C6: Actual O & M not consistent with Annual RIN Data
A8: =A6+1 -> 2 | B8: DNSP Inputs General'!D31:D35 | C8: Update for AER Draft Decision CPI Forecast
A10: =A8+1 -> 3 | B10: DNSP Inputs General'!B26:F26 | C10: Update for AER Draft Decision Real Pre Tax WACC
A13: =A10+1 -> 4 | B13: DNSP Inputs General'!E72:E75 | C13: Prices from "2020 AusNet Public Lighting Prices"
B14: DNSP Inputs General'!E116:E119
A17: =A13+1 -> 5 | B17: DNSP Inputs General'!Q128:U128 | C17: AER Draft Decision Real Labour Escalator
A19: =A17+1 -> 6 | B19: WACC!C14:D14 | C19: Update for CPI to be applied to prices in 2021/22
A22: =A19+1 -> 7 | B22: DNSP Inputs O & M'!D284:H284 | C22: Error in failure rates corrected (as per AusNet Info Request 58)
B23: DNSP Inputs O & M'!D330:H330
A26: =A22+1 -> 8 | B26: DNSP Inputs O & M'!E12:H13 | C26: Applied AER real labour escalation from 2022/23 onwards
A28: =A26+1 -> 9 | B28: DNSP Inputs O & M'!D14:H16 | C28: AER Draft Decision Elevated platform and Patrol vehicle costs
A31: =A28+1 -> 10 | B31: DNSP Inputs O & M'!D34:H36 | C31: AER Draft Decision Bulk lamp changes in a day
B32: DNSP Inputs O & M'!D193:H195
B33: DNSP Inputs O & M'!D242:H244
A36: =A31+1 -> 11 | B36: DNSP Inputs O & M'!D37:H39 | C36: AER Draft Decision Repairs in a day
B37: DNSP Inputs O & M'!D196:H198
B38: DNSP Inputs O & M'!D245:H247
A41: =A36+1 -> 12 | B41: DNSP Inputs O & M'!D294:H294 | C41: AER Draft Decision P LED Repairs in a day
B42: DNSP Inputs O & M'!D340:H340
A45: =A41+1 -> 13 | B45: DNSP Inputs O & M'!D286:H286 | C45: AER Draft Decision P LED Luminaire cost
B46: DNSP Inputs O & M'!D332:H332
A49: =A45+1 -> 14 | B49: DNSP Inputs O & M'!D378:H378 | C49: AER Draft Decision V LED Luminaire cost
B50: DNSP Inputs O & M'!D424:H424
B51: DNSP Inputs O & M'!D470:H470
A54: =A49+1 -> 15 | B54: DNSP Inputs General'!Q42:U42 | C54: MV Lights replaced with MV Lights
B55: DNSP Inputs General'!Q45:U48
B56: DNSP Inputs General'!Q52:U53
B57: DNSP Inputs General'!Q71:U71
B58: DNSP Inputs General'!Q73:U75
B59: DNSP Inputs General'!Q86:U86
B60: DNSP Inputs General'!Q89:U92
B61: DNSP Inputs General'!Q96:U97
B62: DNSP Inputs General'!Q115:U115
B63: DNSP Inputs General'!Q117:U119
B65: DNSP Inputs O & M'!D46:H46
B66: DNSP Inputs O & M'!D53:H53
B67: DNSP Inputs O & M'!D300:H300
B68: DNSP Inputs O & M'!D307:H307
B69: DNSP Inputs O & M'!D392:H392
B70: DNSP Inputs O & M'!D399:H399
B71: DNSP Inputs O & M'!D438:H438
B72: DNSP Inputs O & M'!D445:H445
B73: DNSP Inputs O & M'!D484:H484
B74: DNSP Inputs O & M'!D491:H491
B76: DNSP Inputs Capex'!D31:H33
B77: DNSP Inputs Capex'!D154:H156
B78: DNSP Inputs Capex'!D188:H190
B79: DNSP Inputs Capex'!D205:H207
B80: DNSP Inputs Capex'!D222:H224

Sheet Instructions
B2: ='Inputs|O&M'!$A$3 -> AusNet Services Public Lighting Model
B3: This model is to be used for the setting of Public Lighting Tariffs for the Regulatory Period FY22 to FY26.
B4: Hardcoded input data input/assumptions are shaded | E4: and located in tabs with the "Inputs" prefix"
B5: This model will also to be used for the annual Public Lighting Tariff Approvals in the forecast Regulatory Period.
C8: Contents
C9: =HYPERLINK("#'"&RIGHT(CELL("filename",Instructions!B2),LEN(CELL("filename",Instructions!B2))-FIND("]",CELL("filename",Instructions!B2)))&"'!A1",RIGHT(CELL("filename",Instructions!B2),LEN(CELL("filename",Instructions!B2))-FIND("]",CELL("filename",Instructions!B2)))) -> Instructions
C10: =HYPERLINK("#'"&RIGHT(CELL("filename",'Inputs|General'!A1),LEN(CELL("filename",'Inputs|General'!A1))-FIND("]",CELL("filename",'Inputs|General'!A1)))&"'!A1",RIGHT(CELL("filename",'Inputs|General'!A1),LEN(CELL("filename",'Inputs|General'!A1))-FIND("]",CELL("filename",'Inputs|General'!A1)))) -> Inputs|General | D10: Updated - streamlined
C11: =HYPERLINK("#'"&RIGHT(CELL("filename",'Inputs|O&M'!A1),LEN(CELL("filename",'Inputs|O&M'!A1))-FIND("]",CELL("filename",'Inputs|O&M'!A1)))&"'!A1",RIGHT(CELL("filename",'Inputs|O&M'!A1),LEN(CELL("filename",'Inputs|O&M'!A1))-FIND("]",CELL("filename",'Inputs|O&M'!A1)))) -> Inputs|O&M | D11: Updated, streamlined with 3 additional energy effiicent lights
C12: =HYPERLINK("#'"&RIGHT(CELL("filename",'Inputs|Capex'!A1),LEN(CELL("filename",'Inputs|Capex'!A1))-FIND("]",CELL("filename",'Inputs|Capex'!A1)))&"'!A1",RIGHT(CELL("filename",'Inputs|Capex'!A1),LEN(CELL("filename",'Inputs|Capex'!A1))-FIND("]",CELL("filename",'Inputs|Capex'!A1)))) -> Inputs|Capex | D12: Updated, streamlined with 3 additional energy effiicent lights
C13: =HYPERLINK("#'"&RIGHT(CELL("filename",'Report|Tariff List'!A1),LEN(CELL("filename",'Report|Tariff List'!A1))-FIND("]",CELL("filename",'Report|Tariff List'!A1)))&"'!A1",RIGHT(CELL("filename",'Report|Tariff List'!A1),LEN(CELL("filename",'Report|Tariff List'!A1))-FIND("]",CELL("filename",'Report|Tariff List'!A1)))) -> Report|Tariff List | D13: Added to match table in AER draft determination
C14: =HYPERLINK("#'"&RIGHT(CELL("filename",'Report|Tariff X-factors'!A1),LEN(CELL("filename",'Report|Tariff X-factors'!A1))-FIND("]",CELL("filename",'Report|Tariff X-factors'!A1)))&"'!A1",RIGHT(CELL("filename",'Report|Tariff X-factors'!A1),LEN(CELL("filename",'Report|Tariff X-factors'!A1))-FIND("]",CELL("filename",'Report|Tariff X-factors'!A1)))) -> Report|Tariff X-factors | D14: Updated, streamlined with 3 additional energy effiicent lights
C15: =HYPERLINK("#'"&RIGHT(CELL("filename",'Report|Tariff Components'!A1),LEN(CELL("filename",'Report|Tariff Components'!A1))-FIND("]",CELL("filename",'Report|Tariff Components'!A1)))&"'!A1",RIGHT(CELL("filename",'Report|Tariff Components'!A1),LEN(CELL("filename",'Report|Tariff Components'!A1))-FIND("]",CELL("filename",'Report|Tariff Components'!A1)))) -> Report|Tariff Components | D15: Updated, streamlined with 3 additional energy effiicent lights
C16: =HYPERLINK("#'"&RIGHT(CELL("filename",'Report|Charges Summary'!A1),LEN(CELL("filename",'Report|Charges Summary'!A1))-FIND("]",CELL("filename",'Report|Charges Summary'!A1)))&"'!A1",RIGHT(CELL("filename",'Report|Charges Summary'!A1),LEN(CELL("filename",'Report|Charges Summary'!A1))-FIND("]",CELL("filename",'Report|Charges Summary'!A1)))) -> Report|Charges Summary | D16: Updated, streamlined with 3 additional energy effiicent lights
C17: =HYPERLINK("#'"&RIGHT(CELL("filename",'Calc|Cashflows'!A1),LEN(CELL("filename",'Calc|Cashflows'!A1))-FIND("]",CELL("filename",'Calc|Cashflows'!A1)))&"'!A1",RIGHT(CELL("filename",'Calc|Cashflows'!A1),LEN(CELL("filename",'Calc|Cashflows'!A1))-FIND("]",CELL("filename",'Calc|Cashflows'!A1)))) -> Calc|Cashflows | D17: Updated, streamlined with 3 additional energy effiicent lights
C18: =HYPERLINK("#'"&RIGHT(CELL("filename",'Calc|O&M'!A1),LEN(CELL("filename",'Calc|O&M'!A1))-FIND("]",CELL("filename",'Calc|O&M'!A1)))&"'!A1",RIGHT(CELL("filename",'Calc|O&M'!A1),LEN(CELL("filename",'Calc|O&M'!A1))-FIND("]",CELL("filename",'Calc|O&M'!A1)))) -> Calc|O&M | D18: Updated, streamlined with 3 additional energy effiicent lights
C19: =HYPERLINK("#'"&RIGHT(CELL("filename",'Calc|Capex'!A1),LEN(CELL("filename",'Calc|Capex'!A1))-FIND("]",CELL("filename",'Calc|Capex'!A1)))&"'!A1",RIGHT(CELL("filename",'Calc|Capex'!A1),LEN(CELL("filename",'Calc|Capex'!A1))-FIND("]",CELL("filename",'Calc|Capex'!A1)))) -> Calc|Capex | D19: Updated, streamlined with 3 additional energy effiicent lights
C20: =HYPERLINK("#'"&RIGHT(CELL("filename",'Calc|Capital Charges Post 2004'!A1),LEN(CELL("filename",'Calc|Capital Charges Post 2004'!A1))-FIND("]",CELL("filename",'Calc|Capital Charges Post 2004'!A1)))&"'!A1",RIGHT(CELL("filename",'Calc|Capital Charges Post 2004'!A1),LEN(CELL("filename",'Calc|Capital Charges Post 2004'!A1))-FIND("]",CELL("filename",'Calc|Capital Charges Post 2004'!A1)))) -> Calc|Capital Charges Post 2004 | D20: Updated, streamlined with 3 additional energy effiicent lights
C21: =HYPERLINK("#'"&RIGHT(CELL("filename",'Calc|Total RAB'!A1),LEN(CELL("filename",'Calc|Total RAB'!A1))-FIND("]",CELL("filename",'Calc|Total RAB'!A1)))&"'!A1",RIGHT(CELL("filename",'Calc|Total RAB'!A1),LEN(CELL("filename",'Calc|Total RAB'!A1))-FIND("]",CELL("filename",'Calc|Total RAB'!A1)))) -> Calc|Total RAB | D21: Updated, streamlined
C22: =HYPERLINK("#'"&RIGHT(CELL("filename",'RAB 2001 to 2004 Central'!A1),LEN(CELL("filename",'RAB 2001 to 2004 Central'!A1))-FIND("]",CELL("filename",'RAB 2001 to 2004 Central'!A1)))&"'!A1",RIGHT(CELL("filename",'RAB 2001 to 2004 Central'!A1),LEN(CELL("filename",'RAB 2001 to 2004 Central'!A1))-FIND("]",CELL("filename",'RAB 2001 to 2004 Central'!A1)))) -> RAB 2001 to 2004 Central | D22: Remains mostly unchanged
C23: =HYPERLINK("#'"&RIGHT(CELL("filename",'RAB 2001 to 2004 N & E'!A1),LEN(CELL("filename",'RAB 2001 to 2004 N & E'!A1))-FIND("]",CELL("filename",'RAB 2001 to 2004 N & E'!A1)))&"'!A1",RIGHT(CELL("filename",'RAB 2001 to 2004 N & E'!A1),LEN(CELL("filename",'RAB 2001 to 2004 N & E'!A1))-FIND("]",CELL("filename",'RAB 2001 to 2004 N & E'!A1)))) -> RAB 2001 to 2004 N & E | D23: Remains mostly unchanged
C24: =HYPERLINK("#'"&RIGHT(CELL("filename",'Inputs|2004 Final Decision'!A1),LEN(CELL("filename",'Inputs|2004 Final Decision'!A1))-FIND("]",CELL("filename",'Inputs|2004 Final Decision'!A1)))&"'!A1",RIGHT(CELL("filename",'Inputs|2004 Final Decision'!A1),LEN(CELL("filename",'Inputs|2004 Final Decision'!A1))-FIND("]",CELL("filename",'Inputs|2004 Final Decision'!A1)))) -> Inputs|2004 Final Decision | D24: Remains mostly unchanged
J61: =I61 -> 0 | K61: =J61 -> 0 | L61: =K61 -> 0 | M61: =L61 -> 0 | N61: =M61 -> 0

Sheet Inputs|General
A2: Capex net of contributions | D2: 2009 | E2: 2010 | F2: 2011 | G2: 2012 | H2: 2013 | I2: 2014 | J2: 2015 | K2: 2016 | L2: 2017 | M2: 2018 | N2: 2019 | O2: 2020 | P2: HY2021 | Q2: 2022-06-30 | R2: 2023-06-30 | S2: 2024-06-30 | T2: 2025-06-30 | U2: 2026-06-30
D3: Nominal $ - Actual | J3: Nominal $ | P3: Real 2021 $ - Forecast
N4: 2137181.56 | O4: 2137492.959
A5: Poles and Brackets | D5: 945891.2356 | E5: 957809.4651 | F5: 880178.8893 | G5: 925158.8499 | H5: 998447.2314 | I5: 775787.6177 | J5: 1086336.971 | K5: 1960186 | L5: 3550606.606 | M5: 4528111 | N5: =N4*N$20 -> 2280467.576 | O5: =O4*O$20 -> 2317131.178 | P5: 1181527.829 | Q5: ='Calc|Capex'!B31 -> 2313667.698 | R5: ='Calc|Capex'!C31 -> 2317958.479 | S5: ='Calc|Capex'!D31 -> 2323505.619 | T5: ='Calc|Capex'!E31 -> 2331832.039 | U5: ='Calc|Capex'!F31 -> 2342782.481
N6: 722257.8515 | O6: 407937.556
A7: Existing Luminaires | D7: 448491.4405 | E7: 418018.4138 | F7: -892269.5328 | G7: 258757.3149 | H7: 398955.5693 | I7: 829176.3823 | J7: 1161608.129 | K7: 3323078 | L7: 3418777 | M7: 1644455 | N7: =N6*N$20 -> 770681.1824 | O7: =O6*O$20 -> 442221.2599 | P7: 0 | Q7: ='Calc|Capex'!B13-'Calc|Capex'!B45 -> 0 | R7: ='Calc|Capex'!C13-'Calc|Capex'!C45 -> 0 | S7: ='Calc|Capex'!D13-'Calc|Capex'!D45 -> 0 | T7: ='Calc|Capex'!E13-'Calc|Capex'!E45 -> 0 | U7: ='Calc|Capex'!F13-'Calc|Capex'!F45 -> 0
N8: 328475.5021 | O8: 590393.0975
A9: Energy Efficient Luminaires and Ballasts | D9: 0 | E9: 1941138.457 | F9: 0 | G9: 0 | H9: 0 | I9: 0 | J9: 0 | K9: 0 | L9: 0 | M9: 483844 | N9: =N8*N$20 -> 350497.9389 | O9: =O8*O$20 -> 640010.6477 | P9: 2682244.406 | Q9: ='Calc|Capex'!B26 -> 2764823.627 | R9: ='Calc|Capex'!C26 -> 2959613.978 | S9: ='Calc|Capex'!D26 -> 2919235.308 | T9: ='Calc|Capex'!E26 -> 2879001.149 | U9: ='Calc|Capex'!F26 -> 1183006.03
A10: Total Net Capex | D10: =SUM(D5,D7,D9) -> 1394382.676 | E10: 3316966.336 | F10: -12090.64345 | G10: 1183916.165 | H10: 1397402.801 | I10: 1604964 | J10: 2247945.101 | K10: 5283264 | L10: 6969383.606 | M10: 6656410 | N10: 3401646.697 | O10: 3399363.086 | P10: 3863772.235 | Q10: 5078491.325 | R10: 5277572.457 | S10: 5242740.927 | T10: 5210833.188 | U10: 3525788.511
A13: Operating and Maintenance Expenditure | F13: =$F$2 -> 2011 | G13: =$G$2 -> 2012 | H13: =$H$2 -> 2013 | I13: =$I$2 -> 2014 | J13: =$J$2 -> 2015 | K13: =$K$2 -> 2016 | L13: =$L$2 -> 2017 | M13: =$M$2 -> 2018 | N13: =$N$2 -> 2019 | O13: =$O$2 -> 2020 | P13: =$P$2 -> HY2021 | Q13: =$Q$2 -> 2022-06-30 | R13: =$R$2 -> 2023-06-30 | S13: =$S$2 -> 2024-06-30 | T13: =$T$2 -> 2025-06-30 | U13: =$U$2 -> 2026-06-30
F14: Nominal $ - Actual | J14: Nominal $ | P14: =P3 -> Real 2021 $ - Forecast
O15: 7852450.941
A16: Total O & M | F16: 2283204.04 | G16: 2209782.26 | H16: 2391738.64 | I16: 1580678 | J16: 1063000 | K16: 1946538.303 | L16: 2338331 | M16: 2966870.86 | N16: 2955471.78 | O16: =O15*O$20 -> 8512383.079 | P16: 3926225.471 | Q16: ='Calc|Cashflows'!K11 -> 5546703.443 | R16: ='Calc|Cashflows'!L11 -> 5487843.649 | S16: ='Calc|Cashflows'!M11 -> 5442586.009 | T16: ='Calc|Cashflows'!N11 -> 5408225.878 | U16: ='Calc|Cashflows'!O11 -> 5501870.542
A18: CPI | F18: =$F$2 -> 2011 | G18: =$G$2 -> 2012 | H18: =$H$2 -> 2013 | I18: =$I$2 -> 2014 | J18: =$J$2 -> 2015 | K18: =$K$2 -> 2016 | L18: =$L$2 -> 2017 | M18: =$M$2 -> 2018 | N18: =$N$2 -> 2019 | O18: =$O$2 -> 2020 | P18: =$P$2 -> HY2021 | Q18: =$Q$2 -> 2022-06-30 | R18: =$R$2 -> 2023-06-30 | S18: =$S$2 -> 2024-06-30 | T18: =$T$2 -> 2025-06-30 | U18: =$U$2 -> 2026-06-30
A19: Actual | K19: 0.01510859301 | L19: 0.01023255814 | M19: 0.01933701657 | N19: 0.02077687444 | O19: 0.01592920354
A20: Actual Index | J20: 1 | K20: =J20*(1+K19) -> 1.015108593 | L20: =K20*(1+L19) -> 1.025495751 | M20: 1.045325779 | N20: 1.067044381 | O20: 1.084041549
A21: Forecast | Q21: 0.02374308679 | R21: 0.02374308679 | S21: 0.02374308679 | T21: 0.02374308679 | U21: 0.02374308679
A23: WACC | Q23: =Q2 -> 2022-06-30 | R23: =R2 -> 2023-06-30 | S23: =S2 -> 2024-06-30 | T23: =T2 -> 2025-06-30 | U23: =U2 -> 2026-06-30
A24: Real Pre Tax WACC | Q24: 0.02387219954 | R24: 0.02387219954 | S24: 0.02387219954 | T24: 0.02387219954 | U24: 0.02387219954
A25: Nominal Pre Tax WACC | Q25: =(1+Q21)*(1+Q24)-1 -> 0.04818208603 | R25: =(1+R21)*(1+R24)-1 -> 0.04818208603 | S25: =(1+S21)*(1+S24)-1 -> 0.04818208603 | T25: =(1+T21)*(1+T24)-1 -> 0.04818208603 | U25: =(1+U21)*(1+U24)-1 -> 0.04818208603
A27: Cost escalation | Q27: =Q2 -> 2022-06-30 | R27: =R2 -> 2023-06-30 | S27: =S2 -> 2024-06-30 | T27: =T2 -> 2025-06-30 | U27: =U2 -> 2026-06-30
A28: Real Labour Escalation | Q28: 0.007762137193 | R28: 0.004960893439 | S28: 0.006512577699 | T28: 0.009934640482 | U28: 0.01307542378 | W28: Updated taking the average of AUD Draft Decision and BIS Oxford - Vic
A30: Number of Lights - Central | E30: Actual Prices | F30: Actual Volumes | P30: Forecast Volumes
A31: Existing Lights | B31: Reference Light | D31: Price Factor | E31: =P$2 -> HY2021 | F31: =$F$2 -> 2011 | G31: =$G$2 -> 2012 | H31: =$H$2 -> 2013 | I31: =$I$2 -> 2014 | J31: =$J$2 -> 2015 | K31: =$K$2 -> 2016 | L31: =$L$2 -> 2017 | M31: =$M$2 -> 2018 | N31: =$N$2 -> 2019 | O31: =$O$2 -> 2020 | P31: =$P$2 -> HY2021 | Q31: =$Q$2 -> 2022-06-30 | R31: =$R$2 -> 2023-06-30 | S31: =$S$2 -> 2024-06-30 | T31: =$T$2 -> 2025-06-30 | U31: =$U$2 -> 2026-06-30
A32: Mercury Vapour 80W | B32: =A$32 -> Mercury Vapour 80W | D32: 1 | E32: 43.97 | F32: 59322.5 | G32: 58866.85 | H32: 58715.36667 | I32: 56826.28333 | J32: 48843.3699 | K32: 33071 | L32: 19501 | M32: 17601 | N32: 17601 | O32: =[1]Sheet1!H$24 -> 19640 | P32: =[1]Sheet1!I$24 -> 19640 | Q32: =[1]Sheet1!J$24 -> 14730 | R32: =[1]Sheet1!K$24 -> 9820 | S32: =[1]Sheet1!L$24 -> 4910 | T32: 1 | U32: 1
A33: HP Sodium 150W | B33: =A$33 -> HP Sodium 150W | D33: 1 | E33: 104.07 | F33: 12679.83333 | G33: 13325.13333 | H33: 13781.75 | I33: 14149.8 | J33: 14308.29031 | K33: 15306 | L33: 14457 | M33: 17986 | N33: 17986 | O33: =[1]Sheet1!$H$28 -> 14783 | P33: =[1]Sheet1!I$28 -> 14783 | Q33: =[1]Sheet1!J$28 -> 14302.974 | R33: =[1]Sheet1!K$28 -> 13832.27577 | S33: =[1]Sheet1!L$28 -> 13370.69794 | T33: =[1]Sheet1!M$28 -> 12917.99192 | U33: =[1]Sheet1!N$28 -> 12473.91212
A34: HP Sodium 250W | B34: =A$34 -> HP Sodium 250W | D34: 1 | E34: 105.12 | F34: 6080.266667 | G34: 6156.533333 | H34: 6248.633333 | I34: 6374.183333 | J34: 6445.579842 | K34: 6810 | L34: 7048 | M34: 12332 | N34: 12332 | O34: =[1]Sheet1!$H$29 -> 6880 | P34: =[1]Sheet1!I$29 -> 6880 | Q34: =[1]Sheet1!J$29 -> 6625.376742 | R34: =[1]Sheet1!K$29 -> 6371.002355 | S34: =[1]Sheet1!L$29 -> 6122.724773 | T34: =[1]Sheet1!M$29 -> 5880.326446 | U34: =[1]Sheet1!N$29 -> 5643.681222
A35: Mercury Vapour 50W | B35: =A$32 -> Mercury Vapour 80W | D35: 1.53 | E35: 67.27 | F35: 324 | G35: 322.3333333 | H35: 319.5833333 | I35: 270.1666667 | J35: 273.192773 | K35: 75 | L35: 71 | M35: 25 | N35: 25 | O35: 71 | P35: 70.37165 | Q35: 53.25 | R35: 35.5 | S35: 17.75 | T35: 0 | U35: 0
A36: Mercury Vapour 125W | B36: =A$32 -> Mercury Vapour 80W | D36: 1.47 | E36: 64.63 | F36: 855.25 | G36: 848.0833333 | H36: 839.5 | I36: 803.65 | J36: 812.651593 | K36: 425 | L36: 332 | M36: 297 | N36: 297 | O36: 284 | P36: 281.4866 | Q36: 211.11495 | R36: 140.7433 | S36: 70.37165 | T36: 0 | U36: 0
A37: Mercury Vapour 250W | B37: =A$34 -> HP Sodium 250W | D37: 1.05 | E37: 110.37 | F37: 875.8666667 | G37: 850.0833333 | H37: 817.7833333 | I37: 791.6 | J37: 800.4666223 | K37: 702 | L37: 668 | M37: 1036 | N37: 1036 | O37: 611 | P37: 605.59265 | Q37: 458.25 | R37: 305.5 | S37: 152.75 | T37: 0 | U37: 0
A38: Mercury Vapour 400W | B38: =A$34 -> HP Sodium 250W | D38: 1.09 | E38: 114.58 | F38: 151.1666667 | G38: 146.8666667 | H38: 148 | I38: 147.9166667 | J38: 149.5734646 | K38: 143 | L38: 141 | M38: 206 | N38: 206 | O38: 116 | P38: 114.9734 | Q38: 87 | R38: 58 | S38: 29 | T38: 0 | U38: 0
A39: HP Sodium 100W | B39: =A$33 -> HP Sodium 150W | D39: 1.07 | E39: 111.36 | F39: 2304.166667 | G39: 2478.2 | H39: 2612.416667 | I39: 2729.483333 | J39: 2760.055968 | K39: 2851 | L39: 2465 | M39: 2497 | N39: 2497 | O39: 2497 | P39: 2481.458941 | Q39: 2450.376823 | R39: 2419.294705 | S39: 2388.212587 | T39: 2357.130469 | U39: 2326.048351
A40: HP Sodium 400W | B40: =A$34 -> HP Sodium 250W | D40: 1.42 | E40: 149.26 | F40: 289.5 | G40: 283.55 | H40: 275.25 | I40: 267.9166667 | J40: 270.917571 | K40: 282 | L40: 281 | M40: 443 | N40: 443 | O40: 212 | P40: 212 | Q40: 208.7485998 | R40: 205.4318671 | S40: 202.0493043 | T40: 198.599761 | U40: 195.0820561
A41: Metal Halide 70W | B41: =A$32 -> Mercury Vapour 80W | D41: 4.365105678 | E41: 191.93 | F41: 31 | G41: 31 | H41: 31 | I41: 31 | J41: 31.3472275 | K41: 31 | L41: 31 | M41: 31 | N41: 31 | O41: 31 | P41: 27.125 | Q41: 19.375 | R41: 11.625 | S41: 3.875 | T41: 0 | U41: 0
A42: Metal Halide 100W | B42: HP Sodium 150W | D42: 2.387689088 | E42: 248.49 | F42: 34 | G42: 34 | H42: 34 | I42: 34 | J42: 34.38083016 | K42: 34 | L42: 34 | M42: 34 | N42: 34 | O42: 34 | P42: 29.75 | Q42: 21.25 | R42: 12.75 | S42: 4.25 | T42: 0 | U42: 0
A43: Metal Halide 150W | B43: HP Sodium 150W | D43: 2.712586814 | E43: 282.31 | F43: 32 | G43: 32 | H43: 32 | I43: 32.16666667 | J43: 32.52696187 | K43: 33 | L43: 33 | M43: 33 | N43: 33 | O43: 33 | P43: 28.875 | Q43: 20.625 | R43: 12.375 | S43: 4.125 | T43: 0 | U43: 0
A44: HP Sodium 50W | B44: =A$33 -> HP Sodium 150W | D44: 0.4433450671 | E44: 46.14 | F44: 94 | G44: 95 | H44: 95 | I44: 95 | J44: 96.06408428 | K44: 0 | L44: 0 | M44: 0 | N44: 0 | O44: 0 | P44: 0 | Q44: 0 | R44: 0 | S44: 0 | T44: 0 | U44: 0
A45: Total Existing Lights | F45: =SUM(F32:F44) -> 83073.55 | G45: 83469.63333 | H45: 83950.28333 | I45: 82553.16667 | J45: 74858.41715 | K45: 59763 | L45: 45062 | M45: 52521 | N45: 52521 | O45: 45192 | P45: 45154.63324 | Q45: =SUM(Q32:Q44) -> 39188.34111 | R45: 33224.498 | S45: 27275.80625 | T45: 21355.0486 | U45: 20639.72374
A46: Energy Efficient Lights | B46: Reference Light | D46: Price Factor | E46: =E31 -> HY2021 | F46: 2011 | G46: 2012 | H46: 2013 | I46: 2014 | J46: 2015 | K46: 2016 | L46: 2017 | M46: 2018 | N46: 2019 | O46: 2020 | P46: HY2021 | Q46: 2022-06-30 | R46: 2023-06-30 | S46: 2024-06-30 | T46: 2025-06-30 | U46: 2026-06-30
A47: T5 2X14W | B47: =A$47 -> T5 2X14W | D47: 1 | E47: 35.6 | F47: 3208.75 | G47: 5202.25 | H47: 6045.833333 | I47: 8439.583333 | J47: 11516.80288 | K47: 21929 | L47: 21271 | M47: 20924 | N47: 20924 | O47: 22518 | P47: 22518 | Q47: 22518 | R47: 22518 | S47: 22518 | T47: 22518 | U47: 22518
A48: T5 2X24W | B48: =A$48 -> T5 2X24W | D48: 1 | E48: 42.08 | F48: 105.1666667 | G48: 277 | H48: 352.4166667 | I48: 542.9166667 | J48: 932.7493248 | K48: 1690 | L48: 1584 | M48: 1649 | N48: 1649 | O48: 1649 | P48: 1781 | Q48: 1781 | R48: 1781 | S48: 1781 | T48: 1781 | U48: 1781
A49: LED 18W | B49: =A$81 -> LED 18W | D49: 1 | E49: 16.27 | F49: 0 | G49: 0 | H49: 0 | I49: 0 | J49: 2982.688731 | K49: 12368 | L49: 23946 | M49: 28428 | N49: 30858.25866 | O49: 30959 | P49: 32106.50385 | Q49: 38268.22226 | R49: 45578.22996 | S49: 52952.31838 | T49: 60392.27677 | U49: 62933.13027
A50: LED non-standard low power ~14W | B50: =A50 -> LED non-standard low power ~14W | D50: 1 | E50: 16.27 | K50: 0 | L50: 0 | M50: 14 | N50: 14 | O50: 2673 | P50: 2673 | Q50: 2673 | R50: 2673 | S50: 2673 | T50: 2673 | U50: 2673
A51: LED 70W-125W (L1) | B51: =A51 -> LED 70W-125W (L1) | D51: 1 | E51: 23.59 | K51: 0 | L51: 0 | M51: 770 | N51: 1294.389937 | O51: 1833.421779 | P51: 2118.198557 | Q51: 2440.292404 | R51: =W56-R56 -> 2450.823151 | S51: =X56-S56 -> 2825.360757 | T51: =Y56-T56 -> 2816.121234 | U51: =Z56-U56 -> 2656.071163
A52: LED 155W-250W (L2) | B52: LED 155W-250W (L2) | D52: 1 | E52: 24.3 | K52: 0 | L52: 0 | M52: 301 | N52: 710.4657487 | O52: 1227 | P52: 1434.175143 | Q52: 2464.510225 | R52: =W57-R57 -> 2933.806144 | S52: 3381.542635 | T52: 3573.456693 | U52: 3521.420507
A53: LED 275W-400W (L4) | B53: LED 275W-400W (L4) | D53: 1 | E53: 25.83 | K53: 0 | L53: 0 | M53: 0 | N53: 23.6752082 | O53: 68 | P53: 77.83661336 | Q53: 119.3902363 | R53: =W58-R58 -> 137.1041566 | S53: 156.7897079 | T53: 166.3332169 | U53: 151.0536683
A54: Compact Fluorescent 32W | B54: =A$47 -> T5 2X14W | D54: 0.8796098925 | E54: 31.59 | F54: 1978.933333 | G54: 2125.083333 | H54: 2279.5 | I54: 2420.833333 | J54: 4159.074119 | K54: 2908 | L54: 2707 | M54: 2849 | N54: 2849 | O54: 3107 | P54: 3107 | Q54: 3107 | R54: 3107 | S54: 3107 | T54: 3107 | U54: 3107
A55: Compact Fluorescent 42W | B55: T5 2X14W | D55: 0.8796098925 | E55: 31.59 | F55: 245.5 | G55: 366.3333333 | H55: 572.1666667 | I55: 791.0833333 | J55: 1359.108111 | K55: 1570 | L55: 1336 | M55: 1361 | N55: 1361 | O55: 1924 | P55: 1924 | Q55: 1924 | R55: 1924 | S55: 1924 | T55: 1924 | U55: 1924
A56: Smart lighting L1 | B56: =A56 -> Smart lighting L1 | D56: 1 | E56: 25.83 | P56: 1 | Q56: 1 | R56: =W56*0.2 -> 612.7057877 | S56: =X56*0.3 -> 1210.868896 | T56: =Y56*0.4 -> 1877.414156 | U56: =Z56*0.5 -> 2656.071163 | W56: 3063.528938 | X56: 4036.229652 | Y56: 4693.535391 | Z56: 5312.142326
A57: Smart lighting L2 | B57: Smart lighting L2 | D57: 1 | E57: 25.83 | P57: 3 | Q57: 3 | R57: =W57*0.2 -> 733.4515361 | S57: =X57*0.3 -> 1449.232558 | T57: =Y57*0.4 -> 2382.304462 | U57: =Z57*0.5 -> 3521.420507 | W57: 3667.25768 | X57: 4830.775193 | Y57: 5955.761155 | Z57: 7042.841014
A58: Smart lighting L4 | B58: Smart lighting L4 | D58: 1 | E58: 25.83 | P58: 1 | Q58: 1 | R58: =W58*0.2 -> 34.27603915 | S58: =X58*0.3 -> 67.1955891 | T58: =Y58*0.4 -> 110.8888113 | U58: =Z58*0.5 -> 151.0536683 | W58: 171.3801957 | X58: 223.985297 | Y58: 277.2220282 | Z58: 302.1073366
A59: Total Energy Efficient Lights | F59: =SUM(F47:F58) -> 5538.35 | G59: =SUM(G47:G58) -> 7970.666667 | H59: 9249.916667 | I59: 12194.41667 | J59: 20950.42317 | K59: 40465 | L59: 50844 | M59: 56296 | N59: 59683.78955 | O59: 65958.42178 | P59: 67744.71416 | Q59: =SUM(Q47:Q58) -> 75300.41512 | R59: 84483.39677 | S59: 94046.30852 | T59: 103321.7953 | U59: 107593.2209
A60: Total Number of Lights - Central | F60: =SUM(F45,F59) -> 88611.9 | G60: 91440.3 | H60: 93200.2 | I60: 94747.58333 | J60: 95808.84032 | K60: 100228 | L60: 95906 | M60: 108817 | N60: 112204.7896 | O60: 111150.4218 | P60: 112899.3474 | Q60: 114488.7562 | R60: 117707.8948 | S60: 121322.1148 | T60: 124676.8439 | U60: 128232.9447
A62: Number of Lights - North & East | E62: Actual Prices | F62: Actual Volumes | P62: Forecast Volumes
A63: Existing Lights | B63: Reference Light | D63: Price Factor | E63: HY2021 | F63: =F$2 -> 2011 | G63: 2012 | H63: 2013 | I63: 2014 | J63: =J$2 -> 2015 | K63: =K$2 -> 2016 | L63: 2017 | M63: 2018 | N63: 2019 | O63: 2020 | P63: HY2021 | Q63: 2022-06-30 | R63: 2023-06-30 | S63: 2024-06-30 | T63: 2025-06-30 | U63: 2026-06-30
A64: Mercury Vapour 80W | B64: =A$64 -> Mercury Vapour 80W | D64: 1 | E64: 49.95 | F64: 28734.83333 | G64: 28906.48333 | H64: 28889.05 | I64: 26233.91667 | J64: 22548.59584 | K64: 6984 | L64: 8177 | M64: 9280 | N64: 9115.744 | O64: 4664 | P64: 4664 | Q64: 3498 | R64: 2332 | S64: 1166 | T64: 1 | U64: 1
A65: HP Sodium 150W | B65: =A$65 -> HP Sodium 150W | D65: 1 | E65: 118.4 | F65: 4571.583333 | G65: 4712.166667 | H65: 4750.25 | I65: 4824.416667 | J65: 4878.454413 | K65: 5333 | L65: 7159 | M65: 9474 | N65: 9474 | O65: 5446 | P65: 5446 | Q65: 5177.367008 | R65: 4916.363219 | S65: 4662.90509 | T65: 4416.895894 | U65: 4178.242275
A66: HP Sodium 250W | B66: =A$66 -> HP Sodium 250W | D66: 1 | E66: 117.12 | F66: 4504.7 | G66: 4586.866667 | H66: 4654.616667 | I66: 4713.483333 | J66: 4766.278528 | K66: 5034 | L66: 5363 | M66: 8400 | N66: 8400 | O66: 5137 | P66: 5137 | Q66: 4946.883768 | R66: 4773.464762 | S66: 4603.642269 | T66: 4437.277627 | U66: 4274.290137
A67: Mercury Vapour 50W | B67: =A$64 -> Mercury Vapour 80W | D67: 1.48 | E67: 73.93 | F67: 376.75 | G67: 367.75 | H67: 363.1666667 | I67: 289.4166667 | J67: 292.6583901 | K67: 146 | L67: 128 | M67: 97 | N67: 95.2831 | O67: 125 | P67: 125 | Q67: 93.75 | R67: 62.5 | S67: 31.25 | T67: 0 | U67: 0
A68: Mercury Vapour 125W | B68: =A$64 -> Mercury Vapour 80W | D68: 1.48 | E68: 73.93 | F68: 62 | G68: 62.08333333 | H68: 60.33333333 | I68: 54.58333333 | J68: 55.19471509 | K68: 26 | L68: 21 | M68: 32 | N68: 31.4336 | O68: 17 | P68: 17 | Q68: 12.75 | R68: 8.5 | S68: 4.25 | T68: 0 | U68: 0
A69: Mercury Vapour 250W | B69: =A$66 -> HP Sodium 250W | D69: 1.04 | E69: 121.81 | F69: 433.85 | G69: 433.2833333 | H69: 427.8 | I69: 417.6833333 | J69: 422.3617572 | K69: 277 | L69: 275 | M69: 438 | N69: 430.2474 | O69: 260 | P69: 260 | Q69: 195 | R69: 130 | S69: 65 | T69: 0 | U69: 0
A70: Mercury Vapour 400W | B70: =A$66 -> HP Sodium 250W | D70: 1.07 | E70: 125.32 | F70: 132 | G70: 131.3333333 | H70: 127.6666667 | I70: 123.1666667 | J70: 124.5462426 | K70: 92 | L70: 91 | M70: 148 | N70: 145.3804 | O70: 91 | P70: 91 | Q70: 68.25 | R70: 45.5 | S70: 22.75 | T70: 0 | U70: 0
A71: HP Sodium 100W | B71: =A$65 -> HP Sodium 150W | D71: 1.07 | E71: 126.69 | F71: 143.9166667 | G71: 196.8333333 | H71: 222.9166667 | I71: 248.5 | J71: 251.2834205 | K71: 244 | L71: 729 | M71: 778 | N71: 778 | O71: 315 | P71: 315 | Q71: 310.1689101 | R71: 305.240746 | S71: 300.2147682 | T71: 295.0892676 | U71: 289.862489
A72: HP Sodium 400W | B72: =A$66 -> HP Sodium 250W | D72: 1.42 | E72: 166.31 | F72: 299.0833333 | G72: 310.4166667 | H72: 321.5 | I72: 330.0833333 | J72: 333.7805595 | K72: 349 | L72: 361 | M72: 517 | N72: 517 | O72: 354 | P72: 354 | Q72: 348.5707752 | R72: 343.0324574 | S72: 337.3842157 | T72: 331.6241293 | U72: 325.7502257
A73: Metal Halide 70W | B73: =A$64 -> Mercury Vapour 80W | D73: 3.804442037 | E73: 190.05 | F73: 0 | G73: 0 | H73: 0 | I73: 0 | J73: 0 | K73: 0 | L73: 0 | M73: 0 | N73: 0 | O73: 0 | P73: 0 | Q73: 0 | R73: 0 | S73: 0 | T73: 0 | U73: 0
A74: Metal Halide 100W | B74: =A$65 -> HP Sodium 150W | D74: 2.11804911 | E74: 250.78 | F74: 0 | G74: 0 | H74: 0 | I74: 0 | J74: 0 | K74: 0 | L74: 0 | M74: 0 | N74: 0 | O74: 0 | P74: 0 | Q74: 0 | R74: 0 | S74: 0 | T74: 0 | U74: 0
A75: Metal Halide 150W | B75: =A$65 -> HP Sodium 150W | D75: 2.406294827 | E75: 284.91 | F75: 0 | G75: 0 | H75: 0 | I75: 0 | J75: 0 | K75: 0 | L75: 0 | M75: 0 | N75: 0 | O75: 0 | P75: 0 | Q75: 0 | R75: 0 | S75: 0 | T75: 0 | U75: 0
A76: =A44 -> HP Sodium 50W | B76: =A$65 -> HP Sodium 150W | D76: 0.4547295587 | E76: 53.84 | F76: 0 | G76: 0 | H76: 0 | I76: 0 | J76: 0 | K76: 0 | L76: 0 | M76: 0 | N76: 0 | O76: 0 | P76: 0 | Q76: 0 | R76: 0 | S76: 0 | T76: 0 | U76: 0
A77: Total Existing Lights | F77: =SUM(F64:F76) -> 39258.71667 | G77: 39707.21667 | H77: 39817.3 | I77: 37235.25 | J77: 33673.15386 | K77: 18485 | L77: 22304 | M77: 29164 | N77: 28987.0885 | O77: 16409 | P77: 16409 | Q77: =SUM(Q64:Q76) -> 14650.74046 | R77: 12916.60118 | S77: 11193.39634 | T77: 9481.886918 | U77: 9069.145127
A78: Energy Efficient Lights | B78: Reference Light | D78: Price Factor | E78: =E63 -> HY2021 | F78: 2011 | G78: 2012 | H78: 2013 | I78: 2014 | J78: 2015 | K78: 2016 | L78: 2017 | M78: 2018 | N78: 2019 | O78: 2020 | P78: HY2021 | Q78: 2022-06-30 | R78: 2023-06-30 | S78: 2024-06-30 | T78: 2025-06-30 | U78: 2026-06-30
A79: T5 2X14W | B79: =A$79 -> T5 2X14W | D79: 1 | E79: 40.6 | F79: 64.75 | G79: 140 | H79: 249.5833333 | I79: 3014.583333 | J79: 5220.598408 | K79: 7036 | L79: 8015 | M79: 7921 | N79: 7921 | O79: 7099 | P79: 7099 | Q79: 7099 | R79: 7099 | S79: 7099 | T79: 7099 | U79: 7099
A80: T5 2X24W | B80: =A$80 -> T5 2X24W | D80: 1 | E80: 47.91 | F80: 36.5 | G80: 44.33333333 | H80: 64.41666667 | I80: 93.5 | J80: 128.2344074 | K80: 1002 | L80: 1159 | M80: 1150 | N80: 1150 | O80: 1020 | P80: 1020 | Q80: 1020 | R80: 1020 | S80: 1020 | T80: 1020 | U80: 1020
A81: LED 18W | B81: =A$81 -> LED 18W | D81: 1 | E81: 16.74 | F81: 0 | G81: 0 | H81: 0 | I81: 0 | J81: 33.68712443 | K81: 14920 | L81: 19876 | M81: 20779 | N81: 21786.75379 | O81: 18962 | P81: 19356.52962 | Q81: 20952.55925 | R81: 22943.1185 | S81: 24951.32252 | T81: 26977.56589 | U81: 27820.75199
A82: LED non-standard low power ~14W | B82: =A82 -> LED non-standard low power ~14W | D82: 1 | E82: 16.74 | K82: 0 | L82: 0 | M82: 11 | N82: 11 | O82: 937 | P82: 937 | Q82: 937 | R82: 937 | S82: 937 | T82: 937 | U82: 937
A83: LED 70W-125W (L1) | B83: =A83 -> LED 70W-125W (L1) | D83: 1 | E83: 24.09 | K83: 0 | L83: 0 | M83: 171 | N83: 332.3012756 | O83: 497.2095361 | P83: 583.3925412 | Q83: 670.6365302 | R83: =W88-R88 -> 678.3445635 | S83: =X88-S88 -> 720.4239732 | T83: 728.6781788 | U83: 701.9400794
A84: LED 155W-250W (L2) | B84: LED 155W-250W (L2) | D84: 1 | E84: 24.89 | K84: 0 | L84: 0 | M84: 239 | N84: 390.8021439 | O84: 278 | P84: 359.1076347 | Q84: 1013.400594 | R84: =W89-R89 -> 1381.230406 | S84: 1689.095144 | T84: 1843.907662 | U84: 1853.714684
A85: LED 275W-400W (L4) | B85: LED 275W-400W (L4) | D85: 1 | E85: 26.37 | K85: 0 | L85: 0 | M85: 15 | N85: 46.84712489 | O85: 68 | P85: 73.94211492 | Q85: 107.8035148 | R85: 118.3808499 | S85: 131.9670006 | T85: 137.6736304 | U85: 124.0147015
A86: Compact Fluorescent 32W | B86: =A$79 -> T5 2X14W | D86: 0.8796098925 | E86: 36.13 | F86: 180.5833333 | G86: 291.75 | H86: 405.75 | I86: 536.5833333 | J86: 929.2448693 | K86: 640 | L86: 718 | M86: 671 | N86: 671 | O86: 680 | P86: 680 | Q86: 680 | R86: 680 | S86: 680 | T86: 680 | U86: 680
A87: Compact Fluorescent 42W | B87: T5 2X14W | D87: 0.8796098925 | E87: 36.13 | F87: 709.1666667 | G87: 1220.083333 | H87: 1602.333333 | I87: 1877.5 | J87: 3251.418995 | K87: 2614 | L87: 3222 | M87: 3295 | N87: 3295 | O87: 2715 | P87: 2715 | Q87: 2715 | R87: 2715 | S87: 2715 | T87: 2715 | U87: 2715
A88: Smart lighting L1 | B88: =A88 -> Smart lighting L1 | D88: 1 | E88: 26.37 | P88: 1 | Q88: 1 | R88: =W88*0.2 -> 169.5861409 | S88: =X88*0.3 -> 308.7531314 | T88: =Y88*0.4 -> 485.7854525 | U88: =Z88*0.5 -> 701.9400794 | W88: 847.9307044 | X88: 1029.177105 | Y88: 1214.463631 | Z88: 1403.880159
A89: Smart lighting L2 | B89: Smart lighting L2 | D89: 1 | E89: 26.37 | P89: 3 | Q89: 3 | R89: =W89*0.2 -> 345.3076016 | S89: =X89*0.3 -> 723.8979187 | T89: =Y89*0.4 -> 1229.271775 | U89: =Z89*0.5 -> 1853.714684 | W89: 1726.538008 | X89: 2412.993062 | Y89: 3073.179437 | Z89: 3707.429369
A90: Smart lighting L4 | B90: Smart lighting L4 | D90: 1 | E90: 26.37 | P90: 1 | Q90: 1 | R90: 29.59521248 | S90: 56.55728595 | T90: 91.78242029 | U90: 124.0147015 | W90: 147.9760624 | X90: 188.5242865 | Y90: 229.4560507 | Z90: 248.029403
A91: Total Energy Efficient Lights | F91: =SUM(F79:F90) -> 991 | G91: =SUM(G79:G90) -> 1696.166667 | H91: 2322.083333 | I91: 5522.166667 | J91: 9563.183804 | K91: 26212 | L91: 32990 | M91: 34252 | N91: 35604.70433 | O91: 32256.20954 | P91: 32828.97191 | Q91: =SUM(Q79:Q90) -> 35200.39989 | R91: 38116.56327 | S91: 41033.01697 | T91: 43945.66501 | U91: 45631.09092
A92: Total Number of Lights | F92: =SUM(F77,F91) -> 40249.71667 | G92: 41403.38333 | H92: 42139.38333 | I92: 42757.41667 | J92: 43236.33767 | K92: 44697 | L92: 55294 | M92: 63416 | N92: 64591.79283 | O92: 48665.20954 | P92: 49237.97191 | Q92: 49851.14035 | R92: 51033.16445 | S92: 52226.41332 | T92: 53427.55192 | U92: 54700.23605

Sheet Inputs|O&M
A1: Public Lighting Cost Build-up Model
A3: AusNet Services Public Lighting Model | C3: O & M Data Inputs
C5: Real 2021 $
A7: Input parameters | C7: ='Inputs|General'!P2 -> HY2021 | D7: ='Inputs|General'!Q2 -> 2022-06-30 | E7: ='Inputs|General'!R2 -> 2023-06-30 | F7: ='Inputs|General'!S2 -> 2024-06-30 | G7: ='Inputs|General'!T2 -> 2025-06-30 | H7: ='Inputs|General'!U2 -> 2026-06-30
A9: Inputs - all lamps
A11: Material premium for rural areas | C11: 0.05 | D11: =$C$11 -> 0.05 | E11: =$C$11 -> 0.05 | F11: 0.05 | G11: 0.05 | H11: 0.05 | K11: Initial Proposal
A12: Labour rate (per hour) | C12: 105.1461393 | D12: 111.3622324 | E12: =D12*(1+'Inputs|General'!R$28) -> 111.9146885 | F12: =E12*(1+'Inputs|General'!S$28) -> 112.6435416 | G12: =F12*(1+'Inputs|General'!T$28) -> 113.7626147 | H12: =G12*(1+'Inputs|General'!U$28) -> 115.2501091 | L12: 111.3622324 | M12: 111.3622324 | N12: 111.3622324 | O12: 111.3622324
A13: Labour rate for night patrols (per hour) | C13: 131.4292303 | D13: 143.4781359 | E13: =D13*(1+'Inputs|General'!R$28) -> 144.1899156 | F13: =E13*(1+'Inputs|General'!S$28) -> 145.1289636 | G13: =F13*(1+'Inputs|General'!T$28) -> 146.5707677 | H13: =G13*(1+'Inputs|General'!U$28) -> 148.4872426 | L13: 143.4781359 | M13: 143.4781359 | N13: 143.4781359 | O13: 143.4781359
A14: Elevated platform vehicle (per hour) - urban MV,urban T5 | C14: 49.79045722 | D14: 50.18 | E14: 50.18 | F14: 50.18 | G14: 50.18 | H14: 50.18 | K14: 72.59435996 | L14: 72.59435996 | M14: 72.59435996 | N14: 72.59435996 | O14: 72.59435996
A15: Elevated platform vehicle (per hour) - rural MV, rural T5, S-HP | C15: 89.9713562 | D15: 63.64 | E15: 63.64 | F15: 63.64 | G15: 63.64 | H15: 63.64 | K15: 103.7167592 | L15: 103.7167592 | M15: 103.7167592 | N15: 103.7167592 | O15: 103.7167592
A16: Patrol vehicle (per hour) | C16: 34.1064632 | D16: 34.37 | E16: 34.37 | F16: 34.37 | G16: 34.37 | H16: 34.37 | K16: 39.54063229 | L16: 39.54063229 | M16: 39.54063229 | N16: 39.54063229 | O16: 39.54063229
A17: Number of hours in a day | C17: 8 | D17: 7.5 | E17: =$D$17 -> 7.5 | F17: =$D$17 -> 7.5 | G17: 7.5 | H17: 7.5
A18: Indirect overheads | C18: 0.25 | D18: =$C$18 -> 0.25 | E18: =$C$18 -> 0.25 | F18: 0.25 | G18: 0.25 | H18: 0.25
A19: Luminaire depreciation period | B19: years | C19: 20 | D19: =C19 -> 20 | E19: =D19 -> 20 | F19: =E19 -> 20 | G19: =F19 -> 20 | H19: =G19 -> 20
A20: Number of patrols per year | B20: Number | C20: 3 | D20: =C20 -> 3 | E20: =D20 -> 3 | F20: 3 | G20: 3 | H20: 3
A21: Lamps - bulk change | B21: years | C21: 4 | D21: =C21 -> 4 | E21: 4 | F21: 4 | G21: 4 | H21: 4
A22: PE cells - bulk change | B22: years | C22: 8 | D22: =$C$22 -> 8 | E22: =$C$22 -> 8 | F22: 8 | G22: 8 | H22: 8
A25: Inputs - MV80
A26: Depreciation period | B26: years | C26: =$C$19 -> 20 | D26: =$D$19 -> 20 | E26: =$E$19 -> 20 | F26: =$F$19 -> 20 | G26: =$G$19 -> 20 | H26: =$H$19 -> 20
A27: Lamps - bulk change | B27: years | C27: =$C$21 -> 4 | D27: =$D$21 -> 4 | E27: =$E$21 -> 4 | F27: =$F$21 -> 4 | G27: =$G$21 -> 4 | H27: =$H$21 -> 4
A28: PE cells - bulk change | B28: years | C28: =$C$22 -> 8 | D28: =$D$22 -> 8 | E28: =$E$22 -> 8 | F28: =$F$22 -> 8 | G28: =$G$22 -> 8 | H28: =$H$22 -> 8
A29: Proportion of lamps that fail between bulk change | C29: 0.107 | D29: 0.1941685018 | E29: 0.1941685018 | F29: 0.1941685018 | G29: 0.1941685018 | H29: 0.1941685018
A30: Unit cost - lamp | C30: 6.111746931 | D30: 4.71 | E30: 4.71 | F30: 4.71 | G30: 4.71 | H30: 4.71
A31: Unit cost - PE cell | C31: 24.67380676 | D31: 15.12 | E31: 15.12 | F31: 15.12 | G31: 15.12 | H31: 15.12 | K31: Powercor | P31: Initial Proposal
A32: Unit cost - luminaire | C32: 212.0348253 | D32: 205 | E32: 205 | F32: 205 | G32: 205 | H32: 205 | K32: 205 | P32: 116.85
A33: Unit cost - miscellaneous materials (bulk lamp) | C33: 1.3373337 | D33: 1.347645671 | E33: 1.347645671 | F33: 1.347645671 | G33: 1.347645671 | H33: 1.347645671
A34: Unit cost - miscellaneous materials (repair) | C34: 13.373337 | D34: 13.47645671 | E34: 13.47645671 | F34: 13.47645671 | G34: 13.47645671 | H34: 13.47645671 | K34: Initial Proposal
A35: Number of men in crew | C35: 2 | D35: 2 | E35: 2 | F35: 2 | G35: 2 | H35: 2
A36: Number of bulk lamp changes in 1 day - urban | C36: 85 | D36: 86 | E36: 86 | F36: 86 | G36: 86 | H36: 86 | K36: 66 | L36: 66 | M36: 66 | N36: 66 | O36: 66
A37: Number of bulk lamp changes in 1 day - rural | C37: 70 | D37: 72 | E37: 72 | F37: 72 | G37: 72 | H37: 72 | K37: 54 | L37: 54 | M37: 54 | N37: 54 | O37: 54
A38: Number of bulk lamp changes in 1 day - remote | C38: 50 | D38: 60 | E38: 60 | F38: 60 | G38: 60 | H38: 60 | K38: 37 | L38: 37 | M38: 37 | N38: 37 | O38: 37
A39: Number of repairs in 1 day - urban | C39: 20 | D39: 28.8 | E39: 28.8 | F39: 28.8 | G39: 28.8 | H39: 28.8 | K39: 18 | L39: 18 | M39: 18 | N39: 18 | O39: 18
A40: Number of repairs in 1 day - rural | C40: 15 | D40: 24 | E40: 24 | F40: 24 | G40: 24 | H40: 24 | K40: 14 | L40: 14 | M40: 14 | N40: 14 | O40: 14
A41: Number of repairs in 1 day - remote | C41: 10 | D41: 19.2 | E41: 19.2 | F41: 19.2 | G41: 19.2 | H41: 19.2 | K41: 10 | L41: 10 | M41: 10 | N41: 10 | O41: 10
A42: % of repairs - lamps | C42: 0.6 | D42: 0.6 | E42: 0.6 | F42: 0.6 | G42: 0.6 | H42: 0.6
A43: % of repairs - PE cells | C43: 0.5 | D43: 0.5 | E43: 0.5 | F43: 0.5 | G43: 0.5 | H43: 0.5
A44: % of repairs - luminaires | C44: 0.15 | D44: 0.15 | E44: 0.15 | F44: 0.15 | G44: 0.15 | H44: 0.15
A45: % of repairs - other | C45: 0.1 | D45: 0.1 | E45: 0.1 | F45: 0.1 | G45: 0.1 | H45: 0.1
A47: Other Maintenance and Repair costs
A48: Traffic control costs | C48: 6771.147526 | D48: =D51*D52-D49 -> 38278.8 | E48: =E51*E52-E49 -> 25519.2 | F48: =F51*F52-F49 -> 12759.6 | G48: 4.2 | H48: 4.2
A49: Other costs : Describe……………………………………. | C49: 0 | D49: 0 | E49: 0 | F49: 0 | G49: 0 | H49: 0
C50: =SUM(C48:C49) -> 6771.147526 | D50: 38278.8 | E50: 25519.2 | F50: 12759.6 | G50: 4.2 | H50: 4.2
A51: Number of Lights | C51: =C50/C52 -> 34321.64001 | D51: =SUM('Inputs|General'!Q32,'Inputs|General'!Q64) -> 18228 | E51: =SUM('Inputs|General'!R32,'Inputs|General'!R64) -> 12152 | F51: =SUM('Inputs|General'!S32,'Inputs|General'!S64) -> 6076 | G51: =SUM('Inputs|General'!T32,'Inputs|General'!T64) -> 2 | H51: =SUM('Inputs|General'!U32,'Inputs|General'!U64) -> 2
A52: Unit Cost | C52: 0.1972850809 | D52: 2.1 | E52: 2.1 | F52: 2.1 | G52: 2.1 | H52: 2.1 | K52: 2.1 | L52: 2.1 | M52: 2.1 | N52: 2.1 | O52: 2.1
A54: Other O & M costs specific to North/East zone
A55: Other N\E O & M costs : Describe……………………………………. | C55: 2873.472555 | D55: =D56*D57 -> 3428.04 | E55: =E56*E57 -> 2285.36 | F55: 1142.68 | G55: 0.98 | H55: 0.98
A56: Number of Lights | C56: =C55/C57 -> 10840.22244 | D56: ='Inputs|General'!Q64 -> 3498 | E56: ='Inputs|General'!R64 -> 2332 | F56: ='Inputs|General'!S64 -> 1166 | G56: ='Inputs|General'!T64 -> 1 | H56: ='Inputs|General'!U64 -> 1
A57: Unit Cost | C57: 0.2650750546 | D57: 0.98 | E57: 0.98 | F57: 0.98 | G57: 0.98 | H57: 0.98 | K57: 0.98 | L57: 0.98 | M57: 0.98 | N57: 0.98 | O57: 0.98
A59: Location of selected public lighting assets within distributors' areas (%)
A60: SP AusNet - Central
A61: Urban | C61: 0.96 | D61: =$C$61 -> 0.96 | E61: =$C$61 -> 0.96 | F61: 0.96 | G61: 0.96 | H61: 0.96
A62: Rural | C62: 0.04 | D62: =$C$62 -> 0.04 | E62: =$C$62 -> 0.04 | F62: 0.04 | G62: 0.04 | H62: 0.04
A63: Remote | C63: 0 | D63: =$C$63 -> 0 | E63: =$C$63 -> 0 | F63: 0 | G63: 0 | H63: 0
A65: SP AusNet - North/East
A66: Urban | C66: 0.35 | D66: 0.35 | E66: 0.35 | F66: 0.35 | G66: 0.35 | H66: 0.35
A67: Rural | C67: 0.53 | D67: 0.53 | E67: 0.53 | F67: 0.53 | G67: 0.53 | H67: 0.53
A68: Remote | C68: 0.12 | D68: 0.12 | E68: 0.12 | F68: 0.12 | G68: 0.12 | H68: 0.12
A72: Inputs - S-HP150
A74: Depreciation period | B74: years | C74: =$C$19 -> 20 | D74: =$D$19 -> 20 | E74: =$E$19 -> 20 | F74: =$F$19 -> 20 | G74: =$G$19 -> 20 | H74: =$H$19 -> 20
A75: Number of patrols per year | C75: =$C$20 -> 3 | D75: =$D$20 -> 3 | E75: =$E$20 -> 3 | F75: =$F$20 -> 3 | G75: =$G$20 -> 3 | H75: =$H$20 -> 3
A76: Lamps - frequency of replacement | B76: years | C76: 5 | D76: 5 | E76: 5 | F76: 5 | G76: 5 | H76: 5
A77: PE cells - frequency of replacement | B77: years | C77: 10 | D77: 10 | E77: 10 | F77: 10 | G77: 10 | H77: 10
A78: Unit cost - lamp | C78: 44.19769594 | D78: 19.33 | E78: 19.33 | F78: 19.33 | G78: 19.33 | H78: 19.33
A79: Unit cost - PE cell | C79: 24.00513991 | D79: 15.12 | E79: 15.12 | F79: 15.12 | G79: 15.12 | H79: 15.12
A80: Unit cost - miscellaneous materials | C80: 2.6746674 | D80: 2.695291341 | E80: 2.695291341 | F80: 2.695291341 | G80: 2.695291341 | H80: 2.695291341
A81: Number of men in crew - road patrols | C81: 2 | D81: 2 | E81: 2 | F81: 2 | G81: 2 | H81: 2
A82: Number of men in crew - repairs | C82: 2 | D82: 2 | E82: 2 | F82: 2 | G82: 2 | H82: 2
A83: Number of lamps patrolled in 1 day - urban | C83: 3000 | D83: 3000 | E83: 3000 | F83: 3000 | G83: 3000 | H83: 3000
A84: Number of lamps patrolled in 1 day - rural | C84: 2000 | D84: 2000 | E84: 2000 | F84: 2000 | G84: 2000 | H84: 2000
A85: Number of lamps patrolled in 1 day - remote | C85: 1000 | D85: 1000 | E85: 1000 | F85: 1000 | G85: 1000 | H85: 1000
A86: Number of repairs in 1 day - urban | C86: 15 | D86: 15 | E86: 15 | F86: 15 | G86: 15 | H86: 15
A87: Number of repairs in 1 day - rural | C87: 12 | D87: 11 | E87: 11 | F87: 11 | G87: 11 | H87: 11
A88: Number of repairs in 1 day - remote | C88: 9 | D88: 9 | E88: 9 | F88: 9 | G88: 9 | H88: 9
A90: Other Maintenance and Repair costs
A91: Traffic control costs | C91: 4101.281743 | D91: 54736.60844 | E91: 52834.47495 | F91: 50974.88941 | G91: 49156.95647 | H91: 47359.62851
A92: Other costs : Describe……………………………………. | C92: 995.8091444 | D92: 0 | E92: 0 | F92: 0 | G92: 0 | H92: 0
C93: =SUM(C91:C92) -> 5097.090887 | D93: 54736.60844 | E93: 52834.47495 | F93: 50974.88941 | G93: 49156.95647 | H93: 47359.62851
A94: Number of Lights | C94: =C93/C95 -> 20788.60563 | D94: =SUM('Inputs|General'!Q33,'Inputs|General'!Q65) -> 19480.34101 | E94: =SUM('Inputs|General'!R33,'Inputs|General'!R65) -> 18748.63899 | F94: =SUM('Inputs|General'!S33,'Inputs|General'!S65) -> 18033.60303 | G94: =SUM('Inputs|General'!T33,'Inputs|General'!T65) -> 17334.88781 | H94: =SUM('Inputs|General'!U33,'Inputs|General'!U65) -> 16652.15439
A95: Unit Cost | C95: 0.2451867614 | D95: =D93/D94 -> 2.80983831 | E95: =E93/E94 -> 2.818043217 | F95: =F93/F94 -> 2.826661391 | G95: =G93/G94 -> 2.835723945 | H95: =H93/H94 -> 2.844054133
A97: Other O & M costs specific to North/East zone
A98: Other N\E O & M costs : Describe……………………………………. | C98: 1401.119488 | D98: 8769.04886 | E98: 8434.92777 | F98: 8108.810232 | G98: 7790.550498 | H98: 7476.183726
A99: Number of Lights | C99: =C98/C100 -> 5285.746296 | D99: ='Inputs|General'!Q65 -> 5177.367008 | E99: ='Inputs|General'!R65 -> 4916.363219 | F99: ='Inputs|General'!S65 -> 4662.90509 | G99: ='Inputs|General'!T65 -> 4416.895894 | H99: ='Inputs|General'!U65 -> 4178.242275
A100: Unit Cost | C100: 0.2650750546 | D100: =D98/D99 -> 1.693727496 | E100: =E98/E99 -> 1.715684418 | F100: =F98/F99 -> 1.73900392 | G100: =G98/G99 -> 1.763806683 | H100: =H98/H99 -> 1.789313121
A102: Location of selected public lighting assets within distributors' areas (%)
A103: SP AusNet - Central
A104: Urban | C104: 0.94 | D104: 0.94 | E104: 0.94 | F104: 0.94 | G104: 0.94 | H104: 0.94
A105: Rural | C105: 0.06 | D105: 0.06 | E105: 0.06 | F105: 0.06 | G105: 0.06 | H105: 0.06
A106: Remote | C106: 0 | D106: 0 | E106: 0 | F106: 0 | G106: 0 | H106: 0
A108: SP AusNet - North/East
A109: Urban | C109: 0.3 | D109: 0.3 | E109: 0.3 | F109: 0.3 | G109: 0.3 | H109: 0.3
A110: Rural | C110: 0.63 | D110: 0.63 | E110: 0.63 | F110: 0.63 | G110: 0.63 | H110: 0.63
A111: Remote | C111: 0.07 | D111: 0.07 | E111: 0.07 | F111: 0.07 | G111: 0.07 | H111: 0.07
A115: Inputs - S-HP250
A117: Depreciation period | B117: years | C117: =$C$19 -> 20 | D117: =$D$19 -> 20 | E117: =$E$19 -> 20 | F117: =$F$19 -> 20 | G117: =$G$19 -> 20 | H117: =$H$19 -> 20
A118: Number of patrols per year | C118: =$C$20 -> 3 | D118: =$D$20 -> 3 | E118: =$E$20 -> 3 | F118: =$F$20 -> 3 | G118: =$G$20 -> 3 | H118: =$H$20 -> 3
A119: Lamps - frequency of replacement | B119: years | C119: =C76 -> 5 | D119: 5 | E119: 5 | F119: 5 | G119: 5 | H119: 5
A120: PE cells - frequency of replacement | B120: years | C120: =C77 -> 10 | D120: 10 | E120: 10 | F120: 10 | G120: 10 | H120: 10
A121: Unit cost - lamp | C121: 44.41714825 | D121: 21.28 | E121: 21.28 | F121: 21.28 | G121: 21.28 | H121: 21.28
A122: Unit cost - PE cell | C122: 24.00513991 | D122: 15.12 | E122: 15.12 | F122: 15.12 | G122: 15.12 | H122: 15.12
A123: Unit cost - miscellaneous materials | C123: 2.6746674 | D123: 2.548069545 | E123: 2.548069545 | F123: 2.548069545 | G123: 2.548069545 | H123: 2.548069545
A124: Number of men in crew - road patrols | C124: =C81 -> 2 | D124: 2 | E124: 2 | F124: 2 | G124: 2 | H124: 2
A125: Number of men in crew - repairs | C125: =C82 -> 2 | D125: 2 | E125: 2 | F125: 2 | G125: 2 | H125: 2
A126: Number of lamps patrolled in 1 day - urban | C126: =C83 -> 3000 | D126: 3000 | E126: 3000 | F126: 3000 | G126: 3000 | H126: 3000
A127: Number of lamps patrolled in 1 day - rural | C127: =C84 -> 2000 | D127: 2000 | E127: 2000 | F127: 2000 | G127: 2000 | H127: 2000
A128: Number of lamps patrolled in 1 day - remote | C128: =C85 -> 1000 | D128: 1000 | E128: 1000 | F128: 1000 | G128: 1000 | H128: 1000
A129: Number of repairs in 1 day - urban | C129: =C86 -> 15 | D129: 15 | E129: 15 | F129: 15 | G129: 15 | H129: 15
A130: Number of repairs in 1 day - rural | C130: =C87 -> 12 | D130: 11 | E130: 11 | F130: 11 | G130: 11 | H130: 11
A131: Number of repairs in 1 day - remote | C131: =C88 -> 9 | D131: 9 | E131: 9 | F131: 9 | G131: 9 | H131: 9
A133: Other Maintenance and Repair costs
A134: Traffic control costs | C134: 2396.601961 | D134: 41324.63412 | E134: 39886.86547 | F134: 38481.49949 | G134: 37107.85364 | H134: 35749.89366
A135: Other costs : Describe……………………………………. | C135: 995.8091444 | D135: 0 | E135: 0 | F135: 0 | G135: 0 | H135: 0
C136: =SUM(C134:C135) -> 3392.411105 | D136: 41324.63412 | E136: 39886.86547 | F136: 38481.49949 | G136: 37107.85364 | H136: 35749.89366
A137: Number of Lights | C137: =C136/C138 -> 12147.91281 | D137: =SUM('Inputs|General'!Q34,'Inputs|General'!Q66) -> 11572.26051 | E137: =SUM('Inputs|General'!R34,'Inputs|General'!R66) -> 11144.46712 | F137: =SUM('Inputs|General'!S34,'Inputs|General'!S66) -> 10726.36704 | G137: =SUM('Inputs|General'!T34,'Inputs|General'!T66) -> 10317.60407 | H137: =SUM('Inputs|General'!U34,'Inputs|General'!U66) -> 9917.971359
A138: Unit Cost | C138: 0.2792587631 | D138: =D136/D137 -> 3.571007936 | E138: =E136/E137 -> 3.579073369 | F138: =F136/F137 -> 3.587561319 | G138: =G136/G137 -> 3.596557241 | H138: =H136/H137 -> 3.604557058
A140: Other O & M costs specific to North/East zone
A141: Other N\E O & M costs : Describe……………………………………. | C141: 1368.901944 | D141: 7817.865259 | E141: 7554.229292 | F141: 7296.29069 | G141: 7043.926498 | H141: 6794.318126
A142: Number of Lights | C142: =C141/C143 -> 5164.205083 | D142: ='Inputs|General'!Q66 -> 4946.883768 | E142: ='Inputs|General'!R66 -> 4773.464762 | F142: ='Inputs|General'!S66 -> 4603.642269 | G142: ='Inputs|General'!T66 -> 4437.277627 | H142: ='Inputs|General'!U66 -> 4274.290137
A143: Unit Cost | C143: 0.2650750546 | D143: =D141/D142 -> 1.580361623 | E143: =E141/E142 -> 1.582546362 | F143: =F141/F142 -> 1.584895234 | G143: =G141/G142 -> 1.587443268 | H143: =H141/H142 -> 1.589578131
A145: Location of selected public lighting assets within distributors' areas (%)
A146: SP AusNet - Central
A147: Urban | C147: 0.9 | D147: 0.9 | E147: 0.9 | F147: 0.9 | G147: 0.9 | H147: 0.9
A148: Rural | C148: 0.1 | D148: 0.1 | E148: 0.1 | F148: 0.1 | G148: 0.1 | H148: 0.1
A149: Remote | C149: 0 | D149: 0 | E149: 0 | F149: 0 | G149: 0 | H149: 0
A151: SP AusNet - North/East
A152: Urban | C152: 0.37 | D152: 0.37 | E152: 0.37 | F152: 0.37 | G152: 0.37 | H152: 0.37
A153: Rural | C153: 0.57 | D153: 0.57 | E153: 0.57 | F153: 0.57 | G153: 0.57 | H153: 0.57
A154: Remote | C154: 0.06 | D154: 0.06 | E154: 0.06 | F154: 0.06 | G154: 0.06 | H154: 0.06
A158: Dedicated street lighting poles
A160: Period of inspection | B160: years | C160: 5 | D160: 5 | E160: 5 | F160: 5 | G160: 5 | H160: 5 | J160: Powercor | L160: Initial Proposal
A161: Pole inspection rate | B161: per day | C161: 75 | D161: 75 | E161: 75 | F161: 75 | G161: 75 | H161: 75 | J161: 72 | L161: 75
A162: Depreciation of dedicated street lighting pole & bracket | B162: years | C162: 35 | D162: =C162 -> 35 | E162: =D162 -> 35 | F162: =E162 -> 35 | G162: =F162 -> 35 | H162: =G162 -> 35
A163: Proportion of lights on dedicated poles
A164: SP AusNet - Central | C164: 0.381190625 | D164: 0.381190625 | E164: 0.381190625 | F164: 0.381190625 | G164: 0.381190625 | H164: 0.381190625
A165: SP AusNet - North/East | C165: 0.3829674402 | D165: 0.3829674402 | E165: 0.3829674402 | F165: 0.3829674402 | G165: 0.3829674402 | H165: 0.3829674402
A169: Other direct costs
A170: Call centre
A171: Number of calls | C171: 4000 | D171: 4000 | E171: 4000 | F171: 4000 | G171: 4000 | H171: 4000
A172: Average cost per call $ | C172: 16.0309915 | D172: 15.61 | E172: 16.61 | F172: 17.61 | G172: 18.61 | H172: 19.61
C173: =C171*C172 -> 64123.96601 | D173: 62440 | E173: 66440 | F173: 70440 | G173: 74440 | H173: 78440
A175: GIS and other | C175: 124476.143 | D175: 118584.4151 | E175: 118584.4151 | F175: 118584.4151 | G175: 118584.4151 | H175: 118584.4151
A176: Complaints handling | C176: 37342.84291 | D176: 35575.32453 | E176: 35575.32453 | F176: 35575.32453 | G176: 35575.32453 | H176: 35575.32453
A180: ENERGY EFFICIENT LIGHTS
A182: Inputs - T5 (2 X 14W)
A184: Depreciation period | B184: years | C184: =$C$19 -> 20 | D184: =$D$19 -> 20 | E184: =$E$19 -> 20 | F184: =$F$19 -> 20 | G184: =$G$19 -> 20 | H184: =$H$19 -> 20
A185: Lamps - bulk change | B185: years | C185: =$C$21 -> 4 | D185: =$D$21 -> 4 | E185: =$E$21 -> 4 | F185: =$F$21 -> 4 | G185: =$G$21 -> 4 | H185: =$H$21 -> 4
A186: PE cells - bulk change | B186: years | C186: =$C$22 -> 8 | D186: =$D$22 -> 8 | E186: =$E$22 -> 8 | F186: =$F$22 -> 8 | G186: =$G$22 -> 8 | H186: =$H$22 -> 8
A187: Ballast unit life | B187: years | C187: 20 | D187: =C187 -> 20 | E187: =D187 -> 20 | F187: =E187 -> 20 | G187: =F187 -> 20 | H187: =G187 -> 20
A188: Proportion of luminaires that fail between bulk change | C188: 0.114 | D188: 0.4156563612 | E188: 0.4156563612 | F188: 0.4156563612 | G188: 0.4156563612 | H188: 0.4156563612
A189: Unit cost - lamp | C189: 10.69830028 | D189: 8.1 | E189: 8.1 | F189: 8.1 | G189: 8.1 | H189: 8.1
A190: Unit cost - PE cell | C190: 18.05400495 | D190: 15.12 | E190: 15.12 | F190: 15.12 | G190: 15.12 | H190: 15.12
A191: Unit cost - luminaire | C191: 258.1088385 | D191: 260.28 | E191: 260.28 | F191: 260.28 | G191: 260.28 | H191: 260.28
A192: Unit cost - miscellaneous materials (bulk lamp) | C192: 1.3373337 | D192: 1.347645671 | E192: 1.347645671 | F192: 1.347645671 | G192: 1.347645671 | H192: 1.347645671
A193: Unit cost - miscellaneous materials (repair) | C193: 13.373337 | D193: 13.47645671 | E193: 13.47645671 | F193: 13.47645671 | G193: 13.47645671 | H193: 13.47645671
A194: Number of men in crew | C194: 2 | D194: 2 | E194: 2 | F194: 2 | G194: 2 | H194: 2 | J194: Powercor | L194: Initial Proposal | R194: Draft Det
A195: Number of bulk lamp changes in 1 day - urban | C195: 73.92 | D195: 73.92 | E195: 73.92 | F195: 73.92 | G195: 73.92 | H195: 73.92 | J195: 73.92 | L195: 66 | M195: 66 | N195: 66 | O195: 66 | P195: 66 | R195: 85 | S195: 86 | T195: 86 | U195: 86 | V195: 86 | W195: 86
A196: Number of bulk lamp changes in 1 day - rural | C196: 61.44 | D196: 61.44 | E196: 61.44 | F196: 61.44 | G196: 61.44 | H196: 61.44 | J196: 61.44 | L196: 54 | M196: 54 | N196: 54 | O196: 54 | P196: 54 | R196: 70 | S196: 72 | T196: 72 | U196: 72 | V196: 72 | W196: 72
A197: Number of bulk lamp changes in 1 day - remote | C197: 48.96 | D197: 48.96 | E197: 48.96 | F197: 48.96 | G197: 48.96 | H197: 48.96 | J197: 48.96 | L197: 37 | M197: 37 | N197: 37 | O197: 37 | P197: 37 | R197: 50 | S197: 60 | T197: 60 | U197: 60 | V197: 60 | W197: 60
A198: Number of repairs in 1 day - urban | C198: 24.96 | D198: 24.96 | E198: 24.96 | F198: 24.96 | G198: 24.96 | H198: 24.96 | J198: 24.96 | L198: 18 | M198: 18 | N198: 18 | O198: 18 | P198: 18 | R198: 20 | S198: 28.8 | T198: 28.8 | U198: 28.8 | V198: 28.8 | W198: 28.8
A199: Number of repairs in 1 day - rural | C199: 20.16 | D199: 20.16 | E199: 20.16 | F199: 20.16 | G199: 20.16 | H199: 20.16 | J199: 20.16 | L199: 14 | M199: 14 | N199: 14 | O199: 14 | P199: 14 | R199: 15 | S199: 24 | T199: 24 | U199: 24 | V199: 24 | W199: 24
A200: Number of repairs in 1 day - remote | C200: 16.32 | D200: 16.32 | E200: 16.32 | F200: 16.32 | G200: 16.32 | H200: 16.32 | J200: 16.32 | L200: 10 | M200: 10 | N200: 10 | O200: 10 | P200: 10 | R200: 10 | S200: 19.2 | T200: 19.2 | U200: 19.2 | V200: 19.2 | W200: 19.2
A201: % of repairs - lamps | C201: 0.6 | D201: 0.6 | E201: 0.6 | F201: 0.6 | G201: 0.6 | H201: 0.6
A202: % of repairs - PE cells | C202: 0.5 | D202: 0.5 | E202: 0.5 | F202: 0.5 | G202: 0.5 | H202: 0.5
A203: % of repairs - luminaires | C203: 0.15 | D203: 0 | E203: 0 | F203: 0 | G203: 0 | H203: 0
A204: % of repairs - other | C204: 0.1 | D204: 0.1 | E204: 0.1 | F204: 0.1 | G204: 0.1 | H204: 0.1
A206: Other Maintenance and Repair costs
A207: Traffic control costs | C207: 7051.275982 | D207: 30287.25 | E207: 30287.25 | F207: 30287.25 | G207: 30287.25 | H207: 30287.25
A208: Other costs : Describe……………………………………. | C208: 0 | D208: 0 | E208: 0 | F208: 0 | G208: 0 | H208: 0
C209: =SUM(C207:C208) -> 7051.275982 | D209: 30287.25 | E209: 30287.25 | F209: 30287.25 | G209: 30287.25 | H209: 30287.25
A210: Number of Lights | C210: =C209/C211 -> 35741.55709 | D210: =SUM('Inputs|General'!Q47,'Inputs|General'!Q79) -> 29617 | E210: =SUM('Inputs|General'!R47,'Inputs|General'!R79) -> 29617 | F210: =SUM('Inputs|General'!S47,'Inputs|General'!S79) -> 29617 | G210: =SUM('Inputs|General'!T47,'Inputs|General'!T79) -> 29617 | H210: =SUM('Inputs|General'!U47,'Inputs|General'!U79) -> 29617
A211: Unit Cost | C211: 0.1972850809 | D211: =D209/D210 -> 1.022630584 | E211: =E209/E210 -> 1.022630584 | F211: =F209/F210 -> 1.022630584 | G211: =G209/G210 -> 1.022630584 | H211: =H209/H210 -> 1.022630584
A213: Other O & M costs specific to North/East zone
A214: Other N\E O & M costs : Describe……………………………………. | C214: 3466.071593 | D214: 7762.58 | E214: 7762.58 | F214: 7762.58 | G214: 7762.58 | H214: 7762.58
A215: Number of Lights | C215: =C214/C216 -> 13075.81205 | D215: ='Inputs|General'!Q79 -> 7099 | E215: ='Inputs|General'!R79 -> 7099 | F215: ='Inputs|General'!S79 -> 7099 | G215: ='Inputs|General'!T79 -> 7099 | H215: ='Inputs|General'!U79 -> 7099
A216: Unit Cost | C216: 0.2650750546 | D216: =D214/D215 -> 1.093475137 | E216: =E214/E215 -> 1.093475137 | F216: =F214/F215 -> 1.093475137 | G216: =G214/G215 -> 1.093475137 | H216: =H214/H215 -> 1.093475137
A218: Location of selected public lighting assets within distributors' areas (%)
A219: SP AusNet - Central
A220: Urban | C220: 0.96 | D220: 0.96 | E220: 0.96 | F220: 0.96 | G220: 0.96 | H220: 0.96
A221: Rural | C221: 0.04 | D221: 0.04 | E221: 0.04 | F221: 0.04 | G221: 0.04 | H221: 0.04
A222: Remote | C222: 0 | D222: 0 | E222: 0 | F222: 0 | G222: 0 | H222: 0
A224: SP AusNet - North/East
A225: Urban | C225: 0.35 | D225: 0.35 | E225: 0.35 | F225: 0.35 | G225: 0.35 | H225: 0.35
A226: Rural | C226: 0.53 | D226: 0.53 | E226: 0.53 | F226: 0.53 | G226: 0.53 | H226: 0.53
A227: Remote | C227: 0.12 | D227: 0.12 | E227: 0.12 | F227: 0.12 | G227: 0.12 | H227: 0.12
A231: Inputs - T5 (2 x 24W)
A233: Depreciation period | B233: years | C233: =$C$19 -> 20 | D233: =$D$19 -> 20 | E233: =$E$19 -> 20 | F233: =$F$19 -> 20 | G233: =$G$19 -> 20 | H233: =$H$19 -> 20
A234: Lamps - bulk change | B234: years | C234: =$C$21 -> 4 | D234: =$D$21 -> 4 | E234: =$E$21 -> 4 | F234: =$F$21 -> 4 | G234: =$G$21 -> 4 | H234: =$H$21 -> 4
A235: PE cells - bulk change | B235: years | C235: =$C$22 -> 8 | D235: =$D$22 -> 8 | E235: =$E$22 -> 8 | F235: =$F$22 -> 8 | G235: =$G$22 -> 8 | H235: =$H$22 -> 8
A236: Ballast unit life | C236: 20 | D236: =C236 -> 20 | E236: =D236 -> 20 | F236: 20 | G236: 20 | H236: 20
A237: Proportion of luminaires that fail between bulk change | C237: 0.114 | D237: 0.4156563612 | E237: 0.4156563612 | F237: 0.4156563612 | G237: 0.4156563612 | H237: 0.4156563612
A238: Unit cost - lamp | C238: 18.45593957 | D238: 8.1 | E238: 8.1 | F238: 8.1 | G238: 8.1 | H238: 8.1
A239: Unit cost - PE cell | C239: 23.40333975 | D239: 15.12 | E239: 15.12 | F239: 15.12 | G239: 15.12 | H239: 15.12
A240: Unit cost - luminaire | C240: 286.187762 | D240: 267.33 | E240: 267.33 | F240: 267.33 | G240: 267.33 | H240: 267.33
A241: Unit cost - miscellaneous materials (bulk lamp) | C241: 1.3373337 | D241: 1.347645671 | E241: 1.347645671 | F241: 1.347645671 | G241: 1.347645671 | H241: 1.347645671
A242: Unit cost - miscellaneous materials (repair) | C242: 13.373337 | D242: 13.47645671 | E242: 13.47645671 | F242: 13.47645671 | G242: 13.47645671 | H242: 13.47645671
A243: Number of men in crew | C243: 2 | D243: 2 | E243: 2 | F243: 2 | G243: 2 | H243: 2 | J243: Powercor | L243: Initial Proposal | R243: Draft Det
A244: Number of bulk lamp changes in 1 day - urban | C244: 73.92 | D244: =D195 -> 73.92 | E244: =E195 -> 73.92 | F244: =F195 -> 73.92 | G244: 73.92 | H244: 73.92 | J244: 73.92 | L244: 66 | M244: 66 | N244: 66 | O244: 66 | P244: 66 | R244: 86 | S244: 86 | T244: 86 | U244: 86 | V244: 86
A245: Number of bulk lamp changes in 1 day - rural | C245: 61.44 | D245: =D196 -> 61.44 | E245: 61.44 | F245: 61.44 | G245: 61.44 | H245: 61.44 | J245: 61.44 | L245: 54 | M245: 54 | N245: 54 | O245: 54 | P245: 54 | R245: 72 | S245: 72 | T245: 72 | U245: 72 | V245: 72
A246: Number of bulk lamp changes in 1 day - remote | C246: 48.96 | D246: =D197 -> 48.96 | E246: 48.96 | F246: 48.96 | G246: 48.96 | H246: 48.96 | J246: 48.96 | L246: 37 | M246: 37 | N246: 37 | O246: 37 | P246: 37 | R246: 60 | S246: 60 | T246: 60 | U246: 60 | V246: 60
A247: Number of repairs in 1 day - urban | C247: 24.96 | D247: =D198 -> 24.96 | E247: 24.96 | F247: 24.96 | G247: 24.96 | H247: 24.96 | J247: 24.96 | L247: 20 | M247: 20 | N247: 20 | O247: 20 | P247: 20 | R247: 28.8 | S247: 28.8 | T247: 28.8 | U247: 28.8 | V247: 28.8
A248: Number of repairs in 1 day - rural | C248: 20.16 | D248: =D199 -> 20.16 | E248: 20.16 | F248: 20.16 | G248: 20.16 | H248: 20.16 | J248: 20.16 | L248: 15 | M248: 15 | N248: 15 | O248: 15 | P248: 15 | R248: 24 | S248: 24 | T248: 24 | U248: 24 | V248: 24
... 313 more rows

Sheet Inputs|Capex
A1: Public Lighting Cost Build-up Model
A3: ='Inputs|O&M'!$A$3 -> AusNet Services Public Lighting Model | C3: Capex Data Inputs
C5: Real 2021 $
A7: Input parameters | C7: ='Inputs|General'!P2 -> HY2021 | D7: ='Inputs|General'!Q2 -> 2022-06-30 | E7: ='Inputs|General'!R2 -> 2023-06-30 | F7: ='Inputs|General'!S2 -> 2024-06-30 | G7: ='Inputs|General'!T2 -> 2025-06-30 | H7: ='Inputs|General'!U2 -> 2026-06-30
A9: Inputs - all lamps
A11: Material premium for rural areas | C11: ='Inputs|O&M'!C11 -> 0.05 | D11: ='Inputs|O&M'!D11 -> 0.05 | E11: ='Inputs|O&M'!E11 -> 0.05 | F11: ='Inputs|O&M'!F11 -> 0.05 | G11: ='Inputs|O&M'!G11 -> 0.05 | H11: ='Inputs|O&M'!H11 -> 0.05
A12: Labour rate (per hour) | C12: ='Inputs|O&M'!C12 -> 105.1461393 | D12: ='Inputs|O&M'!D12 -> 111.3622324 | E12: ='Inputs|O&M'!E12 -> 111.9146885 | F12: ='Inputs|O&M'!F12 -> 112.6435416 | G12: ='Inputs|O&M'!G12 -> 113.7626147 | H12: ='Inputs|O&M'!H12 -> 115.2501091
A13: Elevated platform vehicle (per hour) - urban MV,urban T5 | C13: ='Inputs|O&M'!C14 -> 49.79045722 | D13: ='Inputs|O&M'!D14 -> 50.18 | E13: ='Inputs|O&M'!E14 -> 50.18 | F13: ='Inputs|O&M'!F14 -> 50.18 | G13: ='Inputs|O&M'!G14 -> 50.18 | H13: ='Inputs|O&M'!H14 -> 50.18
A14: Elevated platform vehicle (per hour) - rural MV, rural T5, S-HP | C14: ='Inputs|O&M'!C15 -> 89.9713562 | D14: ='Inputs|O&M'!D15 -> 63.64 | E14: ='Inputs|O&M'!E15 -> 63.64 | F14: ='Inputs|O&M'!F15 -> 63.64 | G14: ='Inputs|O&M'!G15 -> 63.64 | H14: ='Inputs|O&M'!H15 -> 63.64
A15: Number of hours in a day | C15: ='Inputs|O&M'!C17 -> 8 | D15: ='Inputs|O&M'!D17 -> 7.5 | E15: ='Inputs|O&M'!E17 -> 7.5 | F15: ='Inputs|O&M'!F17 -> 7.5 | G15: ='Inputs|O&M'!G17 -> 7.5 | H15: ='Inputs|O&M'!H17 -> 7.5
A19: Inputs - MV80
A21: Unit cost - luminaire | C21: ='Inputs|O&M'!C32 -> 212.0348253 | D21: ='Inputs|O&M'!D32 -> 205 | E21: ='Inputs|O&M'!E32 -> 205 | F21: ='Inputs|O&M'!F32 -> 205 | G21: ='Inputs|O&M'!G32 -> 205 | H21: ='Inputs|O&M'!H32 -> 205
A22: Unit cost - miscellaneous materials (bulk lamp) | C22: ='Inputs|O&M'!C33 -> 1.3373337 | D22: ='Inputs|O&M'!D33 -> 1.347645671 | E22: ='Inputs|O&M'!E33 -> 1.347645671 | F22: ='Inputs|O&M'!F33 -> 1.347645671 | G22: ='Inputs|O&M'!G33 -> 1.347645671 | H22: ='Inputs|O&M'!H33 -> 1.347645671
A23: Number of men in crew | C23: ='Inputs|O&M'!C35 -> 2 | D23: ='Inputs|O&M'!D35 -> 2 | E23: ='Inputs|O&M'!E35 -> 2 | F23: ='Inputs|O&M'!F35 -> 2 | G23: ='Inputs|O&M'!G35 -> 2 | H23: ='Inputs|O&M'!H35 -> 2
A24: Number of luminaires replaced per day - urban | C24: 16 | D24: 16 | E24: 16 | F24: 16 | G24: 16 | H24: 16
A25: Number of luminaires replaced per day - rural | C25: 13 | D25: 13 | E25: 13 | F25: 13 | G25: 13 | H25: 13
A26: Number of luminaires replaced per day - remote | C26: 10 | D26: 10 | E26: 10 | F26: 10 | G26: 10 | H26: 10
A28: Other Capex unit costs Describe :……………………… | C28: 0 | D28: 0 | E28: 0 | F28: 0 | G28: 0 | H28: 0
A30: Forecast Quantities to be replaced
A31: Number of luminaires replaced per year - urban | C31: 0 | D31: 0 | E31: 0 | F31: 0 | G31: 0 | H31: 0
A32: Number of luminaires replaced per year - rural | C32: 0 | D32: 0 | E32: 0 | F32: 0 | G32: 0 | H32: 0
A33: Number of luminaires replaced per year - remote | C33: 0 | D33: 0 | E33: 0 | F33: 0 | G33: 0 | H33: 0
A35: MV80 Lights replaced with T5 Energy Efficient Lights
A36: Number of Lights MV80 replaced with T5 per year
A37: SP AusNet - Central | C37: 1500 | D37: 0 | E37: 0 | F37: 0 | G37: 0 | H37: 0
A38: SP AusNet - North/East | C38: 500 | D38: 0 | E38: 0 | F38: 0 | G38: 0 | H38: 0
A42: Inputs - S-HP150
A44: Unit cost - luminaire | C44: 264.8350519 | D44: 234.07 | E44: 234.07 | F44: 234.07 | G44: 234.07 | H44: 234.07
A45: Unit cost - miscellaneous materials | C45: ='Inputs|O&M'!C80 -> 2.6746674 | D45: ='Inputs|O&M'!D80 -> 2.695291341 | E45: ='Inputs|O&M'!E80 -> 2.695291341 | F45: ='Inputs|O&M'!F80 -> 2.695291341 | G45: ='Inputs|O&M'!G80 -> 2.695291341 | H45: ='Inputs|O&M'!H80 -> 2.695291341
A46: Number of men in crew | C46: ='Inputs|O&M'!C82 -> 2 | D46: ='Inputs|O&M'!D82 -> 2 | E46: ='Inputs|O&M'!E82 -> 2 | F46: ='Inputs|O&M'!F82 -> 2 | G46: ='Inputs|O&M'!G82 -> 2 | H46: ='Inputs|O&M'!H82 -> 2
A47: Number of luminaires replaced per day - urban | C47: 16 | D47: 16 | E47: 16 | F47: 16 | G47: 16 | H47: 16
A48: Number of luminaires replaced per day - rural | C48: 13 | D48: 13 | E48: 13 | F48: 13 | G48: 13 | H48: 13
A49: Number of luminaires replaced per day - remote | C49: 10 | D49: 10 | E49: 10 | F49: 10 | G49: 10 | H49: 10
A51: Other Capex unit costs Describe :……………………… | C51: 0 | D51: 0 | E51: 0 | F51: 0 | G51: 0 | H51: 0
A53: Forecast Quantities to be replaced
A54: Number of luminaires replaced per year - urban | C54: 335.2045732 | D54: 0 | E54: 0 | F54: 0 | G54: 0 | H54: 0
A55: Number of luminaires replaced per year - rural | C55: 94.52251231 | D55: 0 | E55: 0 | F55: 0 | G55: 0 | H55: 0
A56: Number of luminaires replaced per day - remote | C56: 8.379871303 | D56: 0 | E56: 0 | F56: 0 | G56: 0 | H56: 0
A60: Inputs - S-HP250
A62: Unit cost - luminaire | C62: 271.769745 | D62: 240.18 | E62: 240.18 | F62: 240.18 | G62: 240.18 | H62: 240.18
A63: Unit cost - miscellaneous materials | C63: ='Inputs|O&M'!C123 -> 2.6746674 | D63: ='Inputs|O&M'!D123 -> 2.548069545 | E63: ='Inputs|O&M'!E123 -> 2.548069545 | F63: ='Inputs|O&M'!F123 -> 2.548069545 | G63: ='Inputs|O&M'!G123 -> 2.548069545 | H63: ='Inputs|O&M'!H123 -> 2.548069545
A64: Number of men in crew | C64: ='Inputs|O&M'!C125 -> 2 | D64: ='Inputs|O&M'!D125 -> 2 | E64: ='Inputs|O&M'!E125 -> 2 | F64: ='Inputs|O&M'!F125 -> 2 | G64: ='Inputs|O&M'!G125 -> 2 | H64: ='Inputs|O&M'!H125 -> 2
A65: Number of luminaires replaced per day - urban | C65: 16 | D65: 16 | E65: 16 | F65: 16 | G65: 16 | H65: 16
A66: Number of luminaires replaced per day - rural | C66: 13 | D66: 13 | E66: 13 | F66: 13 | G66: 13 | H66: 13
A67: Number of luminaires replaced per day - remote | C67: 10 | D67: 10 | E67: 10 | F67: 10 | G67: 10 | H67: 10
A69: Other Capex unit costs Describe :……………………… | C69: 0 | D69: 0 | E69: 0 | F69: 0 | G69: 0 | H69: 0
A71: Forecast Quantities to be replaced
A72: Number of luminaires replaced per year - urban | C72: 212.0461387 | D72: 0 | E72: 0 | F72: 0 | G72: 0 | H72: 0
A73: Number of luminaires replaced per year - rural | C73: 61.66473706 | D73: 0 | E73: 0 | F73: 0 | G73: 0 | H73: 0
A74: Number of luminaires replaced per day - remote | C74: 5.232576094 | D74: 0 | E74: 0 | F74: 0 | G74: 0 | H74: 0
A78: Dedicated street lighting poles
A80: Cost of pole & bracket | C80: 945.4664023 | D80: 1223.627538 | E80: 1223.627538 | F80: 1223.627538 | G80: 1223.627538 | H80: 1223.627538
A81: Number of men in crew | D81: 4 | E81: 4 | F81: 4 | G81: 4 | H81: 4
A82: Number of poles & brackets replaced per day | C82: 4 | D82: 4 | E82: 4 | F82: 4 | G82: 4 | H82: 4
A83: Cost of bracket on non-dedicated poles | C83: 47.99422096 | D83: 48.36429688 | E83: 48.36429688 | F83: 48.36429688 | G83: 48.36429688 | H83: 48.36429688
A84: Number of brackets replaced per day | C84: 20 | D84: 20 | E84: 20 | F84: 20 | G84: 20 | H84: 20
A85: Plant costs (including truck mounted crane & auger, and tipper truck) | D85: 387.05858 | E85: 387.05858 | F85: 387.05858 | G85: 387.05858 | H85: 387.05858
A86: Other poles & brackets Capex unit costs Describe :………………… | C86: 22.04901374 | D86: 20.53017169 | E86: 20.96576029 | F86: 21.4013489 | G86: 21.8369375 | H86: 22.2725261
A89: Forecast Quantities to be replaced
A90: Number of poles & brackets replaced per year - urban | C90: 598.7331124 | D90: 598.7331124 | E90: 598.7331124 | F90: 598.7331124 | G90: 598.7331124 | H90: 598.7331124
A91: Number of poles & brackets replaced per year - rural | C91: 203.0623874 | D91: 203.0623874 | E91: 203.0623874 | F91: 203.0623874 | G91: 203.0623874 | H91: 203.0623874
A92: Number of poles & brackets replaced per year - remote | C92: 15.48943329 | D92: 15.48943329 | E92: 15.48943329 | F92: 15.48943329 | G92: 15.48943329 | H92: 15.48943329
A94: Brackets on non-dedicated poles :
A95: Number of brackets replaced per year - urban | C95: 970.796428 | D95: 970.796428 | E95: 970.796428 | F95: 970.796428 | G95: 970.796428 | H95: 970.796428
A96: Number of brackets replaced per year - rural | C96: 327.8522232 | D96: 327.8522232 | E96: 327.8522232 | F96: 327.8522232 | G96: 327.8522232 | H96: 327.8522232
A97: Number of brackets replaced per year - remote | C97: 24.95638968 | D97: 24.95638968 | E97: 24.95638968 | F97: 24.95638968 | G97: 24.95638968 | H97: 24.95638968
A101: Luminaire Replacements - Other Light types (excluding T5s)
A102: Number of luminaires replaced per year | C102: 129.5406343
A103: Forecast Capex | C103: 41924.26816
A107: Inputs - T5 (2 X 14W)
A109: Unit cost - luminaire | C109: ='Inputs|O&M'!C191 -> 258.1088385 | D109: ='Inputs|O&M'!D191 -> 260.28 | E109: ='Inputs|O&M'!E191 -> 260.28 | F109: ='Inputs|O&M'!F191 -> 260.28 | G109: ='Inputs|O&M'!G191 -> 260.28 | H109: ='Inputs|O&M'!H191 -> 260.28
A110: Unit cost - miscellaneous materials (bulk lamp) | C110: ='Inputs|O&M'!C192 -> 1.3373337 | D110: ='Inputs|O&M'!D192 -> 1.347645671 | E110: ='Inputs|O&M'!E192 -> 1.347645671 | F110: ='Inputs|O&M'!F192 -> 1.347645671 | G110: ='Inputs|O&M'!G192 -> 1.347645671 | H110: ='Inputs|O&M'!H192 -> 1.347645671
A111: Number of men in crew | C111: ='Inputs|O&M'!C194 -> 2 | D111: ='Inputs|O&M'!D194 -> 2 | E111: ='Inputs|O&M'!E194 -> 2 | F111: ='Inputs|O&M'!F194 -> 2 | G111: ='Inputs|O&M'!G194 -> 2 | H111: ='Inputs|O&M'!H194 -> 2
A112: Number of luminaires replaced per day - urban | C112: 0 | D112: 16 | E112: 16 | F112: 16 | G112: 16 | H112: 16
A113: Number of luminaires replaced per day - rural | C113: 0 | D113: 13 | E113: 13 | F113: 13 | G113: 13 | H113: 13
A114: Number of luminaires replaced per day - remote | C114: 0 | D114: 10 | E114: 10 | F114: 10 | G114: 10 | H114: 10
A116: Other Capex unit costs Describe :……………………… | C116: 0 | D116: 0 | E116: 0 | F116: 0 | G116: 0 | H116: 0
A118: Forecast Quantities to be replaced
A119: Number of luminaires replaced per year - urban | C119: 0 | D119: 332.3168495 | E119: 332.3168495 | F119: 332.3168495 | G119: 332.3168495 | H119: 332.3168495
A120: Number of luminaires replaced per year - rural | C120: 0 | D120: 83.936583 | E120: 83.936583 | F120: 83.936583 | G120: 83.936583 | H120: 83.936583
A121: Number of luminaires replaced per year - remote | C121: 0 | D121: 16.29004164 | E121: 16.29004164 | F121: 16.29004164 | G121: 16.29004164 | H121: 16.29004164
A125: Inputs - T5 (2x24W)
A127: Unit cost - luminaire | C127: ='Inputs|O&M'!C240 -> 286.187762 | D127: ='Inputs|O&M'!D240 -> 267.33 | E127: ='Inputs|O&M'!E240 -> 267.33 | F127: ='Inputs|O&M'!F240 -> 267.33 | G127: ='Inputs|O&M'!G240 -> 267.33 | H127: ='Inputs|O&M'!H240 -> 267.33
A128: Unit cost - miscellaneous materials (bulk lamp) | C128: ='Inputs|O&M'!C241 -> 1.3373337 | D128: ='Inputs|O&M'!D241 -> 1.347645671 | E128: ='Inputs|O&M'!E241 -> 1.347645671 | F128: ='Inputs|O&M'!F241 -> 1.347645671 | G128: ='Inputs|O&M'!G241 -> 1.347645671 | H128: ='Inputs|O&M'!H241 -> 1.347645671
A129: Number of men in crew | C129: ='Inputs|O&M'!C243 -> 2 | D129: ='Inputs|O&M'!D243 -> 2 | E129: ='Inputs|O&M'!E243 -> 2 | F129: ='Inputs|O&M'!F243 -> 2 | G129: ='Inputs|O&M'!G243 -> 2 | H129: ='Inputs|O&M'!H243 -> 2
A130: Number of luminaires replaced per day - urban | C130: 0 | D130: 16 | E130: 16 | F130: 16 | G130: 16 | H130: 16
A131: Number of luminaires replaced per day - rural | C131: 0 | D131: 13 | E131: 13 | F131: 13 | G131: 13 | H131: 13
A132: Number of luminaires replaced per day - remote | C132: 0 | D132: 10 | E132: 10 | F132: 10 | G132: 10 | H132: 10
A134: Other Capex unit costs Describe :……………………… | C134: 0 | D134: 0 | E134: 0 | F134: 0 | G134: 0 | H134: 0
A136: Forecast Quantities to be replaced
A137: Number of luminaires replaced per year - urban | C137: 0 | D137: 35.82962046 | E137: 35.82962046 | F137: 35.82962046 | G137: 35.82962046 | H137: 35.82962046
A138: Number of luminaires replaced per year - rural | C138: 0 | D138: 9.049844796 | E138: 9.049844796 | F138: 9.049844796 | G138: 9.049844796 | H138: 9.049844796
A139: Number of luminaires replaced per year - remote | C139: 0 | D139: 1.756353944 | E139: 1.756353944 | F139: 1.756353944 | G139: 1.756353944 | H139: 1.756353944
I142: ='Inputs|O&M'!D288 -> 205 | J142: Standard MV lights are replaced at $205
A143: Inputs - LED 18W | I143: 615 | J143: Non-standard LED luminaires replacements cost $615
J144: 18656 | K144: Non-standard MV lights on records
A145: Unit cost - luminaire | C145: ='Inputs|O&M'!C288 -> 391.1415906 | D145: =$J150 -> 473.5730337 | E145: =$J150 -> 473.5730337 | F145: =$J150 -> 473.5730337 | G145: 473.5730337 | H145: 473.5730337 | J145: 28480 | K145: Total MV lights on records at end of 2020
A146: Number of men in crew | C146: ='Inputs|O&M'!C290 -> 2 | D146: ='Inputs|O&M'!D290 -> 2 | E146: ='Inputs|O&M'!E290 -> 2 | F146: ='Inputs|O&M'!F290 -> 2 | G146: ='Inputs|O&M'!G290 -> 2 | H146: ='Inputs|O&M'!H290 -> 2 | J146: 21132
A147: Number of luminaires replaced per day - urban | C147: 0 | D147: 16 | E147: 16 | F147: 16 | G147: 16 | H147: 16
A148: Number of luminaires replaced per day - rural | C148: 0 | D148: 13 | E148: 13 | F148: 13 | G148: 13 | H148: 13 | J148: =(I143*J144+I142*(J145-J144))/J145 -> 473.5730337 | K148: Average cost of replacing an MV-80 light for the 2 lights taking into account that Councils have more costly light non-standard replacements
A149: Number of luminaires replaced per day - remote | C149: 0 | D149: 10 | E149: 10 | F149: 10 | G149: 10 | H149: 10
J150: =J148 -> 473.5730337
A151: Other Capex unit costs Describe :……………………… | C151: 0 | D151: 0 | E151: 0 | F151: 0 | G151: 0 | H151: 0
A153: Forecast Quantities to be replaced | K153: Previous option 2
A154: Number of luminaires replaced per year - urban | B154: =D154/SUM($D$154:$D$156) -> 0.7682416439 | C154: 204.1014946 | D154: 1962.195227 | E154: 2205.373769 | F154: 2157.146945 | G154: 2109.229869 | H154: 333.1017506 | K154: 4541 | L154: 4487 | M154: 4434 | N154: 4105.372404 | O154: 362
A155: Number of luminaires replaced per year - rural | B155: =D155/SUM($D$154:$D$156) -> 0.1940901887 | C155: 51.5519513 | D155: 495.7331393 | E155: 557.033261 | F155: 544.8521309 | G155: 532.7492367 | H155: 84.1348333 | K155: 1147 | L155: 1133 | M155: 1119 | N155: 1036.386373 | O155: 90
A156: Number of luminaires replaced per year - remote | B156: 0.03766816737 | C156: 10.00497523 | D156: 96.20970016 | E156: 108.1065573 | F156: 105.7424973 | G156: 103.393621 | H156: 16.32851719 | K156: 222 | L156: 219 | M156: 217 | N156: 201.3221766 | O156: 16
A159: NEW
A160: Inputs - LED non-standard low power ~14W
A162: Unit cost - luminaire | D162: ='Inputs|O&M'!D334 -> 205 | E162: ='Inputs|O&M'!E334 -> 205 | F162: ='Inputs|O&M'!F334 -> 205 | G162: ='Inputs|O&M'!G334 -> 205 | H162: ='Inputs|O&M'!H334 -> 205
A163: Number of men in crew | D163: ='Inputs|O&M'!D336 -> 2 | E163: ='Inputs|O&M'!E336 -> 2 | F163: ='Inputs|O&M'!F336 -> 2 | G163: ='Inputs|O&M'!G336 -> 2 | H163: ='Inputs|O&M'!H336 -> 2
A164: Number of luminaires replaced per day - urban | D164: 16 | E164: 16 | F164: 16 | G164: 16 | H164: 16
A165: Number of luminaires replaced per day - rural | D165: 13 | E165: 13 | F165: 13 | G165: 13 | H165: 13
A166: Number of luminaires replaced per day - remote | D166: 10 | E166: 10 | F166: 10 | G166: 10 | H166: 10
A168: Other Capex unit costs Describe :……………………… | D168: 0 | E168: 0 | F168: 0 | G168: 0 | H168: 0
A170: Forecast Quantities to be replaced | D170: 0.004869099171 | E170: ='Inputs|General'!O82+'Inputs|General'!O50 -> 3610 | J170: Luminaire failure rate times volume
A171: Number of luminaires replaced per year - urban | D171: =$D$170*$E$170*$B154 -> 13.50372755 | E171: =$D$170*$E$170*$B154 -> 13.50372755 | F171: 13.50372755 | G171: 13.50372755 | H171: 13.50372755
A172: Number of luminaires replaced per year - rural | D172: =$D$170*$E$170*$B155 -> 3.411610201 | E172: 3.411610201 | F172: 3.411610201 | G172: 3.411610201 | H172: 3.411610201
A173: Number of luminaires replaced per year - remote | D173: =$D$170*$E$170*$B156 -> 0.6621102535 | E173: 0.6621102535 | F173: 0.6621102535 | G173: 0.6621102535 | H173: 0.6621102535
A176: NEW
A177: Inputs - LED 70W (L1)
A179: Unit cost - luminaire | D179: ='Inputs|O&M'!D380 -> 402 | E179: ='Inputs|O&M'!E380 -> 402 | F179: ='Inputs|O&M'!F380 -> 402 | G179: ='Inputs|O&M'!G380 -> 402 | H179: ='Inputs|O&M'!H380 -> 402
A180: Number of men in crew | D180: ='Inputs|O&M'!D382 -> 2 | E180: ='Inputs|O&M'!E382 -> 2 | F180: ='Inputs|O&M'!F382 -> 2 | G180: ='Inputs|O&M'!G382 -> 2 | H180: ='Inputs|O&M'!H382 -> 2
A181: Number of luminaires replaced per day - urban | D181: 16 | E181: 16 | F181: 16 | G181: 16 | H181: 16
A182: Number of luminaires replaced per day - rural | D182: 13 | E182: 13 | F182: 13 | G182: 13 | H182: 13
A183: Number of luminaires replaced per day - remote | D183: 10 | E183: 10 | F183: 10 | G183: 10 | H183: 10
A185: Other Capex unit costs Describe :……………………… | D185: 0 | E185: 0 | F185: 0 | G185: 0 | H185: 0
A187: Forecast Quantities to be replaced
A188: Number of luminaires replaced per year - urban | D188: 77.41435979 | E188: 78.47781207 | F188: 82.79370883 | G188: 85.94510215 | H188: 25.11870721
A189: Number of luminaires replaced per year - rural | D189: 19.5533174 | E189: 19.82192415 | F189: 20.91203327 | G189: 21.70801213 | H189: 6.344482549
A190: Number of luminaires replaced per year - remote | D190: 3.794821558 | E190: 3.846951572 | F190: 4.058515139 | G190: 4.212995203 | H190: 1.231309177
C192: 27.81779795
A193: NEW | C193: 7.670439679
A194: Inputs - LED 155W (L2) | C194: 1.353813625
A196: Unit cost - luminaire | D196: ='Inputs|O&M'!D426 -> 427 | E196: ='Inputs|O&M'!E426 -> 427 | F196: ='Inputs|O&M'!F426 -> 427 | G196: ='Inputs|O&M'!G426 -> 427 | H196: ='Inputs|O&M'!H426 -> 427
A197: Number of men in crew | D197: ='Inputs|O&M'!D428 -> 2 | E197: ='Inputs|O&M'!E428 -> 2 | F197: ='Inputs|O&M'!F428 -> 2 | G197: ='Inputs|O&M'!G428 -> 2 | H197: ='Inputs|O&M'!H428 -> 2
A198: Number of luminaires replaced per day - urban | D198: 16 | E198: 16 | F198: 16 | G198: 16 | H198: 16
A199: Number of luminaires replaced per day - rural | D199: 13 | E199: 13 | F199: 13 | G199: 13 | H199: 13
A200: Number of luminaires replaced per day - remote | D200: 10 | E200: 10 | F200: 10 | G200: 10 | H200: 10
A202: Other Capex unit costs Describe :……………………… | D202: 0 | E202: 0 | F202: 0 | G202: 0 | H202: 0
A204: Forecast Quantities to be replaced
A205: Number of luminaires replaced per year - urban | D205: 936.0338563 | E205: 929.8403706 | F205: 916.2721213 | G205: 903.0052867 | H205: 883.5794396 | J205: Replacements of HPS and category V MV driving expenditure of L2 luminaires
A206: Number of luminaires replaced per year - rural | D206: 236.4234121 | E206: 234.8590616 | F206: 231.4319935 | G206: 228.0810567 | H206: 223.1744766
A207: Number of luminaires replaced per year - remote | D207: 45.88401256 | E207: 45.58041032 | F207: 44.91530006 | G207: 44.26496503 | H207: 43.31271763
A210: NEW
A211: Inputs - LED 275W (L4)
A213: Unit cost - luminaire | D213: ='Inputs|O&M'!D472 -> 650.88 | E213: ='Inputs|O&M'!E472 -> 650.88 | F213: ='Inputs|O&M'!F472 -> 650.88 | G213: ='Inputs|O&M'!G472 -> 650.88 | H213: ='Inputs|O&M'!H472 -> 650.88
A214: Number of men in crew | D214: ='Inputs|O&M'!D474 -> 2 | E214: ='Inputs|O&M'!E474 -> 2 | F214: ='Inputs|O&M'!F474 -> 2 | G214: ='Inputs|O&M'!G474 -> 2 | H214: ='Inputs|O&M'!H474 -> 2
A215: Number of luminaires replaced per day - urban | D215: 16 | E215: 16 | F215: 16 | G215: 16 | H215: 16
A216: Number of luminaires replaced per day - rural | D216: 13 | E216: 13 | F216: 13 | G216: 13 | H216: 13
A217: Number of luminaires replaced per day - remote | D217: 10 | E217: 10 | F217: 10 | G217: 10 | H217: 10
A219: Other Capex unit costs Describe :……………………… | D219: 0 | E219: 0 | F219: 0 | G219: 0 | H219: 0
A221: Forecast Quantities to be replaced
A222: Number of luminaires replaced per year - urban | D222: 47.26849897 | E222: 47.74717948 | F222: 48.23058626 | G222: 48.72014899 | H222: 9.271581598
A223: Number of luminaires replaced per year - rural | D223: 11.93907649 | E223: 12.05998161 | F223: 12.18208048 | G223: 12.30573423 | H223: 2.341815889
A224: Number of luminaires replaced per year - remote | D224: 2.317083283 | E224: 2.340548014 | F224: 2.364244424 | G224: 2.388242597 | H224: 0.454489294
A226: NEW
A227: Inputs - Smart lighting L1
A229: Unit cost - luminaire | D229: ='Inputs|O&M'!D517 -> 402 | E229: ='Inputs|O&M'!E517 -> 402 | F229: ='Inputs|O&M'!F517 -> 402 | G229: ='Inputs|O&M'!G517 -> 402 | H229: ='Inputs|O&M'!H517 -> 402
A230: Number of men in crew | D230: ='Inputs|O&M'!D519 -> 2 | E230: ='Inputs|O&M'!E519 -> 2 | F230: ='Inputs|O&M'!F519 -> 2 | G230: ='Inputs|O&M'!G519 -> 2 | H230: ='Inputs|O&M'!H519 -> 2
A231: Number of luminaires replaced per day - urban | D231: 16 | E231: 16 | F231: 16 | G231: 16 | H231: 16
A232: Number of luminaires replaced per day - rural | D232: 13 | E232: 13 | F232: 13 | G232: 13 | H232: 13
A233: Number of luminaires replaced per day - remote | D233: 10 | E233: 10 | F233: 10 | G233: 10 | H233: 10
A235: Other Capex unit costs Describe :……………………… | D235: 0 | E235: 0 | F235: 0 | G235: 0 | H235: 0
A237: Forecast Quantities to be replaced
A238: Number of luminaires replaced per year - urban | D238: 77 | E238: 77 | F238: 76.90315209 | G238: 76.90315209 | H238: 11.69601551
A239: Number of luminaires replaced per year - rural | D239: 19 | E239: 19 | F239: 19.82615735 | G239: 19.82615735 | H239: 2
A240: Number of luminaires replaced per year - remote | D240: 4 | E240: 4 | F240: 3.907017259 | G240: 3.907017259 | H240: 0
A242: Inputs - Smart lighting L2
A244: Unit cost - luminaire | D244: ='Inputs|O&M'!D561 -> 427 | E244: ='Inputs|O&M'!E561 -> 427 | F244: ='Inputs|O&M'!F561 -> 427 | G244: ='Inputs|O&M'!G561 -> 427 | H244: ='Inputs|O&M'!H561 -> 427
A245: Number of men in crew | D245: ='Inputs|O&M'!D563 -> 2 | E245: ='Inputs|O&M'!E563 -> 2 | F245: ='Inputs|O&M'!F563 -> 2 | G245: ='Inputs|O&M'!G563 -> 2 | H245: ='Inputs|O&M'!H563 -> 2
A246: Number of luminaires replaced per day - urban | D246: 16 | E246: 16 | F246: 16 | G246: 16 | H246: 16
A247: Number of luminaires replaced per day - rural | D247: 13 | E247: 13 | F247: 13 | G247: 13 | H247: 13
A248: Number of luminaires replaced per day - remote | D248: 10 | E248: 10 | F248: 10 | G248: 10 | H248: 10
A250: Other Capex unit costs Describe :……………………… | D250: 0 | E250: 0 | F250: 0 | G250: 0 | H250: 0
A252: Forecast Quantities to be replaced
A253: Number of luminaires replaced per year - urban | D253: 77 | E253: 77 | F253: 76.90315209 | G253: 76.90315209 | H253: 11.69601551
A254: Number of luminaires replaced per year - rural | D254: 19 | E254: 19 | F254: 19.82615735 | G254: 19.82615735 | H254: 2
A255: Number of luminaires replaced per year - remote | D255: 4 | E255: 4 | F255: 3.907017259 | G255: 3.907017259 | H255: 0
A257: Inputs - Smart lighting L4
A259: Unit cost - luminaire | D259: ='Inputs|O&M'!D605 -> 650.88 | E259: ='Inputs|O&M'!E605 -> 650.88 | F259: ='Inputs|O&M'!F605 -> 650.88 | G259: ='Inputs|O&M'!G605 -> 650.88 | H259: ='Inputs|O&M'!H605 -> 650.88
A260: Number of men in crew | D260: ='Inputs|O&M'!D607 -> 2 | E260: ='Inputs|O&M'!E607 -> 2 | F260: ='Inputs|O&M'!F607 -> 2 | G260: ='Inputs|O&M'!G607 -> 2 | H260: ='Inputs|O&M'!H607 -> 2
A261: Number of luminaires replaced per day - urban | D261: 16 | E261: 16 | F261: 16 | G261: 16 | H261: 16
A262: Number of luminaires replaced per day - rural | D262: 13 | E262: 13 | F262: 13 | G262: 13 | H262: 13
A263: Number of luminaires replaced per day - remote | D263: 10 | E263: 10 | F263: 10 | G263: 10 | H263: 10
A265: Other Capex unit costs Describe :……………………… | D265: 0 | E265: 0 | F265: 0 | G265: 0 | H265: 0
A267: Forecast Quantities to be replaced
A268: Number of luminaires replaced per year - urban | D268: 77 | E268: 77 | F268: 76.90315209 | G268: 76.90315209 | H268: 11.69601551
A269: Number of luminaires replaced per year - rural | D269: 19 | E269: 19 | F269: 19.82615735 | G269: 19.82615735 | H269: 2
A270: Number of luminaires replaced per year - remote | D270: 4 | E270: 4 | F270: 3.907017259 | G270: 3.907017259 | H270: 0

Sheet Report|Tariff List
B2: Light types | C2: Proposed | D2: Draft Decision (values) | E2: Revised proposal (live)
B3: Central Area
B4: Mercury Vapour 80W | C4: 62.92 | D4: 52.21 | E4: ='Report|Tariff X-factors'!E7 -> 60.13648185
B5: HP Sodium 150W | C5: 114.86 | D5: 103.05 | E5: ='Report|Tariff X-factors'!E8 -> 112.1562338
B6: HP Sodium 250W | C6: 116.75 | D6: 104.79 | E6: ='Report|Tariff X-factors'!E9 -> 115.0030783
B7: Mercury Vapour 50W | C7: 96.27 | D7: 79.88 | E7: ='Report|Tariff X-factors'!E10 -> 92.00881723
B8: Mercury Vapour 125W | C8: 92.49 | D8: 76.75 | E8: ='Report|Tariff X-factors'!E11 -> 88.40062832
B9: Mercury Vapour 250W | C9: 122.58 | D9: 110.03 | E9: ='Report|Tariff X-factors'!E12 -> 120.7532322
B10: Mercury Vapour 400W | C10: 127.25 | D10: 114.23 | E10: ='Report|Tariff X-factors'!E13 -> 125.3533553
B11: HP Sodium 100W | C11: 122.89 | D11: 110.26 | E11: ='Report|Tariff X-factors'!E14 -> 120.0071702
B12: HP Sodium 400W | C12: 165.78 | D12: 148.81 | E12: ='Report|Tariff X-factors'!E15 -> 163.3043711
B13: Metal Halide 70W | C13: 274.65 | D13: 227.91 | E13: ='Report|Tariff X-factors'!E16 -> 262.5020983
B14: Metal Halide 100W | C14: 274.24 | D14: 246.05 | E14: ='Report|Tariff X-factors'!E17 -> 267.7942156
B15: Metal Halide 150W | C15: 311.55 | D15: 279.54 | E15: ='Report|Tariff X-factors'!E18 -> 304.2335209
B16: HP Sodium 50W | C16: 50.92 | D16: 45.69 | E16: ='Report|Tariff X-factors'!E19 -> 49.723913
B17: T5 2X14W | C17: 58.18 | D17: 45.86 | E17: ='Report|Tariff X-factors'!E21 -> 51.50025158
B18: T5 2X24W | C18: 60.56 | D18: 48.93 | E18: ='Report|Tariff X-factors'!E22 -> 55.00569005
B19: LED 18W | C19: 33.94 | D19: 26.77 | E19: ='Report|Tariff X-factors'!E23 -> 29.24017142
B20: LED non-standard low power ~14W | C20: 36.12 | D20: 27.95 | E20: ='Report|Tariff X-factors'!E24 -> 31.06563361
B21: LED 70W-125W (L1) | C21: 45.58 | D21: 36.55 | E21: ='Report|Tariff X-factors'!E25 -> 48.63256375
B22: LED 155W-250W (L2) | C22: 47.64 | D22: 37.1 | E22: ='Report|Tariff X-factors'!E26 -> 49.27183262
B23: LED 275W-400W (L4) | C23: 59.34 | D23: 50.88 | E23: ='Report|Tariff X-factors'!E27 -> 54.99661327
B24: Compact Fluorescent 32W | C24: 51.18 | D24: 40.34 | E24: ='Report|Tariff X-factors'!E28 -> 45.30013075
B25: Compact Fluorescent 42W | C25: 51.18 | D25: 40.34 | E25: ='Report|Tariff X-factors'!E29 -> 45.30013075
B26: Smart lighting L1 | E26: ='Report|Tariff X-factors'!E30 -> 59.59140705
B27: Smart lighting L2 | E27: ='Report|Tariff X-factors'!E31 -> 60.23067593
B28: Smart lighting L4 | E28: ='Report|Tariff X-factors'!E32 -> 65.95545657
B29: North and East Area
B30: Mercury Vapour 80W | C30: 72.15 | D30: 57.64 | E30: ='Report|Tariff X-factors'!E38 -> 66.12007849
B31: HP Sodium 150W | C31: 135.06 | D31: 121.13 | E31: ='Report|Tariff X-factors'!E39 -> 131.4537222
B32: HP Sodium 250W | C32: 133.74 | D32: 120.02 | E32: ='Report|Tariff X-factors'!E40 -> 131.2515041
B33: Mercury Vapour 50W | C33: 106.78 | D33: 85.31 | E33: ='Report|Tariff X-factors'!E41 -> 97.85771616
B34: Mercury Vapour 125W | C34: 106.78 | D34: 85.31 | E34: ='Report|Tariff X-factors'!E42 -> 97.85771616
B35: Mercury Vapour 250W | C35: 139.09 | D35: 124.82 | E35: ='Report|Tariff X-factors'!E43 -> 136.5015643
B36: Mercury Vapour 400W | C36: 143.1 | D36: 128.42 | E36: ='Report|Tariff X-factors'!E44 -> 140.4391094
B37: HP Sodium 100W | C37: 144.51 | D37: 129.61 | E37: ='Report|Tariff X-factors'!E45 -> 140.6554828
B38: HP Sodium 400W | C38: 189.91 | D38: 170.43 | E38: ='Report|Tariff X-factors'!E46 -> 186.3771359
B39: Metal Halide 70W | C39: 274.49 | D39: 219.28 | E39: ='Report|Tariff X-factors'!E47 -> 251.5500061
B40: Metal Halide 100W | C40: 286.06 | D40: 256.56 | E40: ='Report|Tariff X-factors'!E48 -> 278.4254393
B41: Metal Halide 150W | C41: 324.99 | D41: 291.47 | E41: ='Report|Tariff X-factors'!E49 -> 316.3164118
B42: HP Sodium 50W | C42: 61.41 | D42: 55.08 | E42: ='Report|Tariff X-factors'!E50 -> 59.77589309
B43: T5 2X14W | C43: 68.49 | D43: 50.65 | E43: ='Report|Tariff X-factors'!E52 -> 57.369524
B44: T5 2X24W | C44: 72.05 | D44: 54.16 | E44: ='Report|Tariff X-factors'!E53 -> 61.43319493
B45: LED 18W | C45: 37.2 | D45: 28.9 | E45: ='Report|Tariff X-factors'!E54 -> 31.36775433
B46: LED non-standard low power ~14W | C46: 39.06 | D46: 30.01 | E46: ='Report|Tariff X-factors'!E55 -> 33.12295891
B47: LED 70W-125W (L1) | C47: 51.21 | D47: 41.48 | E47: ='Report|Tariff X-factors'!E56 -> 56.18854895
B48: LED 155W-250W (L2) | C48: 53.27 | D48: 42.03 | E48: ='Report|Tariff X-factors'!E57 -> 56.82781783
B49: LED 275W-400W (L4) | C49: 68.28 | D49: 58.44 | E49: ='Report|Tariff X-factors'!E58 -> 62.55259847
B50: Compact Fluorescent 32W | C50: 60.24 | D50: 44.55 | E50: ='Report|Tariff X-factors'!E59 -> 50.46280084
B51: Compact Fluorescent 42W | C51: 60.24 | D51: 44.55 | E51: ='Report|Tariff X-factors'!E60 -> 50.46280084
B52: Smart lighting L1 | E52: ='Report|Tariff X-factors'!E61 -> 67.45964166
B53: Smart lighting L2 | E53: ='Report|Tariff X-factors'!E62 -> 68.09891053
B54: Smart lighting L4 | E54: ='Report|Tariff X-factors'!E63 -> 73.82369118

Sheet Report|Tariff X-factors
A1: ='Inputs|O&M'!$A$3 -> AusNet Services Public Lighting Model | F1: Global Check | G1: =IF(SUM('Calc|Total RAB'!F1,'Calc|Capital Charges Post 2004'!P1,'Calc|Capital Charges Post 2004'!F1,'Calc|Cashflows'!F1,'Report|Tariff Components'!W1)<1,"Ok","Error") -> Ok
K2: ='Calc|Cashflows'!F1 -> 3.445893526e-08
A3: Public Lighting Tariffs | W3: Average | BK3: 1.023743087 | BL3: 1.048049908 | BM3: 1.072933848 | BN3: 1.098408609 | BO3: 1.12448822
A4: Central | D4: Nominal Prices | K4: Nominal Price Movement | Q4: Real Price Movement (Implied X Factor) | W4: Number | X4: % of | Z4: Submission Model | AF4: Difference | CQ4: Real FY21$s | CY4: Real FY21$s
D5: Actual | W5: of Lights | X5: Total Lights | AL5: Weighted volume average
A6: ='Inputs|General'!A$31 -> Existing Lights | B6: Reference light | C6: Price factor | D6: ='Inputs|General'!P$2 -> HY2021 | E6: ='Inputs|General'!Q$2 -> 2022-06-30 | F6: ='Inputs|General'!R$2 -> 2023-06-30 | G6: ='Inputs|General'!S$2 -> 2024-06-30 | H6: ='Inputs|General'!T$2 -> 2025-06-30 | I6: ='Inputs|General'!U$2 -> 2026-06-30 | K6: =E6 -> 2022-06-30 | L6: =F6 -> 2023-06-30 | M6: 2024-06-30 | N6: 2025-06-30 | O6: 2026-06-30 | Q6: =K6 -> 2022-06-30 | R6: =L6 -> 2023-06-30 | S6: 2024-06-30 | T6: 2025-06-30 | U6: 2026-06-30 | W6: 2022-26 | X6: 2022-26 | Z6: =Q6 -> 2022-06-30 | AA6: =R6 -> 2023-06-30 | AB6: 2024-06-30 | AC6: 2025-06-30 | AD6: 2026-06-30 | AF6: =Z6 -> 2022-06-30 | AG6: =AA6 -> 2023-06-30 | AH6: 2024-06-30 | AI6: 2025-06-30 | AJ6: 2026-06-30 | AL6: 22 | AM6: 23 | AN6: 24 | AO6: 25 | AP6: 26 | AR6: 22 | AS6: 23 | AT6: 24 | AU6: 25 | AV6: 26 | AY6: 22 | AZ6: 23 | BA6: 24 | BB6: 25 | BC6: 26 | BT6: 2020 | BU6: 2021-06-01 | BV6: FY22 | BW6: FY23 | BX6: FY24 | BY6: FY25 | BZ6: FY26 | CB6: 2021-06-01 | CC6: FY22 | CD6: FY23 | CE6: FY24 | CF6: FY25 | CG6: FY26 | CI6: 2021-06-01 | CJ6: FY22 | CK6: FY23 | CL6: FY24 | CM6: FY25 | CN6: FY26 | CQ6: FY22 | CR6: FY23 | CS6: FY24 | CT6: FY25 | CU6: FY26 | CY6: FY22 | CZ6: FY23 | DA6: FY24 | DB6: FY25 | DC6: FY26
A7: ='Inputs|General'!A32 -> Mercury Vapour 80W | B7: ='Inputs|General'!B32 -> Mercury Vapour 80W | C7: ='Inputs|General'!D32 -> 1 | D7: ='Inputs|General'!E32 -> 43.97 | E7: ='Report|Charges Summary'!B$22 -> 60.13648185 | F7: ='Report|Charges Summary'!C$22 -> 61.27634296 | G7: ='Report|Charges Summary'!D$22 -> 63.9825679 | H7: ='Report|Charges Summary'!E$22 -> 69.56985403 | I7: ='Report|Charges Summary'!F$22 -> 70.98621597 | K7: =IF(D7=0,"",E7/D7-1) -> 0.3676707266 | L7: =IF(E7=0,"",F7/E7-1) -> 0.01895456933 | M7: =IF(F7=0,"",G7/F7-1) -> 0.04416426965 | N7: =IF(G7=0,"",H7/G7-1) -> 0.08732513109 | O7: =IF(H7=0,"",I7/H7-1) -> 0.02035884606 | Q7: =IF(D7=0,"",(E7/'Report|Charges Summary'!B$3)/D7-1) -> 0.3359511231 | R7: =IF(E7=0,"",(F7/'Report|Charges Summary'!C$3)/(E7/'Report|Charges Summary'!B$3)-1) -> -0.004677460114 | S7: =IF(F7=0,"",(G7/'Report|Charges Summary'!D$3)/(F7/'Report|Charges Summary'!C$3)-1) -> 0.01994756606 | T7: =IF(G7=0,"",(H7/'Report|Charges Summary'!E$3)/(G7/'Report|Charges Summary'!D$3)-1) -> 0.06210742238 | U7: =IF(H7=0,"",(I7/'Report|Charges Summary'!F$3)/(H7/'Report|Charges Summary'!E$3)-1) -> -0.003305751971 | W7: =SUM('Inputs|General'!Q32:U32)/5 -> 5892.4 | X7: =W7/W$33 -> 0.04858280466 | Z7: 62.91930903 | AA7: 45.99390141 | AB7: 47.25853191 | AC7: 48.65384015 | AD7: 49.79046715 | AF7: =E7-Z7 -> -2.78282718 | AG7: 15.28244155 | AH7: 16.72403598 | AI7: 20.91601387 | AJ7: 21.19574882 | AL7: ='Inputs|General'!Q32/('Inputs|General'!Q$60+'Inputs|General'!Q$92) -> 0.08963130868 | AM7: ='Inputs|General'!R32/('Inputs|General'!R$60+'Inputs|General'!R$92) -> 0.05819567594 | AN7: ='Inputs|General'!S32/('Inputs|General'!S$60+'Inputs|General'!S$92) -> 0.02829179858 | AO7: ='Inputs|General'!T32/('Inputs|General'!T$60+'Inputs|General'!T$92) -> 5.614684551e-06 | AP7: ='Inputs|General'!U32/('Inputs|General'!U$60+'Inputs|General'!U$92) -> 5.466476863e-06 | AQ7: =1-(Z7+AF7)/Z7 -> 0.04422850827 | AR7: =AL7*(1-(Z7+AF7)/Z7) -> 0.003964259078 | AS7: =AM7*(1-(AA7+AG7)/AA7) -> -0.01933673789 | AT7: -0.01001201346 | AU7: -2.413721498e-06 | AV7: -2.327073377e-06 | AY7: =BD7*$D7 -> 647678.1 | AZ7: =BE7*$D7 -> 431785.4 | BA7: 215892.7 | BB7: 43.97 | BC7: 43.97 | BD7: ='Inputs|General'!Q32 -> 14730 | BE7: ='Inputs|General'!R32 -> 9820 | BF7: ='Inputs|General'!S32 -> 4910 | BG7: ='Inputs|General'!T32 -> 1 | BH7: ='Inputs|General'!U32 -> 1 | BT7: 107.2231373 | BU7: =BT7*$BU$43 -> 91.13966669 | BV7: =BU7 -> 91.13966669 | BW7: 91.13966669 | BX7: 91.13966669 | BY7: 91.13966669 | BZ7: =BY7 -> 91.13966669 | CB7: ='Inputs|General'!P32+'Inputs|General'!P64 -> 24304 | CC7: ='Inputs|General'!Q32+'Inputs|General'!Q64 -> 18228 | CD7: ='Inputs|General'!R32+'Inputs|General'!R64 -> 12152 | CE7: ='Inputs|General'!S32+'Inputs|General'!S64 -> 6076 | CF7: ='Inputs|General'!T32+'Inputs|General'!T64 -> 2 | CG7: ='Inputs|General'!U32+'Inputs|General'!U64 -> 2 | CI7: =CB7*BU7 -> 2215058.459 | CJ7: 1661293.844 | CK7: 1107529.23 | CL7: 553764.6148 | CM7: 182.2793334 | CN7: 182.2793334 | CQ7: =E7/BK$3*CB7 -> 1427660 | CR7: =F7/BL$3*CC7 -> 1065736.633 | CS7: 724663.6563 | CT7: 384835.3241 | CU7: 126.2551527 | CX7: =A7 -> Mercury Vapour 80W | CY7: =E7/'Report|Charges Summary'!B$3 -> 58.74177088 | CZ7: =F7/'Report|Charges Summary'!C$3 -> 58.46700859 | DA7: =G7/'Report|Charges Summary'!D$3 -> 59.63328311 | DB7: =H7/'Report|Charges Summary'!E$3 -> 63.33695261 | DC7: =I7/'Report|Charges Summary'!F$3 -> 63.12757636
A8: ='Inputs|General'!A33 -> HP Sodium 150W | B8: ='Inputs|General'!B33 -> HP Sodium 150W | C8: ='Inputs|General'!D33 -> 1 | D8: ='Inputs|General'!E33 -> 104.07 | E8: ='Report|Charges Summary'!B$46 -> 112.1562338 | F8: ='Report|Charges Summary'!C$46 -> 114.6059509 | G8: ='Report|Charges Summary'!D$46 -> 117.5911112 | H8: ='Report|Charges Summary'!E$46 -> 125.3824164 | I8: ='Report|Charges Summary'!F$46 -> 128.5829062 | K8: 0.07769995012 | L8: 0.02184200586 | M8: 0.0260471661 | N8: 0.06625760357 | O8: 0.0255258263 | Q8: =IF(D8=0,"",(E8/'Report|Charges Summary'!B$3)/D8-1) -> 0.05270547272 | R8: =IF(E8=0,"",(F8/'Report|Charges Summary'!C$3)/(E8/'Report|Charges Summary'!B$3)-1) -> -0.001856990245 | S8: =IF(F8=0,"",(G8/'Report|Charges Summary'!D$3)/(F8/'Report|Charges Summary'!C$3)-1) -> 0.002250642117 | T8: =IF(G8=0,"",(H8/'Report|Charges Summary'!E$3)/(G8/'Report|Charges Summary'!D$3)-1) -> 0.04152850196 | U8: =IF(H8=0,"",(I8/'Report|Charges Summary'!F$3)/(H8/'Report|Charges Summary'!E$3)-1) -> 0.001741393453 | W8: =SUM('Inputs|General'!Q33:U33)/5 -> 13379.57035 | X8: 0.1103144818 | Z8: 114.8551157 | AA8: 95.55509923 | AB8: 97.80161903 | AC8: 100.4293792 | AD8: 102.9807482 | AF8: =E8-Z8 -> -2.698881909 | AG8: =F8-AA8 -> 19.05085169 | AH8: =G8-AB8 -> 19.78949214 | AI8: =H8-AC8 -> 24.95303719 | AJ8: =I8-AD8 -> 25.60215794 | AL8: ='Inputs|General'!Q33/('Inputs|General'!Q$60+'Inputs|General'!Q$92) -> 0.08703287695 | AM8: ='Inputs|General'!R33/('Inputs|General'!R$60+'Inputs|General'!R$92) -> 0.08197338476 | AN8: ='Inputs|General'!S33/('Inputs|General'!S$60+'Inputs|General'!S$92) -> 0.07704299243 | AO8: ='Inputs|General'!T33/('Inputs|General'!T$60+'Inputs|General'!T$92) -> 0.07253044967 | AP8: ='Inputs|General'!U33/('Inputs|General'!U$60+'Inputs|General'!U$92) -> 0.06818835197 | AR8: =AL8*(1-(Z8+AF8)/Z8) -> 0.00204511097 | AS8: -0.01634306079 | AT8: -0.01558912529 | AU8: -0.01802117092 | AV8: -0.01695238175 | AY8: =BD8*$D8 -> 1488510.504 | AZ8: =BE8*$D8 -> 1439524.94 | BA8: =BF8*$D8 -> 1391488.534 | BB8: =BG8*$D8 -> 1344375.419 | BC8: =BH8*$D8 -> 1298160.034 | BD8: ='Inputs|General'!Q33 -> 14302.974 | BE8: ='Inputs|General'!R33 -> 13832.27577 | BF8: ='Inputs|General'!S33 -> 13370.69794 | BG8: ='Inputs|General'!T33 -> 12917.99192 | BH8: ='Inputs|General'!U33 -> 12473.91212 | BT8: 166.360152 | BU8: 141.4061292 | BV8: 141.4061292 | BW8: 141.4061292 | BX8: 141.4061292 | BY8: 141.4061292 | BZ8: 141.4061292 | CB8: ='Inputs|General'!P33+'Inputs|General'!P65 -> 20229 | CC8: ='Inputs|General'!Q33+'Inputs|General'!Q65 -> 19480.34101 | CD8: ='Inputs|General'!R33+'Inputs|General'!R65 -> 18748.63899 | CE8: ='Inputs|General'!S33+'Inputs|General'!S65 -> 18033.60303 | CF8: ='Inputs|General'!T33+'Inputs|General'!T65 -> 17334.88781 | CG8: ='Inputs|General'!U33+'Inputs|General'!U65 -> 16652.15439 | CI8: 2860504.588 | CJ8: 2754639.617 | CK8: 2651172.468 | CL8: 2550061.999 | CM8: 2451259.386 | CN8: 2354716.695 | CQ8: =E8/BK$3*CB8 -> 2216189.279 | CR8: =F8/BL$3*CC8 -> 2130206.767 | CS8: 2054808.222 | CT8: 2058520.577 | CU8: 1982208.629 | CX8: =A8 -> HP Sodium 150W | CY8: =E8/'Report|Charges Summary'!B$3 -> 109.5550585 | CZ8: =F8/'Report|Charges Summary'!C$3 -> 109.3516159 | DA8: =G8/'Report|Charges Summary'!D$3 -> 109.5977272 | DB8: =H8/'Report|Charges Summary'!E$3 -> 114.1491567 | DC8: =I8/'Report|Charges Summary'!F$3 -> 114.3479352
A9: ='Inputs|General'!A34 -> HP Sodium 250W | B9: ='Inputs|General'!B34 -> HP Sodium 250W | C9: ='Inputs|General'!D34 -> 1 | D9: ='Inputs|General'!E34 -> 105.12 | E9: ='Report|Charges Summary'!B$62 -> 115.0030783 | F9: ='Report|Charges Summary'!C$62 -> 117.5099015 | G9: ='Report|Charges Summary'!D$62 -> 120.7261021 | H9: ='Report|Charges Summary'!E$62 -> 128.7119866 | I9: ='Report|Charges Summary'!F$62 -> 131.9859153 | K9: 0.09401710683 | L9: 0.02179787968 | M9: 0.0273696134 | N9: 0.06614878117 | O9: 0.02543608245 | Q9: =IF(D9=0,"",(E9/'Report|Charges Summary'!B$3)/D9-1) -> 0.06864419496 | R9: =IF(E9=0,"",(F9/'Report|Charges Summary'!C$3)/(E9/'Report|Charges Summary'!B$3)-1) -> -0.001900093033 | S9: =IF(F9=0,"",(G9/'Report|Charges Summary'!D$3)/(F9/'Report|Charges Summary'!C$3)-1) -> 0.003542418659 | T9: =IF(G9=0,"",(H9/'Report|Charges Summary'!E$3)/(G9/'Report|Charges Summary'!D$3)-1) -> 0.04142220341 | U9: =IF(H9=0,"",(I9/'Report|Charges Summary'!F$3)/(H9/'Report|Charges Summary'!E$3)-1) -> 0.001653730986 | W9: =SUM('Inputs|General'!Q34:U34)/5 -> 6128.622308 | X9: 0.05053045625 | Z9: 116.7469212 | AA9: 97.04474763 | AB9: 99.15928722 | AC9: 101.6834199 | AD9: 104.2655129 | AF9: -1.743842912 | AG9: 20.46515391 | AH9: 21.56681489 | AI9: 27.02856676 | AJ9: 27.72040243 | AL9: ='Inputs|General'!Q34/('Inputs|General'!Q$60+'Inputs|General'!Q$92) -> 0.04031508404 | AM9: ='Inputs|General'!R34/('Inputs|General'!R$60+'Inputs|General'!R$92) -> 0.03775608843 | AN9: ='Inputs|General'!S34/('Inputs|General'!S$60+'Inputs|General'!S$92) -> 0.03527961222 | AO9: ='Inputs|General'!T34/('Inputs|General'!T$60+'Inputs|General'!T$92) -> 0.03301617805 | AP9: ='Inputs|General'!U34/('Inputs|General'!U$60+'Inputs|General'!U$92) -> 0.03085105282 | AR9: 0.0006021843903 | AS9: -0.007962143028 | AT9: -0.007673198221 | AU9: -0.008776061759 | AV9: -0.008202171321 | AY9: 696459.6032 | AZ9: 669719.7675 | BA9: =BF9*$D9 -> 643620.8281 | BB9: 618139.916 | BC9: 593263.77 | BD9: ='Inputs|General'!Q34 -> 6625.376742 | BE9: ='Inputs|General'!R34 -> 6371.002355 | BF9: ='Inputs|General'!S34 -> 6122.724773 | BG9: ='Inputs|General'!T34 -> 5880.326446 | BH9: ='Inputs|General'!U34 -> 5643.681222 | BT9: 296.2701504 | BU9: 251.8296278 | BV9: 251.8296278 | BW9: 251.8296278 | BX9: 251.8296278 | BY9: 251.8296278 | BZ9: 251.8296278 | CB9: ='Inputs|General'!P34+'Inputs|General'!P66 -> 12017 | CC9: ='Inputs|General'!Q34+'Inputs|General'!Q66 -> 11572.26051 | CD9: ='Inputs|General'!R34+'Inputs|General'!R66 -> 11144.46712 | CE9: ='Inputs|General'!S34+'Inputs|General'!S66 -> 10726.36704 | CF9: ='Inputs|General'!T34+'Inputs|General'!T66 -> 10317.60407 | CG9: ='Inputs|General'!U34+'Inputs|General'!U66 -> 9917.971359 | CI9: =CB9*BU9 -> 3026236.638 | CJ9: 2914238.058 | CK9: 2806507.006 | CL9: 2701217.02 | CM9: 2598278.394 | CN9: =CG9*BZ9 -> 2497639.036 | CQ9: =E9/BK$3*CB9 -> 1349940.243 | CR9: 1297509.959 | CS9: 1253971.135 | CT9: 1256920.239 | CU9: 1211020.616 | CX9: HP Sodium 250W | CY9: =E9/'Report|Charges Summary'!B$3 -> 112.3358778 | CZ9: =F9/'Report|Charges Summary'!C$3 -> 112.1224292 | DA9: =G9/'Report|Charges Summary'!D$3 -> 112.5196137 | DB9: =H9/'Report|Charges Summary'!E$3 -> 117.1804241 | DC9: =I9/'Report|Charges Summary'!F$3 -> 117.374209
A10: ='Inputs|General'!A35 -> Mercury Vapour 50W | B10: ='Inputs|General'!B35 -> Mercury Vapour 80W | C10: ='Inputs|General'!D35 -> 1.53 | D10: ='Inputs|General'!E35 -> 67.27 | E10: =INDEX(E$7:E$19,MATCH($B10,$A$7:$A$19,0))*$C10 -> 92.00881723 | F10: =INDEX(F$7:F$19,MATCH($B10,$A$7:$A$19,0))*$C10 -> 93.75280473 | G10: 97.89332888 | H10: 106.4418767 | I10: 108.6089104 | K10: 0.3677540839 | L10: 0.01895456933 | M10: 0.04416426965 | N10: 0.08732513109 | O10: 0.02035884606 | Q10: =IF(D10=0,"",(E10/'Report|Charges Summary'!B$3)/D10-1) -> 0.3360325472 | R10: =IF(E10=0,"",(F10/'Report|Charges Summary'!C$3)/(E10/'Report|Charges Summary'!B$3)-1) -> -0.004677460114 | S10: =IF(F10=0,"",(G10/'Report|Charges Summary'!D$3)/(F10/'Report|Charges Summary'!C$3)-1) -> 0.01994756606 | T10: =IF(G10=0,"",(H10/'Report|Charges Summary'!E$3)/(G10/'Report|Charges Summary'!D$3)-1) -> 0.06210742238 | U10: =IF(H10=0,"",(I10/'Report|Charges Summary'!F$3)/(H10/'Report|Charges Summary'!E$3)-1) -> -0.003305751971 | W10: =SUM('Inputs|General'!Q35:U35)/5 -> 21.3 | X10: 0.0001756183795 | Z10: 96.26654281 | AA10: 70.37066916 | AB10: 72.30555383 | AC10: 74.44037543 | AD10: 76.17941474 | AF10: -4.257725585 | AG10: 23.38213557 | AH10: 25.58777505 | AI10: 32.00150122 | AJ10: 32.4294957 | AL10: ='Inputs|General'!Q35/('Inputs|General'!Q$60+'Inputs|General'!Q$92) -> 0.0003240235701 | AM10: ='Inputs|General'!R35/('Inputs|General'!R$60+'Inputs|General'!R$92) -> 0.0002103815169 | AN10: ='Inputs|General'!S35/('Inputs|General'!S$60+'Inputs|General'!S$92) -> 0.0001022768686 | AO10: ='Inputs|General'!T35/('Inputs|General'!T$60+'Inputs|General'!T$92) -> 0 | AP10: ='Inputs|General'!U35/('Inputs|General'!U$60+'Inputs|General'!U$92) -> 0 | AR10: 1.433107915e-05 | AS10: -6.990368585e-05 | AT10: -3.619414233e-05 | AU10: 0 | AV10: 0 | AY10: 3582.1275 | AZ10: 2388.085 | BA10: 1194.0425 | BB10: 0 | BC10: 0 | BD10: ='Inputs|General'!Q35 -> 53.25 | BE10: ='Inputs|General'!R35 -> 35.5 | BF10: ='Inputs|General'!S35 -> 17.75 | BG10: ='Inputs|General'!T35 -> 0 | BH10: ='Inputs|General'!U35 -> 0 | BT10: 67.0144608 | BU10: 56.96229168 | BV10: 56.96229168 | BW10: 56.96229168 | BX10: 56.96229168 | BY10: 56.96229168 | BZ10: 56.96229168 | CB10: ='Inputs|General'!P35+'Inputs|General'!P67 -> 195.37165 | CC10: ='Inputs|General'!Q35+'Inputs|General'!Q67 -> 147 | CD10: ='Inputs|General'!R35+'Inputs|General'!R67 -> 98 | CE10: ='Inputs|General'!S35+'Inputs|General'!S67 -> 49 | CF10: ='Inputs|General'!T35+'Inputs|General'!T67 -> 0 | CG10: ='Inputs|General'!U35+'Inputs|General'!U67 -> 0 | CI10: =CB10*BU10 -> 11128.81691 | CJ10: 8373.456877 | CK10: 5582.304585 | CL10: 2791.152292 | CM10: 0 | CN10: 0 | CQ10: 17559.00935 | CR10: 13149.8149 | CS10: 8941.414469 | CT10: 4748.371337 | CU10: 0 | CX10: Mercury Vapour 50W | CY10: =E10/'Report|Charges Summary'!B$3 -> 89.87490945 | CZ10: =F10/'Report|Charges Summary'!C$3 -> 89.45452315 | DA10: =G10/'Report|Charges Summary'!D$3 -> 91.23892316 | DB10: =H10/'Report|Charges Summary'!E$3 -> 96.9055375 | DC10: =I10/'Report|Charges Summary'!F$3 -> 96.58519182
A11: ='Inputs|General'!A36 -> Mercury Vapour 125W | B11: ='Inputs|General'!B36 -> Mercury Vapour 80W | C11: ='Inputs|General'!D36 -> 1.47 | D11: ='Inputs|General'!E36 -> 64.63 | E11: =INDEX(E$7:E$19,MATCH($B11,$A$7:$A$19,0))*$C11 -> 88.40062832 | F11: 90.07622415 | G11: 94.05437481 | H11: 102.2676854 | I11: 104.3497375 | K11: 0.3677955797 | L11: 0.01895456933 | M11: 0.04416426965 | N11: 0.08732513109 | O11: 0.02035884606 | Q11: =IF(D11=0,"",(E11/'Report|Charges Summary'!B$3)/D11-1) -> 0.3360730806 | R11: =IF(E11=0,"",(F11/'Report|Charges Summary'!C$3)/(E11/'Report|Charges Summary'!B$3)-1) -> -0.004677460114 | S11: =IF(F11=0,"",(G11/'Report|Charges Summary'!D$3)/(F11/'Report|Charges Summary'!C$3)-1) -> 0.01994756606 | T11: =IF(G11=0,"",(H11/'Report|Charges Summary'!E$3)/(G11/'Report|Charges Summary'!D$3)-1) -> 0.06210742238 | U11: =IF(H11=0,"",(I11/'Report|Charges Summary'!F$3)/(H11/'Report|Charges Summary'!E$3)-1) -> -0.003305751971 | W11: =SUM('Inputs|General'!Q36:U36)/5 -> 84.44598 | X11: 0.0006962566273 | Z11: 92.49138427 | AA11: 67.61103507 | AB11: 69.47004191 | AC11: 71.52114503 | AD11: 73.19198671 | AF11: -4.090755954 | AG11: 22.46518908 | AH11: 24.58433289 | AI11: 30.74654039 | AJ11: 31.15775077 | AL11: ='Inputs|General'!Q36/('Inputs|General'!Q$60+'Inputs|General'!Q$92) -> 0.001284623846 | AM11: ='Inputs|General'!R36/('Inputs|General'!R$60+'Inputs|General'!R$92) -> 0.0008340785618 | AN11: ='Inputs|General'!S36/('Inputs|General'!S$60+'Inputs|General'!S$92) -> 0.0004054868732 | AO11: ='Inputs|General'!T36/('Inputs|General'!T$60+'Inputs|General'!T$92) -> 0 | AP11: ='Inputs|General'!U36/('Inputs|General'!U$60+'Inputs|General'!U$92) -> 0 | AR11: 5.68169964e-05 | AS11: -0.0002771401529 | AT11: -0.0001434952967 | AU11: 0 | AV11: 0 | AY11: 13644.35922 | AZ11: 9096.239479 | BA11: 4548.119739 | BB11: 0 | BC11: 0 | BD11: ='Inputs|General'!Q36 -> 211.11495 | BE11: ='Inputs|General'!R36 -> 140.7433 | BF11: ='Inputs|General'!S36 -> 70.37165 | BG11: ='Inputs|General'!T36 -> 0 | BH11: ='Inputs|General'!U36 -> 0 | BT11: 162.244152 | BU11: 137.9075292 | BV11: 137.9075292 | BW11: 137.9075292 | BX11: 137.9075292 | BY11: 137.9075292 | BZ11: 137.9075292 | CB11: ='Inputs|General'!P36+'Inputs|General'!P68 -> 298.4866 | CC11: ='Inputs|General'!Q36+'Inputs|General'!Q68 -> 223.86495 | CD11: ='Inputs|General'!R36+'Inputs|General'!R68 -> 149.2433 | CE11: ='Inputs|General'!S36+'Inputs|General'!S68 -> 74.62165 | CF11: ='Inputs|General'!T36+'Inputs|General'!T68 -> 0 | CG11: ='Inputs|General'!U36+'Inputs|General'!U68 -> 0 | CI11: 41163.54951 | CJ11: 30872.66213 | CK11: 20581.77475 | CL11: 10290.88738 | CM11: 0 | CN11: 0 | CQ11: 25774.43826 | CR11: 19240.40951 | CS11: 13082.8059 | CT11: 6947.672628 | CU11: 0 | CX11: Mercury Vapour 125W | CY11: =E11/'Report|Charges Summary'!B$3 -> 86.3504032 | CZ11: =F11/'Report|Charges Summary'!C$3 -> 85.94650263 | DA11: =G11/'Report|Charges Summary'!D$3 -> 87.66092617 | DB11: =H11/'Report|Charges Summary'!E$3 -> 93.10532034 | DC11: =I11/'Report|Charges Summary'!F$3 -> 92.79753724
A12: ='Inputs|General'!A37 -> Mercury Vapour 250W | B12: ='Inputs|General'!B37 -> HP Sodium 250W | C12: ='Inputs|General'!D37 -> 1.05 | D12: ='Inputs|General'!E37 -> 110.37 | E12: 120.7532322 | F12: 123.3853966 | G12: 126.7624072 | H12: 135.1475859 | I12: 138.5852111 | K12: 0.09407658044 | L12: 0.02179787968 | M12: 0.0273696134 | N12: 0.06614878117 | O12: 0.02543608245 | Q12: =IF(D12=0,"",(E12/'Report|Charges Summary'!B$3)/D12-1) -> 0.06870228923 | R12: =IF(E12=0,"",(F12/'Report|Charges Summary'!C$3)/(E12/'Report|Charges Summary'!B$3)-1) -> -0.001900093033 | S12: =IF(F12=0,"",(G12/'Report|Charges Summary'!D$3)/(F12/'Report|Charges Summary'!C$3)-1) -> 0.003542418659 | T12: =IF(G12=0,"",(H12/'Report|Charges Summary'!E$3)/(G12/'Report|Charges Summary'!D$3)-1) -> 0.04142220341 | U12: =IF(H12=0,"",(I12/'Report|Charges Summary'!F$3)/(H12/'Report|Charges Summary'!E$3)-1) -> 0.001653730986 | W12: =SUM('Inputs|General'!Q37:U37)/5 -> 183.3 | X12: 0.001511307463 | Z12: 122.5842672 | AA12: 101.896985 | AB12: 104.1172516 | AC12: 106.7675909 | AD12: 109.4787885 | AF12: -1.831035058 | AG12: 21.4884116 | AH12: 22.64515564 | AI12: 28.37999509 | AJ12: 29.10642255 | AL12: ='Inputs|General'!Q37/('Inputs|General'!Q$60+'Inputs|General'!Q$92) -> 0.002788428188 | AM12: ='Inputs|General'!R37/('Inputs|General'!R$60+'Inputs|General'!R$92) -> 0.001810466293 | AN12: ='Inputs|General'!S37/('Inputs|General'!S$60+'Inputs|General'!S$92) -> 0.0008801572775 | AO12: ='Inputs|General'!T37/('Inputs|General'!T$60+'Inputs|General'!T$92) -> 0 | AP12: ='Inputs|General'!U37/('Inputs|General'!U$60+'Inputs|General'!U$92) -> 0 | AR12: 4.165061212e-05 | AS12: -0.0003817978019 | AT12: -0.000191431278 | AU12: 0 | AV12: 0 | AY12: 50577.0525 | AZ12: 33718.035 | BA12: 16859.0175 | BB12: 0 | BC12: 0 | BD12: ='Inputs|General'!Q37 -> 458.25 | BE12: ='Inputs|General'!R37 -> 305.5 | BF12: ='Inputs|General'!S37 -> 152.75 | BG12: ='Inputs|General'!T37 -> 0 | BH12: ='Inputs|General'!U37 -> 0 | BT12: 292.1541504 | BU12: 248.3310278 | BV12: 248.3310278 | BW12: 248.3310278 | BX12: 248.3310278 | BY12: 248.3310278 | BZ12: 248.3310278 | CB12: ='Inputs|General'!P37+'Inputs|General'!P69 -> 865.59265 | CC12: ='Inputs|General'!Q37+'Inputs|General'!Q69 -> 653.25 | CD12: ='Inputs|General'!R37+'Inputs|General'!R69 -> 435.5 | CE12: ='Inputs|General'!S37+'Inputs|General'!S69 -> 217.75 | CF12: ='Inputs|General'!T37+'Inputs|General'!T69 -> 0 | CG12: ='Inputs|General'!U37+'Inputs|General'!U69 -> 0 | CI12: 214953.5125 | CJ12: 162222.2439 | CK12: 108148.1626 | CL12: 54074.08131 | CM12: 0 | CN12: 0 | CQ12: 102098.9656 | CR12: 76906.17569 | CS12: 51452.40637 | CT12: 26791.83921 | CU12: 0 | CX12: Mercury Vapour 250W | CY12: =E12/'Report|Charges Summary'!B$3 -> 117.9526717 | CZ12: =F12/'Report|Charges Summary'!C$3 -> 117.7285506 | DA12: =G12/'Report|Charges Summary'!D$3 -> 118.1455944 | DB12: =H12/'Report|Charges Summary'!E$3 -> 123.0394453 | DC12: =I12/'Report|Charges Summary'!F$3 -> 123.2429194
A13: ='Inputs|General'!A38 -> Mercury Vapour 400W | B13: ='Inputs|General'!B38 -> HP Sodium 250W | C13: ='Inputs|General'!D38 -> 1.09 | D13: ='Inputs|General'!E38 -> 114.58 | E13: 125.3533553 | F13: 128.0857927 | G13: 131.5914513 | H13: 140.2960654 | I13: 143.8646477 | K13: 0.09402474528 | L13: 0.02179787968 | M13: 0.0273696134 | N13: 0.06614878117 | O13: 0.02543608245 | Q13: =IF(D13=0,"",(E13/'Report|Charges Summary'!B$3)/D13-1) -> 0.06865165625 | R13: =IF(E13=0,"",(F13/'Report|Charges Summary'!C$3)/(E13/'Report|Charges Summary'!B$3)-1) -> -0.001900093033 | S13: =IF(F13=0,"",(G13/'Report|Charges Summary'!D$3)/(F13/'Report|Charges Summary'!C$3)-1) -> 0.003542418659 | T13: =IF(G13=0,"",(H13/'Report|Charges Summary'!E$3)/(G13/'Report|Charges Summary'!D$3)-1) -> 0.04142220341 | U13: =IF(H13=0,"",(I13/'Report|Charges Summary'!F$3)/(H13/'Report|Charges Summary'!E$3)-1) -> 0.001653730986 | W13: =SUM('Inputs|General'!Q38:U38)/5 -> 34.8 | X13: 0.0002869258031 | Z13: 127.2541441 | AA13: 105.7787749 | AB13: 108.0836231 | AC13: 110.8349276 | AD13: 113.6494091 | AF13: -1.900788774 | AG13: 22.30701776 | AH13: 23.50782823 | AI13: 29.46113776 | AJ13: 30.21523865 | AL13: ='Inputs|General'!Q38/('Inputs|General'!Q$60+'Inputs|General'!Q$92) -> 0.0005293906216 | AM13: ='Inputs|General'!R38/('Inputs|General'!R$60+'Inputs|General'!R$92) -> 0.0003437219149 | AN13: ='Inputs|General'!S38/('Inputs|General'!S$60+'Inputs|General'!S$92) -> 0.000167100236 | AO13: ='Inputs|General'!T38/('Inputs|General'!T$60+'Inputs|General'!T$92) -> 0 | AP13: ='Inputs|General'!U38/('Inputs|General'!U$60+'Inputs|General'!U$92) -> 0 | AR13: 7.907481188e-06 | AS13: -7.248534373e-05 | AT13: -3.634374509e-05 | AU13: 0 | AV13: 0 | AY13: 9968.46 | AZ13: 6645.64 | BA13: 3322.82 | BB13: 0 | BC13: 0 | BD13: ='Inputs|General'!Q38 -> 87 | BE13: ='Inputs|General'!R38 -> 58 | BF13: ='Inputs|General'!S38 -> 29 | BG13: ='Inputs|General'!T38 -> 0 | BH13: ='Inputs|General'!U38 -> 0 | BT13: 462.036456 | BU13: 392.7309876 | BV13: 392.7309876 | BW13: 392.7309876 | BX13: 392.7309876 | BY13: 392.7309876 | BZ13: 392.7309876 | CB13: ='Inputs|General'!P38+'Inputs|General'!P70 -> 205.9734 | CC13: ='Inputs|General'!Q38+'Inputs|General'!Q70 -> 155.25 | CD13: ='Inputs|General'!R38+'Inputs|General'!R70 -> 103.5 | CE13: ='Inputs|General'!S38+'Inputs|General'!S70 -> 51.75 | CF13: ='Inputs|General'!T38+'Inputs|General'!T70 -> 0 | CG13: ='Inputs|General'!U38+'Inputs|General'!U70 -> 0 | CI13: 80892.1368 | CJ13: 60971.48582 | CK13: 40647.65722 | CL13: 20323.82861 | CM13: 0 | CN13: 0 | CQ13: 25220.64093 | CR13: 18973.63777 | CS13: 12693.90022 | CT13: 6609.854771 | CU13: 0 | CX13: Mercury Vapour 400W | CY13: =E13/'Report|Charges Summary'!B$3 -> 122.4461068 | CZ13: =F13/'Report|Charges Summary'!C$3 -> 122.2134478 | DA13: =G13/'Report|Charges Summary'!D$3 -> 122.646379 | DB13: =H13/'Report|Charges Summary'!E$3 -> 127.7266622 | DC13: =I13/'Report|Charges Summary'!F$3 -> 127.9378878
A14: ='Inputs|General'!A39 -> HP Sodium 100W | B14: ='Inputs|General'!B39 -> HP Sodium 150W | C14: ='Inputs|General'!D39 -> 1.07 | D14: ='Inputs|General'!E39 -> 111.36 | E14: 120.0071702 | F14: 122.6283675 | G14: 125.8224889 | H14: 134.1591855 | I14: 137.5837096 | K14: 0.07765059425 | L14: 0.02184200586 | M14: 0.0260471661 | N14: 0.06625760357 | O14: 0.0255258263 | Q14: =IF(D14=0,"",(E14/'Report|Charges Summary'!B$3)/D14-1) -> 0.05265726153 | R14: =IF(E14=0,"",(F14/'Report|Charges Summary'!C$3)/(E14/'Report|Charges Summary'!B$3)-1) -> -0.001856990245 | S14: =IF(F14=0,"",(G14/'Report|Charges Summary'!D$3)/(F14/'Report|Charges Summary'!C$3)-1) -> 0.002250642117 | T14: =IF(G14=0,"",(H14/'Report|Charges Summary'!E$3)/(G14/'Report|Charges Summary'!D$3)-1) -> 0.04152850196 | U14: =IF(H14=0,"",(I14/'Report|Charges Summary'!F$3)/(H14/'Report|Charges Summary'!E$3)-1) -> 0.001741393453 | W14: =SUM('Inputs|General'!Q39:U39)/5 -> 2388.212587 | X14: 0.01969079927 | Z14: 122.8949738 | AA14: 102.2439562 | AB14: 104.6477324 | AC14: 107.4594357 | AD14: 110.1894006 | AF14: -2.887803643 | AG14: 20.38441131 | AH14: 21.17475659 | AI14: 26.69974979 | AJ14: 27.39430899 | AL14: ='Inputs|General'!Q39/('Inputs|General'!Q$60+'Inputs|General'!Q$92) -> 0.01491041965 | AM14: ='Inputs|General'!R39/('Inputs|General'!R$60+'Inputs|General'!R$92) -> 0.01433732084 | AN14: ='Inputs|General'!S39/('Inputs|General'!S$60+'Inputs|General'!S$92) -> 0.01376106507 | AO14: ='Inputs|General'!T39/('Inputs|General'!T$60+'Inputs|General'!T$92) -> 0.01323454403 | AP14: ='Inputs|General'!U39/('Inputs|General'!U$60+'Inputs|General'!U$92) -> 0.01271528949 | AR14: 0.0003503671699 | AS14: -0.002858436391 | AT14: -0.002784457881 | AU14: -0.003288301411 | AV14: -0.003161162211 | AY14: 272873.963 | AZ14: 269412.6584 | BA14: 265951.3537 | BB14: 262490.049 | BC14: 259028.7444 | BD14: ='Inputs|General'!Q39 -> 2450.376823 | BE14: ='Inputs|General'!R39 -> 2419.294705 | BF14: ='Inputs|General'!S39 -> 2388.212587 | BG14: ='Inputs|General'!T39 -> 2357.130469 | BH14: ='Inputs|General'!U39 -> 2326.048351 | BT14: 117.2957856 | BU14: 99.70141776 | BV14: 99.70141776 | BW14: 99.70141776 | BX14: 99.70141776 | BY14: 99.70141776 | BZ14: 99.70141776 | CB14: ='Inputs|General'!P39+'Inputs|General'!P71 -> 2796.458941 | CC14: ='Inputs|General'!Q39+'Inputs|General'!Q71 -> 2760.545733 | CD14: ='Inputs|General'!R39+'Inputs|General'!R71 -> 2724.535451 | CE14: ='Inputs|General'!S39+'Inputs|General'!S71 -> 2688.427355 | CF14: ='Inputs|General'!T39+'Inputs|General'!T71 -> 2652.219737 | CG14: ='Inputs|General'!U39+'Inputs|General'!U71 -> 2615.91084 | CI14: 278810.9211 | CJ14: 275230.3234 | CK14: 271640.0472 | CL14: 268040.0189 | CM14: 264430.068 | CN14: 260810.0195 | CQ14: 327811.8586 | CR14: 323001.0462 | CS14: 319505.0957 | CT14: 328363.4354 | CU14: 324505.1603 | CX14: HP Sodium 100W | CY14: =E14/'Report|Charges Summary'!B$3 -> 117.2239126 | CZ14: =F14/'Report|Charges Summary'!C$3 -> 117.006229 | DA14: =G14/'Report|Charges Summary'!D$3 -> 117.2695681 | DB14: =H14/'Report|Charges Summary'!E$3 -> 122.1395976 | DC14: =I14/'Report|Charges Summary'!F$3 -> 122.3522907
A15: ='Inputs|General'!A40 -> HP Sodium 400W | B15: ='Inputs|General'!B40 -> HP Sodium 250W | C15: ='Inputs|General'!D40 -> 1.42 | D15: ='Inputs|General'!E40 -> 149.26 | E15: 163.3043711 | F15: 166.8640602 | G15: 171.431065 | H15: 182.771021 | I15: 187.4199998 | K15: 0.09409333474 | L15: 0.02179787968 | M15: 0.0273696134 | N15: 0.06614878117 | O15: 0.02543608245 | Q15: =IF(D15=0,"",(E15/'Report|Charges Summary'!B$3)/D15-1) -> 0.06871865496 | R15: =IF(E15=0,"",(F15/'Report|Charges Summary'!C$3)/(E15/'Report|Charges Summary'!B$3)-1) -> -0.001900093033 | S15: =IF(F15=0,"",(G15/'Report|Charges Summary'!D$3)/(F15/'Report|Charges Summary'!C$3)-1) -> 0.003542418659 | T15: =IF(G15=0,"",(H15/'Report|Charges Summary'!E$3)/(G15/'Report|Charges Summary'!D$3)-1) -> 0.04142220341 | U15: =IF(H15=0,"",(I15/'Report|Charges Summary'!F$3)/(H15/'Report|Charges Summary'!E$3)-1) -> 0.001653730986 | W15: =SUM('Inputs|General'!Q40:U40)/5 -> 201.9823177 | X15: 0.001665343066 | Z15: 165.7806281 | AA15: 137.8035416 | AB15: 140.8061878 | AC15: 144.3904562 | AD15: 148.0570283 | AF15: -2.476256935 | AG15: 29.06051855 | AH15: 30.62487714 | AI15: 38.38056479 | AJ15: 39.36297145 | AL15: ='Inputs|General'!Q40/('Inputs|General'!Q$60+'Inputs|General'!Q$92) -> 0.001270224724 | AM15: ='Inputs|General'!R40/('Inputs|General'!R$60+'Inputs|General'!R$92) -> 0.00121743853 | AN15: ='Inputs|General'!S40/('Inputs|General'!S$60+'Inputs|General'!S$92) -> 0.00116422367 | AO15: ='Inputs|General'!T40/('Inputs|General'!T$60+'Inputs|General'!T$92) -> 0.00111507501 | AP15: ='Inputs|General'!U40/('Inputs|General'!U$60+'Inputs|General'!U$92) -> 0.001066411546 | AR15: 1.897328306e-05 | AS15: -0.0002567379225 | AT15: -0.0002532147728 | AU15: -0.0002963991513 | AV15: -0.0002835199904 | AY15: 31157.81601 | AZ15: 30662.76049 | BA15: 30157.87916 | BB15: 29643.00033 | BC15: 29117.94769 | BD15: ='Inputs|General'!Q40 -> 208.7485998 | BE15: ='Inputs|General'!R40 -> 205.4318671 | BF15: ='Inputs|General'!S40 -> 202.0493043 | BG15: ='Inputs|General'!T40 -> 198.599761 | BH15: ='Inputs|General'!U40 -> 195.0820561 | BT15: 466.152456 | BU15: 396.2295876 | BV15: 396.2295876 | BW15: 396.2295876 | BX15: 396.2295876 | BY15: 396.2295876 | BZ15: 396.2295876 | CB15: ='Inputs|General'!P40+'Inputs|General'!P72 -> 566 | CC15: ='Inputs|General'!Q40+'Inputs|General'!Q72 -> 557.319375 | CD15: ='Inputs|General'!R40+'Inputs|General'!R72 -> 548.4643245 | CE15: ='Inputs|General'!S40+'Inputs|General'!S72 -> 539.43352 | CF15: ='Inputs|General'!T40+'Inputs|General'!T72 -> 530.2238903 | CG15: ='Inputs|General'!U40+'Inputs|General'!U72 -> 520.8322818 | CI15: 224265.9466 | CJ15: 220826.4261 | CK15: 217317.7931 | CL15: 213739.5212 | CM15: 210090.3934 | CN15: 206369.1602 | CQ15: 90286.59168 | CR15: 88732.96304 | CS15: 87632.4514 | CT15: 89759.68906 | CU15: 88373.14578 | CX15: HP Sodium 400W | CY15: =E15/'Report|Charges Summary'!B$3 -> 159.5169464 | CZ15: =F15/'Report|Charges Summary'!C$3 -> 159.2138494 | DA15: =G15/'Report|Charges Summary'!D$3 -> 159.7778515 | DB15: =H15/'Report|Charges Summary'!E$3 -> 166.3962022 | DC15: =I15/'Report|Charges Summary'!F$3 -> 166.6713767
A16: ='Inputs|General'!A41 -> Metal Halide 70W | B16: ='Inputs|General'!B41 -> Mercury Vapour 80W | C16: ='Inputs|General'!D41 -> 4.365105678 | D16: ='Inputs|General'!E41 -> 191.93 | E16: 262.5020983 | F16: 267.4777126 | G16: 279.2906704 | H16: 303.6797648 | I16: 309.8623344 | K16: =IF(D16=0,"",E16/D16-1) -> 0.3676970684 | L16: =IF(E16=0,"",F16/E16-1) -> 0.01895456933 | M16: =IF(F16=0,"",G16/F16-1) -> 0.04416426965 | N16: =IF(G16=0,"",H16/G16-1) -> 0.08732513109 | O16: =IF(H16=0,"",I16/H16-1) -> 0.02035884606 | Q16: =IF(D16=0,"",(E16/'Report|Charges Summary'!B$3)/D16-1) -> 0.335976854 | R16: =IF(E16=0,"",(F16/'Report|Charges Summary'!C$3)/(E16/'Report|Charges Summary'!B$3)-1) -> -0.004677460114 | S16: =IF(F16=0,"",(G16/'Report|Charges Summary'!D$3)/(F16/'Report|Charges Summary'!C$3)-1) -> 0.01994756606 | T16: =IF(G16=0,"",(H16/'Report|Charges Summary'!E$3)/(G16/'Report|Charges Summary'!D$3)-1) -> 0.06210742238 | U16: =IF(H16=0,"",(I16/'Report|Charges Summary'!F$3)/(H16/'Report|Charges Summary'!E$3)-1) -> -0.003305751971 | W16: =SUM('Inputs|General'!Q41:U41)/5 -> 6.975 | X16: 5.750883554e-05 | Z16: 274.6494331 | AA16: 200.7682402 | AB16: 206.288486 | AC16: 212.3791539 | AD16: 217.3406509 | AF16: -12.14733472 | AG16: 66.70947238 | AH16: 73.00218442 | AI16: 91.3006109 | AJ16: 92.52168353 | AL16: ='Inputs|General'!Q41/('Inputs|General'!Q$60+'Inputs|General'!Q$92) -> 0.0001178958999 | AM16: ='Inputs|General'!R41/('Inputs|General'!R$60+'Inputs|General'!R$92) -> 6.889253898e-05 | AN16: ='Inputs|General'!S41/('Inputs|General'!S$60+'Inputs|General'!S$92) -> 2.232804878e-05 | AO16: ='Inputs|General'!T41/('Inputs|General'!T$60+'Inputs|General'!T$92) -> 0 | AP16: ='Inputs|General'!U41/('Inputs|General'!U$60+'Inputs|General'!U$92) -> 0 | AR16: 5.214359785e-06 | AS16: -2.289099572e-05 | AT16: -7.901538114e-06 | AU16: 0 | AV16: 0 | AY16: 3718.64375 | AZ16: 2231.18625 | BA16: 743.72875 | BB16: 0 | BC16: 0 | BD16: ='Inputs|General'!Q41 -> 19.375 | BE16: ='Inputs|General'!R41 -> 11.625 | BF16: ='Inputs|General'!S41 -> 3.875 | BG16: ='Inputs|General'!T41 -> 0 | BH16: ='Inputs|General'!U41 -> 0 | BT16: 107.2231373 | BU16: 91.13966669 | BV16: 91.13966669 | BW16: 91.13966669 | BX16: 91.13966669 | BY16: 91.13966669 | BZ16: 91.13966669 | CB16: ='Inputs|General'!P41+'Inputs|General'!P73 -> 27.125 | CC16: ='Inputs|General'!Q41+'Inputs|General'!Q73 -> 19.375 | CD16: ='Inputs|General'!R41+'Inputs|General'!R73 -> 11.625 | CE16: ='Inputs|General'!S41+'Inputs|General'!S73 -> 3.875 | CF16: ='Inputs|General'!T41+'Inputs|General'!T73 -> 0 | CG16: ='Inputs|General'!U41+'Inputs|General'!U73 -> 0 | CI16: 2472.163459 | CJ16: 1765.831042 | CK16: 1059.498625 | CL16: 353.1662084 | CM16: 0 | CN16: 0 | CQ16: 6955.23077 | CR16: 4944.784254 | CS16: 3026.052399 | CT16: 1071.330904 | CU16: 0 | CX16: Metal Halide 70W | CY16: =E16/'Report|Charges Summary'!B$3 -> 256.4140376 | CZ16: =F16/'Report|Charges Summary'!C$3 -> 255.2146712 | DA16: =G16/'Report|Charges Summary'!D$3 -> 260.3055827 | DB16: =H16/'Report|Charges Summary'!E$3 -> 276.4724914 | DC16: =I16/'Report|Charges Summary'!F$3 -> 275.558542
A17: ='Inputs|General'!A42 -> Metal Halide 100W | B17: ='Inputs|General'!B42 -> HP Sodium 150W | C17: ='Inputs|General'!D42 -> 2.387689088 | D17: ='Inputs|General'!E42 -> 248.49 | E17: 267.7942156 | F17: 273.6433784 | G17: 280.7710129 | H17: 299.3742274 | I17: 307.0160019 | K17: 0.07768608626 | L17: 0.02184200586 | M17: 0.0260471661 | N17: 0.06625760357 | O17: 0.0255258263 | Q17: =IF(D17=0,"",(E17/'Report|Charges Summary'!B$3)/D17-1) -> 0.0526919304 | R17: =IF(E17=0,"",(F17/'Report|Charges Summary'!C$3)/(E17/'Report|Charges Summary'!B$3)-1) -> -0.001856990245 | S17: =IF(F17=0,"",(G17/'Report|Charges Summary'!D$3)/(F17/'Report|Charges Summary'!C$3)-1) -> 0.002250642117 | T17: =IF(G17=0,"",(H17/'Report|Charges Summary'!E$3)/(G17/'Report|Charges Summary'!D$3)-1) -> 0.04152850196 | U17: =IF(H17=0,"",(I17/'Report|Charges Summary'!F$3)/(H17/'Report|Charges Summary'!E$3)-1) -> 0.001741393453 | W17: =SUM('Inputs|General'!Q42:U42)/5 -> 7.65 | X17: 6.307420672e-05 | Z17: 274.2383065 | AA17: 228.1558677 | AB17: 233.5198585 | AC17: 239.7941328 | AD17: 245.8860088 | AF17: -6.444090883 | AG17: 45.4875107 | AH17: 47.25115443 | AI17: 59.5800946 | AJ17: 61.12999313 | AL17: ='Inputs|General'!Q42/('Inputs|General'!Q$60+'Inputs|General'!Q$92) -> 0.0001293051806 | AM17: ='Inputs|General'!R42/('Inputs|General'!R$60+'Inputs|General'!R$92) -> 7.555955888e-05 | AN17: ='Inputs|General'!S42/('Inputs|General'!S$60+'Inputs|General'!S$92) -> 2.448882769e-05 | AO17: ='Inputs|General'!T42/('Inputs|General'!T$60+'Inputs|General'!T$92) -> 0 | AP17: ='Inputs|General'!U42/('Inputs|General'!U$60+'Inputs|General'!U$92) -> 0 | AR17: 3.038431596e-06 | AS17: -1.506433421e-05 | AT17: -4.955147653e-06 | AU17: 0 | AV17: 0 | AY17: 5280.4125 | AZ17: 3168.2475 | BA17: 1056.0825 | BB17: 0 | BC17: 0 | BD17: ='Inputs|General'!Q42 -> 21.25 | BE17: ='Inputs|General'!R42 -> 12.75 | BF17: ='Inputs|General'!S42 -> 4.25 | BG17: ='Inputs|General'!T42 -> 0 | BH17: ='Inputs|General'!U42 -> 0 | BT17: 129.0253642 | BU17: 109.6715595 | BV17: 109.6715595 | BW17: 109.6715595 | BX17: 109.6715595 | BY17: 109.6715595 | BZ17: 109.6715595 | CB17: ='Inputs|General'!P42+'Inputs|General'!P74 -> 29.75 | CC17: ='Inputs|General'!Q42+'Inputs|General'!Q74 -> 21.25 | CD17: ='Inputs|General'!R42+'Inputs|General'!R74 -> 12.75 | CE17: ='Inputs|General'!S42+'Inputs|General'!S74 -> 4.25 | CF17: ='Inputs|General'!T42+'Inputs|General'!T74 -> 0 | CG17: ='Inputs|General'!U42+'Inputs|General'!U74 -> 0 | CI17: 3262.728896 | CJ17: 2330.52064 | CK17: 1398.312384 | CL17: 466.104128 | CM17: 0 | CN17: 0 | CQ17: 7782.106679 | CR17: 5548.325273 | CS17: 3336.487541 | CT17: 1158.348957 | CU17: 0 | CX17: Metal Halide 100W | CY17: =E17/'Report|Charges Summary'!B$3 -> 261.5834178 | CZ17: =F17/'Report|Charges Summary'!C$3 -> 261.0976599 | DA17: =G17/'Report|Charges Summary'!D$3 -> 261.6852973 | DB17: =H17/'Report|Charges Summary'!E$3 -> 272.5526957 | DC17: =I17/'Report|Charges Summary'!F$3 -> 273.0273172
A18: ='Inputs|General'!A43 -> Metal Halide 150W | B18: ='Inputs|General'!B43 -> HP Sodium 150W | C18: ='Inputs|General'!D43 -> 2.712586814 | D18: ='Inputs|General'!E43 -> 282.31 | E18: 304.2335209 | F18: 310.8785913 | G18: 318.9760976 | H18: 340.1106894 | I18: 348.7922958 | K18: 0.07765761368 | L18: 0.02184200586 | M18: 0.0260471661 | N18: 0.06625760357 | O18: 0.0255258263 | Q18: =IF(D18=0,"",(E18/'Report|Charges Summary'!B$3)/D18-1) -> 0.05266411816 | R18: =IF(E18=0,"",(F18/'Report|Charges Summary'!C$3)/(E18/'Report|Charges Summary'!B$3)-1) -> -0.001856990245 | S18: =IF(F18=0,"",(G18/'Report|Charges Summary'!D$3)/(F18/'Report|Charges Summary'!C$3)-1) -> 0.002250642117 | T18: =IF(G18=0,"",(H18/'Report|Charges Summary'!E$3)/(G18/'Report|Charges Summary'!D$3)-1) -> 0.04152850196 | U18: =IF(H18=0,"",(I18/'Report|Charges Summary'!F$3)/(H18/'Report|Charges Summary'!E$3)-1) -> 0.001741393453 | W18: =SUM('Inputs|General'!Q43:U43)/5 -> 7.425 | X18: 6.121908299e-05 | Z18: 311.5544724 | AA18: 259.2015022 | AB18: 265.2953821 | AC18: 272.4234097 | AD18: 279.3442197 | AF18: -7.320951479 | AG18: 51.67708909 | AH18: 53.68071542 | AI18: 67.68727965 | AJ18: 69.44807602 | AL18: ='Inputs|General'!Q43/('Inputs|General'!Q$60+'Inputs|General'!Q$92) -> 0.000125502087 | AM18: ='Inputs|General'!R43/('Inputs|General'!R$60+'Inputs|General'!R$92) -> 7.333721891e-05 | AN18: ='Inputs|General'!S43/('Inputs|General'!S$60+'Inputs|General'!S$92) -> 2.376856805e-05 | AO18: ='Inputs|General'!T43/('Inputs|General'!T$60+'Inputs|General'!T$92) -> 0 | AP18: ='Inputs|General'!U43/('Inputs|General'!U$60+'Inputs|General'!U$92) -> 0 | AR18: 2.949065961e-06 | AS18: -1.462126556e-05 | AT18: -4.809408016e-06 | AU18: 0 | AV18: 0 | AY18: 5822.64375 | AZ18: 3493.58625 | BA18: 1164.52875 | BB18: 0 | BC18: 0 | BD18: ='Inputs|General'!Q43 -> 20.625 | BE18: ='Inputs|General'!R43 -> 12.375 | BF18: ='Inputs|General'!S43 -> 4.125 | BG18: ='Inputs|General'!T43 -> 0 | BH18: ='Inputs|General'!U43 -> 0 | BT18: 182.9961672 | BU18: 155.5467421 | BV18: =BU18 -> 155.5467421 | BW18: 155.5467421 | BX18: 155.5467421 | BY18: 155.5467421 | BZ18: 155.5467421 | CB18: ='Inputs|General'!P43+'Inputs|General'!P75 -> 28.875 | CC18: ='Inputs|General'!Q43+'Inputs|General'!Q75 -> 20.625 | CD18: ='Inputs|General'!R43+'Inputs|General'!R75 -> 12.375 | CE18: ='Inputs|General'!S43+'Inputs|General'!S75 -> 4.125 | CF18: ='Inputs|General'!T43+'Inputs|General'!T75 -> 0 | CG18: ='Inputs|General'!U43+'Inputs|General'!U75 -> 0 | CI18: 4491.412179 | CJ18: 3208.151556 | CK18: 1924.890934 | CL18: 641.6303112 | CM18: 0 | CN18: 0 | CQ18: 8581.003408 | CR18: 6117.90612 | CS18: 3679.005202 | CT18: 1277.262926 | CU18: 0 | CX18: Metal Halide 150W | CY18: =E18/'Report|Charges Summary'!B$3 -> 297.1776072 | CZ18: =F18/'Report|Charges Summary'!C$3 -> 296.6257513 | DA18: =G18/'Report|Charges Summary'!D$3 -> 297.2933497 | DB18: =H18/'Report|Charges Summary'!E$3 -> 309.6394971 | DC18: =I18/'Report|Charges Summary'!F$3 -> 310.1787013
A19: ='Inputs|General'!A44 -> HP Sodium 50W | B19: ='Inputs|General'!B44 -> HP Sodium 150W | C19: ='Inputs|General'!D44 -> 0.4433450671 | D19: ='Inputs|General'!E44 -> 46.14 | E19: 49.723913 | F19: 50.809983 | G19: 52.13343907 | H19: 55.58767581 | I19: 57.00659716 | K19: 0.07767475077 | L19: 0.02184200586 | M19: 0.0260471661 | N19: 0.06625760357 | O19: 0.0255258263 | Q19: =IF(D19=0,"",(E19/'Report|Charges Summary'!B$3)/D19-1) -> 0.05268085781 | R19: =IF(E19=0,"",(F19/'Report|Charges Summary'!C$3)/(E19/'Report|Charges Summary'!B$3)-1) -> -0.001856990245 | S19: =IF(F19=0,"",(G19/'Report|Charges Summary'!D$3)/(F19/'Report|Charges Summary'!C$3)-1) -> 0.002250642117 | T19: =IF(G19=0,"",(H19/'Report|Charges Summary'!E$3)/(G19/'Report|Charges Summary'!D$3)-1) -> 0.04152850196 | U19: =IF(H19=0,"",(I19/'Report|Charges Summary'!F$3)/(H19/'Report|Charges Summary'!E$3)-1) -> 0.001741393453 | W19: =SUM('Inputs|General'!Q44:U44)/5 -> 0 | X19: 0 | Z19: 50.92044898 | AA19: 42.36388188 | AB19: 43.35986535 | AC19: 44.52486986 | AD19: 45.65600673 | AF19: -1.196535981 | AG19: 8.446101121 | AH19: 8.773573719 | AI19: 11.06280595 | AJ19: 11.35059043 | AL19: ='Inputs|General'!Q44/('Inputs|General'!Q$60+'Inputs|General'!Q$92) -> 0 | AM19: ='Inputs|General'!R44/('Inputs|General'!R$60+'Inputs|General'!R$92) -> 0 | AN19: ='Inputs|General'!S44/('Inputs|General'!S$60+'Inputs|General'!S$92) -> 0 | AO19: ='Inputs|General'!T44/('Inputs|General'!T$60+'Inputs|General'!T$92) -> 0 | AP19: ='Inputs|General'!U44/('Inputs|General'!U$60+'Inputs|General'!U$92) -> 0 | AR19: 0 | AS19: 0 | AT19: 0 | AU19: 0 | AV19: 0 | AY19: 0 | AZ19: 0 | BA19: 0 | BB19: 0 | BC19: 0 | BD19: ='Inputs|General'!Q44 -> 0 | BE19: ='Inputs|General'!R44 -> 0 | BF19: ='Inputs|General'!S44 -> 0 | BG19: ='Inputs|General'!T44 -> 0 | BH19: ='Inputs|General'!U44 -> 0
A20: ='Inputs|General'!A$46 -> Energy Efficient Lights | B20: Reference light | C20: Price factor
A21: ='Inputs|General'!A47 -> T5 2X14W | B21: ='Inputs|General'!B47 -> T5 2X14W | C21: ='Inputs|General'!D47 -> 1 | D21: ='Inputs|General'!E47 -> 35.6 | E21: ='Report|Charges Summary'!B$80 -> 51.50025158 | F21: ='Report|Charges Summary'!C$80 -> 54.57188608 | G21: ='Report|Charges Summary'!D$80 -> 57.34048538 | H21: ='Report|Charges Summary'!E$80 -> 59.96423504 | I21: ='Report|Charges Summary'!F$80 -> 62.21429085 | K21: =IF(D21=0,"",E21/D21-1) -> 0.4466362802 | L21: 0.05964309697 | M21: 0.05073306976 | N21: 0.04575736747 | O21: 0.03752329715 | Q21: =IF(D21=0,"",(E21/'Report|Charges Summary'!B$3)/D21-1) -> 0.4130852739 | R21: =IF(E21=0,"",(F21/'Report|Charges Summary'!C$3)/(E21/'Report|Charges Summary'!B$3)-1) -> 0.03506740182 | S21: =IF(F21=0,"",(G21/'Report|Charges Summary'!D$3)/(F21/'Report|Charges Summary'!C$3)-1) -> 0.02636401976 | T21: =IF(G21=0,"",(H21/'Report|Charges Summary'!E$3)/(G21/'Report|Charges Summary'!D$3)-1) -> 0.02150371608 | U21: =IF(H21=0,"",(I21/'Report|Charges Summary'!F$3)/(H21/'Report|Charges Summary'!E$3)-1) -> 0.01346061384 | W21: =SUM('Inputs|General'!Q47:U47)/5 -> 22518 | X21: =W21/W$33 -> 0.1856607826 | Z21: 58.18438916 | AA21: 64.74784835 | AB21: 64.57392876 | AC21: 67.13477963 | AD21: 69.06856055 | AF21: =E21-Z21 -> -6.684137582 | AG21: =F21-AA21 -> -10.17596227 | AH21: =G21-AB21 -> -7.233443381 | AI21: =H21-AC21 -> -7.170544593 | AJ21: =I21-AD21 -> -6.854269698 | AL21: ='Inputs|General'!Q47/('Inputs|General'!Q$60+'Inputs|General'!Q$92) -> 0.1370208967 | AM21: ='Inputs|General'!R47/('Inputs|General'!R$60+'Inputs|General'!R$92) -> 0.1334470703 | AN21: ='Inputs|General'!S47/('Inputs|General'!S$60+'Inputs|General'!S$92) -> 0.1297504522 | AO21: ='Inputs|General'!T47/('Inputs|General'!T$60+'Inputs|General'!T$92) -> 0.1264314667 | AP21: ='Inputs|General'!U47/('Inputs|General'!U$60+'Inputs|General'!U$92) -> 0.123094126 | AR21: =AL21*(1-(Z21+AF21)/Z21) -> 0.01574076034 | AS21: =AM21*(1-(AA21+AG21)/AA21) -> 0.02097293404 | AT21: =AN21*(1-(AB21+AH21)/AB21) -> 0.01453438822 | AU21: =AO21*(1-(AC21+AI21)/AC21) -> 0.01350391668 | AV21: =AP21*(1-(AD21+AJ21)/AD21) -> 0.01221569309 | AY21: =BD21*$D21 -> 801640.8 | AZ21: =BE21*$D21 -> 801640.8 | BA21: 801640.8 | BB21: 801640.8 | BC21: 801640.8 | BD21: ='Inputs|General'!Q47 -> 22518 | BE21: ='Inputs|General'!R47 -> 22518 | BF21: ='Inputs|General'!S47 -> 22518 | BG21: ='Inputs|General'!T47 -> 22518 | BH21: ='Inputs|General'!U47 -> 22518
A22: ='Inputs|General'!A48 -> T5 2X24W | B22: ='Inputs|General'!B48 -> T5 2X24W | C22: ='Inputs|General'!D48 -> 1 | D22: ='Inputs|General'!E48 -> 42.08 | E22: ='Report|Charges Summary'!B$96 -> 55.00569005 | F22: ='Report|Charges Summary'!C$96 -> 58.21321897 | G22: ='Report|Charges Summary'!D$96 -> 61.11547793 | H22: ='Report|Charges Summary'!E$96 -> 63.87714589 | I22: ='Report|Charges Summary'!F$96 -> 66.26462141 | K22: 0.3071694403 | L22: 0.05831267485 | M22: 0.04985566866 | N22: 0.04518770137 | O22: 0.03737605194 | Q22: =IF(D22=0,"",(E22/'Report|Charges Summary'!B$3)/D22-1) -> 0.2768530085 | R22: =IF(E22=0,"",(F22/'Report|Charges Summary'!C$3)/(E22/'Report|Charges Summary'!B$3)-1) -> 0.03376783542 | S22: =IF(F22=0,"",(G22/'Report|Charges Summary'!D$3)/(F22/'Report|Charges Summary'!C$3)-1) -> 0.02550696772 | T22: =IF(G22=0,"",(H22/'Report|Charges Summary'!E$3)/(G22/'Report|Charges Summary'!D$3)-1) -> 0.02094726193 | U22: =IF(H22=0,"",(I22/'Report|Charges Summary'!F$3)/(H22/'Report|Charges Summary'!E$3)-1) -> 0.0133167836 | W22: =SUM('Inputs|General'!Q48:U48)/5 -> 1781 | X22: 0.01468433492 | Z22: 60.55992705 | AA22: 64.21670402 | AB22: 67.34804032 | AC22: 69.7911866 | AD22: 70.69651453 | AF22: -5.554237001 | AG22: -6.003485047 | AH22: -6.232562393 | AI22: -5.914040712 | AJ22: -4.431893118 | AL22: ='Inputs|General'!Q48/('Inputs|General'!Q$60+'Inputs|General'!Q$92) -> 0.01083729537 | AM22: ='Inputs|General'!R48/('Inputs|General'!R$60+'Inputs|General'!R$92) -> 0.01055463328 | AN22: ='Inputs|General'!S48/('Inputs|General'!S$60+'Inputs|General'!S$92) -> 0.01026225932 | AO22: ='Inputs|General'!T48/('Inputs|General'!T$60+'Inputs|General'!T$92) -> 0.009999753186 | AP22: ='Inputs|General'!U48/('Inputs|General'!U$60+'Inputs|General'!U$92) -> 0.009735795293 | AR22: 0.0009939395546 | AS22: 0.000986730541 | AT22: 0.0009496961042 | AU22: 0.0008473698519 | AV22: 0.0006103271772 | AY22: =BD22*$D22 -> 74944.48 | AZ22: 74944.48 | BA22: 74944.48 | BB22: 74944.48 | BC22: 74944.48 | BD22: ='Inputs|General'!Q48 -> 1781 | BE22: ='Inputs|General'!R48 -> 1781 | BF22: ='Inputs|General'!S48 -> 1781 | BG22: ='Inputs|General'!T48 -> 1781 | BH22: ='Inputs|General'!U48 -> 1781
A23: ='Inputs|General'!A49 -> LED 18W | B23: ='Inputs|General'!B49 -> LED 18W | C23: ='Inputs|General'!D49 -> 1 | D23: ='Inputs|General'!E49 -> 16.27 | E23: ='Report|Charges Summary'!B$112 -> 29.24017142 | F23: ='Report|Charges Summary'!C$112 -> 31.38821292 | G23: ='Report|Charges Summary'!D$112 -> 33.26038209 | H23: ='Report|Charges Summary'!E$112 -> 34.97171775 | I23: ='Report|Charges Summary'!F$112 -> 36.33097642 | K23: =IF(D23=0,"",E23/D23-1) -> 0.7971832466 | L23: =IF(E23=0,"",F23/E23-1) -> 0.07346200101 | M23: =IF(F23=0,"",G23/F23-1) -> 0.05964561197 | N23: =IF(G23=0,"",H23/G23-1) -> 0.05145267591 | O23: =IF(H23=0,"",I23/H23-1) -> 0.03886736921 | Q23: =IF(D23=0,"",(E23/'Report|Charges Summary'!B$3)/D23-1) -> 0.7555022054 | R23: =IF(E23=0,"",(F23/'Report|Charges Summary'!C$3)/(E23/'Report|Charges Summary'!B$3)-1) -> 0.04856581193 | S23: =IF(F23=0,"",(G23/'Report|Charges Summary'!D$3)/(F23/'Report|Charges Summary'!C$3)-1) -> 0.03506985848 | T23: =IF(G23=0,"",(H23/'Report|Charges Summary'!E$3)/(G23/'Report|Charges Summary'!D$3)-1) -> 0.0270669365 | U23: =IF(H23=0,"",(I23/'Report|Charges Summary'!F$3)/(H23/'Report|Charges Summary'!E$3)-1) -> 0.01477351361 | W23: =SUM('Inputs|General'!Q49:U49)/5 -> 52024.83553 | X23: 0.4289444746 | Z23: 33.94459169 | AA23: 37.76555677 | AB23: 40.76982142 | AC23: 43.17447711 | AD23: 44.61220366 | AF23: -4.704420265 | AG23: -6.377343843 | AH23: -7.509439331 | AI23: -8.202759358 | AJ23: -8.281227242 | AL23: ='Inputs|General'!Q49/('Inputs|General'!Q$60+'Inputs|General'!Q$92) -> 0.2328602065 | AM23: ='Inputs|General'!R49/('Inputs|General'!R$60+'Inputs|General'!R$92) -> 0.2701075255 | AN23: ='Inputs|General'!S49/('Inputs|General'!S$60+'Inputs|General'!S$92) -> 0.3051153413 | AO23: ='Inputs|General'!T49/('Inputs|General'!T$60+'Inputs|General'!T$92) -> 0.3390835834 | AP23: ='Inputs|General'!U49/('Inputs|General'!U$60+'Inputs|General'!U$92) -> 0.3440225005 | AR23: 0.03227236564 | AS23: 0.04561215859 | AT23: 0.05619953839 | AU23: 0.06442280771 | AV23: 0.06385984707 | AY23: 622623.9762 | AZ23: 741557.8014 | BA23: 861534.22 | BB23: 982582.3431 | BC23: 1023922.029 | BD23: ='Inputs|General'!Q49 -> 38268.22226 | BE23: ='Inputs|General'!R49 -> 45578.22996 | BF23: ='Inputs|General'!S49 -> 52952.31838 | BG23: ='Inputs|General'!T49 -> 60392.27677 | BH23: ='Inputs|General'!U49 -> 62933.13027
A24: ='Inputs|General'!A50 -> LED non-standard low power ~14W | B24: ='Inputs|General'!B50 -> LED non-standard low power ~14W | C24: ='Inputs|General'!D50 -> 1 | D24: ='Inputs|General'!E50 -> 16.27 | E24: ='Report|Charges Summary'!B$128 -> 31.06563361 | F24: ='Report|Charges Summary'!C$128 -> 33.26192207 | G24: ='Report|Charges Summary'!D$128 -> 35.18520348 | H24: ='Report|Charges Summary'!E$128 -> 36.95265318 | I24: ='Report|Charges Summary'!F$128 -> 38.37311494 | K24: =IF(D24=0,"",E24/D24-1) -> 0.9093812912 | L24: =IF(E24=0,"",F24/E24-1) -> 0.07069833164 | M24: =IF(F24=0,"",G24/F24-1) -> 0.05782231712 | N24: =IF(G24=0,"",H24/G24-1) -> 0.05023275476 | O24: =IF(H24=0,"",I24/H24-1) -> 0.03844004807 | Q24: =IF(D24=0,"",(E24/'Report|Charges Summary'!B$3)/D24-1) -> 0.865098105 | R24: =IF(E24=0,"",(F24/'Report|Charges Summary'!C$3)/(E24/'Report|Charges Summary'!B$3)-1) -> 0.04586623877 | S24: =IF(F24=0,"",(G24/'Report|Charges Summary'!D$3)/(F24/'Report|Charges Summary'!C$3)-1) -> 0.03328885027 | T24: =IF(G24=0,"",(H24/'Report|Charges Summary'!E$3)/(G24/'Report|Charges Summary'!D$3)-1) -> 0.02587530828 | U24: =IF(H24=0,"",(I24/'Report|Charges Summary'!F$3)/(H24/'Report|Charges Summary'!E$3)-1) -> 0.01435610308 | W24: =SUM('Inputs|General'!Q50:U50)/5 -> 2673 | X24: 0.02203886988 | Z24: 36.12352238 | AA24: 39.99787127 | AB24: 43.05156979 | AC24: 45.51212832 | AD24: 47.00712732 | AF24: -5.057888776 | AG24: -6.735949191 | AH24: -7.866366312 | AI24: -8.559475137 | AJ24: -8.634012376 | AL24: ='Inputs|General'!Q50/('Inputs|General'!Q$60+'Inputs|General'!Q$92) -> 0.01626507048 | AM24: ='Inputs|General'!R50/('Inputs|General'!R$60+'Inputs|General'!R$92) -> 0.01584083929 | AN24: ='Inputs|General'!S50/('Inputs|General'!S$60+'Inputs|General'!S$92) -> 0.0154020321 | AO24: ='Inputs|General'!T50/('Inputs|General'!T$60+'Inputs|General'!T$92) -> 0.01500805181 | AP24: ='Inputs|General'!U50/('Inputs|General'!U$60+'Inputs|General'!U$92) -> 0.01461189266 | AR24: 0.002277378062 | AS24: 0.002667719186 | AT24: 0.002814253394 | AU24: 0.002822567325 | AV24: 0.002683832628 | AY24: 43489.71 | AZ24: 43489.71 | BA24: 43489.71 | BB24: 43489.71 | BC24: 43489.71 | BD24: ='Inputs|General'!Q50 -> 2673 | BE24: ='Inputs|General'!R50 -> 2673 | BF24: ='Inputs|General'!S50 -> 2673 | BG24: ='Inputs|General'!T50 -> 2673 | BH24: ='Inputs|General'!U50 -> 2673
A25: ='Inputs|General'!A51 -> LED 70W-125W (L1) | B25: ='Inputs|General'!B51 -> LED 70W-125W (L1) | C25: ='Inputs|General'!D51 -> 1 | D25: ='Inputs|General'!E51 -> 23.59 | E25: ='Report|Charges Summary'!B$144 -> 48.63256375 | F25: ='Report|Charges Summary'!C$144 -> 52.46601309 | G25: ='Report|Charges Summary'!D$144 -> 55.82452111 | H25: ='Report|Charges Summary'!E$144 -> 58.89731397 | I25: ='Report|Charges Summary'!F$144 -> 61.35600852 | K25: 1.061575403 | L25: 0.07882474309 | M25: 0.06401302146 | N25: 0.05504378358 | O25: 0.04174544449 | Q25: =IF(D25=0,"",(E25/'Report|Charges Summary'!B$3)/D25-1) -> 1.013762466 | R25: =IF(E25=0,"",(F25/'Report|Charges Summary'!C$3)/(E25/'Report|Charges Summary'!B$3)-1) -> 0.05380417901 | S25: =IF(F25=0,"",(G25/'Report|Charges Summary'!D$3)/(F25/'Report|Charges Summary'!C$3)-1) -> 0.03933597716 | T25: =IF(G25=0,"",(H25/'Report|Charges Summary'!E$3)/(G25/'Report|Charges Summary'!D$3)-1) -> 0.03057475766 | U25: =IF(H25=0,"",(I25/'Report|Charges Summary'!F$3)/(H25/'Report|Charges Summary'!E$3)-1) -> 0.01758483934 | W25: =SUM('Inputs|General'!Q51:U51)/5 -> 2637.733742 | X25: 0.02174809978 | Z25: 45.57794877 | AA25: 52.5842589 | AB25: 58.02161795 | AC25: 62.22835877 | AD25: 64.43708013 | AF25: 3.054614977 | AG25: -0.1182458112 | AH25: -2.197096841 | AI25: -3.331044798 | AJ25: -3.081071609 | AL25: ='Inputs|General'!Q51/('Inputs|General'!Q$60+'Inputs|General'!Q$92) -> 0.01484905647 | AM25: ='Inputs|General'!R51/('Inputs|General'!R$60+'Inputs|General'!R$92) -> 0.01452416597 | AN25: ='Inputs|General'!S51/('Inputs|General'!S$60+'Inputs|General'!S$92) -> 0.01627994652 | AO25: ='Inputs|General'!T51/('Inputs|General'!T$60+'Inputs|General'!T$92) -> 0.01581163239 | AP25: ='Inputs|General'!U51/('Inputs|General'!U$60+'Inputs|General'!U$92) -> 0.01451935156 | AR25: -0.0009951775256 | AS25: 3.266037829e-05 | AT25: 0.0006164705561 | AU25: 0.0008463867096 | AV25: 0.0006942456389 | AY25: 57566.49781 | AZ25: 57814.91813 | BA25: 66650.26025 | BB25: 66432.29992 | BC25: 62656.71873 | BD25: ='Inputs|General'!Q51 -> 2440.292404 | BE25: ='Inputs|General'!R51 -> 2450.823151 | BF25: ='Inputs|General'!S51 -> 2825.360757 | BG25: ='Inputs|General'!T51 -> 2816.121234 | BH25: ='Inputs|General'!U51 -> 2656.071163
A26: ='Inputs|General'!A52 -> LED 155W-250W (L2) | B26: ='Inputs|General'!B52 -> LED 155W-250W (L2) | C26: ='Inputs|General'!D52 -> 1 | D26: ='Inputs|General'!E52 -> 24.3 | E26: ='Report|Charges Summary'!B$160 -> 49.27183262 | F26: ='Report|Charges Summary'!C$160 -> 53.26783642 | G26: ='Report|Charges Summary'!D$160 -> 56.7595856 | H26: ='Report|Charges Summary'!E$160 -> 59.94221846 | I26: ='Report|Charges Summary'!F$160 -> 62.46982088 | K26: 1.027647433 | L26: 0.08110118062 | M26: 0.06555079793 | N26: 0.0560721652 | O26: 0.04216731512 | Q26: =IF(D26=0,"",(E26/'Report|Charges Summary'!B$3)/D26-1) -> 0.9806213681 | R26: =IF(E26=0,"",(F26/'Report|Charges Summary'!C$3)/(E26/'Report|Charges Summary'!B$3)-1) -> 0.05602782043 | S26: =IF(F26=0,"",(G26/'Report|Charges Summary'!D$3)/(F26/'Report|Charges Summary'!C$3)-1) -> 0.04083808885 | T26: =IF(G26=0,"",(H26/'Report|Charges Summary'!E$3)/(G26/'Report|Charges Summary'!D$3)-1) -> 0.03157928862 | U26: =IF(H26=0,"",(I26/'Report|Charges Summary'!F$3)/(H26/'Report|Charges Summary'!E$3)-1) -> 0.01799692576 | W26: =SUM('Inputs|General'!Q52:U52)/5 -> 3174.947241 | X26: 0.02617742204 | Z26: 47.63544497 | AA26: 55.47242662 | AB26: 61.54168836 | AC26: 66.20576936 | AD26: 68.59376811 | AF26: 1.636387655 | AG26: -2.204590203 | AH26: -4.78210276 | AI26: -6.263550896 | AJ26: -6.123947233 | AL26: ='Inputs|General'!Q52/('Inputs|General'!Q$60+'Inputs|General'!Q$92) -> 0.01499642069 | AM26: ='Inputs|General'!R52/('Inputs|General'!R$60+'Inputs|General'!R$92) -> 0.01738643907 | AN26: ='Inputs|General'!S52/('Inputs|General'!S$60+'Inputs|General'!S$92) -> 0.01948470939 | AO26: ='Inputs|General'!T52/('Inputs|General'!T$60+'Inputs|General'!T$92) -> 0.02006383209 | AP26: ='Inputs|General'!U52/('Inputs|General'!U$60+'Inputs|General'!U$92) -> 0.01924976373 | AR26: -0.0005151617183 | AS26: 0.0006909734359 | AT26: 0.0015140612 | AU26: 0.001898185531 | AV26: 0.001718589612 | AY26: 59887.59847 | AZ26: 71291.48931 | BA26: 82171.48603 | BB26: 86834.99763 | BC26: 85570.51832 | BD26: ='Inputs|General'!Q52 -> 2464.510225 | BE26: ='Inputs|General'!R52 -> 2933.806144 | BF26: ='Inputs|General'!S52 -> 3381.542635 | BG26: ='Inputs|General'!T52 -> 3573.456693 | BH26: ='Inputs|General'!U52 -> 3521.420507 | BT26: 62.313384 | BU26: =BT26*$BU$43 -> 52.9663764 | BV26: =BU26 -> 52.9663764 | BW26: =BV26 -> 52.9663764 | BX26: 52.9663764 | BY26: 52.9663764 | BZ26: 52.9663764 | CB26: ='Inputs|General'!P47+'Inputs|General'!P79 -> 29617 | CC26: ='Inputs|General'!Q47+'Inputs|General'!Q79 -> 29617 | CD26: ='Inputs|General'!R47+'Inputs|General'!R79 -> 29617 | CE26: ='Inputs|General'!S47+'Inputs|General'!S79 -> 29617 | CF26: ='Inputs|General'!T47+'Inputs|General'!T79 -> 29617 | CG26: ='Inputs|General'!U47+'Inputs|General'!U79 -> 29617 | CI26: =CB26*BU26 -> 1568705.17 | CJ26: 1568705.17 | CK26: 1568705.17 | CL26: 1568705.17 | CM26: 1568705.17 | CN26: 1568705.17 | CQ26: =E21/BK$3*CB26 -> 1489907.937 | CR26: 1542155.138 | CS26: 1582812.546 | CT26: 1616848.898 | CU26: 1638612.677 | CX26: =A21 -> T5 2X14W | CY26: =E21/'Report|Charges Summary'!B$3 -> 50.30583575 | CZ26: =F21/'Report|Charges Summary'!C$3 -> 52.06993071 | DA26: =G21/'Report|Charges Summary'!D$3 -> 53.44270339 | DB26: =H21/'Report|Charges Summary'!E$3 -> 54.59192011 | DC26: =I21/'Report|Charges Summary'!F$3 -> 55.32676087
A27: ='Inputs|General'!A53 -> LED 275W-400W (L4) | B27: ='Inputs|General'!B53 -> LED 275W-400W (L4) | C27: ='Inputs|General'!D53 -> 1 | D27: ='Inputs|General'!E53 -> 25.83 | E27: ='Report|Charges Summary'!B$176 -> 54.99661327 | F27: ='Report|Charges Summary'!C$176 -> 60.44832471 | G27: ='Report|Charges Summary'!D$176 -> 65.13327512 | H27: ='Report|Charges Summary'!E$176 -> 69.29954717 | I27: ='Report|Charges Summary'!F$176 -> 72.44423328 | K27: 1.129175891 | L27: 0.09912813022 | M27: 0.07750339536 | N27: 0.06396533935 | O27: 0.04537816256 | Q27: =IF(D27=0,"",(E27/'Report|Charges Summary'!B$3)/D27-1) -> 1.079795135 | R27: =IF(E27=0,"",(F27/'Report|Charges Summary'!C$3)/(E27/'Report|Charges Summary'!B$3)-1) -> 0.07363668132 | S27: =IF(F27=0,"",(G27/'Report|Charges Summary'!D$3)/(F27/'Report|Charges Summary'!C$3)-1) -> 0.05251347654 | T27: =IF(G27=0,"",(H27/'Report|Charges Summary'!E$3)/(G27/'Report|Charges Summary'!D$3)-1) -> 0.03928940091 | U27: =IF(H27=0,"",(I27/'Report|Charges Summary'!F$3)/(H27/'Report|Charges Summary'!E$3)-1) -> 0.02113330586 | W27: =SUM('Inputs|General'!Q53:U53)/5 -> 146.1341972 | X27: 0.001204875629 | Z27: 59.33963178 | AA27: 68.24362888 | AB27: 75.12988266 | AC27: 80.49797287 | AD27: 83.31796144 | AF27: -4.343018511 | AG27: -7.795304167 | AH27: -9.996607534 | AI27: -11.1984257 | AJ27: -10.87372815 | AL27: ='Inputs|General'!Q53/('Inputs|General'!Q$60+'Inputs|General'!Q$92) -> 0.0007264835795 | AM27: ='Inputs|General'!R53/('Inputs|General'!R$60+'Inputs|General'!R$92) -> 0.000812512125 | AN27: ='Inputs|General'!S53/('Inputs|General'!S$60+'Inputs|General'!S$92) -> 0.0009034343859 | AO27: ='Inputs|General'!T53/('Inputs|General'!T$60+'Inputs|General'!T$92) -> 0.0009339085435 | AP27: ='Inputs|General'!U53/('Inputs|General'!U$60+'Inputs|General'!U$92) -> 0.0008257313828 | AR27: 5.317073159e-05 | AS27: 9.281128887e-05 | AT27: 0.0001202088792 | AU27: 0.0001299201093 | AV27: 0.0001077652217 | AY27: 3083.849804 | AZ27: 3541.400365 | BA27: 4049.878155 | BB27: 4296.386993 | BC27: 3901.716252 | BD27: ='Inputs|General'!Q53 -> 119.3902363 | BE27: ='Inputs|General'!R53 -> 137.1041566 | BF27: ='Inputs|General'!S53 -> 156.7897079 | BG27: ='Inputs|General'!T53 -> 166.3332169 | BH27: ='Inputs|General'!U53 -> 151.0536683 | BT27: 124.626768 | BU27: 105.9327528 | BV27: =BU27 -> 105.9327528 | BW27: 105.9327528 | BX27: 105.9327528 | BY27: 105.9327528 | BZ27: 105.9327528 | CB27: ='Inputs|General'!P48+'Inputs|General'!P80 -> 2801 | CC27: ='Inputs|General'!Q48+'Inputs|General'!Q80 -> 2801 | CD27: ='Inputs|General'!R48+'Inputs|General'!R80 -> 2801 | CE27: ='Inputs|General'!S48+'Inputs|General'!S80 -> 2801 | CF27: ='Inputs|General'!T48+'Inputs|General'!T80 -> 2801 | CG27: ='Inputs|General'!U48+'Inputs|General'!U80 -> 2801 | CI27: 296717.6406 | CJ27: 296717.6406 | CK27: 296717.6406 | CL27: 296717.6406 | CM27: 296717.6406 | CN27: 296717.6406 | CQ27: 150497.6589 | CR27: 155579.639 | CS27: 159548.0039 | CT27: 162890.0977 | CU27: 165059.2699 | CX27: =A22 -> T5 2X24W | CY27: =E22/'Report|Charges Summary'!B$3 -> 53.7299746 | CZ27: =F22/'Report|Charges Summary'!C$3 -> 55.54431954 | DA27: =G22/'Report|Charges Summary'!D$3 -> 56.9610867 | DB27: =H22/'Report|Charges Summary'!E$3 -> 58.15426551 | DC27: =I22/'Report|Charges Summary'!F$3 -> 58.92869328
A28: ='Inputs|General'!A54 -> Compact Fluorescent 32W | B28: ='Inputs|General'!B54 -> T5 2X14W | C28: ='Inputs|General'!D54 -> 0.8796098925 | D28: ='Inputs|General'!E54 -> 31.59 | E28: =INDEX(E$21:E$32,MATCH($B28,$A$21:$A$32,0))*$C28 -> 45.30013075 | F28: =INDEX(F$21:F$32,MATCH($B28,$A$21:$A$32,0))*$C28 -> 48.00197085 | G28: 50.43725818 | H28: 52.74513434 | I28: 54.72430569 | K28: 0.4340022398 | L28: 0.05964309697 | M28: 0.05073306976 | N28: 0.04575736747 | O28: 0.03752329715 | Q28: =IF(D28=0,"",(E28/'Report|Charges Summary'!B$3)/D28-1) -> 0.4007442475 | R28: =IF(E28=0,"",(F28/'Report|Charges Summary'!C$3)/(E28/'Report|Charges Summary'!B$3)-1) -> 0.03506740182 | S28: =IF(F28=0,"",(G28/'Report|Charges Summary'!D$3)/(F28/'Report|Charges Summary'!C$3)-1) -> 0.02636401976 | T28: =IF(G28=0,"",(H28/'Report|Charges Summary'!E$3)/(G28/'Report|Charges Summary'!D$3)-1) -> 0.02150371608 | U28: =IF(H28=0,"",(I28/'Report|Charges Summary'!F$3)/(H28/'Report|Charges Summary'!E$3)-1) -> 0.01346061384 | W28: =SUM('Inputs|General'!Q54:U54)/5 -> 3107 | X28: 0.02561719742 | Z28: 51.17956429 | AA28: 56.95284792 | AB28: 56.79986654 | AC28: 59.0524163 | AD28: 60.75338912 | AF28: -5.87943354 | AG28: -8.950877079 | AH28: -6.362608355 | AI28: -6.307281959 | AJ28: -6.029083432 | AL28: ='Inputs|General'!Q54/('Inputs|General'!Q$60+'Inputs|General'!Q$92) -> 0.01890593863 | AM28: ='Inputs|General'!R54/('Inputs|General'!R$60+'Inputs|General'!R$92) -> 0.01841282741 | AN28: ='Inputs|General'!S54/('Inputs|General'!S$60+'Inputs|General'!S$92) -> 0.01790277356 | AO28: ='Inputs|General'!T54/('Inputs|General'!T$60+'Inputs|General'!T$92) -> 0.0174448249 | AP28: ='Inputs|General'!U54/('Inputs|General'!U$60+'Inputs|General'!U$92) -> 0.01698434361 | AR28: 0.002171886597 | AS28: 0.002893814108 | AT28: 0.002005433174 | AU28: 0.001863250249 | AV28: 0.001685503083 | AY28: 98150.13 | AZ28: 98150.13 | BA28: 98150.13 | BB28: 98150.13 | BC28: 98150.13 | BD28: ='Inputs|General'!Q54 -> 3107 | BE28: ='Inputs|General'!R54 -> 3107 | BF28: ='Inputs|General'!S54 -> 3107 | BG28: ='Inputs|General'!T54 -> 3107 | BH28: ='Inputs|General'!U54 -> 3107 | BT28: 28.0410228 | BU28: 23.83486938 | BV28: 23.83486938 | BW28: 23.83486938 | BX28: 23.83486938 | BY28: 23.83486938 | BZ28: 23.83486938 | CB28: ='Inputs|General'!P49+'Inputs|General'!P81 -> 51463.03347 | CC28: ='Inputs|General'!Q49+'Inputs|General'!Q81 -> 59220.78151 | CD28: ='Inputs|General'!R49+'Inputs|General'!R81 -> 68521.34845 | CE28: ='Inputs|General'!S49+'Inputs|General'!S81 -> 77903.6409 | CF28: ='Inputs|General'!T49+'Inputs|General'!T81 -> 87369.84266 | CG28: ='Inputs|General'!U49+'Inputs|General'!U81 -> 90753.88226 | CI28: 1226614.681 | CJ28: 1411519.592 | CK28: 1633197.39 | CL28: 1856823.105 | CM28: 2082448.788 | CN28: 2163106.929 | CQ28: 1469888.237 | CR28: 1773612.579 | CS28: 2124125.58 | CT28: 2480337.571 | CU28: 2822823.429 | CX28: LED 18W | CY28: =E23/'Report|Charges Summary'!B$3 -> 28.56202088 | CZ28: =F23/'Report|Charges Summary'!C$3 -> 29.94915862 | DA28: =G23/'Report|Charges Summary'!D$3 -> 30.99947137 | DB28: =H23/'Report|Charges Summary'!E$3 -> 31.83853209 | DC28: =I23/'Report|Charges Summary'!F$3 -> 32.30889908
A29: ='Inputs|General'!A55 -> Compact Fluorescent 42W | B29: ='Inputs|General'!B55 -> T5 2X14W | C29: ='Inputs|General'!D55 -> 0.8796098925 | D29: ='Inputs|General'!E55 -> 31.59 | E29: =INDEX(E$21:E$32,MATCH($B29,$A$21:$A$32,0))*$C29 -> 45.30013075 | F29: 48.00197085 | G29: 50.43725818 | H29: 52.74513434 | I29: 54.72430569 | K29: 0.4340022398 | L29: 0.05964309697 | M29: 0.05073306976 | N29: 0.04575736747 | O29: 0.03752329715 | Q29: =IF(D29=0,"",(E29/'Report|Charges Summary'!B$3)/D29-1) -> 0.4007442475 | R29: =IF(E29=0,"",(F29/'Report|Charges Summary'!C$3)/(E29/'Report|Charges Summary'!B$3)-1) -> 0.03506740182 | S29: =IF(F29=0,"",(G29/'Report|Charges Summary'!D$3)/(F29/'Report|Charges Summary'!C$3)-1) -> 0.02636401976 | T29: =IF(G29=0,"",(H29/'Report|Charges Summary'!E$3)/(G29/'Report|Charges Summary'!D$3)-1) -> 0.02150371608 | U29: =IF(H29=0,"",(I29/'Report|Charges Summary'!F$3)/(H29/'Report|Charges Summary'!E$3)-1) -> 0.01346061384 | W29: =SUM('Inputs|General'!Q55:U55)/5 -> 1924 | X29: 0.01586336911 | Z29: 51.17956429 | AA29: 56.95284792 | AB29: 56.79986654 | AC29: 59.0524163 | AD29: 60.75338912 | AF29: -5.87943354 | AG29: -8.950877079 | AH29: -6.362608355 | AI29: -6.307281959 | AJ29: -6.029083432 | AL29: ='Inputs|General'!Q55/('Inputs|General'!Q$60+'Inputs|General'!Q$92) -> 0.01170744317 | AM29: ='Inputs|General'!R55/('Inputs|General'!R$60+'Inputs|General'!R$92) -> 0.01140208559 | AN29: ='Inputs|General'!S55/('Inputs|General'!S$60+'Inputs|General'!S$92) -> 0.01108623635 | AO29: ='Inputs|General'!T55/('Inputs|General'!T$60+'Inputs|General'!T$92) -> 0.01080265308 | AP29: ='Inputs|General'!U55/('Inputs|General'!U$60+'Inputs|General'!U$92) -> 0.01051750148 | AR29: 0.001344933959 | AS29: 0.001791985305 | AT29: 0.0012418582 | AU29: 0.00115381187 | AV29: 0.001043742495 | AY29: 60779.16 | AZ29: 60779.16 | BA29: 60779.16 | BB29: 60779.16 | BC29: 60779.16 | BD29: ='Inputs|General'!Q55 -> 1924 | BE29: ='Inputs|General'!R55 -> 1924 | BF29: ='Inputs|General'!S55 -> 1924 | BG29: ='Inputs|General'!T55 -> 1924 | BH29: ='Inputs|General'!U55 -> 1924 | BT29: 28.0410228 | BU29: 23.83486938 | BV29: 23.83486938 | BW29: 23.83486938 | BX29: 23.83486938 | BY29: 23.83486938 | BZ29: 23.83486938 | CB29: ='Inputs|General'!P50+'Inputs|General'!P82 -> 3610 | CC29: ='Inputs|General'!Q50+'Inputs|General'!Q82 -> 3610 | CD29: ='Inputs|General'!R50+'Inputs|General'!R82 -> 3610 | CE29: ='Inputs|General'!S50+'Inputs|General'!S82 -> 3610 | CF29: ='Inputs|General'!T50+'Inputs|General'!T82 -> 3610 | CG29: ='Inputs|General'!U50+'Inputs|General'!U82 -> 3610 | CI29: 86043.87846 | CJ29: 86043.87846 | CK29: 86043.87846 | CL29: 86043.87846 | CM29: 86043.87846 | CN29: 86043.87846 | CQ29: 109545.9777 | CR29: 114570.4396 | CS29: 118384.3578 | CT29: 121447.5896 | CU29: 123191.1037 | CX29: LED non-standard low power ~14W | CY29: =E24/'Report|Charges Summary'!B$3 -> 30.34514617 | CZ29: =F24/'Report|Charges Summary'!C$3 -> 31.73696389 | DA29: =G24/'Report|Charges Summary'!D$3 -> 32.79345093 | DB29: =H24/'Report|Charges Summary'!E$3 -> 33.64199158 | DC29: =I24/'Report|Charges Summary'!F$3 -> 34.12495948
A30: ='Inputs|General'!A56 -> Smart lighting L1 | B30: ='Inputs|General'!B56 -> Smart lighting L1 | C30: ='Inputs|General'!D56 -> 1 | D30: ='Inputs|General'!E56 -> 25.83 | E30: ='Report|Charges Summary'!B192 -> 59.59140705 | F30: ='Report|Charges Summary'!C192 -> 63.68505316 | G30: ='Report|Charges Summary'!D192 -> 67.30993583 | H30: ='Report|Charges Summary'!E192 -> 70.65542788 | I30: ='Report|Charges Summary'!F192 -> 73.39329636 | K30: =IF(D30=0,"",E30/D30-1) -> 1.307061829 | L30: =IF(E30=0,"",F30/E30-1) -> 0.0686952417 | M30: =IF(F30=0,"",G30/F30-1) -> 0.05691889202 | N30: =IF(G30=0,"",H30/G30-1) -> 0.04970279671 | O30: =IF(H30=0,"",I30/H30-1) -> 0.03874958446 | Q30: =IF(D30=0,"",(E30/'Report|Charges Summary'!B$3)/D30-1) -> 1.253555466 | R30: =IF(E30=0,"",(F30/'Report|Charges Summary'!C$3)/(E30/'Report|Charges Summary'!B$3)-1) -> 0.04390960534 | S30: =IF(F30=0,"",(G30/'Report|Charges Summary'!D$3)/(F30/'Report|Charges Summary'!C$3)-1) -> 0.03240637779 | T30: =IF(G30=0,"",(H30/'Report|Charges Summary'!E$3)/(G30/'Report|Charges Summary'!D$3)-1) -> 0.02535764124 | U30: =IF(H30=0,"",(I30/'Report|Charges Summary'!F$3)/(H30/'Report|Charges Summary'!E$3)-1) -> 0.01465846057 | W30: =SUM('Inputs|General'!Q56:U56)/5 -> 1271.612001 | X30: =W30/W$33 -> 0.01048443375 | BT30: 56.0820456 | BU30: 47.66973876 | BV30: 47.66973876 | BW30: 47.66973876 | BX30: 47.66973876 | BY30: 47.66973876 | BZ30: 47.66973876 | CB30: ='Inputs|General'!P51+'Inputs|General'!P83 -> 2701.591098 | CC30: ='Inputs|General'!Q51+'Inputs|General'!Q83 -> 3110.928934 | CD30: ='Inputs|General'!R51+'Inputs|General'!R83 -> 3129.167714 | CE30: ='Inputs|General'!S51+'Inputs|General'!S83 -> 3545.78473 | CF30: ='Inputs|General'!T51+'Inputs|General'!T83 -> 3544.799413 | CG30: ='Inputs|General'!U51+'Inputs|General'!U83 -> 3358.011242 | CI30: 128784.1419 | CJ30: 148297.1696 | CK30: 149166.6075 | CL30: 169026.6318 | CM30: 168979.662 | CN30: 160075.5187 | CQ30: 128338.1573 | CR30: 155734.9865 | CS30: 162809.9342 | CT30: 190127.0572 | CU30: 193416.6487 | CX30: LED 70W-125W (L1) | CY30: =E25/'Report|Charges Summary'!B$3 -> 47.50465656 | CZ30: =F25/'Report|Charges Summary'!C$3 -> 50.06060561 | DA30: =G25/'Report|Charges Summary'!D$3 -> 52.02978845 | DB30: =H25/'Report|Charges Summary'!E$3 -> 53.62058662 | DC30: =I25/'Report|Charges Summary'!F$3 -> 54.56349602
A31: ='Inputs|General'!A57 -> Smart lighting L2 | B31: ='Inputs|General'!B57 -> Smart lighting L2 | C31: ='Inputs|General'!D57 -> 1 | D31: ='Inputs|General'!E57 -> 25.83 | E31: ='Report|Charges Summary'!B208 -> 60.23067593 | F31: ='Report|Charges Summary'!C208 -> 64.48687649 | G31: ='Report|Charges Summary'!D208 -> 68.24500032 | H31: ='Report|Charges Summary'!E208 -> 71.70033238 | I31: ='Report|Charges Summary'!F208 -> 74.50710871 | K31: 1.331810915 | L31: 0.07066499751 | M31: 0.05827734305 | N31: 0.05063128497 | O31: 0.03914593198 | Q31: =IF(D31=0,"",(E31/'Report|Charges Summary'!B$3)/D31-1) -> 1.27773056 | R31: =IF(E31=0,"",(F31/'Report|Charges Summary'!C$3)/(E31/'Report|Charges Summary'!B$3)-1) -> 0.04583367774 | S31: =IF(F31=0,"",(G31/'Report|Charges Summary'!D$3)/(F31/'Report|Charges Summary'!C$3)-1) -> 0.03373332304 | T31: =IF(G31=0,"",(H31/'Report|Charges Summary'!E$3)/(G31/'Report|Charges Summary'!D$3)-1) -> 0.02626459561 | U31: =IF(H31=0,"",(I31/'Report|Charges Summary'!F$3)/(H31/'Report|Charges Summary'!E$3)-1) -> 0.01504561583 | W31: =SUM('Inputs|General'!Q57:U57)/5 -> 1617.881813 | X31: 0.01333942639 | BT31: 84.1230684 | BU31: 71.50460814 | BV31: 71.50460814 | BW31: 71.50460814 | BX31: 71.50460814 | BY31: 71.50460814 | BZ31: 71.50460814 | CB31: ='Inputs|General'!P52+'Inputs|General'!P84 -> 1793.282778 | CC31: ='Inputs|General'!Q52+'Inputs|General'!Q84 -> 3477.910819 | CD31: ='Inputs|General'!R52+'Inputs|General'!R84 -> 4315.036551 | CE31: ='Inputs|General'!S52+'Inputs|General'!S84 -> 5070.637779 | CF31: ='Inputs|General'!T52+'Inputs|General'!T84 -> 5417.364355 | CG31: ='Inputs|General'!U52+'Inputs|General'!U84 -> 5375.135191 | CI31: 128227.9823 | CJ31: 248686.6502 | CK31: 308544.9977 | CL31: 362573.9674 | CM31: 387366.5153 | CN31: 384346.9356 | CQ31: 86309.0848 | CR31: 176767.1398 | CS31: 228271.0039 | CT31: 276714.2163 | CU31: 300956.2704 | CX31: LED 155W-250W (L2) | CY31: =E26/'Report|Charges Summary'!B$3 -> 48.12909924 | CZ31: =F26/'Report|Charges Summary'!C$3 -> 50.82566777 | DA31: =G26/'Report|Charges Summary'!D$3 -> 52.90129091 | DB31: =H26/'Report|Charges Summary'!E$3 -> 54.57187604 | DC31: =I26/'Report|Charges Summary'!F$3 -> 55.55400205
A32: ='Inputs|General'!A58 -> Smart lighting L4 | B32: ='Inputs|General'!B58 -> Smart lighting L4 | C32: ='Inputs|General'!D58 -> 1 | D32: ='Inputs|General'!E58 -> 25.83 | E32: ='Report|Charges Summary'!B224 -> 65.95545657 | F32: ='Report|Charges Summary'!C224 -> 71.66736478 | G32: ='Report|Charges Summary'!D224 -> 76.61868984 | H32: ='Report|Charges Summary'!E224 -> 81.05766108 | I32: ='Report|Charges Summary'!F224 -> 84.48152112 | K32: 1.553443925 | L32: 0.08660251185 | M32: 0.06908758354 | N32: 0.05793588032 | O32: 0.04223980794 | Q32: =IF(D32=0,"",(E32/'Report|Charges Summary'!B$3)/D32-1) -> 1.494223363 | R32: =IF(E32=0,"",(F32/'Report|Charges Summary'!C$3)/(E32/'Report|Charges Summary'!B$3)-1) -> 0.06140156244 | S32: =IF(F32=0,"",(G32/'Report|Charges Summary'!D$3)/(F32/'Report|Charges Summary'!C$3)-1) -> 0.04429284782 | T32: =IF(G32=0,"",(H32/'Report|Charges Summary'!E$3)/(G32/'Report|Charges Summary'!D$3)-1) -> 0.03339977967 | U32: =IF(H32=0,"",(I32/'Report|Charges Summary'!F$3)/(H32/'Report|Charges Summary'!E$3)-1) -> 0.01806773729 | W32: =SUM('Inputs|General'!Q58:U58)/5 -> 72.88282157 | X32: 0.0006009184514 | BT32: 112.1640912 | BU32: 95.33947752 | BV32: 95.33947752 | BW32: 95.33947752 | BX32: 95.33947752 | BY32: 95.33947752 | BZ32: 95.33947752 | CB32: ='Inputs|General'!P53+'Inputs|General'!P85 -> 151.7787283 | CC32: ='Inputs|General'!Q53+'Inputs|General'!Q85 -> 227.1937511 | CD32: ='Inputs|General'!R53+'Inputs|General'!R85 -> 255.4850065 | CE32: ='Inputs|General'!S53+'Inputs|General'!S85 -> 288.7567085 | CF32: ='Inputs|General'!T53+'Inputs|General'!T85 -> 304.0068474 | CG32: ='Inputs|General'!U53+'Inputs|General'!U85 -> 275.0683698 | CI32: 14470.50465 | CJ32: 21660.53352 | CK32: 24357.80703 | CL32: 27529.91372 | CM32: 28983.85399 | CN32: 26224.87466 | CQ32: 8153.721504 | CR32: 13103.84318 | CS32: 15509.41398 | CT32: 18217.90996 | CU32: 19585.39234 | CX32: LED 275W-400W (L4) | CY32: =E27/'Report|Charges Summary'!B$3 -> 53.72110833 | CZ32: =F27/'Report|Charges Summary'!C$3 -> 57.67695247 | DA32: =G27/'Report|Charges Summary'!D$3 -> 60.70576976 | DB32: =H27/'Report|Charges Summary'!E$3 -> 63.09086308 | DC32: =I27/'Report|Charges Summary'!F$3 -> 64.42418159
W33: =SUM(W7:W32) -> 121285.7109 | X33: =SUM(X7:X32) -> 1 | BT33: 49.8507072 | BU33: 42.37310112 | BV33: 42.37310112 | BW33: 42.37310112 | BX33: 42.37310112 | BY33: 42.37310112 | BZ33: 42.37310112 | CB33: ='Inputs|General'!P54+'Inputs|General'!P86 -> 3787 | CC33: ='Inputs|General'!Q54+'Inputs|General'!Q86 -> 3787 | CD33: ='Inputs|General'!R54+'Inputs|General'!R86 -> 3787 | CE33: ='Inputs|General'!S54+'Inputs|General'!S86 -> 3787 | CF33: ='Inputs|General'!T54+'Inputs|General'!T86 -> 3787 | CG33: ='Inputs|General'!U54+'Inputs|General'!U86 -> 3787 | CI33: 160466.9339 | CJ33: 160466.9339 | CK33: 160466.9339 | CL33: 160466.9339 | CM33: 160466.9339 | CN33: 160466.9339 | CQ33: 167572.8973 | CR33: 173449.2434 | CS33: 178022.0627 | CT33: 181850.1986 | CU33: 184298.0139 | CX33: Compact Fluorescent 32W | CY33: =E28/'Report|Charges Summary'!B$3 -> 44.24951078 | CZ33: =F28/'Report|Charges Summary'!C$3 -> 45.80122615 | DA33: =G28/'Report|Charges Summary'!D$3 -> 47.00873059 | DB33: =H28/'Report|Charges Summary'!E$3 -> 48.01959298 | DC33: =I28/'Report|Charges Summary'!F$3 -> 48.66596618
CX34: Compact Fluorescent 42W | CY34: =E29/'Report|Charges Summary'!B$3 -> 44.24951078 | CZ34: =F29/'Report|Charges Summary'!C$3 -> 45.80122615 | DA34: =G29/'Report|Charges Summary'!D$3 -> 47.00873059 | DB34: =H29/'Report|Charges Summary'!E$3 -> 48.01959298 | DC34: =I29/'Report|Charges Summary'!F$3 -> 48.66596618
A35: North & East | D35: Nominal Prices | K35: Nominal Price Movement | Q35: Real Price Movement (Implied X Factor) | W35: Number | X35: % of | Z35: Submission Model | AF35: Difference | BT35: 65.4290532 | BU35: =BT35*$BU$43 -> 55.61469522 | BV35: 55.61469522 | BW35: 55.61469522 | BX35: 55.61469522 | BY35: 55.61469522 | BZ35: 55.61469522 | CB35: ='Inputs|General'!P55+'Inputs|General'!P87 -> 4639 | CC35: ='Inputs|General'!Q55+'Inputs|General'!Q87 -> 4639 | CD35: ='Inputs|General'!R55+'Inputs|General'!R87 -> 4639 | CE35: ='Inputs|General'!S55+'Inputs|General'!S87 -> 4639 | CF35: ='Inputs|General'!T55+'Inputs|General'!T87 -> 4639 | CG35: ='Inputs|General'!U55+'Inputs|General'!U87 -> 4639 | CI35: 257996.5711 | CJ35: 257996.5711 | CK35: 257996.5711 | CL35: 257996.5711 | CM35: 257996.5711 | CN35: 257996.5711 | CQ35: =E29/BK$3*CB35 -> 205273.4805 | CR35: =F29/BL$3*CC35 -> 212471.8881 | CS35: =G29/BM$3*CD35 -> 218073.5012 | CT35: =H29/BN$3*CE35 -> 222762.8918 | CU35: =I29/BO$3*CF35 -> 225761.4171 | CX35: Smart lighting L1 | CY35: =E30/'Report|Charges Summary'!B$3 -> 58.2093377 | CZ35: =F30/'Report|Charges Summary'!C$3 -> 60.76528674 | DA35: =G30/'Report|Charges Summary'!D$3 -> 62.73446958 | DB35: =H30/'Report|Charges Summary'!E$3 -> 64.32526775 | DC35: =I30/'Report|Charges Summary'!F$3 -> 65.26817715
D36: Actual | W36: of Lights | X36: Total Lights | CX36: Smart lighting L2 | CY36: =E31/'Report|Charges Summary'!B$3 -> 58.83378038 | CZ36: =F31/'Report|Charges Summary'!C$3 -> 61.53034891 | DA36: =G31/'Report|Charges Summary'!D$3 -> 63.60597204 | DB36: =H31/'Report|Charges Summary'!E$3 -> 65.27655718 | DC36: =I31/'Report|Charges Summary'!F$3 -> 66.25868318
A37: ='Inputs|General'!A$63 -> Existing Lights | B37: Reference light | C37: Price factor | D37: ='Inputs|General'!P$2 -> HY2021 | E37: ='Inputs|General'!Q$2 -> 2022-06-30 | F37: ='Inputs|General'!R$2 -> 2023-06-30 | G37: ='Inputs|General'!S$2 -> 2024-06-30 | H37: ='Inputs|General'!T$2 -> 2025-06-30 | I37: ='Inputs|General'!U$2 -> 2026-06-30 | K37: =E37 -> 2022-06-30 | L37: =F37 -> 2023-06-30 | M37: 2024-06-30 | N37: 2025-06-30 | O37: 2026-06-30 | Q37: =K37 -> 2022-06-30 | R37: =L37 -> 2023-06-30 | S37: 2024-06-30 | T37: 2025-06-30 | U37: 2026-06-30 | W37: 2022-26 | X37: 2022-26 | Z37: =Q37 -> 2022-06-30 | AA37: =R37 -> 2023-06-30 | AB37: =S37 -> 2024-06-30 | AC37: =T37 -> 2025-06-30 | AD37: =U37 -> 2026-06-30 | AF37: =Z37 -> 2022-06-30 | AG37: =AA37 -> 2023-06-30 | AH37: =AB37 -> 2024-06-30 | AI37: =AC37 -> 2025-06-30 | AJ37: =AD37 -> 2026-06-30 | CX37: Smart lighting L4 | CY37: =E32/'Report|Charges Summary'!B$3 -> 64.42578946 | CZ37: =F32/'Report|Charges Summary'!C$3 -> 68.3816336 | DA37: =G32/'Report|Charges Summary'!D$3 -> 71.41045089 | DB37: =H32/'Report|Charges Summary'!E$3 -> 73.79554421 | DC37: =I32/'Report|Charges Summary'!F$3 -> 75.12886272
A38: ='Inputs|General'!A64 -> Mercury Vapour 80W | B38: ='Inputs|General'!B64 -> Mercury Vapour 80W | C38: ='Inputs|General'!D64 -> 1 | D38: ='Inputs|General'!E64 -> 49.95 | E38: ='Report|Charges Summary'!G$22 -> 66.12007849 | F38: ='Report|Charges Summary'!H$22 -> 67.34821227 | G38: ='Report|Charges Summary'!I$22 -> 67.97387436 | H38: ='Report|Charges Summary'!J$22 -> 73.6708761 | I38: ='Report|Charges Summary'!K$22 -> 75.20925545 | K38: =IF(D38=0,"",E38/D38-1) -> 0.323725295 | L38: =IF(E38=0,"",F38/E38-1) -> 0.01857429414 | M38: =IF(F38=0,"",G38/F38-1) -> 0.009289958423 | N38: =IF(G38=0,"",H38/G38-1) -> 0.08381163779 | O38: =IF(H38=0,"",I38/H38-1) -> 0.02088178439 | Q38: =IF(D38=0,"",(E38/'Report|Charges Summary'!G$3)/D38-1) -> 0.2930248928 | R38: =IF(E38=0,"",(F38/'Report|Charges Summary'!H$3)/(E38/'Report|Charges Summary'!G$3)-1) -> -0.005048915798 | S38: =IF(F38=0,"",(G38/'Report|Charges Summary'!I$3)/(F38/'Report|Charges Summary'!H$3)-1) -> -0.01411792524 | T38: =IF(G38=0,"",(H38/'Report|Charges Summary'!J$3)/(G38/'Report|Charges Summary'!I$3)-1) -> 0.05867541552 | U38: =IF(H38=0,"",(I38/'Report|Charges Summary'!K$3)/(H38/'Report|Charges Summary'!J$3)-1) -> -0.002794941851 | W38: =SUM('Inputs|General'!Q64:U64)/5 -> 1399.6 | X38: =W38/W$64 -> 0.02678778142 | Z38: 72.15095807 | AA38: 51.45883457 | AB38: 52.84988592 | AC38: 54.28773772 | AD38: 55.65534277 | AF38: =E38-Z38 -> -6.030879588 | AG38: =F38-AA38 -> 15.8893777 | AH38: =G38-AB38 -> 15.12398844 | AI38: =H38-AC38 -> 19.38313838 | AJ38: =I38-AD38 -> 19.55391268 | AL38: ='Inputs|General'!Q64/('Inputs|General'!Q$60+'Inputs|General'!Q$92) -> 0.02128515396 | AM38: ='Inputs|General'!R64/('Inputs|General'!R$60+'Inputs|General'!R$92) -> 0.01381999148 | AN38: ='Inputs|General'!S64/('Inputs|General'!S$60+'Inputs|General'!S$92) -> 0.006718581902 | AO38: ='Inputs|General'!T64/('Inputs|General'!T$60+'Inputs|General'!T$92) -> 5.614684551e-06 | AP38: ='Inputs|General'!U64/('Inputs|General'!U$60+'Inputs|General'!U$92) -> 5.466476863e-06 | AR38: =AL38*(1-(Z38+AF38)/Z38) -> 0.001779161413 | AS38: =AM38*(1-(AA38+AG38)/AA38) -> -0.00426731515 | AT38: =AN38*(1-(AB38+AH38)/AB38) -> -0.001922648522 | AU38: =AO38*(1-(AC38+AI38)/AC38) -> -2.00469226e-06 | AV38: =AP38*(1-(AD38+AJ38)/AD38) -> -1.920588499e-06 | AY38: =BD38*$D38 -> 174725.1 | AZ38: =BE38*$D38 -> 116483.4 | BA38: 58241.7 | BB38: 49.95 | BC38: 49.95 | BD38: ='Inputs|General'!Q64 -> 3498 | BE38: ='Inputs|General'!R64 -> 2332 | BF38: ='Inputs|General'!S64 -> 1166 | BG38: ='Inputs|General'!T64 -> 1 | BH38: ='Inputs|General'!U64 -> 1
A39: ='Inputs|General'!A65 -> HP Sodium 150W | B39: ='Inputs|General'!B65 -> HP Sodium 150W | C39: ='Inputs|General'!D65 -> 1 | D39: ='Inputs|General'!E65 -> 118.4 | E39: ='Report|Charges Summary'!G$46 -> 131.4537222 | F39: ='Report|Charges Summary'!H$46 -> 134.3879677 | G39: ='Report|Charges Summary'!I$46 -> 135.8931124 | H39: ='Report|Charges Summary'!J$46 -> 144.2728516 | I39: ='Report|Charges Summary'!K$46 -> 148.1271788 | K39: 0.1102510322 | L39: 0.02232150924 | M39: 0.01119999595 | N39: 0.06166419387 | O39: 0.02671554019 | Q39: =IF(D39=0,"",(E39/'Report|Charges Summary'!G$3)/D39-1) -> 0.08450161616 | R39: =IF(E39=0,"",(F39/'Report|Charges Summary'!H$3)/(E39/'Report|Charges Summary'!G$3)-1) -> -0.001388607718 | S39: =IF(F39=0,"",(G39/'Report|Charges Summary'!I$3)/(F39/'Report|Charges Summary'!H$3)-1) -> -0.01225218612 | T39: =IF(G39=0,"",(H39/'Report|Charges Summary'!J$3)/(G39/'Report|Charges Summary'!I$3)-1) -> 0.03704162457 | U39: =IF(H39=0,"",(I39/'Report|Charges Summary'!K$3)/(H39/'Report|Charges Summary'!J$3)-1) -> 0.002903514992 | W39: =SUM('Inputs|General'!Q65:U65)/5 -> 4670.354697 | X39: 0.08938871162 | Z39: 135.0569893 | AA39: 114.5542419 | AB39: 114.3567189 | AC39: 118.9263534 | AD39: 121.9309217 | AF39: -3.603267108 | AG39: 19.83372575 | AH39: 21.53639347 | AI39: 25.34649821 | AJ39: 26.19625709 | AL39: ='Inputs|General'!Q65/('Inputs|General'!Q$60+'Inputs|General'!Q$92) -> 0.03150401768 | AM39: ='Inputs|General'!R65/('Inputs|General'!R$60+'Inputs|General'!R$92) -> 0.02913554793 | AN39: ='Inputs|General'!S65/('Inputs|General'!S$60+'Inputs|General'!S$92) -> 0.02686801866 | AO39: ='Inputs|General'!T65/('Inputs|General'!T$60+'Inputs|General'!T$92) -> 0.02479947714 | AP39: ='Inputs|General'!U65/('Inputs|General'!U$60+'Inputs|General'!U$92) -> 0.02284026472 | AR39: 0.0008405147431 | AS39: -0.005044478995 | AT39: -0.005059958234 | AU39: -0.005285455116 | AV39: -0.004907118214 | AY39: =BD39*$D39 -> 613000.2538 | AZ39: 582097.4051 | BA39: 552087.9627 | BB39: 522960.4739 | BC39: 494703.8853 | BD39: ='Inputs|General'!Q65 -> 5177.367008 | BE39: ='Inputs|General'!R65 -> 4916.363219 | BF39: ='Inputs|General'!S65 -> 4662.90509 | BG39: ='Inputs|General'!T65 -> 4416.895894 | BH39: ='Inputs|General'!U65 -> 4178.242275
A40: ='Inputs|General'!A66 -> HP Sodium 250W | B40: ='Inputs|General'!B66 -> HP Sodium 250W | C40: ='Inputs|General'!D66 -> 1 | D40: ='Inputs|General'!E66 -> 117.12 | E40: ='Report|Charges Summary'!G$62 -> 131.2515041 | F40: ='Report|Charges Summary'!H$62 -> 134.2628709 | G40: ='Report|Charges Summary'!I$62 -> 136.2200851 | H40: ='Report|Charges Summary'!J$62 -> 144.6813744 | I40: ='Report|Charges Summary'!K$62 -> 148.4836854 | K40: 0.1206583346 | L40: 0.0229434841 | M40: 0.01457747873 | N40: 0.06211484375 | O40: 0.02628058409 | Q40: =IF(D40=0,"",(E40/'Report|Charges Summary'!G$3)/D40-1) -> 0.09466754797 | R40: =IF(E40=0,"",(F40/'Report|Charges Summary'!H$3)/(E40/'Report|Charges Summary'!G$3)-1) -> -0.0007810579611 | S40: =IF(F40=0,"",(G40/'Report|Charges Summary'!I$3)/(F40/'Report|Charges Summary'!H$3)-1) -> -0.008953035359 | T40: =IF(G40=0,"",(H40/'Report|Charges Summary'!J$3)/(G40/'Report|Charges Summary'!I$3)-1) -> 0.03748182279 | U40: =IF(H40=0,"",(I40/'Report|Charges Summary'!K$3)/(H40/'Report|Charges Summary'!J$3)-1) -> 0.002478646578 | W40: =SUM('Inputs|General'!Q66:U66)/5 -> 4607.111713 | X40: 0.08817826632 | Z40: 133.7365782 | AA40: 113.0244139 | AB40: 113.1023212 | AC40: 115.9643156 | AD40: 118.896314 | AF40: -2.485074068 | AG40: 21.23845709 | AH40: 23.11776385 | AI40: 28.7170588 | AJ40: 29.58737146 | AL40: ='Inputs|General'!Q66/('Inputs|General'!Q$60+'Inputs|General'!Q$92) -> 0.03010153877 | AM40: ='Inputs|General'!R66/('Inputs|General'!R$60+'Inputs|General'!R$92) -> 0.02828869739 | AN40: ='Inputs|General'!S66/('Inputs|General'!S$60+'Inputs|General'!S$92) -> 0.02652654171 | AO40: ='Inputs|General'!T66/('Inputs|General'!T$60+'Inputs|General'!T$92) -> 0.02491391414 | AP40: ='Inputs|General'!U66/('Inputs|General'!U$60+'Inputs|General'!U$92) -> 0.02336530814 | AR40: 0.0005593425104 | AS40: -0.005315739008 | AT40: -0.005421942893 | AU40: -0.006169607725 | AV40: -0.005814461596 | AY40: 579379.0269 | AZ40: 559068.1929 | BA40: 539178.5825 | BB40: 519693.9556 | BC40: 500604.8609 | BD40: ='Inputs|General'!Q66 -> 4946.883768 | BE40: ='Inputs|General'!R66 -> 4773.464762 | BF40: ='Inputs|General'!S66 -> 4603.642269 | BG40: ='Inputs|General'!T66 -> 4437.277627 | BH40: ='Inputs|General'!U66 -> 4274.290137 | BT40: 25.2 | BU40: Cents per Kwhour
A41: ='Inputs|General'!A67 -> Mercury Vapour 50W | B41: ='Inputs|General'!B67 -> Mercury Vapour 80W | C41: ='Inputs|General'!D67 -> 1.48 | D41: ='Inputs|General'!E67 -> 73.93 | E41: =INDEX(E$38:E$50,MATCH($B41,$A$38:$A$50,0))*$C41 -> 97.85771616 | F41: =INDEX(F$38:F$50,MATCH($B41,$A$38:$A$50,0))*$C41 -> 99.67535416 | G41: 100.6013341 | H41: 109.0328966 | I41: 111.3096981 | K41: 0.3236536745 | L41: 0.01857429414 | M41: 0.009289958423 | N41: 0.08381163779 | O41: 0.02088178439 | Q41: =IF(D41=0,"",(E41/'Report|Charges Summary'!G$3)/D41-1) -> 0.2929549333 | R41: =IF(E41=0,"",(F41/'Report|Charges Summary'!H$3)/(E41/'Report|Charges Summary'!G$3)-1) -> -0.005048915798 | S41: =IF(F41=0,"",(G41/'Report|Charges Summary'!I$3)/(F41/'Report|Charges Summary'!H$3)-1) -> -0.01411792524 | T41: =IF(G41=0,"",(H41/'Report|Charges Summary'!J$3)/(G41/'Report|Charges Summary'!I$3)-1) -> 0.05867541552 | U41: =IF(H41=0,"",(I41/'Report|Charges Summary'!K$3)/(H41/'Report|Charges Summary'!J$3)-1) -> -0.002794941851 | W41: =SUM('Inputs|General'!Q67:U67)/5 -> 37.5 | X41: 0.0007177349266 | Z41: 106.7834179 | AA41: 76.15907517 | AB41: 78.21783116 | AC41: 80.34585183 | AD41: 82.3699073 | AF41: -8.92570179 | AG41: 23.516279 | AH41: 22.3835029 | AI41: 28.6870448 | AJ41: 28.93979076 | AL41: ='Inputs|General'!Q67/('Inputs|General'!Q$60+'Inputs|General'!Q$92) -> 0.0005704640318 | AM41: ='Inputs|General'!R67/('Inputs|General'!R$60+'Inputs|General'!R$92) -> 0.0003703899945 | AN41: ='Inputs|General'!S67/('Inputs|General'!S$60+'Inputs|General'!S$92) -> 0.0001800649095 | AO41: ='Inputs|General'!T67/('Inputs|General'!T$60+'Inputs|General'!T$92) -> 0 | AP41: ='Inputs|General'!U67/('Inputs|General'!U$60+'Inputs|General'!U$92) -> 0 | AR41: 4.768335691e-05 | AS41: -0.0001143684378 | AT41: -5.15289591e-05 | AU41: 0 | AV41: 0 | AY41: 6930.9375 | AZ41: 4620.625 | BA41: 2310.3125 | BB41: 0 | BC41: 0 | BD41: ='Inputs|General'!Q67 -> 93.75 | BE41: ='Inputs|General'!R67 -> 62.5 | BF41: ='Inputs|General'!S67 -> 31.25 | BG41: ='Inputs|General'!T67 -> 0 | BH41: ='Inputs|General'!U67 -> 0 | BU41: =BT40*0.85 -> 21.42 | BV41: Cents per Kwhour
A42: ='Inputs|General'!A68 -> Mercury Vapour 125W | B42: ='Inputs|General'!B68 -> Mercury Vapour 80W | C42: ='Inputs|General'!D68 -> 1.48 | D42: ='Inputs|General'!E68 -> 73.93 | E42: =INDEX(E$38:E$50,MATCH($B42,$A$38:$A$50,0))*$C42 -> 97.85771616 | F42: 99.67535416 | G42: 100.6013341 | H42: 109.0328966 | I42: 111.3096981 | K42: 0.3236536745 | L42: 0.01857429414 | M42: 0.009289958423 | N42: 0.08381163779 | O42: 0.02088178439 | Q42: =IF(D42=0,"",(E42/'Report|Charges Summary'!G$3)/D42-1) -> 0.2929549333 | R42: =IF(E42=0,"",(F42/'Report|Charges Summary'!H$3)/(E42/'Report|Charges Summary'!G$3)-1) -> -0.005048915798 | S42: =IF(F42=0,"",(G42/'Report|Charges Summary'!I$3)/(F42/'Report|Charges Summary'!H$3)-1) -> -0.01411792524 | T42: =IF(G42=0,"",(H42/'Report|Charges Summary'!J$3)/(G42/'Report|Charges Summary'!I$3)-1) -> 0.05867541552 | U42: =IF(H42=0,"",(I42/'Report|Charges Summary'!K$3)/(H42/'Report|Charges Summary'!J$3)-1) -> -0.002794941851 | W42: =SUM('Inputs|General'!Q68:U68)/5 -> 5.1 | X42: 9.761195002e-05 | Z42: 106.7834179 | AA42: 76.15907517 | AB42: 78.21783116 | AC42: 80.34585183 | AD42: 82.3699073 | AF42: -8.92570179 | AG42: 23.516279 | AH42: 22.3835029 | AI42: 28.6870448 | AJ42: 28.93979076 | AL42: ='Inputs|General'!Q68/('Inputs|General'!Q$60+'Inputs|General'!Q$92) -> 7.758310833e-05 | AM42: ='Inputs|General'!R68/('Inputs|General'!R$60+'Inputs|General'!R$92) -> 5.037303925e-05 | AN42: ='Inputs|General'!S68/('Inputs|General'!S$60+'Inputs|General'!S$92) -> 2.448882769e-05 | AO42: ='Inputs|General'!T68/('Inputs|General'!T$60+'Inputs|General'!T$92) -> 0 | AP42: ='Inputs|General'!U68/('Inputs|General'!U$60+'Inputs|General'!U$92) -> 0 | AR42: 6.48493654e-06 | AS42: -1.555410754e-05 | AT42: -7.007938437e-06 | AU42: 0 | AV42: 0 | AY42: 942.6075 | AZ42: 628.405 | BA42: 314.2025 | BB42: 0 | BC42: 0 | BD42: ='Inputs|General'!Q68 -> 12.75 | BE42: ='Inputs|General'!R68 -> 8.5 | BF42: ='Inputs|General'!S68 -> 4.25 | BG42: ='Inputs|General'!T68 -> 0 | BH42: ='Inputs|General'!U68 -> 0
A43: ='Inputs|General'!A69 -> Mercury Vapour 250W | B43: ='Inputs|General'!B69 -> HP Sodium 250W | C43: ='Inputs|General'!D69 -> 1.04 | D43: ='Inputs|General'!E69 -> 121.81 | E43: 136.5015643 | F43: 139.6333858 | G43: 141.6688885 | H43: 150.4686294 | I43: 154.4230328 | K43: 0.1206104943 | L43: 0.0229434841 | M43: 0.01457747873 | N43: 0.06211484375 | O43: 0.02628058409 | Q43: =IF(D43=0,"",(E43/'Report|Charges Summary'!G$3)/D43-1) -> 0.09462081723 | R43: =IF(E43=0,"",(F43/'Report|Charges Summary'!H$3)/(E43/'Report|Charges Summary'!G$3)-1) -> -0.0007810579611 | S43: =IF(F43=0,"",(G43/'Report|Charges Summary'!I$3)/(F43/'Report|Charges Summary'!H$3)-1) -> -0.008953035359 | T43: =IF(G43=0,"",(H43/'Report|Charges Summary'!J$3)/(G43/'Report|Charges Summary'!I$3)-1) -> 0.03748182279 | U43: =IF(H43=0,"",(I43/'Report|Charges Summary'!K$3)/(H43/'Report|Charges Summary'!J$3)-1) -> 0.002478646578 | W43: =SUM('Inputs|General'!Q69:U69)/5 -> 78 | X43: 0.001492888647 | Z43: 139.0860413 | AA43: 117.5453904 | AB43: 117.6264141 | AC43: 120.6028882 | AD43: 123.6521665 | AF43: -2.58447703 | AG43: 22.08799537 | AH43: 24.0424744 | AI43: 29.86574115 | AJ43: 30.77086632 | AL43: ='Inputs|General'!Q69/('Inputs|General'!Q$60+'Inputs|General'!Q$92) -> 0.001186565186 | AM43: ='Inputs|General'!R69/('Inputs|General'!R$60+'Inputs|General'!R$92) -> 0.0007704111886 | AN43: ='Inputs|General'!S69/('Inputs|General'!S$60+'Inputs|General'!S$92) -> 0.0003745350117 | AO43: ='Inputs|General'!T69/('Inputs|General'!T$60+'Inputs|General'!T$92) -> 0 | AP43: ='Inputs|General'!U69/('Inputs|General'!U$60+'Inputs|General'!U$92) -> 0 | AR43: 2.204858546e-05 | AS43: -0.0001447682355 | AT43: -7.655379534e-05 | AU43: 0 | AV43: 0 | AY43: 23752.95 | AZ43: 15835.3 | BA43: 7917.65 | BB43: 0 | BC43: 0 | BD43: ='Inputs|General'!Q69 -> 195 | BE43: ='Inputs|General'!R69 -> 130 | BF43: ='Inputs|General'!S69 -> 65 | BG43: ='Inputs|General'!T69 -> 0 | BH43: ='Inputs|General'!U69 -> 0 | BU43: =BU41/BT40 -> 0.85
A44: ='Inputs|General'!A70 -> Mercury Vapour 400W | B44: ='Inputs|General'!B70 -> HP Sodium 250W | C44: ='Inputs|General'!D70 -> 1.07 | D44: ='Inputs|General'!E70 -> 125.32 | E44: 140.4391094 | F44: 143.6612719 | G44: 145.755491 | H44: 154.8090706 | I44: 158.8775434 | K44: 0.1206440268 | L44: 0.0229434841 | M44: 0.01457747873 | N44: 0.06211484375 | O44: 0.02628058409 | Q44: =IF(D44=0,"",(E44/'Report|Charges Summary'!G$3)/D44-1) -> 0.094653572 | R44: =IF(E44=0,"",(F44/'Report|Charges Summary'!H$3)/(E44/'Report|Charges Summary'!G$3)-1) -> -0.0007810579611 | S44: =IF(F44=0,"",(G44/'Report|Charges Summary'!I$3)/(F44/'Report|Charges Summary'!H$3)-1) -> -0.008953035359 | T44: =IF(G44=0,"",(H44/'Report|Charges Summary'!J$3)/(G44/'Report|Charges Summary'!I$3)-1) -> 0.03748182279 | U44: =IF(H44=0,"",(I44/'Report|Charges Summary'!K$3)/(H44/'Report|Charges Summary'!J$3)-1) -> 0.002478646578 | W44: =SUM('Inputs|General'!Q70:U70)/5 -> 27.3 | X44: 0.0005225110266 | Z44: 143.0981387 | AA44: 120.9361228 | AB44: 121.0194837 | AC44: 124.0818177 | AD44: 127.2190559 | AF44: -2.659029252 | AG44: 22.72514908 | AH44: 24.73600731 | AI44: 30.72725291 | AJ44: 31.65848747 | AL44: ='Inputs|General'!Q70/('Inputs|General'!Q$60+'Inputs|General'!Q$92) -> 0.0004152978152 | AM44: ='Inputs|General'!R70/('Inputs|General'!R$60+'Inputs|General'!R$92) -> 0.000269643916 | AN44: ='Inputs|General'!S70/('Inputs|General'!S$60+'Inputs|General'!S$92) -> 0.0001310872541 | AO44: ='Inputs|General'!T70/('Inputs|General'!T$60+'Inputs|General'!T$92) -> 0 | AP44: ='Inputs|General'!U70/('Inputs|General'!U$60+'Inputs|General'!U$92) -> 0 | AR44: 7.717004911e-06 | AS44: -5.066888244e-05 | AT44: -2.679382837e-05 | AU44: 0 | AV44: 0 | AY44: 8553.09 | AZ44: 5702.06 | BA44: 2851.03 | BB44: 0 | BC44: 0 | BD44: ='Inputs|General'!Q70 -> 68.25 | BE44: ='Inputs|General'!R70 -> 45.5 | BF44: ='Inputs|General'!S70 -> 22.75 | BG44: ='Inputs|General'!T70 -> 0 | BH44: ='Inputs|General'!U70 -> 0
A45: ='Inputs|General'!A71 -> HP Sodium 100W | B45: ='Inputs|General'!B71 -> HP Sodium 150W | C45: ='Inputs|General'!D71 -> 1.07 | D45: ='Inputs|General'!E71 -> 126.69 | E45: 140.6554828 | F45: 143.7951254 | G45: 145.4056302 | H45: 154.3719512 | I45: 158.4960813 | K45: 0.1102335051 | L45: 0.02232150924 | M45: 0.01119999595 | N45: 0.06166419387 | O45: 0.02671554019 | Q45: =IF(D45=0,"",(E45/'Report|Charges Summary'!G$3)/D45-1) -> 0.0844844956 | R45: =IF(E45=0,"",(F45/'Report|Charges Summary'!H$3)/(E45/'Report|Charges Summary'!G$3)-1) -> -0.001388607718 | S45: =IF(F45=0,"",(G45/'Report|Charges Summary'!I$3)/(F45/'Report|Charges Summary'!H$3)-1) -> -0.01225218612 | T45: =IF(G45=0,"",(H45/'Report|Charges Summary'!J$3)/(G45/'Report|Charges Summary'!I$3)-1) -> 0.03704162457 | U45: =IF(H45=0,"",(I45/'Report|Charges Summary'!K$3)/(H45/'Report|Charges Summary'!J$3)-1) -> 0.002903514992 | W45: =SUM('Inputs|General'!Q71:U71)/5 -> 300.1152362 | X45: 0.005744084987 | Z45: 144.5109786 | AA45: 122.5730389 | AB45: 122.3616892 | AC45: 127.2511981 | AD45: 130.4660862 | AF45: -3.855495805 | AG45: 21.22208655 | AH45: 23.04394101 | AI45: 27.12075308 | AJ45: 28.02999508 | AL45: ='Inputs|General'!Q71/('Inputs|General'!Q$60+'Inputs|General'!Q$92) -> 0.001887362208 | AM45: ='Inputs|General'!R71/('Inputs|General'!R$60+'Inputs|General'!R$92) -> 0.001808929892 | AN45: ='Inputs|General'!S71/('Inputs|General'!S$60+'Inputs|General'!S$92) -> 0.001729860642 | AO45: ='Inputs|General'!T71/('Inputs|General'!T$60+'Inputs|General'!T$92) -> 0.001656833152 | AP45: ='Inputs|General'!U71/('Inputs|General'!U$60+'Inputs|General'!U$92) -> 0.00158452659 | AR45: 5.035407793e-05 | AS45: -0.0003131950311 | AT45: -0.000325778492 | AU45: -0.0003531170117 | AV45: -0.000340427722 | AY45: 39295.29922 | AZ45: 38670.95011 | BA45: 38034.20898 | BB45: 37384.85931 | BC45: 36722.67873 | BD45: ='Inputs|General'!Q71 -> 310.1689101 | BE45: ='Inputs|General'!R71 -> 305.240746 | BF45: ='Inputs|General'!S71 -> 300.2147682 | BG45: ='Inputs|General'!T71 -> 295.0892676 | BH45: ='Inputs|General'!U71 -> 289.862489
A46: ='Inputs|General'!A72 -> HP Sodium 400W | B46: ='Inputs|General'!B72 -> HP Sodium 250W | C46: ='Inputs|General'!D72 -> 1.42 | D46: ='Inputs|General'!E72 -> 166.31 | E46: 186.3771359 | F46: 190.6532767 | G46: 193.4325208 | H46: 205.4475516 | I46: 210.8468333 | K46: 0.1206610299 | L46: 0.0229434841 | M46: 0.01457747873 | N46: 0.06211484375 | O46: 0.02628058409 | Q46: =IF(D46=0,"",(E46/'Report|Charges Summary'!G$3)/D46-1) -> 0.0946701808 | R46: =IF(E46=0,"",(F46/'Report|Charges Summary'!H$3)/(E46/'Report|Charges Summary'!G$3)-1) -> -0.0007810579611 | S46: =IF(F46=0,"",(G46/'Report|Charges Summary'!I$3)/(F46/'Report|Charges Summary'!H$3)-1) -> -0.008953035359 | T46: =IF(G46=0,"",(H46/'Report|Charges Summary'!J$3)/(G46/'Report|Charges Summary'!I$3)-1) -> 0.03748182279 | U46: =IF(H46=0,"",(I46/'Report|Charges Summary'!K$3)/(H46/'Report|Charges Summary'!J$3)-1) -> 0.002478646578 | W46: =SUM('Inputs|General'!Q72:U72)/5 -> 337.2723607 | X46: 0.006455257414 | Z46: 189.9059411 | AA46: 160.4946677 | AB46: 160.6052962 | AC46: 164.6693281 | AD46: 168.8327658 | AF46: -3.528805176 | AG46: 30.15860906 | AH46: 32.82722466 | AI46: 40.77822349 | AJ46: 42.01406748 | AL46: ='Inputs|General'!Q72/('Inputs|General'!Q$60+'Inputs|General'!Q$92) -> 0.002121035624 | AM46: ='Inputs|General'!R72/('Inputs|General'!R$60+'Inputs|General'!R$92) -> 0.00203289264 | AN46: ='Inputs|General'!S72/('Inputs|General'!S$60+'Inputs|General'!S$92) -> 0.001944033864 | AO46: ='Inputs|General'!T72/('Inputs|General'!T$60+'Inputs|General'!T$92) -> 0.001861964876 | AP46: ='Inputs|General'!U72/('Inputs|General'!U$60+'Inputs|General'!U$92) -> 0.001780706072 | AR46: 3.941278218e-05 | AS46: -0.0003820015661 | AT46: -0.0003973544954 | AU46: -0.0004610914534 | AV46: -0.0004431290616 | AY46: 57970.80562 | AZ46: 57049.72799 | BA46: 56110.36891 | BB46: 55152.40894 | BC46: 54175.52004 | BD46: ='Inputs|General'!Q72 -> 348.5707752 | BE46: ='Inputs|General'!R72 -> 343.0324574 | BF46: ='Inputs|General'!S72 -> 337.3842157 | BG46: ='Inputs|General'!T72 -> 331.6241293 | BH46: ='Inputs|General'!U72 -> 325.7502257
A47: ='Inputs|General'!A73 -> Metal Halide 70W | B47: ='Inputs|General'!B73 -> Mercury Vapour 80W | C47: ='Inputs|General'!D73 -> 3.804442037 | D47: ='Inputs|General'!E73 -> 190.05 | E47: 251.5500061 | F47: 256.2223699 | G47: 258.602665 | H47: 280.2765779 | I47: 286.129253 | K47: =IF(D47=0,"",E47/D47-1) -> 0.3235990848 | L47: =IF(E47=0,"",F47/E47-1) -> 0.01857429414 | M47: =IF(F47=0,"",G47/F47-1) -> 0.009289958423 | N47: =IF(G47=0,"",H47/G47-1) -> 0.08381163779 | O47: =IF(H47=0,"",I47/H47-1) -> 0.02088178439 | Q47: =IF(D47=0,"",(E47/'Report|Charges Summary'!G$3)/D47-1) -> 0.2929016097 | R47: =IF(E47=0,"",(F47/'Report|Charges Summary'!H$3)/(E47/'Report|Charges Summary'!G$3)-1) -> -0.005048915798 | S47: =IF(F47=0,"",(G47/'Report|Charges Summary'!I$3)/(F47/'Report|Charges Summary'!H$3)-1) -> -0.01411792524 | T47: =IF(G47=0,"",(H47/'Report|Charges Summary'!J$3)/(G47/'Report|Charges Summary'!I$3)-1) -> 0.05867541552 | U47: =IF(H47=0,"",(I47/'Report|Charges Summary'!K$3)/(H47/'Report|Charges Summary'!J$3)-1) -> -0.002794941851 | W47: =SUM('Inputs|General'!Q73:U73)/5 -> 0 | X47: 0 | Z47: 274.4941379 | AA47: 195.7721534 | AB47: 201.0643276 | AC47: 206.5345515 | AD47: 211.7375256 | AF47: -22.94413182 | AG47: 60.45021646 | AH47: 57.5383374 | AI47: 73.74202646 | AJ47: 74.39172738 | AL47: ='Inputs|General'!Q73/('Inputs|General'!Q$60+'Inputs|General'!Q$92) -> 0 | AM47: ='Inputs|General'!R73/('Inputs|General'!R$60+'Inputs|General'!R$92) -> 0 | AN47: ='Inputs|General'!S73/('Inputs|General'!S$60+'Inputs|General'!S$92) -> 0 | AO47: ='Inputs|General'!T73/('Inputs|General'!T$60+'Inputs|General'!T$92) -> 0 | AP47: ='Inputs|General'!U73/('Inputs|General'!U$60+'Inputs|General'!U$92) -> 0 | AR47: 0 | AS47: 0 | AT47: 0 | AU47: 0 | AV47: 0 | AY47: 0 | AZ47: 0 | BA47: 0 | BB47: 0 | BC47: 0 | BD47: ='Inputs|General'!Q73 -> 0 | BE47: ='Inputs|General'!R73 -> 0 | BF47: ='Inputs|General'!S73 -> 0 | BG47: ='Inputs|General'!T73 -> 0 | BH47: ='Inputs|General'!U73 -> 0
A48: ='Inputs|General'!A74 -> Metal Halide 100W | B48: ='Inputs|General'!B74 -> HP Sodium 150W | C48: ='Inputs|General'!D74 -> 2.11804911 | D48: ='Inputs|General'!E74 -> 250.78 | E48: 278.4254393 | F48: 284.6403153 | G48: 287.8282857 | H48: 305.5769849 | I48: 313.7406391 | K48: 0.1102378152 | L48: 0.02232150924 | M48: 0.01119999595 | N48: 0.06166419387 | O48: 0.02671554019 | Q48: =IF(D48=0,"",(E48/'Report|Charges Summary'!G$3)/D48-1) -> 0.08448870574 | R48: =IF(E48=0,"",(F48/'Report|Charges Summary'!H$3)/(E48/'Report|Charges Summary'!G$3)-1) -> -0.001388607718 | S48: =IF(F48=0,"",(G48/'Report|Charges Summary'!I$3)/(F48/'Report|Charges Summary'!H$3)-1) -> -0.01225218612 | T48: =IF(G48=0,"",(H48/'Report|Charges Summary'!J$3)/(G48/'Report|Charges Summary'!I$3)-1) -> 0.03704162457 | U48: =IF(H48=0,"",(I48/'Report|Charges Summary'!K$3)/(H48/'Report|Charges Summary'!J$3)-1) -> 0.002903514992 | W48: =SUM('Inputs|General'!Q74:U74)/5 -> 0 | X48: 0 | Z48: 286.057336 | AA48: 242.6315101 | AB48: 242.2131467 | AC48: 251.8918569 | AD48: 258.2556801 | AF48: -7.63189669 | AG48: 42.00880516 | AH48: 45.61513901 | AI48: 53.68512797 | AJ48: 55.484959 | AL48: ='Inputs|General'!Q74/('Inputs|General'!Q$60+'Inputs|General'!Q$92) -> 0 | AM48: ='Inputs|General'!R74/('Inputs|General'!R$60+'Inputs|General'!R$92) -> 0 | AN48: ='Inputs|General'!S74/('Inputs|General'!S$60+'Inputs|General'!S$92) -> 0 | AO48: ='Inputs|General'!T74/('Inputs|General'!T$60+'Inputs|General'!T$92) -> 0 | AP48: ='Inputs|General'!U74/('Inputs|General'!U$60+'Inputs|General'!U$92) -> 0 | AR48: 0 | AS48: 0 | AT48: 0 | AU48: 0 | AV48: 0 | AY48: 0 | AZ48: 0 | BA48: 0 | BB48: 0 | BC48: 0 | BD48: ='Inputs|General'!Q74 -> 0 | BE48: ='Inputs|General'!R74 -> 0 | BF48: ='Inputs|General'!S74 -> 0 | BG48: ='Inputs|General'!T74 -> 0 | BH48: ='Inputs|General'!U74 -> 0 | CX48: =A38 -> Mercury Vapour 80W | CY48: =E38/'Report|Charges Summary'!B$3 -> 64.58659339 | CZ48: =F38/'Report|Charges Summary'!C$3 -> 64.26050112 | DA48: =G38/'Report|Charges Summary'!D$3 -> 63.35327617 | DB48: =H38/'Report|Charges Summary'!E$3 -> 67.07055597 | DC48: =I38/'Report|Charges Summary'!F$3 -> 66.88309767
A49: ='Inputs|General'!A75 -> Metal Halide 150W | B49: ='Inputs|General'!B75 -> HP Sodium 150W | C49: ='Inputs|General'!D75 -> 2.406294827 | D49: ='Inputs|General'!E75 -> 284.91 | E49: 316.3164118 | F49: 323.3770715 | G49: 326.9988934 | H49: 347.1630166 | I49: 356.4376641 | K49: 0.1102327465 | L49: 0.02232150924 | M49: 0.01119999595 | N49: 0.06166419387 | O49: 0.02671554019 | Q49: =IF(D49=0,"",(E49/'Report|Charges Summary'!G$3)/D49-1) -> 0.08448375455 | R49: =IF(E49=0,"",(F49/'Report|Charges Summary'!H$3)/(E49/'Report|Charges Summary'!G$3)-1) -> -0.001388607718 | S49: =IF(F49=0,"",(G49/'Report|Charges Summary'!I$3)/(F49/'Report|Charges Summary'!H$3)-1) -> -0.01225218612 | T49: =IF(G49=0,"",(H49/'Report|Charges Summary'!J$3)/(G49/'Report|Charges Summary'!I$3)-1) -> 0.03704162457 | U49: =IF(H49=0,"",(I49/'Report|Charges Summary'!K$3)/(H49/'Report|Charges Summary'!J$3)-1) -> 0.002903514992 | W49: =SUM('Inputs|General'!Q75:U75)/5 -> 0 | X49: 0 | Z49: 324.9869348 | AA49: 275.6512798 | AB49: 275.1759812 | AC49: 286.171869 | AD49: 293.4017461 | AF49: -8.670523003 | AG49: 47.72579168 | AH49: 51.82291221 | AI49: 60.99114754 | AJ49: 63.03591793 | AL49: ='Inputs|General'!Q75/('Inputs|General'!Q$60+'Inputs|General'!Q$92) -> 0 | AM49: ='Inputs|General'!R75/('Inputs|General'!R$60+'Inputs|General'!R$92) -> 0 | AN49: ='Inputs|General'!S75/('Inputs|General'!S$60+'Inputs|General'!S$92) -> 0 | AO49: ='Inputs|General'!T75/('Inputs|General'!T$60+'Inputs|General'!T$92) -> 0 | AP49: ='Inputs|General'!U75/('Inputs|General'!U$60+'Inputs|General'!U$92) -> 0 | AR49: 0 | AS49: 0 | AT49: 0 | AU49: 0 | AV49: 0 | AY49: 0 | AZ49: 0 | BA49: 0 | BB49: 0 | BC49: 0 | BD49: ='Inputs|General'!Q75 -> 0 | BE49: ='Inputs|General'!R75 -> 0 | BF49: ='Inputs|General'!S75 -> 0 | BG49: ='Inputs|General'!T75 -> 0 | BH49: ='Inputs|General'!U75 -> 0 | CX49: =A39 -> HP Sodium 150W | CY49: =E39/'Report|Charges Summary'!B$3 -> 128.4049914 | CZ49: =F39/'Report|Charges Summary'!C$3 -> 128.2266872 | DA49: =G39/'Report|Charges Summary'!D$3 -> 126.65563 | DB49: =H39/'Report|Charges Summary'!E$3 -> 131.3471602 | DC49: =I39/'Report|Charges Summary'!F$3 -> 131.7285287
A50: ='Inputs|General'!A76 -> HP Sodium 50W | B50: ='Inputs|General'!B76 -> HP Sodium 150W | C50: ='Inputs|General'!D76 -> 0.4547295587 | D50: ='Inputs|General'!E76 -> 53.84 | E50: 59.77589309 | F50: 61.11018124 | G50: 61.79461502 | H50: 65.60513014 | I50: 67.35780663 | K50: 0.1102506145 | L50: 0.02232150924 | M50: 0.01119999595 | N50: 0.06166419387 | O50: 0.02671554019 | Q50: =IF(D50=0,"",(E50/'Report|Charges Summary'!G$3)/D50-1) -> 0.08450120823 | R50: =IF(E50=0,"",(F50/'Report|Charges Summary'!H$3)/(E50/'Report|Charges Summary'!G$3)-1) -> -0.001388607718 | S50: =IF(F50=0,"",(G50/'Report|Charges Summary'!I$3)/(F50/'Report|Charges Summary'!H$3)-1) -> -0.01225218612 | T50: =IF(G50=0,"",(H50/'Report|Charges Summary'!J$3)/(G50/'Report|Charges Summary'!I$3)-1) -> 0.03704162457 | U50: =IF(H50=0,"",(I50/'Report|Charges Summary'!K$3)/(H50/'Report|Charges Summary'!J$3)-1) -> 0.002903514992 | W50: =SUM('Inputs|General'!Q76:U76)/5 -> 0 | X50: 0 | Z50: 61.41440515 | AA50: 52.09119988 | AB50: 52.00138032 | AC50: 54.07932819 | AD50: 55.44559421 | AF50: -1.638512062 | AG50: 9.018981357 | AH50: 9.793234698 | AI50: 11.52580195 | AJ50: 11.91221242 | AL50: ='Inputs|General'!Q76/('Inputs|General'!Q$60+'Inputs|General'!Q$92) -> 0 | AM50: ='Inputs|General'!R76/('Inputs|General'!R$60+'Inputs|General'!R$92) -> 0 | AN50: ='Inputs|General'!S76/('Inputs|General'!S$60+'Inputs|General'!S$92) -> 0 | AO50: ='Inputs|General'!T76/('Inputs|General'!T$60+'Inputs|General'!T$92) -> 0 | AP50: ='Inputs|General'!U76/('Inputs|General'!U$60+'Inputs|General'!U$92) -> 0 | AR50: 0 | AS50: 0 | AT50: 0 | AU50: 0 | AV50: 0 | AY50: 0 | AZ50: 0 | BA50: 0 | BB50: 0 | BC50: 0 | BD50: ='Inputs|General'!Q76 -> 0 | BE50: ='Inputs|General'!R76 -> 0 | BF50: ='Inputs|General'!S76 -> 0 | BG50: ='Inputs|General'!T76 -> 0 | BH50: ='Inputs|General'!U76 -> 0 | CX50: HP Sodium 250W | CY50: =E40/'Report|Charges Summary'!B$3 -> 128.2074632 | CZ50: =F40/'Report|Charges Summary'!C$3 -> 128.1073258 | DA50: =G40/'Report|Charges Summary'!D$3 -> 126.9603763 | DB50: =H40/'Report|Charges Summary'!E$3 -> 131.7190827 | DC50: =I40/'Report|Charges Summary'!F$3 -> 132.0455677
A51: ='Inputs|General'!A$78 -> Energy Efficient Lights | B51: Reference light | C51: Price factor | CX51: Mercury Vapour 50W | CY51: =E41/'Report|Charges Summary'!B$3 -> 95.58815822 | CZ51: =F41/'Report|Charges Summary'!C$3 -> 95.10554166 | DA51: =G41/'Report|Charges Summary'!D$3 -> 93.76284873 | DB51: =H41/'Report|Charges Summary'!E$3 -> 99.26442284 | DC51: =I41/'Report|Charges Summary'!F$3 -> 98.98698455
A52: ='Inputs|General'!A79 -> T5 2X14W | B52: ='Inputs|General'!B79 -> T5 2X14W | C52: ='Inputs|General'!D79 -> 1 | D52: ='Inputs|General'!E79 -> 40.6 | E52: ='Report|Charges Summary'!G$80 -> 57.369524 | F52: ='Report|Charges Summary'!H$80 -> 60.58978336 | G52: ='Report|Charges Summary'!I$80 -> 63.51586455 | H52: ='Report|Charges Summary'!J$80 -> 66.31553011 | I52: ='Report|Charges Summary'!K$80 -> 68.76055032 | K52: =IF(D52=0,"",E52/D52-1) -> 0.413042463 | L52: 0.05613188222 | M52: 0.04829330995 | N52: 0.04407820911 | O52: 0.03686949652 | Q52: =IF(D52=0,"",(E52/'Report|Charges Summary'!G$3)/D52-1) -> 0.3802705789 | R52: =IF(E52=0,"",(F52/'Report|Charges Summary'!H$3)/(E52/'Report|Charges Summary'!G$3)-1) -> 0.03163762066 | S52: =IF(F52=0,"",(G52/'Report|Charges Summary'!I$3)/(F52/'Report|Charges Summary'!H$3)-1) -> 0.0239808439 | T52: =IF(G52=0,"",(H52/'Report|Charges Summary'!J$3)/(G52/'Report|Charges Summary'!I$3)-1) -> 0.01986350149 | U52: =IF(H52=0,"",(I52/'Report|Charges Summary'!K$3)/(H52/'Report|Charges Summary'!J$3)-1) -> 0.01282197643 | W52: =SUM('Inputs|General'!Q79:U79)/5 -> 7099 | X52: =W52/W$64 -> 0.1358720065 | Z52: 68.48619415 | AA52: 73.04744426 | AB52: 72.62141403 | AC52: 75.10019765 | AD52: 77.22915469 | AF52: =E52-Z52 -> -11.11667015 | AG52: =F52-AA52 -> -12.4576609 | AH52: =G52-AB52 -> -9.105549475 | AI52: =H52-AC52 -> -8.784667541 | AJ52: =I52-AD52 -> -8.468604374 | AL52: ='Inputs|General'!Q79/('Inputs|General'!Q$60+'Inputs|General'!Q$92) -> 0.04319705773 | AM52: ='Inputs|General'!R79/('Inputs|General'!R$60+'Inputs|General'!R$92) -> 0.04207037714 | AN52: ='Inputs|General'!S79/('Inputs|General'!S$60+'Inputs|General'!S$92) -> 0.04090498536 | AO52: ='Inputs|General'!T79/('Inputs|General'!T$60+'Inputs|General'!T$92) -> 0.03985864563 | AP52: ='Inputs|General'!U79/('Inputs|General'!U$60+'Inputs|General'!U$92) -> 0.03880651925 | AR52: =AL52*(1-(Z52+AF52)/Z52) -> 0.007011740806 | AS52: =AM52*(1-(AA52+AG52)/AA52) -> 0.007174768365 | AT52: =AN52*(1-(AB52+AH52)/AB52) -> 0.005128822854 | AU52: =AO52*(1-(AC52+AI52)/AC52) -> 0.004662370559 | AV52: =AP52*(1-(AD52+AJ52)/AD52) -> 0.004255349679 | AY52: =BD52*$D52 -> 288219.4 | AZ52: =BE52*$D52 -> 288219.4 | BA52: 288219.4 | BB52: 288219.4 | BC52: 288219.4 | BD52: ='Inputs|General'!Q79 -> 7099 | BE52: ='Inputs|General'!R79 -> 7099 | BF52: ='Inputs|General'!S79 -> 7099 | BG52: ='Inputs|General'!T79 -> 7099 | BH52: ='Inputs|General'!U79 -> 7099 | CX52: Mercury Vapour 125W | CY52: =E42/'Report|Charges Summary'!B$3 -> 95.58815822 | CZ52: =F42/'Report|Charges Summary'!C$3 -> 95.10554166 | DA52: =G42/'Report|Charges Summary'!D$3 -> 93.76284873 | DB52: =H42/'Report|Charges Summary'!E$3 -> 99.26442284 | DC52: =I42/'Report|Charges Summary'!F$3 -> 98.98698455
A53: ='Inputs|General'!A80 -> T5 2X24W | B53: ='Inputs|General'!B80 -> T5 2X24W | C53: ='Inputs|General'!D80 -> 1 | D53: ='Inputs|General'!E80 -> 47.91 | E53: ='Report|Charges Summary'!G$96 -> 61.43319493 | F53: ='Report|Charges Summary'!H$96 -> 64.80437306 | G53: ='Report|Charges Summary'!I$96 -> 67.88011562 | H53: ='Report|Charges Summary'!J$96 -> 70.83544833 | I53: ='Report|Charges Summary'!K$96 -> 73.43741432 | K53: 0.2822624699 | L53: 0.05487551361 | M53: 0.04746196006 | N53: 0.04353753201 | O53: 0.03673254076 | Q53: =IF(D53=0,"",(E53/'Report|Charges Summary'!G$3)/D53-1) -> 0.2525236912 | R53: =IF(E53=0,"",(F53/'Report|Charges Summary'!H$3)/(E53/'Report|Charges Summary'!G$3)-1) -> 0.03041039029 | S53: =IF(F53=0,"",(G53/'Report|Charges Summary'!I$3)/(F53/'Report|Charges Summary'!H$3)-1) -> 0.02316877503 | T53: =IF(G53=0,"",(H53/'Report|Charges Summary'!J$3)/(G53/'Report|Charges Summary'!I$3)-1) -> 0.01933536399 | U53: =IF(H53=0,"",(I53/'Report|Charges Summary'!K$3)/(H53/'Report|Charges Summary'!J$3)-1) -> 0.01268819701 | W53: =SUM('Inputs|General'!Q80:U80)/5 -> 1020 | X53: 0.01952239 | Z53: 72.04910122 | AA53: 75.90122591 | AB53: 76.29919665 | AC53: 78.77245033 | AD53: 80.07642103 | AF53: -10.61590628 | AG53: -11.09685285 | AH53: -8.419081031 | AI53: -7.937001996 | AJ53: -6.639006703 | AL53: ='Inputs|General'!Q80/('Inputs|General'!Q$60+'Inputs|General'!Q$92) -> 0.006206648666 | AM53: ='Inputs|General'!R80/('Inputs|General'!R$60+'Inputs|General'!R$92) -> 0.00604476471 | AN53: ='Inputs|General'!S80/('Inputs|General'!S$60+'Inputs|General'!S$92) -> 0.005877318645 | AO53: ='Inputs|General'!T80/('Inputs|General'!T$60+'Inputs|General'!T$92) -> 0.005726978242 | AP53: ='Inputs|General'!U80/('Inputs|General'!U$60+'Inputs|General'!U$92) -> 0.0055758064 | AR53: 0.0009145041293 | AS53: 0.000883752057 | AT53: 0.0006485208769 | AU53: 0.0005770423232 | AV53: 0.0004622811009 | AY53: =BD53*$D53 -> 48868.2 | AZ53: 48868.2 | BA53: 48868.2 | BB53: 48868.2 | BC53: 48868.2 | BD53: ='Inputs|General'!Q80 -> 1020 | BE53: ='Inputs|General'!R80 -> 1020 | BF53: ='Inputs|General'!S80 -> 1020 | BG53: ='Inputs|General'!T80 -> 1020 | BH53: ='Inputs|General'!U80 -> 1020 | CX53: Mercury Vapour 250W | CY53: =E43/'Report|Charges Summary'!B$3 -> 133.3357617 | CZ53: =F43/'Report|Charges Summary'!C$3 -> 133.2316188 | DA53: =G43/'Report|Charges Summary'!D$3 -> 132.0387914 | DB53: =H43/'Report|Charges Summary'!E$3 -> 136.987846 | DC53: =I43/'Report|Charges Summary'!F$3 -> 137.3273904
A54: ='Inputs|General'!A81 -> LED 18W | B54: ='Inputs|General'!B81 -> LED 18W | C54: ='Inputs|General'!D81 -> 1 | D54: ='Inputs|General'!E81 -> 16.74 | E54: ='Report|Charges Summary'!G$112 -> 31.36775433 | F54: ='Report|Charges Summary'!H$112 -> 33.56372546 | G54: ='Report|Charges Summary'!I$112 -> 35.48613352 | H54: ='Report|Charges Summary'!J$112 -> 37.25443891 | I54: ='Report|Charges Summary'!K$112 -> 38.6778109 | K54: =IF(D54=0,"",E54/D54-1) -> 0.8738204499 | L54: =IF(E54=0,"",F54/E54-1) -> 0.07000727905 | M54: =IF(F54=0,"",G54/F54-1) -> 0.05727636103 | N54: =IF(G54=0,"",H54/G54-1) -> 0.0498308837 | O54: =IF(H54=0,"",I54/H54-1) -> 0.03820677552 | Q54: =IF(D54=0,"",(E54/'Report|Charges Summary'!G$3)/D54-1) -> 0.8303620059 | R54: =IF(E54=0,"",(F54/'Report|Charges Summary'!H$3)/(E54/'Report|Charges Summary'!G$3)-1) -> 0.04519121336 | S54: =IF(F54=0,"",(G54/'Report|Charges Summary'!I$3)/(F54/'Report|Charges Summary'!H$3)-1) -> 0.03275555622 | T54: =IF(G54=0,"",(H54/'Report|Charges Summary'!J$3)/(G54/'Report|Charges Summary'!I$3)-1) -> 0.02548275758 | U54: =IF(H54=0,"",(I54/'Report|Charges Summary'!K$3)/(H54/'Report|Charges Summary'!J$3)-1) -> 0.01412824068 | W54: =SUM('Inputs|General'!Q81:U81)/5 -> 24729.06363 | X54: 0.4733043378 | Z54: 37.19877302 | AA54: 41.0921632 | AB54: 43.48272993 | AC54: 45.95010924 | AD54: 47.45586216 | AF54: -5.83101869 | AG54: -7.528437734 | AH54: -7.996596407 | AI54: -8.69567033 | AJ54: -8.778051266 | AL54: ='Inputs|General'!Q81/('Inputs|General'!Q$60+'Inputs|General'!Q$92) -> 0.1274952685 | AM54: ='Inputs|General'!R81/('Inputs|General'!R$60+'Inputs|General'!R$92) -> 0.1359664245 | AN54: ='Inputs|General'!S81/('Inputs|General'!S$60+'Inputs|General'!S$92) -> 0.1437714442 | AO54: ='Inputs|General'!T81/('Inputs|General'!T$60+'Inputs|General'!T$92) -> 0.1514705224 | AP54: ='Inputs|General'!U81/('Inputs|General'!U$60+'Inputs|General'!U$92) -> 0.1520814971 | AR54: 0.01998526385 | AS54: 0.02491021843 | AT54: 0.0264399732 | AU54: 0.02866451787 | AV54: 0.02813096459 | AY54: 350745.8418 | AZ54: 384067.8036 | BA54: 417685.139 | BB54: 451604.453 | BC54: 465719.3883 | BD54: ='Inputs|General'!Q81 -> 20952.55925 | BE54: ='Inputs|General'!R81 -> 22943.1185 | BF54: ='Inputs|General'!S81 -> 24951.32252 | BG54: ='Inputs|General'!T81 -> 26977.56589 | BH54: ='Inputs|General'!U81 -> 27820.75199 | CX54: Mercury Vapour 400W | CY54: =E44/'Report|Charges Summary'!B$3 -> 137.1819856 | CZ54: =F44/'Report|Charges Summary'!C$3 -> 137.0748386 | DA54: =G44/'Report|Charges Summary'!D$3 -> 135.8476027 | DB54: =H44/'Report|Charges Summary'!E$3 -> 140.9394185 | DC54: =I44/'Report|Charges Summary'!F$3 -> 141.2887575
A55: ='Inputs|General'!A82 -> LED non-standard low power ~14W | B55: ='Inputs|General'!B82 -> LED non-standard low power ~14W | C55: ='Inputs|General'!D82 -> 1 | D55: ='Inputs|General'!E82 -> 16.74 | E55: ='Report|Charges Summary'!G$128 -> 33.12295891 | F55: ='Report|Charges Summary'!H$128 -> 35.36509009 | G55: ='Report|Charges Summary'!I$128 -> 37.33632708 | H55: ='Report|Charges Summary'!J$128 -> 39.15808555 | I55: ='Report|Charges Summary'!K$128 -> 40.63961574 | K55: =IF(D55=0,"",E55/D55-1) -> 0.9786713805 | L55: =IF(E55=0,"",F55/E55-1) -> 0.06769114994 | M55: =IF(F55=0,"",G55/F55-1) -> 0.05573962877 | N55: =IF(G55=0,"",H55/G55-1) -> 0.04879318913 | O55: =IF(H55=0,"",I55/H55-1) -> 0.03783459189 | Q55: =IF(D55=0,"",(E55/'Report|Charges Summary'!G$3)/D55-1) -> 0.932781189 | R55: =IF(E55=0,"",(F55/'Report|Charges Summary'!H$3)/(E55/'Report|Charges Summary'!G$3)-1) -> 0.0429288009 | S55: =IF(F55=0,"",(G55/'Report|Charges Summary'!I$3)/(F55/'Report|Charges Summary'!H$3)-1) -> 0.03125446452 | T55: =IF(G55=0,"",(H55/'Report|Charges Summary'!J$3)/(G55/'Report|Charges Summary'!I$3)-1) -> 0.02446912967 | U55: =IF(H55=0,"",(I55/'Report|Charges Summary'!K$3)/(H55/'Report|Charges Summary'!J$3)-1) -> 0.0137646889 | W55: =SUM('Inputs|General'!Q82:U82)/5 -> 937 | X55: 0.01793380337 | Z55: 39.06117638 | AA55: 43.00019544 | AB55: 45.37070915 | AC55: 47.88434395 | AD55: 49.43748562 | AF55: -5.938217471 | AG55: -7.635105351 | AH55: -8.034382066 | AI55: -8.726258403 | AJ55: -8.797869888 | AL55: ='Inputs|General'!Q82/('Inputs|General'!Q$60+'Inputs|General'!Q$92) -> 0.005701597844 | AM55: ='Inputs|General'!R82/('Inputs|General'!R$60+'Inputs|General'!R$92) -> 0.005552886798 | AN55: ='Inputs|General'!S82/('Inputs|General'!S$60+'Inputs|General'!S$92) -> 0.005399066246 | AO55: ='Inputs|General'!T82/('Inputs|General'!T$60+'Inputs|General'!T$92) -> 0.005260959425 | AP55: ='Inputs|General'!U82/('Inputs|General'!U$60+'Inputs|General'!U$92) -> 0.005122088821 | AR55: 0.0008667769654 | AS55: 0.0009859693722 | AT55: 0.0009560829406 | AU55: 0.0009587369816 | AV55: 0.0009115243308 | AY55: 15685.38 | AZ55: 15685.38 | BA55: 15685.38 | BB55: 15685.38 | BC55: 15685.38 | BD55: ='Inputs|General'!Q82 -> 937 | BE55: ='Inputs|General'!R82 -> 937 | BF55: ='Inputs|General'!S82 -> 937 | BG55: ='Inputs|General'!T82 -> 937 | BH55: ='Inputs|General'!U82 -> 937 | CX55: HP Sodium 100W | CY55: =E45/'Report|Charges Summary'!B$3 -> 137.3933407 | CZ55: =F45/'Report|Charges Summary'!C$3 -> 137.2025553 | DA55: =G45/'Report|Charges Summary'!D$3 -> 135.5215241 | DB55: =H45/'Report|Charges Summary'!E$3 -> 140.5414615 | DC55: =I45/'Report|Charges Summary'!F$3 -> 140.9495257
A56: ='Inputs|General'!A83 -> LED 70W-125W (L1) | B56: ='Inputs|General'!B83 -> LED 70W-125W (L1) | C56: ='Inputs|General'!D83 -> 1 | D56: ='Inputs|General'!E83 -> 24.09 | E56: ='Report|Charges Summary'!G$144 -> 56.18854895 | F56: ='Report|Charges Summary'!H$144 -> 60.21939712 | G56: ='Report|Charges Summary'!I$144 -> 63.78837862 | H56: ='Report|Charges Summary'!J$144 -> 67.09807677 | I56: ='Report|Charges Summary'!K$144 -> 69.82085678 | K56: 1.332442879 | L56: 0.07173789408 | M56: 0.0592663106 | N56: 0.05188559774 | O56: 0.04057910661 | Q56: =IF(D56=0,"",(E56/'Report|Charges Summary'!G$3)/D56-1) -> 1.278347868 | R56: =IF(E56=0,"",(F56/'Report|Charges Summary'!H$3)/(E56/'Report|Charges Summary'!G$3)-1) -> 0.04688169123 | S56: =IF(F56=0,"",(G56/'Report|Charges Summary'!I$3)/(F56/'Report|Charges Summary'!H$3)-1) -> 0.03469935404 | T56: =IF(G56=0,"",(H56/'Report|Charges Summary'!J$3)/(G56/'Report|Charges Summary'!I$3)-1) -> 0.02748981782 | U56: =IF(H56=0,"",(I56/'Report|Charges Summary'!K$3)/(H56/'Report|Charges Summary'!J$3)-1) -> 0.01644555166 | W56: =SUM('Inputs|General'!Q83:U83)/5 -> 700.004665 | X56: 0.01339780792 | Z56: 51.21450903 | AA56: 58.35161254 | AB56: 63.01483558 | AC56: 67.34016759 | AD56: 69.67415166 | AF56: 4.974039915 | AG56: 1.867784578 | AH56: 0.7735430393 | AI56: -0.2420908234 | AJ56: 0.1467051255 | AL56: ='Inputs|General'!Q83/('Inputs|General'!Q$60+'Inputs|General'!Q$92) -> 0.004080789535 | AM56: ='Inputs|General'!R83/('Inputs|General'!R$60+'Inputs|General'!R$92) -> 0.004020032627 | AN56: ='Inputs|General'!S83/('Inputs|General'!S$60+'Inputs|General'!S$92) -> 0.00415113848 | AO56: ='Inputs|General'!T83/('Inputs|General'!T$60+'Inputs|General'!T$92) -> 0.004091298113 | AP56: ='Inputs|General'!U83/('Inputs|General'!U$60+'Inputs|General'!U$92) -> 0.003837139203 | AR56: -0.0003963331957 | AS56: -0.0001286777626 | AT56: -5.095759193e-05 | AU56: 1.470839418e-05 | AV56: -8.079437996e-06 | AY56: 16155.63401 | AZ56: 16341.32054 | BA56: 17355.01351 | BB56: 17553.85733 | BC56: 16909.73651 | BD56: ='Inputs|General'!Q83 -> 670.6365302 | BE56: ='Inputs|General'!R83 -> 678.3445635 | BF56: ='Inputs|General'!S83 -> 720.4239732 | BG56: ='Inputs|General'!T83 -> 728.6781788 | BH56: ='Inputs|General'!U83 -> 701.9400794 | CX56: HP Sodium 400W | CY56: =E46/'Report|Charges Summary'!B$3 -> 182.0545978 | CZ56: =F46/'Report|Charges Summary'!C$3 -> 181.9124026 | DA56: =G46/'Report|Charges Summary'!D$3 -> 180.2837344 | DB56: =H46/'Report|Charges Summary'!E$3 -> 187.0410974 | DC56: =I46/'Report|Charges Summary'!F$3 -> 187.5047062
A57: ='Inputs|General'!A84 -> LED 155W-250W (L2) | B57: ='Inputs|General'!B84 -> LED 155W-250W (L2) | C57: ='Inputs|General'!D84 -> 1 | D57: ='Inputs|General'!E84 -> 24.89 | E57: ='Report|Charges Summary'!G$160 -> 56.82781783 | F57: ='Report|Charges Summary'!H$160 -> 61.02122045 | G57: ='Report|Charges Summary'!I$160 -> 64.72344311 | H57: ='Report|Charges Summary'!J$160 -> 68.14298126 | I57: ='Report|Charges Summary'!K$160 -> 70.93466914 | K57: 1.283158611 | L57: 0.07379137168 | M57: 0.06067106862 | N57: 0.0528330693 | O57: 0.04096809125 | Q57: =IF(D57=0,"",(E57/'Report|Charges Summary'!G$3)/D57-1) -> 1.230206622 | R57: =IF(E57=0,"",(F57/'Report|Charges Summary'!H$3)/(E57/'Report|Charges Summary'!G$3)-1) -> 0.0488875437 | S57: =IF(F57=0,"",(G57/'Report|Charges Summary'!I$3)/(F57/'Report|Charges Summary'!H$3)-1) -> 0.0360715323 | T57: =IF(G57=0,"",(H57/'Report|Charges Summary'!J$3)/(G57/'Report|Charges Summary'!I$3)-1) -> 0.02841531522 | U57: =IF(H57=0,"",(I57/'Report|Charges Summary'!K$3)/(H57/'Report|Charges Summary'!J$3)-1) -> 0.01682551481 | W57: =SUM('Inputs|General'!Q84:U84)/5 -> 1556.269698 | X57: 0.02978637647 | Z57: 53.27200523 | AA57: 61.23978027 | AB57: 66.53490599 | AC57: 71.31757818 | AD57: 73.81971014 | AF57: 3.555812593 | AG57: -0.2185598129 | AH57: -1.81146288 | AI57: -3.174596922 | AJ57: -2.885040999 | AL57: ='Inputs|General'!Q84/('Inputs|General'!Q$60+'Inputs|General'!Q$92) -> 0.006166491613 | AM57: ='Inputs|General'!R84/('Inputs|General'!R$60+'Inputs|General'!R$92) -> 0.008185502762 | AN57: ='Inputs|General'!S84/('Inputs|General'!S$60+'Inputs|General'!S$92) -> 0.009732696453 | AO57: ='Inputs|General'!T84/('Inputs|General'!T$60+'Inputs|General'!T$92) -> 0.01035295986 | AP57: ='Inputs|General'!U84/('Inputs|General'!U$60+'Inputs|General'!U$92) -> 0.01013328843 | AR57: -0.0004116024624 | AS57: 2.9213396e-05 | AT57: 0.0002649799843 | AU57: 0.0004608467554 | AV57: 0.0003960317987 | AY57: 25223.54078 | AZ57: 34378.82481 | BA57: 42041.57813 | BB57: 45894.86171 | BC57: 46138.9585 | BD57: ='Inputs|General'!Q84 -> 1013.400594 | BE57: ='Inputs|General'!R84 -> 1381.230406 | BF57: ='Inputs|General'!S84 -> 1689.095144 | BG57: ='Inputs|General'!T84 -> 1843.907662 | BH57: ='Inputs|General'!U84 -> 1853.714684 | CX57: Metal Halide 70W | CY57: =E47/'Report|Charges Summary'!B$3 -> 245.7159509 | CZ57: =F47/'Report|Charges Summary'!C$3 -> 244.4753518 | DA57: =G47/'Report|Charges Summary'!D$3 -> 241.023867 | DB57: =H47/'Report|Charges Summary'!E$3 -> 255.1660426 | DC57: =I47/'Report|Charges Summary'!F$3 -> 254.4528683
A58: ='Inputs|General'!A85 -> LED 275W-400W (L4) | B58: ='Inputs|General'!B85 -> LED 275W-400W (L4) | C58: ='Inputs|General'!D85 -> 1 | D58: ='Inputs|General'!E85 -> 26.37 | E58: ='Report|Charges Summary'!G$176 -> 62.55259847 | F58: ='Report|Charges Summary'!H$176 -> 68.20170874 | G58: ='Report|Charges Summary'!I$176 -> 73.09713262 | H58: ='Report|Charges Summary'!J$176 -> 77.50030997 | I58: ='Report|Charges Summary'!K$176 -> 80.90908154 | K58: 1.372112191 | L58: 0.09030976187 | M58: 0.07177861041 | N58: 0.06023734698 | O58: 0.04398397345 | Q58: =IF(D58=0,"",(E58/'Report|Charges Summary'!G$3)/D58-1) -> 1.317097152 | R58: =IF(E58=0,"",(F58/'Report|Charges Summary'!H$3)/(E58/'Report|Charges Summary'!G$3)-1) -> 0.06502283233 | S58: =IF(F58=0,"",(G58/'Report|Charges Summary'!I$3)/(F58/'Report|Charges Summary'!H$3)-1) -> 0.04692146325 | T58: =IF(G58=0,"",(H58/'Report|Charges Summary'!J$3)/(G58/'Report|Charges Summary'!I$3)-1) -> 0.03564786973 | U58: =IF(H58=0,"",(I58/'Report|Charges Summary'!K$3)/(H58/'Report|Charges Summary'!J$3)-1) -> 0.01977145138 | W58: =SUM('Inputs|General'!Q85:U85)/5 -> 123.9679394 | X58: 0.002372696531 | Z58: 68.28231285 | AA58: 77.39810328 | AB58: 82.68523933 | AC58: 88.23469315 | AD58: 91.24425475 | AF58: -5.729714375 | AG58: -9.196394538 | AH58: -9.588106706 | AI58: -10.73438319 | AJ58: -10.33517321 | AL58: ='Inputs|General'!Q85/('Inputs|General'!Q$60+'Inputs|General'!Q$92) -> 0.0006559789619 | AM58: ='Inputs|General'!R85/('Inputs|General'!R$60+'Inputs|General'!R$92) -> 0.0007015533175 | AN58: ='Inputs|General'!S85/('Inputs|General'!S$60+'Inputs|General'!S$92) -> 0.0007604040323 | AO58: ='Inputs|General'!T85/('Inputs|General'!T$60+'Inputs|General'!T$92) -> 0.0007729940059 | AP58: ='Inputs|General'!U85/('Inputs|General'!U$60+'Inputs|General'!U$92) -> 0.0006779234964 | AR58: 5.504459253e-05 | AS58: 8.335812926e-05 | AT58: 8.817577431e-05 | AU58: 9.404026425e-05 | AV58: 7.678792245e-05 | AY58: 2842.778684 | AZ58: 3121.703012 | BA58: 3479.969805 | BB58: 3630.453635 | BC58: 3270.267679 | BD58: ='Inputs|General'!Q85 -> 107.8035148 | BE58: ='Inputs|General'!R85 -> 118.3808499 | BF58: ='Inputs|General'!S85 -> 131.9670006 | BG58: ='Inputs|General'!T85 -> 137.6736304 | BH58: ='Inputs|General'!U85 -> 124.0147015 | CX58: Metal Halide 100W | CY58: =E48/'Report|Charges Summary'!B$3 -> 271.9680776 | CZ58: =F48/'Report|Charges Summary'!C$3 -> 271.5904207 | DA58: =G48/'Report|Charges Summary'!D$3 -> 268.2628443 | DB58: =H48/'Report|Charges Summary'!E$3 -> 278.1997358 | DC58: =I48/'Report|Charges Summary'!F$3 -> 279.0074929
A59: ='Inputs|General'!A86 -> Compact Fluorescent 32W | B59: ='Inputs|General'!B86 -> T5 2X14W | C59: ='Inputs|General'!D86 -> 0.8796098925 | D59: ='Inputs|General'!E86 -> 36.13 | E59: =INDEX(E$52:E$63,MATCH($B59,$A$52:$A$63,0))*$C59 -> 50.46280084 | F59: =INDEX(F$52:F$63,MATCH($B59,$A$52:$A$63,0))*$C59 -> 53.29537283 | G59: 55.86918279 | H59: 58.33179631 | I59: 60.48246028 | K59: 0.3967008259 | L59: 0.05613188222 | M59: 0.04829330995 | N59: 0.04407820911 | O59: 0.03686949652 | Q59: =IF(D59=0,"",(E59/'Report|Charges Summary'!G$3)/D59-1) -> 0.364307944 | R59: =IF(E59=0,"",(F59/'Report|Charges Summary'!H$3)/(E59/'Report|Charges Summary'!G$3)-1) -> 0.03163762066 | S59: =IF(F59=0,"",(G59/'Report|Charges Summary'!I$3)/(F59/'Report|Charges Summary'!H$3)-1) -> 0.0239808439 | T59: =IF(G59=0,"",(H59/'Report|Charges Summary'!J$3)/(G59/'Report|Charges Summary'!I$3)-1) -> 0.01986350149 | U59: =IF(H59=0,"",(I59/'Report|Charges Summary'!K$3)/(H59/'Report|Charges Summary'!J$3)-1) -> 0.01282197643 | W59: =SUM('Inputs|General'!Q86:U86)/5 -> 680 | X59: 0.01301492667 | Z59: 60.24113387 | AA59: 64.2532546 | AB59: 63.87851419 | AC59: 66.05887679 | AD59: 67.93152846 | AF59: -9.778333034 | AG59: -10.95788176 | AH59: -8.009331395 | AI59: -7.727080472 | AJ59: -7.449068183 | AL59: ='Inputs|General'!Q86/('Inputs|General'!Q$60+'Inputs|General'!Q$92) -> 0.004137765778 | AM59: ='Inputs|General'!R86/('Inputs|General'!R$60+'Inputs|General'!R$92) -> 0.00402984314 | AN59: ='Inputs|General'!S86/('Inputs|General'!S$60+'Inputs|General'!S$92) -> 0.00391821243 | AO59: ='Inputs|General'!T86/('Inputs|General'!T$60+'Inputs|General'!T$92) -> 0.003817985495 | AP59: ='Inputs|General'!U86/('Inputs|General'!U$60+'Inputs|General'!U$92) -> 0.003717204267 | AR59: 0.0006716416042 | AS59: 0.0006872577107 | AT59: 0.0004912803973 | AU59: 0.0004465998 | AV59: 0.0004076120273 | AY59: 24568.4 | AZ59: 24568.4 | BA59: 24568.4 | BB59: 24568.4 | BC59: 24568.4 | BD59: ='Inputs|General'!Q86 -> 680 | BE59: ='Inputs|General'!R86 -> 680 | BF59: ='Inputs|General'!S86 -> 680 | BG59: ='Inputs|General'!T86 -> 680 | BH59: ='Inputs|General'!U86 -> 680 | CX59: Metal Halide 150W | CY59: =E49/'Report|Charges Summary'!B$3 -> 308.9802665 | CZ59: =F49/'Report|Charges Summary'!C$3 -> 308.5512141 | DA59: =G49/'Report|Charges Summary'!D$3 -> 304.7707872 | DB59: =H49/'Report|Charges Summary'!E$3 -> 316.0599923 | DC59: =I49/'Report|Charges Summary'!F$3 -> 316.9776772
A60: ='Inputs|General'!A87 -> Compact Fluorescent 42W | B60: ='Inputs|General'!B87 -> T5 2X14W | C60: ='Inputs|General'!D87 -> 0.8796098925 | D60: ='Inputs|General'!E87 -> 36.13 | E60: =INDEX(E$52:E$63,MATCH($B60,$A$52:$A$63,0))*$C60 -> 50.46280084 | F60: 53.29537283 | G60: 55.86918279 | H60: 58.33179631 | I60: 60.48246028 | K60: 0.3967008259 | L60: 0.05613188222 | M60: 0.04829330995 | N60: 0.04407820911 | O60: 0.03686949652 | Q60: =IF(D60=0,"",(E60/'Report|Charges Summary'!G$3)/D60-1) -> 0.364307944 | R60: =IF(E60=0,"",(F60/'Report|Charges Summary'!H$3)/(E60/'Report|Charges Summary'!G$3)-1) -> 0.03163762066 | S60: =IF(F60=0,"",(G60/'Report|Charges Summary'!I$3)/(F60/'Report|Charges Summary'!H$3)-1) -> 0.0239808439 | T60: =IF(G60=0,"",(H60/'Report|Charges Summary'!J$3)/(G60/'Report|Charges Summary'!I$3)-1) -> 0.01986350149 | U60: =IF(H60=0,"",(I60/'Report|Charges Summary'!K$3)/(H60/'Report|Charges Summary'!J$3)-1) -> 0.01282197643 | W60: =SUM('Inputs|General'!Q87:U87)/5 -> 2715 | X60: 0.05196400869 | Z60: 60.24113387 | AA60: 64.2532546 | AB60: 63.87851419 | AC60: 66.05887679 | AD60: 67.93152846 | AF60: -9.778333034 | AG60: -10.95788176 | AH60: -8.009331395 | AI60: -7.727080472 | AJ60: -7.449068183 | AL60: ='Inputs|General'!Q87/('Inputs|General'!Q$60+'Inputs|General'!Q$92) -> 0.01652063836 | AM60: ='Inputs|General'!R87/('Inputs|General'!R$60+'Inputs|General'!R$92) -> 0.01608974136 | AN60: ='Inputs|General'!S87/('Inputs|General'!S$60+'Inputs|General'!S$92) -> 0.01564403934 | AO60: ='Inputs|General'!T87/('Inputs|General'!T$60+'Inputs|General'!T$92) -> 0.01524386856 | AP60: ='Inputs|General'!U87/('Inputs|General'!U$60+'Inputs|General'!U$92) -> 0.01484148468 | AR60: 0.002681627875 | AS60: 0.002743977477 | AT60: 0.001961509234 | AU60: 0.001783115378 | AV60: 0.001627450962 | AY60: 98092.95 | AZ60: 98092.95 | BA60: 98092.95 | BB60: 98092.95 | BC60: 98092.95 | BD60: ='Inputs|General'!Q87 -> 2715 | BE60: ='Inputs|General'!R87 -> 2715 | BF60: ='Inputs|General'!S87 -> 2715 | BG60: ='Inputs|General'!T87 -> 2715 | BH60: ='Inputs|General'!U87 -> 2715
A61: ='Inputs|General'!A88 -> Smart lighting L1 | B61: ='Inputs|General'!B88 -> Smart lighting L1 | C61: ='Inputs|General'!D88 -> 1 | D61: ='Inputs|General'!E88 -> 26.37 | E61: ='Report|Charges Summary'!G192 -> 67.45964166 | F61: ='Report|Charges Summary'!H192 -> 71.75810036 | G61: ='Report|Charges Summary'!I192 -> 75.60104629 | H61: ='Report|Charges Summary'!J192 -> 79.19121363 | I61: ='Report|Charges Summary'!K192 -> 82.20112204 | K61: =IF(D61=0,"",E61/D61-1) -> 1.558196498 | L61: =IF(E61=0,"",F61/E61-1) -> 0.06371896737 | M61: =IF(F61=0,"",G61/F61-1) -> 0.05355417586 | N61: =IF(G61=0,"",H61/G61-1) -> 0.04748832884 | O61: =IF(H61=0,"",I61/H61-1) -> 0.03800811063 | Q61: =IF(D61=0,"",(E61/'Report|Charges Summary'!G$3)/D61-1) -> 1.498865713 | R61: =IF(E61=0,"",(F61/'Report|Charges Summary'!H$3)/(E61/'Report|Charges Summary'!G$3)-1) -> 0.03904874289 | S61: =IF(F61=0,"",(G61/'Report|Charges Summary'!I$3)/(F61/'Report|Charges Summary'!H$3)-1) -> 0.02911969757 | T61: =IF(G61=0,"",(H61/'Report|Charges Summary'!J$3)/(G61/'Report|Charges Summary'!I$3)-1) -> 0.02319453226 | U61: =IF(H61=0,"",(I61/'Report|Charges Summary'!K$3)/(H61/'Report|Charges Summary'!J$3)-1) -> 0.01393418332 | W61: =SUM('Inputs|General'!Q88:U88)/5 -> 333.4129608 | X61: 0.006381390053
A62: ='Inputs|General'!A89 -> Smart lighting L2 | B62: ='Inputs|General'!B89 -> Smart lighting L2 | C62: ='Inputs|General'!D89 -> 1 | D62: ='Inputs|General'!E89 -> 26.37 | E62: ='Report|Charges Summary'!G208 -> 68.09891053 | F62: ='Report|Charges Summary'!H208 -> 72.55992369 | G62: ='Report|Charges Summary'!I208 -> 76.53611078 | H62: ='Report|Charges Summary'!J208 -> 80.23611813 | I62: ='Report|Charges Summary'!K208 -> 83.3149344 | K62: 1.582438776 | L62: 0.06550784916 | M62: 0.05479866686 | N62: 0.04834328935 | O62: 0.0383719495 | Q62: =IF(D62=0,"",(E62/'Report|Charges Summary'!G$3)/D62-1) -> 1.522545754 | R62: =IF(E62=0,"",(F62/'Report|Charges Summary'!H$3)/(E62/'Report|Charges Summary'!G$3)-1) -> 0.04079613617 | S62: =IF(F62=0,"",(G62/'Report|Charges Summary'!I$3)/(F62/'Report|Charges Summary'!H$3)-1) -> 0.0303353258 | T62: =IF(G62=0,"",(H62/'Report|Charges Summary'!J$3)/(G62/'Report|Charges Summary'!I$3)-1) -> 0.02402966416 | U62: =IF(H62=0,"",(I62/'Report|Charges Summary'!K$3)/(H62/'Report|Charges Summary'!J$3)-1) -> 0.01428958388 | W62: =SUM('Inputs|General'!Q89:U89)/5 -> 831.0383959 | X62: 0.01590574086
A63: ='Inputs|General'!A90 -> Smart lighting L4 | B63: ='Inputs|General'!B90 -> Smart lighting L4 | C63: ='Inputs|General'!D90 -> 1 | D63: ='Inputs|General'!E90 -> 26.37 | E63: ='Report|Charges Summary'!G224 -> 73.82369118 | F63: ='Report|Charges Summary'!H224 -> 79.74041198 | G63: ='Report|Charges Summary'!I224 -> 84.90980029 | H63: ='Report|Charges Summary'!J224 -> 89.59344683 | I63: ='Report|Charges Summary'!K224 -> 93.2893468 | K63: 1.799533226 | L63: 0.08014664006 | M63: 0.06482771013 | N63: 0.05516025852 | O63: 0.04125190073 | Q63: =IF(D63=0,"",(E63/'Report|Charges Summary'!G$3)/D63-1) -> 1.734605256 | R63: =IF(E63=0,"",(F63/'Report|Charges Summary'!H$3)/(E63/'Report|Charges Summary'!G$3)-1) -> 0.05509541798 | S63: =IF(F63=0,"",(G63/'Report|Charges Summary'!I$3)/(F63/'Report|Charges Summary'!H$3)-1) -> 0.04013177121 | T63: =IF(G63=0,"",(H63/'Report|Charges Summary'!J$3)/(G63/'Report|Charges Summary'!I$3)-1) -> 0.03068853127 | U63: =IF(H63=0,"",(I63/'Report|Charges Summary'!K$3)/(H63/'Report|Charges Summary'!J$3)-1) -> 0.01710274205 | W63: =SUM('Inputs|General'!Q90:U90)/5 -> 60.58992404 | X63: 0.001159666792
W64: =SUM(W38:W63) -> 52247.70122 | X64: =SUM(X38:X63) -> 1
AL66: =SUM(AL7:AL60) -> 0.9999391505 | AM66: =SUM(AM7:AM60) -> 0.9885924485 | AN66: =SUM(AN7:AN60) -> 0.9780090017 | AO66: =SUM(AO7:AO60) -> 0.9653155833 | AP66: =SUM(AP7:AP60) -> 0.9507568022 | AR66: =SUM(AR7:AR60) -> 0.09518828214 | AS66: =SUM(AS7:AS60) -> 0.04985251504 | AT66: =SUM(AT7:AT60) -> 0.06589758846 | AU66: =SUM(AU7:AU60) -> 0.0824945714 | AV66: =SUM(AV7:AV60) -> 0.08077084946 | AY66: =SUM(AY7:AY60) -> 7426392.083 | AZ66: =SUM(AZ7:AZ60) -> 7148556.483 | BA66: =SUM(BA7:BA60) -> 6882451.808 | BB66: =SUM(BB7:BB60) -> 6603202.266 | BC66: =SUM(BC7:BC60) -> 6528399.305
CX67: =A52 -> T5 2X14W | CY67: =E52/'Report|Charges Summary'!B$3 -> 56.0389855 | CZ67: =F52/'Report|Charges Summary'!C$3 -> 57.81192567 | DA67: =G52/'Report|Charges Summary'!D$3 -> 59.19830443 | DB67: =H52/'Report|Charges Summary'!E$3 -> 60.37419004 | DC67: =I52/'Report|Charges Summary'!F$3 -> 61.14830648
AT68: =AVERAGE(AR66:AV66) -> 0.0748407613 | CX68: =A53 -> T5 2X24W | CY68: =E53/'Report|Charges Summary'!B$3 -> 60.00841004 | CZ68: =F53/'Report|Charges Summary'!C$3 -> 61.83328921 | DA68: =G53/'Report|Charges Summary'!D$3 -> 63.26589078 | DB68: =H53/'Report|Charges Summary'!E$3 -> 64.48915981 | DC68: =I53/'Report|Charges Summary'!F$3 -> 65.30741097
BA69: =AVERAGE(AY66:BC66) -> 6917800.389 | CX69: LED 18W | CY69: =E54/'Report|Charges Summary'!B$3 -> 30.64025998 | CZ69: =F54/'Report|Charges Summary'!C$3 -> 32.02493051 | DA69: =G54/'Report|Charges Summary'!D$3 -> 33.07392492 | DB69: =H54/'Report|Charges Summary'!E$3 -> 33.91673973 | DC69: =I54/'Report|Charges Summary'!F$3 -> 34.39592359
CX70: LED non-standard low power ~14W | CY70: =E55/'Report|Charges Summary'!B$3 -> 32.3547571 | CZ70: =F55/'Report|Charges Summary'!C$3 -> 33.74370803 | DA70: =G55/'Report|Charges Summary'!D$3 -> 34.79834956 | DB70: =H55/'Report|Charges Summary'!E$3 -> 35.64983488 | DC70: =I55/'Report|Charges Summary'!F$3 -> 36.14054377
CX71: LED 70W-125W (L1) | CY71: =E56/'Report|Charges Summary'!B$3 -> 54.88540013 | CZ71: =F56/'Report|Charges Summary'!C$3 -> 57.45852051 | DA71: =G56/'Report|Charges Summary'!D$3 -> 59.45229406 | DB71: =H56/'Report|Charges Summary'!E$3 -> 61.08662679 | DC71: =I56/'Report|Charges Summary'!F$3 -> 62.09123007
CX72: LED 155W-250W (L2) | CY72: =E57/'Report|Charges Summary'!B$3 -> 55.50984281 | CZ72: =F57/'Report|Charges Summary'!C$3 -> 58.22358268 | DA72: =G57/'Report|Charges Summary'!D$3 -> 60.32379652 | DB72: =H57/'Report|Charges Summary'!E$3 -> 62.03791621 | DC72: =I57/'Report|Charges Summary'!F$3 -> 63.08173609
CX73: LED 275W-400W (L4) | CY73: =E58/'Report|Charges Summary'!B$3 -> 61.1018519 | CZ73: =F58/'Report|Charges Summary'!C$3 -> 65.07486737 | DA73: =G58/'Report|Charges Summary'!D$3 -> 68.12827537 | DB73: =H58/'Report|Charges Summary'!E$3 -> 70.55690325 | DC73: =I58/'Report|Charges Summary'!F$3 -> 71.95191563
CX74: Compact Fluorescent 32W | CY74: =E59/'Report|Charges Summary'!B$3 -> 49.29244602 | CZ74: =F59/'Report|Charges Summary'!C$3 -> 50.85194172 | DA74: =G59/'Report|Charges Summary'!D$3 -> 52.0714142 | DB74: =H59/'Report|Charges Summary'!E$3 -> 53.10573481 | DC74: =I59/'Report|Charges Summary'!F$3 -> 53.78665529
CX75: Compact Fluorescent 42W | CY75: =E60/'Report|Charges Summary'!B$3 -> 49.29244602 | CZ75: =F60/'Report|Charges Summary'!C$3 -> 50.85194172 | DA75: =G60/'Report|Charges Summary'!D$3 -> 52.0714142 | DB75: =H60/'Report|Charges Summary'!E$3 -> 53.10573481 | DC75: =I60/'Report|Charges Summary'!F$3 -> 53.78665529
CX76: Smart lighting L1 | CY76: =E61/'Report|Charges Summary'!B$3 -> 65.89508884 | CZ76: =F61/'Report|Charges Summary'!C$3 -> 68.46820922 | DA76: =G61/'Report|Charges Summary'!D$3 -> 70.46198277 | DB76: =H61/'Report|Charges Summary'!E$3 -> 72.0963155 | DC76: =I61/'Report|Charges Summary'!F$3 -> 73.10091878
CX77: Smart lighting L2 | CY77: =E62/'Report|Charges Summary'!B$3 -> 66.51953152 | CZ77: =F62/'Report|Charges Summary'!C$3 -> 69.23327139 | DA77: =G62/'Report|Charges Summary'!D$3 -> 71.33348523 | DB77: =H62/'Report|Charges Summary'!E$3 -> 73.04760492 | DC77: =I62/'Report|Charges Summary'!F$3 -> 74.0914248
CX78: Smart lighting L4 | CY78: =E63/'Report|Charges Summary'!B$3 -> 72.11154061 | CZ78: =F63/'Report|Charges Summary'!C$3 -> 76.08455608 | DA78: =G63/'Report|Charges Summary'!D$3 -> 79.13796408 | DB78: =H63/'Report|Charges Summary'!E$3 -> 81.56659196 | DC78: =I63/'Report|Charges Summary'!F$3 -> 82.96160435

Sheet Report|Tariff Components
A1: ='Inputs|O&M'!$A$3 -> AusNet Services Public Lighting Model | E1: Global Check | F1: =IF(SUM('Calc|Total RAB'!F1,'Calc|Capital Charges Post 2004'!P1,'Calc|Capital Charges Post 2004'!F1,'Calc|Cashflows'!F1,W1)<1,"Ok","Error") -> Ok | V1: Check | W1: =SUM(V7:Z29,V37:Z59) -> 1.648459147e-12
A3: Public Lighting Tariffs
C4: Total Tariff | J4: Operations, maintenance and repair Tariff | P4: Replacement Tariff | V4: Check
C5: Actual
A6: ='Inputs|General'!A$31 -> Existing Lights | C6: ='Inputs|General'!P$2 -> HY2021 | D6: ='Inputs|General'!Q$2 -> 2022-06-30 | E6: ='Inputs|General'!R$2 -> 2023-06-30 | F6: ='Inputs|General'!S$2 -> 2024-06-30 | G6: ='Inputs|General'!T$2 -> 2025-06-30 | H6: ='Inputs|General'!U$2 -> 2026-06-30 | J6: =D6 -> 2022-06-30 | K6: =E6 -> 2023-06-30 | L6: 2024-06-30 | M6: 2025-06-30 | N6: 2026-06-30 | P6: =J6 -> 2022-06-30 | Q6: =K6 -> 2023-06-30 | R6: 2024-06-30 | S6: 2025-06-30 | T6: 2026-06-30 | V6: =P6 -> 2022-06-30 | W6: =Q6 -> 2023-06-30 | X6: 2024-06-30 | Y6: 2025-06-30 | Z6: 2026-06-30
A7: ='Inputs|General'!A32 -> Mercury Vapour 80W | C7: ='Inputs|General'!E32 -> 43.97 | D7: ='Report|Charges Summary'!B$22 -> 60.13648185 | E7: ='Report|Charges Summary'!C$22 -> 61.27634296 | F7: ='Report|Charges Summary'!D$22 -> 63.9825679 | G7: ='Report|Charges Summary'!E$22 -> 69.56985403 | H7: ='Report|Charges Summary'!F$22 -> 70.98621597 | J7: =SUM('Report|Charges Summary'!B16,'Report|Charges Summary'!B6) -> 25.76945289 | K7: =SUM('Report|Charges Summary'!C16,'Report|Charges Summary'!C6) -> 26.43224253 | L7: =SUM('Report|Charges Summary'!D16,'Report|Charges Summary'!D6) -> 27.12961011 | M7: =SUM('Report|Charges Summary'!E16,'Report|Charges Summary'!E6) -> 27.89395222 | N7: =SUM('Report|Charges Summary'!F16,'Report|Charges Summary'!F6) -> 28.72221032 | P7: =SUM('Report|Charges Summary'!B18,'Report|Charges Summary'!B7) -> 34.36702896 | Q7: =SUM('Report|Charges Summary'!C18,'Report|Charges Summary'!C7) -> 34.84410043 | R7: =SUM('Report|Charges Summary'!D18,'Report|Charges Summary'!D7) -> 36.85295778 | S7: =SUM('Report|Charges Summary'!E18,'Report|Charges Summary'!E7) -> 41.67590181 | T7: =SUM('Report|Charges Summary'!F18,'Report|Charges Summary'!F7) -> 42.26400566 | V7: =ABS(D7-J7-P7) -> 7.105427358e-15 | W7: =ABS(E7-K7-Q7) -> 7.105427358e-15 | X7: 7.105427358e-15 | Y7: 0 | Z7: 0
A8: ='Inputs|General'!A33 -> HP Sodium 150W | C8: ='Inputs|General'!E33 -> 104.07 | D8: ='Report|Charges Summary'!B$46 -> 112.1562338 | E8: ='Report|Charges Summary'!C$46 -> 114.6059509 | F8: ='Report|Charges Summary'!D$46 -> 117.5911112 | G8: ='Report|Charges Summary'!E$46 -> 125.3824164 | H8: ='Report|Charges Summary'!F$46 -> 128.5829062 | J8: =SUM('Report|Charges Summary'!B40,'Report|Charges Summary'!B6) -> 73.30536653 | K8: =SUM('Report|Charges Summary'!C40,'Report|Charges Summary'!C6) -> 75.28721425 | L8: =SUM('Report|Charges Summary'!D40,'Report|Charges Summary'!D6) -> 77.39876021 | M8: =SUM('Report|Charges Summary'!E40,'Report|Charges Summary'!E6) -> 79.75050136 | N8: =SUM('Report|Charges Summary'!F40,'Report|Charges Summary'!F6) -> 82.34071979 | P8: =SUM('Report|Charges Summary'!B42,'Report|Charges Summary'!B7) -> 38.85086728 | Q8: =SUM('Report|Charges Summary'!C42,'Report|Charges Summary'!C7) -> 39.31873668 | R8: =SUM('Report|Charges Summary'!D42,'Report|Charges Summary'!D7) -> 40.19235096 | S8: =SUM('Report|Charges Summary'!E42,'Report|Charges Summary'!E7) -> 45.63191503 | T8: =SUM('Report|Charges Summary'!F42,'Report|Charges Summary'!F7) -> 46.24218638 | V8: =ABS(D8-J8-P8) -> 7.105427358e-15 | W8: 0 | X8: 0 | Y8: 1.421085472e-14 | Z8: 7.105427358e-15
A9: ='Inputs|General'!A34 -> HP Sodium 250W | C9: ='Inputs|General'!E34 -> 105.12 | D9: ='Report|Charges Summary'!B$62 -> 115.0030783 | E9: ='Report|Charges Summary'!C$62 -> 117.5099015 | F9: ='Report|Charges Summary'!D$62 -> 120.7261021 | G9: ='Report|Charges Summary'!E$62 -> 128.7119866 | H9: ='Report|Charges Summary'!F$62 -> 131.9859153 | J9: =SUM('Report|Charges Summary'!B56,'Report|Charges Summary'!B6) -> 75.61948185 | K9: =SUM('Report|Charges Summary'!C56,'Report|Charges Summary'!C6) -> 77.65952903 | L9: =SUM('Report|Charges Summary'!D56,'Report|Charges Summary'!D6) -> 79.83186975 | M9: =SUM('Report|Charges Summary'!E56,'Report|Charges Summary'!E6) -> 82.24858756 | N9: =SUM('Report|Charges Summary'!F56,'Report|Charges Summary'!F6) -> 84.90758569 | P9: =SUM('Report|Charges Summary'!B58,'Report|Charges Summary'!B7) -> 39.38359642 | Q9: =SUM('Report|Charges Summary'!C58,'Report|Charges Summary'!C7) -> 39.85037251 | R9: =SUM('Report|Charges Summary'!D58,'Report|Charges Summary'!D7) -> 40.89423236 | S9: =SUM('Report|Charges Summary'!E58,'Report|Charges Summary'!E7) -> 46.46339906 | T9: =SUM('Report|Charges Summary'!F58,'Report|Charges Summary'!F7) -> 47.07832963 | V9: =ABS(D9-J9-P9) -> 7.105427358e-15 | W9: =ABS(E9-K9-Q9) -> 7.105427358e-15 | X9: =ABS(F9-L9-R9) -> 7.105427358e-15 | Y9: =ABS(G9-M9-S9) -> 7.105427358e-15 | Z9: =ABS(H9-N9-T9) -> 7.105427358e-15
A10: ='Inputs|General'!A35 -> Mercury Vapour 50W | C10: ='Inputs|General'!E35 -> 67.27 | D10: =IF('Inputs|General'!$B35='Inputs|General'!$A$32,D$7,IF('Inputs|General'!$B35='Inputs|General'!$A$33,D$8,D$9))*'Inputs|General'!$D35 -> 92.00881723 | E10: =IF('Inputs|General'!$B35='Inputs|General'!$A$32,E$7,IF('Inputs|General'!$B35='Inputs|General'!$A$33,E$8,E$9))*'Inputs|General'!$D35 -> 93.75280473 | F10: =IF('Inputs|General'!$B35='Inputs|General'!$A$32,F$7,IF('Inputs|General'!$B35='Inputs|General'!$A$33,F$8,F$9))*'Inputs|General'!$D35 -> 97.89332888 | G10: =IF('Inputs|General'!$B35='Inputs|General'!$A$32,G$7,IF('Inputs|General'!$B35='Inputs|General'!$A$33,G$8,G$9))*'Inputs|General'!$D35 -> 106.4418767 | H10: =IF('Inputs|General'!$B35='Inputs|General'!$A$32,H$7,IF('Inputs|General'!$B35='Inputs|General'!$A$33,H$8,H$9))*'Inputs|General'!$D35 -> 108.6089104 | J10: =IF('Inputs|General'!$B35='Inputs|General'!$A$32,J$7,IF('Inputs|General'!$B35='Inputs|General'!$A$33,J$8,J$9))*'Inputs|General'!$D35 -> 39.42726292 | K10: =IF('Inputs|General'!$B35='Inputs|General'!$A$32,K$7,IF('Inputs|General'!$B35='Inputs|General'!$A$33,K$8,K$9))*'Inputs|General'!$D35 -> 40.44133108 | L10: =IF('Inputs|General'!$B35='Inputs|General'!$A$32,L$7,IF('Inputs|General'!$B35='Inputs|General'!$A$33,L$8,L$9))*'Inputs|General'!$D35 -> 41.50830348 | M10: =IF('Inputs|General'!$B35='Inputs|General'!$A$32,M$7,IF('Inputs|General'!$B35='Inputs|General'!$A$33,M$8,M$9))*'Inputs|General'!$D35 -> 42.67774689 | N10: =IF('Inputs|General'!$B35='Inputs|General'!$A$32,N$7,IF('Inputs|General'!$B35='Inputs|General'!$A$33,N$8,N$9))*'Inputs|General'!$D35 -> 43.94498179 | P10: =IF('Inputs|General'!$B35='Inputs|General'!$A$32,P$7,IF('Inputs|General'!$B35='Inputs|General'!$A$33,P$8,P$9))*'Inputs|General'!$D35 -> 52.58155431 | Q10: =IF('Inputs|General'!$B35='Inputs|General'!$A$32,Q$7,IF('Inputs|General'!$B35='Inputs|General'!$A$33,Q$8,Q$9))*'Inputs|General'!$D35 -> 53.31147366 | R10: =IF('Inputs|General'!$B35='Inputs|General'!$A$32,R$7,IF('Inputs|General'!$B35='Inputs|General'!$A$33,R$8,R$9))*'Inputs|General'!$D35 -> 56.3850254 | S10: =IF('Inputs|General'!$B35='Inputs|General'!$A$32,S$7,IF('Inputs|General'!$B35='Inputs|General'!$A$33,S$8,S$9))*'Inputs|General'!$D35 -> 63.76412977 | T10: =IF('Inputs|General'!$B35='Inputs|General'!$A$32,T$7,IF('Inputs|General'!$B35='Inputs|General'!$A$33,T$8,T$9))*'Inputs|General'!$D35 -> 64.66392865 | V10: 0 | W10: 7.105427358e-15 | X10: 7.105427358e-15 | Y10: 7.105427358e-15 | Z10: 0
A11: ='Inputs|General'!A36 -> Mercury Vapour 125W | C11: ='Inputs|General'!E36 -> 64.63 | D11: =IF('Inputs|General'!$B36='Inputs|General'!$A$32,D$7,IF('Inputs|General'!$B36='Inputs|General'!$A$33,D$8,D$9))*'Inputs|General'!$D36 -> 88.40062832 | E11: =IF('Inputs|General'!$B36='Inputs|General'!$A$32,E$7,IF('Inputs|General'!$B36='Inputs|General'!$A$33,E$8,E$9))*'Inputs|General'!$D36 -> 90.07622415 | F11: =IF('Inputs|General'!$B36='Inputs|General'!$A$32,F$7,IF('Inputs|General'!$B36='Inputs|General'!$A$33,F$8,F$9))*'Inputs|General'!$D36 -> 94.05437481 | G11: =IF('Inputs|General'!$B36='Inputs|General'!$A$32,G$7,IF('Inputs|General'!$B36='Inputs|General'!$A$33,G$8,G$9))*'Inputs|General'!$D36 -> 102.2676854 | H11: =IF('Inputs|General'!$B36='Inputs|General'!$A$32,H$7,IF('Inputs|General'!$B36='Inputs|General'!$A$33,H$8,H$9))*'Inputs|General'!$D36 -> 104.3497375 | J11: =IF('Inputs|General'!$B36='Inputs|General'!$A$32,J$7,IF('Inputs|General'!$B36='Inputs|General'!$A$33,J$8,J$9))*'Inputs|General'!$D36 -> 37.88109574 | K11: =IF('Inputs|General'!$B36='Inputs|General'!$A$32,K$7,IF('Inputs|General'!$B36='Inputs|General'!$A$33,K$8,K$9))*'Inputs|General'!$D36 -> 38.85539652 | L11: =IF('Inputs|General'!$B36='Inputs|General'!$A$32,L$7,IF('Inputs|General'!$B36='Inputs|General'!$A$33,L$8,L$9))*'Inputs|General'!$D36 -> 39.88052687 | M11: =IF('Inputs|General'!$B36='Inputs|General'!$A$32,M$7,IF('Inputs|General'!$B36='Inputs|General'!$A$33,M$8,M$9))*'Inputs|General'!$D36 -> 41.00410976 | N11: =IF('Inputs|General'!$B36='Inputs|General'!$A$32,N$7,IF('Inputs|General'!$B36='Inputs|General'!$A$33,N$8,N$9))*'Inputs|General'!$D36 -> 42.22164917 | P11: =IF('Inputs|General'!$B36='Inputs|General'!$A$32,P$7,IF('Inputs|General'!$B36='Inputs|General'!$A$33,P$8,P$9))*'Inputs|General'!$D36 -> 50.51953257 | Q11: =IF('Inputs|General'!$B36='Inputs|General'!$A$32,Q$7,IF('Inputs|General'!$B36='Inputs|General'!$A$33,Q$8,Q$9))*'Inputs|General'!$D36 -> 51.22082763 | R11: =IF('Inputs|General'!$B36='Inputs|General'!$A$32,R$7,IF('Inputs|General'!$B36='Inputs|General'!$A$33,R$8,R$9))*'Inputs|General'!$D36 -> 54.17384794 | S11: =IF('Inputs|General'!$B36='Inputs|General'!$A$32,S$7,IF('Inputs|General'!$B36='Inputs|General'!$A$33,S$8,S$9))*'Inputs|General'!$D36 -> 61.26357566 | T11: =IF('Inputs|General'!$B36='Inputs|General'!$A$32,T$7,IF('Inputs|General'!$B36='Inputs|General'!$A$33,T$8,T$9))*'Inputs|General'!$D36 -> 62.12808831 | V11: 7.105427358e-15 | W11: 0 | X11: 7.105427358e-15 | Y11: 7.105427358e-15 | Z11: 0
A12: ='Inputs|General'!A37 -> Mercury Vapour 250W | C12: ='Inputs|General'!E37 -> 110.37 | D12: =IF('Inputs|General'!$B37='Inputs|General'!$A$32,D$7,IF('Inputs|General'!$B37='Inputs|General'!$A$33,D$8,D$9))*'Inputs|General'!$D37 -> 120.7532322 | E12: =IF('Inputs|General'!$B37='Inputs|General'!$A$32,E$7,IF('Inputs|General'!$B37='Inputs|General'!$A$33,E$8,E$9))*'Inputs|General'!$D37 -> 123.3853966 | F12: =IF('Inputs|General'!$B37='Inputs|General'!$A$32,F$7,IF('Inputs|General'!$B37='Inputs|General'!$A$33,F$8,F$9))*'Inputs|General'!$D37 -> 126.7624072 | G12: =IF('Inputs|General'!$B37='Inputs|General'!$A$32,G$7,IF('Inputs|General'!$B37='Inputs|General'!$A$33,G$8,G$9))*'Inputs|General'!$D37 -> 135.1475859 | H12: =IF('Inputs|General'!$B37='Inputs|General'!$A$32,H$7,IF('Inputs|General'!$B37='Inputs|General'!$A$33,H$8,H$9))*'Inputs|General'!$D37 -> 138.5852111 | J12: =IF('Inputs|General'!$B37='Inputs|General'!$A$32,J$7,IF('Inputs|General'!$B37='Inputs|General'!$A$33,J$8,J$9))*'Inputs|General'!$D37 -> 79.40045594 | K12: =IF('Inputs|General'!$B37='Inputs|General'!$A$32,K$7,IF('Inputs|General'!$B37='Inputs|General'!$A$33,K$8,K$9))*'Inputs|General'!$D37 -> 81.54250548 | L12: =IF('Inputs|General'!$B37='Inputs|General'!$A$32,L$7,IF('Inputs|General'!$B37='Inputs|General'!$A$33,L$8,L$9))*'Inputs|General'!$D37 -> 83.82346324 | M12: =IF('Inputs|General'!$B37='Inputs|General'!$A$32,M$7,IF('Inputs|General'!$B37='Inputs|General'!$A$33,M$8,M$9))*'Inputs|General'!$D37 -> 86.36101694 | N12: =IF('Inputs|General'!$B37='Inputs|General'!$A$32,N$7,IF('Inputs|General'!$B37='Inputs|General'!$A$33,N$8,N$9))*'Inputs|General'!$D37 -> 89.15296497 | P12: =IF('Inputs|General'!$B37='Inputs|General'!$A$32,P$7,IF('Inputs|General'!$B37='Inputs|General'!$A$33,P$8,P$9))*'Inputs|General'!$D37 -> 41.35277624 | Q12: =IF('Inputs|General'!$B37='Inputs|General'!$A$32,Q$7,IF('Inputs|General'!$B37='Inputs|General'!$A$33,Q$8,Q$9))*'Inputs|General'!$D37 -> 41.84289113 | R12: =IF('Inputs|General'!$B37='Inputs|General'!$A$32,R$7,IF('Inputs|General'!$B37='Inputs|General'!$A$33,R$8,R$9))*'Inputs|General'!$D37 -> 42.93894398 | S12: =IF('Inputs|General'!$B37='Inputs|General'!$A$32,S$7,IF('Inputs|General'!$B37='Inputs|General'!$A$33,S$8,S$9))*'Inputs|General'!$D37 -> 48.78656901 | T12: =IF('Inputs|General'!$B37='Inputs|General'!$A$32,T$7,IF('Inputs|General'!$B37='Inputs|General'!$A$33,T$8,T$9))*'Inputs|General'!$D37 -> 49.43224612 | V12: 7.105427358e-15 | W12: 2.131628207e-14 | X12: 1.421085472e-14 | Y12: 2.131628207e-14 | Z12: 7.105427358e-15
A13: ='Inputs|General'!A38 -> Mercury Vapour 400W | C13: ='Inputs|General'!E38 -> 114.58 | D13: =IF('Inputs|General'!$B38='Inputs|General'!$A$32,D$7,IF('Inputs|General'!$B38='Inputs|General'!$A$33,D$8,D$9))*'Inputs|General'!$D38 -> 125.3533553 | E13: =IF('Inputs|General'!$B38='Inputs|General'!$A$32,E$7,IF('Inputs|General'!$B38='Inputs|General'!$A$33,E$8,E$9))*'Inputs|General'!$D38 -> 128.0857927 | F13: =IF('Inputs|General'!$B38='Inputs|General'!$A$32,F$7,IF('Inputs|General'!$B38='Inputs|General'!$A$33,F$8,F$9))*'Inputs|General'!$D38 -> 131.5914513 | G13: =IF('Inputs|General'!$B38='Inputs|General'!$A$32,G$7,IF('Inputs|General'!$B38='Inputs|General'!$A$33,G$8,G$9))*'Inputs|General'!$D38 -> 140.2960654 | H13: =IF('Inputs|General'!$B38='Inputs|General'!$A$32,H$7,IF('Inputs|General'!$B38='Inputs|General'!$A$33,H$8,H$9))*'Inputs|General'!$D38 -> 143.8646477 | J13: =IF('Inputs|General'!$B38='Inputs|General'!$A$32,J$7,IF('Inputs|General'!$B38='Inputs|General'!$A$33,J$8,J$9))*'Inputs|General'!$D38 -> 82.42523522 | K13: =IF('Inputs|General'!$B38='Inputs|General'!$A$32,K$7,IF('Inputs|General'!$B38='Inputs|General'!$A$33,K$8,K$9))*'Inputs|General'!$D38 -> 84.64888664 | L13: =IF('Inputs|General'!$B38='Inputs|General'!$A$32,L$7,IF('Inputs|General'!$B38='Inputs|General'!$A$33,L$8,L$9))*'Inputs|General'!$D38 -> 87.01673803 | M13: =IF('Inputs|General'!$B38='Inputs|General'!$A$32,M$7,IF('Inputs|General'!$B38='Inputs|General'!$A$33,M$8,M$9))*'Inputs|General'!$D38 -> 89.65096044 | N13: =IF('Inputs|General'!$B38='Inputs|General'!$A$32,N$7,IF('Inputs|General'!$B38='Inputs|General'!$A$33,N$8,N$9))*'Inputs|General'!$D38 -> 92.5492684 | P13: =IF('Inputs|General'!$B38='Inputs|General'!$A$32,P$7,IF('Inputs|General'!$B38='Inputs|General'!$A$33,P$8,P$9))*'Inputs|General'!$D38 -> 42.9281201 | Q13: =IF('Inputs|General'!$B38='Inputs|General'!$A$32,Q$7,IF('Inputs|General'!$B38='Inputs|General'!$A$33,Q$8,Q$9))*'Inputs|General'!$D38 -> 43.43690603 | R13: =IF('Inputs|General'!$B38='Inputs|General'!$A$32,R$7,IF('Inputs|General'!$B38='Inputs|General'!$A$33,R$8,R$9))*'Inputs|General'!$D38 -> 44.57471327 | S13: =IF('Inputs|General'!$B38='Inputs|General'!$A$32,S$7,IF('Inputs|General'!$B38='Inputs|General'!$A$33,S$8,S$9))*'Inputs|General'!$D38 -> 50.64510497 | T13: =IF('Inputs|General'!$B38='Inputs|General'!$A$32,T$7,IF('Inputs|General'!$B38='Inputs|General'!$A$33,T$8,T$9))*'Inputs|General'!$D38 -> 51.3153793 | V13: 1.421085472e-14 | W13: 0 | X13: 7.105427358e-15 | Y13: 7.105427358e-15 | Z13: 1.421085472e-14
A14: ='Inputs|General'!A39 -> HP Sodium 100W | C14: ='Inputs|General'!E39 -> 111.36 | D14: =IF('Inputs|General'!$B39='Inputs|General'!$A$32,D$7,IF('Inputs|General'!$B39='Inputs|General'!$A$33,D$8,D$9))*'Inputs|General'!$D39 -> 120.0071702 | E14: =IF('Inputs|General'!$B39='Inputs|General'!$A$32,E$7,IF('Inputs|General'!$B39='Inputs|General'!$A$33,E$8,E$9))*'Inputs|General'!$D39 -> 122.6283675 | F14: =IF('Inputs|General'!$B39='Inputs|General'!$A$32,F$7,IF('Inputs|General'!$B39='Inputs|General'!$A$33,F$8,F$9))*'Inputs|General'!$D39 -> 125.8224889 | G14: =IF('Inputs|General'!$B39='Inputs|General'!$A$32,G$7,IF('Inputs|General'!$B39='Inputs|General'!$A$33,G$8,G$9))*'Inputs|General'!$D39 -> 134.1591855 | H14: =IF('Inputs|General'!$B39='Inputs|General'!$A$32,H$7,IF('Inputs|General'!$B39='Inputs|General'!$A$33,H$8,H$9))*'Inputs|General'!$D39 -> 137.5837096 | J14: =IF('Inputs|General'!$B39='Inputs|General'!$A$32,J$7,IF('Inputs|General'!$B39='Inputs|General'!$A$33,J$8,J$9))*'Inputs|General'!$D39 -> 78.43674218 | K14: =IF('Inputs|General'!$B39='Inputs|General'!$A$32,K$7,IF('Inputs|General'!$B39='Inputs|General'!$A$33,K$8,K$9))*'Inputs|General'!$D39 -> 80.55731925 | L14: =IF('Inputs|General'!$B39='Inputs|General'!$A$32,L$7,IF('Inputs|General'!$B39='Inputs|General'!$A$33,L$8,L$9))*'Inputs|General'!$D39 -> 82.81667342 | M14: =IF('Inputs|General'!$B39='Inputs|General'!$A$32,M$7,IF('Inputs|General'!$B39='Inputs|General'!$A$33,M$8,M$9))*'Inputs|General'!$D39 -> 85.33303646 | N14: =IF('Inputs|General'!$B39='Inputs|General'!$A$32,N$7,IF('Inputs|General'!$B39='Inputs|General'!$A$33,N$8,N$9))*'Inputs|General'!$D39 -> 88.10457017 | P14: =IF('Inputs|General'!$B39='Inputs|General'!$A$32,P$7,IF('Inputs|General'!$B39='Inputs|General'!$A$33,P$8,P$9))*'Inputs|General'!$D39 -> 41.57042799 | Q14: =IF('Inputs|General'!$B39='Inputs|General'!$A$32,Q$7,IF('Inputs|General'!$B39='Inputs|General'!$A$33,Q$8,Q$9))*'Inputs|General'!$D39 -> 42.07104824 | R14: =IF('Inputs|General'!$B39='Inputs|General'!$A$32,R$7,IF('Inputs|General'!$B39='Inputs|General'!$A$33,R$8,R$9))*'Inputs|General'!$D39 -> 43.00581553 | S14: =IF('Inputs|General'!$B39='Inputs|General'!$A$32,S$7,IF('Inputs|General'!$B39='Inputs|General'!$A$33,S$8,S$9))*'Inputs|General'!$D39 -> 48.82614908 | T14: =IF('Inputs|General'!$B39='Inputs|General'!$A$32,T$7,IF('Inputs|General'!$B39='Inputs|General'!$A$33,T$8,T$9))*'Inputs|General'!$D39 -> 49.47913943 | V14: 1.421085472e-14 | W14: 7.105427358e-15 | X14: 0 | Y14: 0 | Z14: 1.421085472e-14
A15: ='Inputs|General'!A40 -> HP Sodium 400W | C15: ='Inputs|General'!E40 -> 149.26 | D15: =IF('Inputs|General'!$B40='Inputs|General'!$A$32,D$7,IF('Inputs|General'!$B40='Inputs|General'!$A$33,D$8,D$9))*'Inputs|General'!$D40 -> 163.3043711 | E15: =IF('Inputs|General'!$B40='Inputs|General'!$A$32,E$7,IF('Inputs|General'!$B40='Inputs|General'!$A$33,E$8,E$9))*'Inputs|General'!$D40 -> 166.8640602 | F15: =IF('Inputs|General'!$B40='Inputs|General'!$A$32,F$7,IF('Inputs|General'!$B40='Inputs|General'!$A$33,F$8,F$9))*'Inputs|General'!$D40 -> 171.431065 | G15: =IF('Inputs|General'!$B40='Inputs|General'!$A$32,G$7,IF('Inputs|General'!$B40='Inputs|General'!$A$33,G$8,G$9))*'Inputs|General'!$D40 -> 182.771021 | H15: =IF('Inputs|General'!$B40='Inputs|General'!$A$32,H$7,IF('Inputs|General'!$B40='Inputs|General'!$A$33,H$8,H$9))*'Inputs|General'!$D40 -> 187.4199998 | J15: =IF('Inputs|General'!$B40='Inputs|General'!$A$32,J$7,IF('Inputs|General'!$B40='Inputs|General'!$A$33,J$8,J$9))*'Inputs|General'!$D40 -> 107.3796642 | K15: =IF('Inputs|General'!$B40='Inputs|General'!$A$32,K$7,IF('Inputs|General'!$B40='Inputs|General'!$A$33,K$8,K$9))*'Inputs|General'!$D40 -> 110.2765312 | L15: =IF('Inputs|General'!$B40='Inputs|General'!$A$32,L$7,IF('Inputs|General'!$B40='Inputs|General'!$A$33,L$8,L$9))*'Inputs|General'!$D40 -> 113.361255 | M15: =IF('Inputs|General'!$B40='Inputs|General'!$A$32,M$7,IF('Inputs|General'!$B40='Inputs|General'!$A$33,M$8,M$9))*'Inputs|General'!$D40 -> 116.7929943 | N15: =IF('Inputs|General'!$B40='Inputs|General'!$A$32,N$7,IF('Inputs|General'!$B40='Inputs|General'!$A$33,N$8,N$9))*'Inputs|General'!$D40 -> 120.5687717 | P15: =IF('Inputs|General'!$B40='Inputs|General'!$A$32,P$7,IF('Inputs|General'!$B40='Inputs|General'!$A$33,P$8,P$9))*'Inputs|General'!$D40 -> 55.92470692 | Q15: =IF('Inputs|General'!$B40='Inputs|General'!$A$32,Q$7,IF('Inputs|General'!$B40='Inputs|General'!$A$33,Q$8,Q$9))*'Inputs|General'!$D40 -> 56.58752896 | R15: =IF('Inputs|General'!$B40='Inputs|General'!$A$32,R$7,IF('Inputs|General'!$B40='Inputs|General'!$A$33,R$8,R$9))*'Inputs|General'!$D40 -> 58.06980995 | S15: =IF('Inputs|General'!$B40='Inputs|General'!$A$32,S$7,IF('Inputs|General'!$B40='Inputs|General'!$A$33,S$8,S$9))*'Inputs|General'!$D40 -> 65.97802666 | T15: =IF('Inputs|General'!$B40='Inputs|General'!$A$32,T$7,IF('Inputs|General'!$B40='Inputs|General'!$A$33,T$8,T$9))*'Inputs|General'!$D40 -> 66.85122808 | V15: 1.421085472e-14 | W15: 7.105427358e-15 | X15: 2.842170943e-14 | Y15: 0 | Z15: 1.421085472e-14
A16: ='Inputs|General'!A41 -> Metal Halide 70W | C16: ='Inputs|General'!E41 -> 191.93 | D16: =IF('Inputs|General'!$B41='Inputs|General'!$A$32,D$7,IF('Inputs|General'!$B41='Inputs|General'!$A$33,D$8,D$9))*'Inputs|General'!$D41 -> 262.5020983 | E16: =IF('Inputs|General'!$B41='Inputs|General'!$A$32,E$7,IF('Inputs|General'!$B41='Inputs|General'!$A$33,E$8,E$9))*'Inputs|General'!$D41 -> 267.4777126 | F16: =IF('Inputs|General'!$B41='Inputs|General'!$A$32,F$7,IF('Inputs|General'!$B41='Inputs|General'!$A$33,F$8,F$9))*'Inputs|General'!$D41 -> 279.2906704 | G16: =IF('Inputs|General'!$B41='Inputs|General'!$A$32,G$7,IF('Inputs|General'!$B41='Inputs|General'!$A$33,G$8,G$9))*'Inputs|General'!$D41 -> 303.6797648 | H16: =IF('Inputs|General'!$B41='Inputs|General'!$A$32,H$7,IF('Inputs|General'!$B41='Inputs|General'!$A$33,H$8,H$9))*'Inputs|General'!$D41 -> 309.8623344 | J16: =IF('Inputs|General'!$B41='Inputs|General'!$A$32,J$7,IF('Inputs|General'!$B41='Inputs|General'!$A$33,J$8,J$9))*'Inputs|General'!$D41 -> 112.4863851 | K16: =IF('Inputs|General'!$B41='Inputs|General'!$A$32,K$7,IF('Inputs|General'!$B41='Inputs|General'!$A$33,K$8,K$9))*'Inputs|General'!$D41 -> 115.379532 | L16: =IF('Inputs|General'!$B41='Inputs|General'!$A$32,L$7,IF('Inputs|General'!$B41='Inputs|General'!$A$33,L$8,L$9))*'Inputs|General'!$D41 -> 118.4236151 | M16: =IF('Inputs|General'!$B41='Inputs|General'!$A$32,M$7,IF('Inputs|General'!$B41='Inputs|General'!$A$33,M$8,M$9))*'Inputs|General'!$D41 -> 121.7600492 | N16: =IF('Inputs|General'!$B41='Inputs|General'!$A$32,N$7,IF('Inputs|General'!$B41='Inputs|General'!$A$33,N$8,N$9))*'Inputs|General'!$D41 -> 125.3754833 | P16: =IF('Inputs|General'!$B41='Inputs|General'!$A$32,P$7,IF('Inputs|General'!$B41='Inputs|General'!$A$33,P$8,P$9))*'Inputs|General'!$D41 -> 150.0157132 | Q16: =IF('Inputs|General'!$B41='Inputs|General'!$A$32,Q$7,IF('Inputs|General'!$B41='Inputs|General'!$A$33,Q$8,Q$9))*'Inputs|General'!$D41 -> 152.0981806 | R16: =IF('Inputs|General'!$B41='Inputs|General'!$A$32,R$7,IF('Inputs|General'!$B41='Inputs|General'!$A$33,R$8,R$9))*'Inputs|General'!$D41 -> 160.8670552 | S16: =IF('Inputs|General'!$B41='Inputs|General'!$A$32,S$7,IF('Inputs|General'!$B41='Inputs|General'!$A$33,S$8,S$9))*'Inputs|General'!$D41 -> 181.9197156 | T16: =IF('Inputs|General'!$B41='Inputs|General'!$A$32,T$7,IF('Inputs|General'!$B41='Inputs|General'!$A$33,T$8,T$9))*'Inputs|General'!$D41 -> 184.486851 | V16: 0 | W16: 2.842170943e-14 | X16: 2.842170943e-14 | Y16: 2.842170943e-14 | Z16: 2.842170943e-14
A17: ='Inputs|General'!A42 -> Metal Halide 100W | C17: ='Inputs|General'!E42 -> 248.49 | D17: =IF('Inputs|General'!$B42='Inputs|General'!$A$32,D$7,IF('Inputs|General'!$B42='Inputs|General'!$A$33,D$8,D$9))*'Inputs|General'!$D42 -> 267.7942156 | E17: =IF('Inputs|General'!$B42='Inputs|General'!$A$32,E$7,IF('Inputs|General'!$B42='Inputs|General'!$A$33,E$8,E$9))*'Inputs|General'!$D42 -> 273.6433784 | F17: =IF('Inputs|General'!$B42='Inputs|General'!$A$32,F$7,IF('Inputs|General'!$B42='Inputs|General'!$A$33,F$8,F$9))*'Inputs|General'!$D42 -> 280.7710129 | G17: =IF('Inputs|General'!$B42='Inputs|General'!$A$32,G$7,IF('Inputs|General'!$B42='Inputs|General'!$A$33,G$8,G$9))*'Inputs|General'!$D42 -> 299.3742274 | H17: =IF('Inputs|General'!$B42='Inputs|General'!$A$32,H$7,IF('Inputs|General'!$B42='Inputs|General'!$A$33,H$8,H$9))*'Inputs|General'!$D42 -> 307.0160019 | J17: =IF('Inputs|General'!$B42='Inputs|General'!$A$32,J$7,IF('Inputs|General'!$B42='Inputs|General'!$A$33,J$8,J$9))*'Inputs|General'!$D42 -> 175.0304237 | K17: =IF('Inputs|General'!$B42='Inputs|General'!$A$32,K$7,IF('Inputs|General'!$B42='Inputs|General'!$A$33,K$8,K$9))*'Inputs|General'!$D42 -> 179.7624599 | L17: =IF('Inputs|General'!$B42='Inputs|General'!$A$32,L$7,IF('Inputs|General'!$B42='Inputs|General'!$A$33,L$8,L$9))*'Inputs|General'!$D42 -> 184.8041751 | M17: =IF('Inputs|General'!$B42='Inputs|General'!$A$32,M$7,IF('Inputs|General'!$B42='Inputs|General'!$A$33,M$8,M$9))*'Inputs|General'!$D42 -> 190.4194018 | N17: =IF('Inputs|General'!$B42='Inputs|General'!$A$32,N$7,IF('Inputs|General'!$B42='Inputs|General'!$A$33,N$8,N$9))*'Inputs|General'!$D42 -> 196.6040381 | P17: =IF('Inputs|General'!$B42='Inputs|General'!$A$32,P$7,IF('Inputs|General'!$B42='Inputs|General'!$A$33,P$8,P$9))*'Inputs|General'!$D42 -> 92.76379186 | Q17: =IF('Inputs|General'!$B42='Inputs|General'!$A$32,Q$7,IF('Inputs|General'!$B42='Inputs|General'!$A$33,Q$8,Q$9))*'Inputs|General'!$D42 -> 93.8809185 | R17: =IF('Inputs|General'!$B42='Inputs|General'!$A$32,R$7,IF('Inputs|General'!$B42='Inputs|General'!$A$33,R$8,R$9))*'Inputs|General'!$D42 -> 95.96683779 | S17: =IF('Inputs|General'!$B42='Inputs|General'!$A$32,S$7,IF('Inputs|General'!$B42='Inputs|General'!$A$33,S$8,S$9))*'Inputs|General'!$D42 -> 108.9548256 | T17: =IF('Inputs|General'!$B42='Inputs|General'!$A$32,T$7,IF('Inputs|General'!$B42='Inputs|General'!$A$33,T$8,T$9))*'Inputs|General'!$D42 -> 110.4119638 | V17: 0 | W17: 0 | X17: 0 | Y17: 4.263256415e-14 | Z17: 2.842170943e-14
A18: ='Inputs|General'!A43 -> Metal Halide 150W | C18: ='Inputs|General'!E43 -> 282.31 | D18: =IF('Inputs|General'!$B43='Inputs|General'!$A$32,D$7,IF('Inputs|General'!$B43='Inputs|General'!$A$33,D$8,D$9))*'Inputs|General'!$D43 -> 304.2335209 | E18: =IF('Inputs|General'!$B43='Inputs|General'!$A$32,E$7,IF('Inputs|General'!$B43='Inputs|General'!$A$33,E$8,E$9))*'Inputs|General'!$D43 -> 310.8785913 | F18: =IF('Inputs|General'!$B43='Inputs|General'!$A$32,F$7,IF('Inputs|General'!$B43='Inputs|General'!$A$33,F$8,F$9))*'Inputs|General'!$D43 -> 318.9760976 | G18: =IF('Inputs|General'!$B43='Inputs|General'!$A$32,G$7,IF('Inputs|General'!$B43='Inputs|General'!$A$33,G$8,G$9))*'Inputs|General'!$D43 -> 340.1106894 | H18: =IF('Inputs|General'!$B43='Inputs|General'!$A$32,H$7,IF('Inputs|General'!$B43='Inputs|General'!$A$33,H$8,H$9))*'Inputs|General'!$D43 -> 348.7922958 | J18: =IF('Inputs|General'!$B43='Inputs|General'!$A$32,J$7,IF('Inputs|General'!$B43='Inputs|General'!$A$33,J$8,J$9))*'Inputs|General'!$D43 -> 198.8471706 | K18: =IF('Inputs|General'!$B43='Inputs|General'!$A$32,K$7,IF('Inputs|General'!$B43='Inputs|General'!$A$33,K$8,K$9))*'Inputs|General'!$D43 -> 204.2231046 | L18: =IF('Inputs|General'!$B43='Inputs|General'!$A$32,L$7,IF('Inputs|General'!$B43='Inputs|General'!$A$33,L$8,L$9))*'Inputs|General'!$D43 -> 209.9508563 | M18: =IF('Inputs|General'!$B43='Inputs|General'!$A$32,M$7,IF('Inputs|General'!$B43='Inputs|General'!$A$33,M$8,M$9))*'Inputs|General'!$D43 -> 216.3301584 | N18: =IF('Inputs|General'!$B43='Inputs|General'!$A$32,N$7,IF('Inputs|General'!$B43='Inputs|General'!$A$33,N$8,N$9))*'Inputs|General'!$D43 -> 223.3563507 | P18: =IF('Inputs|General'!$B43='Inputs|General'!$A$32,P$7,IF('Inputs|General'!$B43='Inputs|General'!$A$33,P$8,P$9))*'Inputs|General'!$D43 -> 105.3863503 | Q18: =IF('Inputs|General'!$B43='Inputs|General'!$A$32,Q$7,IF('Inputs|General'!$B43='Inputs|General'!$A$33,Q$8,Q$9))*'Inputs|General'!$D43 -> 106.6554866 | R18: =IF('Inputs|General'!$B43='Inputs|General'!$A$32,R$7,IF('Inputs|General'!$B43='Inputs|General'!$A$33,R$8,R$9))*'Inputs|General'!$D43 -> 109.0252412 | S18: =IF('Inputs|General'!$B43='Inputs|General'!$A$32,S$7,IF('Inputs|General'!$B43='Inputs|General'!$A$33,S$8,S$9))*'Inputs|General'!$D43 -> 123.780531 | T18: =IF('Inputs|General'!$B43='Inputs|General'!$A$32,T$7,IF('Inputs|General'!$B43='Inputs|General'!$A$33,T$8,T$9))*'Inputs|General'!$D43 -> 125.435945 | V18: 1.421085472e-14 | W18: 0 | X18: 2.842170943e-14 | Y18: 4.263256415e-14 | Z18: 0
A19: ='Inputs|General'!A44 -> HP Sodium 50W | C19: ='Inputs|General'!E44 -> 46.14 | D19: =IF('Inputs|General'!$B44='Inputs|General'!$A$32,D$7,IF('Inputs|General'!$B44='Inputs|General'!$A$33,D$8,D$9))*'Inputs|General'!$D44 -> 49.723913 | E19: =IF('Inputs|General'!$B44='Inputs|General'!$A$32,E$7,IF('Inputs|General'!$B44='Inputs|General'!$A$33,E$8,E$9))*'Inputs|General'!$D44 -> 50.809983 | F19: =IF('Inputs|General'!$B44='Inputs|General'!$A$32,F$7,IF('Inputs|General'!$B44='Inputs|General'!$A$33,F$8,F$9))*'Inputs|General'!$D44 -> 52.13343907 | G19: =IF('Inputs|General'!$B44='Inputs|General'!$A$32,G$7,IF('Inputs|General'!$B44='Inputs|General'!$A$33,G$8,G$9))*'Inputs|General'!$D44 -> 55.58767581 | H19: =IF('Inputs|General'!$B44='Inputs|General'!$A$32,H$7,IF('Inputs|General'!$B44='Inputs|General'!$A$33,H$8,H$9))*'Inputs|General'!$D44 -> 57.00659716 | J19: =IF('Inputs|General'!$B44='Inputs|General'!$A$32,J$7,IF('Inputs|General'!$B44='Inputs|General'!$A$33,J$8,J$9))*'Inputs|General'!$D44 -> 32.49957264 | K19: =IF('Inputs|General'!$B44='Inputs|General'!$A$32,K$7,IF('Inputs|General'!$B44='Inputs|General'!$A$33,K$8,K$9))*'Inputs|General'!$D44 -> 33.37821505 | L19: =IF('Inputs|General'!$B44='Inputs|General'!$A$32,L$7,IF('Inputs|General'!$B44='Inputs|General'!$A$33,L$8,L$9))*'Inputs|General'!$D44 -> 34.31435853 | M19: =IF('Inputs|General'!$B44='Inputs|General'!$A$32,M$7,IF('Inputs|General'!$B44='Inputs|General'!$A$33,M$8,M$9))*'Inputs|General'!$D44 -> 35.35699138 | N19: =IF('Inputs|General'!$B44='Inputs|General'!$A$32,N$7,IF('Inputs|General'!$B44='Inputs|General'!$A$33,N$8,N$9))*'Inputs|General'!$D44 -> 36.50535194 | P19: =IF('Inputs|General'!$B44='Inputs|General'!$A$32,P$7,IF('Inputs|General'!$B44='Inputs|General'!$A$33,P$8,P$9))*'Inputs|General'!$D44 -> 17.22434036 | Q19: =IF('Inputs|General'!$B44='Inputs|General'!$A$32,Q$7,IF('Inputs|General'!$B44='Inputs|General'!$A$33,Q$8,Q$9))*'Inputs|General'!$D44 -> 17.43176795 | R19: =IF('Inputs|General'!$B44='Inputs|General'!$A$32,R$7,IF('Inputs|General'!$B44='Inputs|General'!$A$33,R$8,R$9))*'Inputs|General'!$D44 -> 17.81908053 | S19: =IF('Inputs|General'!$B44='Inputs|General'!$A$32,S$7,IF('Inputs|General'!$B44='Inputs|General'!$A$33,S$8,S$9))*'Inputs|General'!$D44 -> 20.23068443 | T19: =IF('Inputs|General'!$B44='Inputs|General'!$A$32,T$7,IF('Inputs|General'!$B44='Inputs|General'!$A$33,T$8,T$9))*'Inputs|General'!$D44 -> 20.50124522 | V19: 7.105427358e-15 | W19: 3.552713679e-15 | X19: 0 | Y19: 1.065814104e-14 | Z19: 0
A20: ='Inputs|General'!A$46 -> Energy Efficient Lights
A21: ='Inputs|General'!A47 -> T5 2X14W | C21: ='Inputs|General'!E47 -> 35.6 | D21: ='Report|Charges Summary'!B$80 -> 51.50025158 | E21: ='Report|Charges Summary'!C$80 -> 54.57188608 | F21: ='Report|Charges Summary'!D$80 -> 57.34048538 | G21: ='Report|Charges Summary'!E$80 -> 59.96423504 | H21: ='Report|Charges Summary'!F$80 -> 62.21429085 | J21: =SUM('Report|Charges Summary'!B74,'Report|Charges Summary'!B6) -> 32.53687756 | K21: =SUM('Report|Charges Summary'!C74,'Report|Charges Summary'!C6) -> 33.39378207 | L21: =SUM('Report|Charges Summary'!D74,'Report|Charges Summary'!D6) -> 34.30159648 | M21: =SUM('Report|Charges Summary'!E74,'Report|Charges Summary'!E6) -> 35.30720563 | N21: =SUM('Report|Charges Summary'!F74,'Report|Charges Summary'!F6) -> 36.40806807 | P21: =SUM('Report|Charges Summary'!B76,'Report|Charges Summary'!B7) -> 18.96337402 | Q21: =SUM('Report|Charges Summary'!C76,'Report|Charges Summary'!C7) -> 21.17810401 | R21: =SUM('Report|Charges Summary'!D76,'Report|Charges Summary'!D7) -> 23.0388889 | S21: =SUM('Report|Charges Summary'!E76,'Report|Charges Summary'!E7) -> 24.6570294 | T21: =SUM('Report|Charges Summary'!F76,'Report|Charges Summary'!F7) -> 25.80622278 | V21: =ABS(D21-J21-P21) -> 0 | W21: =ABS(E21-K21-Q21) -> 0 | X21: =ABS(F21-L21-R21) -> 0 | Y21: =ABS(G21-M21-S21) -> 7.105427358e-15 | Z21: =ABS(H21-N21-T21) -> 0
A22: ='Inputs|General'!A48 -> T5 2X24W | C22: ='Inputs|General'!E48 -> 42.08 | D22: ='Report|Charges Summary'!B$96 -> 55.00569005 | E22: ='Report|Charges Summary'!C$96 -> 58.21321897 | F22: ='Report|Charges Summary'!D$96 -> 61.11547793 | G22: ='Report|Charges Summary'!E$96 -> 63.87714589 | H22: ='Report|Charges Summary'!F$96 -> 66.26462141 | J22: =SUM('Report|Charges Summary'!B90,'Report|Charges Summary'!B6) -> 35.86204221 | K22: =SUM('Report|Charges Summary'!C90,'Report|Charges Summary'!C6) -> 36.80900078 | L22: =SUM('Report|Charges Summary'!D90,'Report|Charges Summary'!D6) -> 37.81290084 | M22: =SUM('Report|Charges Summary'!E90,'Report|Charges Summary'!E6) -> 38.92545342 | N22: =SUM('Report|Charges Summary'!F90,'Report|Charges Summary'!F6) -> 40.14430355 | P22: =SUM('Report|Charges Summary'!B92,'Report|Charges Summary'!B7) -> 19.14364784 | Q22: =SUM('Report|Charges Summary'!C92,'Report|Charges Summary'!C7) -> 21.40421819 | R22: =SUM('Report|Charges Summary'!D92,'Report|Charges Summary'!D7) -> 23.30257708 | S22: =SUM('Report|Charges Summary'!E92,'Report|Charges Summary'!E7) -> 24.95169247 | T22: =SUM('Report|Charges Summary'!F92,'Report|Charges Summary'!F7) -> 26.12031787 | V22: 3.552713679e-15 | W22: 3.552713679e-15 | X22: 7.105427358e-15 | Y22: 3.552713679e-15 | Z22: 7.105427358e-15
A23: ='Inputs|General'!A49 -> LED 18W | C23: ='Inputs|General'!E49 -> 16.27 | D23: ='Report|Charges Summary'!B$112 -> 29.24017142 | E23: ='Report|Charges Summary'!C$112 -> 31.38821292 | F23: ='Report|Charges Summary'!D$112 -> 33.26038209 | G23: ='Report|Charges Summary'!E$112 -> 34.97171775 | H23: ='Report|Charges Summary'!F$112 -> 36.33097642 | J23: =SUM('Report|Charges Summary'!B106,'Report|Charges Summary'!B6) -> 11.69034874 | K23: =SUM('Report|Charges Summary'!C106,'Report|Charges Summary'!C6) -> 11.98310066 | L23: =SUM('Report|Charges Summary'!D106,'Report|Charges Summary'!D6) -> 12.2891078 | M23: =SUM('Report|Charges Summary'!E106,'Report|Charges Summary'!E6) -> 12.62518116 | N23: =SUM('Report|Charges Summary'!F106,'Report|Charges Summary'!F6) -> 12.98761552 | P23: =SUM('Report|Charges Summary'!B108,'Report|Charges Summary'!B7) -> 17.54982268 | Q23: =SUM('Report|Charges Summary'!C108,'Report|Charges Summary'!C7) -> 19.40511226 | R23: =SUM('Report|Charges Summary'!D108,'Report|Charges Summary'!D7) -> 20.9712743 | S23: =SUM('Report|Charges Summary'!E108,'Report|Charges Summary'!E7) -> 22.34653659 | T23: =SUM('Report|Charges Summary'!F108,'Report|Charges Summary'!F7) -> 23.3433609 | V23: 0 | W23: 0 | X23: 3.552713679e-15 | Y23: 0 | Z23: 0
A24: ='Inputs|General'!A50 -> LED non-standard low power ~14W | C24: ='Inputs|General'!E50 -> 16.27 | D24: ='Report|Charges Summary'!B$128 -> 31.06563361 | E24: ='Report|Charges Summary'!C$128 -> 33.26192207 | F24: ='Report|Charges Summary'!D$128 -> 35.18520348 | G24: ='Report|Charges Summary'!E$128 -> 36.95265318 | H24: ='Report|Charges Summary'!F$128 -> 38.37311494 | J24: =SUM('Report|Charges Summary'!B122,'Report|Charges Summary'!B$6) -> 13.51581093 | K24: =SUM('Report|Charges Summary'!C122,'Report|Charges Summary'!C$6) -> 13.85680981 | L24: =SUM('Report|Charges Summary'!D122,'Report|Charges Summary'!D$6) -> 14.21392918 | M24: =SUM('Report|Charges Summary'!E122,'Report|Charges Summary'!E$6) -> 14.60611659 | N24: =SUM('Report|Charges Summary'!F122,'Report|Charges Summary'!F$6) -> 15.02975404 | P24: =SUM('Report|Charges Summary'!B124,'Report|Charges Summary'!B$7) -> 17.54982268 | Q24: =SUM('Report|Charges Summary'!C124,'Report|Charges Summary'!C$7) -> 19.40511226 | R24: =SUM('Report|Charges Summary'!D124,'Report|Charges Summary'!D$7) -> 20.9712743 | S24: =SUM('Report|Charges Summary'!E124,'Report|Charges Summary'!E$7) -> 22.34653659 | T24: =SUM('Report|Charges Summary'!F124,'Report|Charges Summary'!F$7) -> 23.3433609 | V24: =ABS(D24-J24-P24) -> 0 | W24: =ABS(E24-K24-Q24) -> 7.105427358e-15 | X24: =ABS(F24-L24-R24) -> 3.552713679e-15 | Y24: =ABS(G24-M24-S24) -> 7.105427358e-15 | Z24: =ABS(H24-N24-T24) -> 3.552713679e-15
A25: ='Inputs|General'!A51 -> LED 70W-125W (L1) | C25: ='Inputs|General'!E51 -> 23.59 | D25: ='Report|Charges Summary'!B$144 -> 48.63256375 | E25: ='Report|Charges Summary'!C$144 -> 52.46601309 | F25: ='Report|Charges Summary'!D$144 -> 55.82452111 | G25: ='Report|Charges Summary'!E$144 -> 58.89731397 | H25: ='Report|Charges Summary'!F$144 -> 61.35600852 | J25: =SUM('Report|Charges Summary'!B138,'Report|Charges Summary'!B$6) -> 26.04530232 | K25: =SUM('Report|Charges Summary'!C138,'Report|Charges Summary'!C$6) -> 26.74253298 | L25: =SUM('Report|Charges Summary'!D138,'Report|Charges Summary'!D$6) -> 27.48493864 | M25: =SUM('Report|Charges Summary'!E138,'Report|Charges Summary'!E$6) -> 28.31692999 | N25: =SUM('Report|Charges Summary'!F138,'Report|Charges Summary'!F$6) -> 29.23580626 | P25: =SUM('Report|Charges Summary'!B140,'Report|Charges Summary'!B$7) -> 22.58726143 | Q25: =SUM('Report|Charges Summary'!C140,'Report|Charges Summary'!C$7) -> 25.72348011 | R25: =SUM('Report|Charges Summary'!D140,'Report|Charges Summary'!D$7) -> 28.33958248 | S25: =SUM('Report|Charges Summary'!E140,'Report|Charges Summary'!E$7) -> 30.58038399 | T25: =SUM('Report|Charges Summary'!F140,'Report|Charges Summary'!F$7) -> 32.12020226 | V25: 3.552713679e-15 | W25: 3.552713679e-15 | X25: 7.105427358e-15 | Y25: 0 | Z25: 7.105427358e-15
A26: ='Inputs|General'!A52 -> LED 155W-250W (L2) | C26: ='Inputs|General'!E52 -> 24.3 | D26: ='Report|Charges Summary'!B$160 -> 49.27183262 | E26: ='Report|Charges Summary'!C$160 -> 53.26783642 | F26: ='Report|Charges Summary'!D$160 -> 56.7595856 | G26: ='Report|Charges Summary'!E$160 -> 59.94221846 | H26: ='Report|Charges Summary'!F$160 -> 62.46982088 | J26: =SUM('Report|Charges Summary'!B154,'Report|Charges Summary'!B$6) -> 26.04530232 | K26: =SUM('Report|Charges Summary'!C154,'Report|Charges Summary'!C$6) -> 26.74253298 | L26: =SUM('Report|Charges Summary'!D154,'Report|Charges Summary'!D$6) -> 27.48493864 | M26: =SUM('Report|Charges Summary'!E154,'Report|Charges Summary'!E$6) -> 28.31692999 | N26: =SUM('Report|Charges Summary'!F154,'Report|Charges Summary'!F$6) -> 29.23580626 | P26: =SUM('Report|Charges Summary'!B156,'Report|Charges Summary'!B$7) -> 23.2265303 | Q26: =SUM('Report|Charges Summary'!C156,'Report|Charges Summary'!C$7) -> 26.52530344 | R26: =SUM('Report|Charges Summary'!D156,'Report|Charges Summary'!D$7) -> 29.27464696 | S26: =SUM('Report|Charges Summary'!E156,'Report|Charges Summary'!E$7) -> 31.62528848 | T26: =SUM('Report|Charges Summary'!F156,'Report|Charges Summary'!F$7) -> 33.23401462 | V26: 0 | W26: 7.105427358e-15 | X26: 0 | Y26: 0 | Z26: 7.105427358e-15
A27: ='Inputs|General'!A53 -> LED 275W-400W (L4) | C27: ='Inputs|General'!E53 -> 25.83 | D27: ='Report|Charges Summary'!B$176 -> 54.99661327 | E27: ='Report|Charges Summary'!C$176 -> 60.44832471 | F27: ='Report|Charges Summary'!D$176 -> 65.13327512 | G27: ='Report|Charges Summary'!E$176 -> 69.29954717 | H27: ='Report|Charges Summary'!F$176 -> 72.44423328 | J27: =SUM('Report|Charges Summary'!B170,'Report|Charges Summary'!B$6) -> 26.04530232 | K27: =SUM('Report|Charges Summary'!C170,'Report|Charges Summary'!C$6) -> 26.74253298 | L27: =SUM('Report|Charges Summary'!D170,'Report|Charges Summary'!D$6) -> 27.48493864 | M27: =SUM('Report|Charges Summary'!E170,'Report|Charges Summary'!E$6) -> 28.31692999 | N27: =SUM('Report|Charges Summary'!F170,'Report|Charges Summary'!F$6) -> 29.23580626 | P27: =SUM('Report|Charges Summary'!B172,'Report|Charges Summary'!B$7) -> 28.95131095 | Q27: =SUM('Report|Charges Summary'!C172,'Report|Charges Summary'!C$7) -> 33.70579173 | R27: =SUM('Report|Charges Summary'!D172,'Report|Charges Summary'!D$7) -> 37.64833648 | S27: =SUM('Report|Charges Summary'!E172,'Report|Charges Summary'!E$7) -> 40.98261718 | T27: =SUM('Report|Charges Summary'!F172,'Report|Charges Summary'!F$7) -> 43.20842702 | V27: 3.552713679e-15 | W27: 7.105427358e-15 | X27: 7.105427358e-15 | Y27: 0 | Z27: 7.105427358e-15
A28: ='Inputs|General'!A54 -> Compact Fluorescent 32W | C28: ='Inputs|General'!E54 -> 31.59 | D28: =IF('Inputs|General'!$B54='Inputs|General'!$A$47,D$21,D$22)*'Inputs|General'!$D54 -> 45.30013075 | E28: =IF('Inputs|General'!$B54='Inputs|General'!$A$47,E$21,E$22)*'Inputs|General'!$D54 -> 48.00197085 | F28: =IF('Inputs|General'!$B54='Inputs|General'!$A$47,F$21,F$22)*'Inputs|General'!$D54 -> 50.43725818 | G28: =IF('Inputs|General'!$B54='Inputs|General'!$A$47,G$21,G$22)*'Inputs|General'!$D54 -> 52.74513434 | H28: =IF('Inputs|General'!$B54='Inputs|General'!$A$47,H$21,H$22)*'Inputs|General'!$D54 -> 54.72430569 | J28: =IF('Inputs|General'!$B54='Inputs|General'!$A$47,J$21,J$22)*'Inputs|General'!$D54 -> 28.61975937 | K28: =IF('Inputs|General'!$B54='Inputs|General'!$A$47,K$21,K$22)*'Inputs|General'!$D54 -> 29.37350105 | L28: =IF('Inputs|General'!$B54='Inputs|General'!$A$47,L$21,L$22)*'Inputs|General'!$D54 -> 30.1720236 | M28: =IF('Inputs|General'!$B54='Inputs|General'!$A$47,M$21,M$22)*'Inputs|General'!$D54 -> 31.05656735 | N28: =IF('Inputs|General'!$B54='Inputs|General'!$A$47,N$21,N$22)*'Inputs|General'!$D54 -> 32.02489684 | P28: =IF('Inputs|General'!$B54='Inputs|General'!$A$47,P$21,P$22)*'Inputs|General'!$D54 -> 16.68037138 | Q28: =IF('Inputs|General'!$B54='Inputs|General'!$A$47,Q$21,Q$22)*'Inputs|General'!$D54 -> 18.62846979 | R28: =IF('Inputs|General'!$B54='Inputs|General'!$A$47,R$21,R$22)*'Inputs|General'!$D54 -> 20.26523459 | S28: =IF('Inputs|General'!$B54='Inputs|General'!$A$47,S$21,S$22)*'Inputs|General'!$D54 -> 21.68856698 | T28: =IF('Inputs|General'!$B54='Inputs|General'!$A$47,T$21,T$22)*'Inputs|General'!$D54 -> 22.69940885 | V28: 0 | W28: 0 | X28: 3.552713679e-15 | Y28: 7.105427358e-15 | Z28: 0
A29: ='Inputs|General'!A55 -> Compact Fluorescent 42W | C29: ='Inputs|General'!E55 -> 31.59 | D29: =IF('Inputs|General'!$B55='Inputs|General'!$A$47,D$21,D$22)*'Inputs|General'!$D55 -> 45.30013075 | E29: =IF('Inputs|General'!$B55='Inputs|General'!$A$47,E$21,E$22)*'Inputs|General'!$D55 -> 48.00197085 | F29: =IF('Inputs|General'!$B55='Inputs|General'!$A$47,F$21,F$22)*'Inputs|General'!$D55 -> 50.43725818 | G29: =IF('Inputs|General'!$B55='Inputs|General'!$A$47,G$21,G$22)*'Inputs|General'!$D55 -> 52.74513434 | H29: =IF('Inputs|General'!$B55='Inputs|General'!$A$47,H$21,H$22)*'Inputs|General'!$D55 -> 54.72430569 | J29: =IF('Inputs|General'!$B55='Inputs|General'!$A$47,J$21,J$22)*'Inputs|General'!$D55 -> 28.61975937 | K29: =IF('Inputs|General'!$B55='Inputs|General'!$A$47,K$21,K$22)*'Inputs|General'!$D55 -> 29.37350105 | L29: =IF('Inputs|General'!$B55='Inputs|General'!$A$47,L$21,L$22)*'Inputs|General'!$D55 -> 30.1720236 | M29: =IF('Inputs|General'!$B55='Inputs|General'!$A$47,M$21,M$22)*'Inputs|General'!$D55 -> 31.05656735 | N29: =IF('Inputs|General'!$B55='Inputs|General'!$A$47,N$21,N$22)*'Inputs|General'!$D55 -> 32.02489684 | P29: =IF('Inputs|General'!$B55='Inputs|General'!$A$47,P$21,P$22)*'Inputs|General'!$D55 -> 16.68037138 | Q29: =IF('Inputs|General'!$B55='Inputs|General'!$A$47,Q$21,Q$22)*'Inputs|General'!$D55 -> 18.62846979 | R29: =IF('Inputs|General'!$B55='Inputs|General'!$A$47,R$21,R$22)*'Inputs|General'!$D55 -> 20.26523459 | S29: =IF('Inputs|General'!$B55='Inputs|General'!$A$47,S$21,S$22)*'Inputs|General'!$D55 -> 21.68856698 | T29: =IF('Inputs|General'!$B55='Inputs|General'!$A$47,T$21,T$22)*'Inputs|General'!$D55 -> 22.69940885 | V29: 0 | W29: 0 | X29: 3.552713679e-15 | Y29: 7.105427358e-15 | Z29: 0
A30: ='Inputs|General'!A56 -> Smart lighting L1 | C30: ='Inputs|General'!E56 -> 25.83 | D30: ='Report|Charges Summary'!B192 -> 59.59140705 | E30: ='Report|Charges Summary'!C192 -> 63.68505316 | F30: ='Report|Charges Summary'!D192 -> 67.30993583 | G30: ='Report|Charges Summary'!E192 -> 70.65542788 | H30: ='Report|Charges Summary'!F192 -> 73.39329636 | J30: =SUM('Report|Charges Summary'!B186,'Report|Charges Summary'!B$6) -> 37.00414562 | K30: =SUM('Report|Charges Summary'!C186,'Report|Charges Summary'!C$6) -> 37.96157306 | L30: =SUM('Report|Charges Summary'!D186,'Report|Charges Summary'!D$6) -> 38.97035335 | M30: =SUM('Report|Charges Summary'!E186,'Report|Charges Summary'!E$6) -> 40.0750439 | N30: =SUM('Report|Charges Summary'!F186,'Report|Charges Summary'!F$6) -> 41.27309409 | P30: =SUM('Report|Charges Summary'!B188,'Report|Charges Summary'!B$7) -> 22.58726143 | Q30: =SUM('Report|Charges Summary'!C188,'Report|Charges Summary'!C$7) -> 25.72348011 | R30: =SUM('Report|Charges Summary'!D188,'Report|Charges Summary'!D$7) -> 28.33958248 | S30: =SUM('Report|Charges Summary'!E188,'Report|Charges Summary'!E$7) -> 30.58038399 | T30: =SUM('Report|Charges Summary'!F188,'Report|Charges Summary'!F$7) -> 32.12020226 | V30: =ABS(D30-J30-P30) -> 0 | W30: =ABS(E30-K30-Q30) -> 0 | X30: =ABS(F30-L30-R30) -> 0 | Y30: =ABS(G30-M30-S30) -> 7.105427358e-15 | Z30: =ABS(H30-N30-T30) -> 7.105427358e-15
A31: ='Inputs|General'!A57 -> Smart lighting L2 | C31: ='Inputs|General'!E57 -> 25.83 | D31: ='Report|Charges Summary'!B208 -> 60.23067593 | E31: ='Report|Charges Summary'!C208 -> 64.48687649 | F31: ='Report|Charges Summary'!D208 -> 68.24500032 | G31: ='Report|Charges Summary'!E208 -> 71.70033238 | H31: ='Report|Charges Summary'!F208 -> 74.50710871 | J31: =SUM('Report|Charges Summary'!B202,'Report|Charges Summary'!B$6) -> 37.00414562 | K31: =SUM('Report|Charges Summary'!C202,'Report|Charges Summary'!C$6) -> 37.96157306 | L31: =SUM('Report|Charges Summary'!D202,'Report|Charges Summary'!D$6) -> 38.97035335 | M31: =SUM('Report|Charges Summary'!E202,'Report|Charges Summary'!E$6) -> 40.0750439 | N31: =SUM('Report|Charges Summary'!F202,'Report|Charges Summary'!F$6) -> 41.27309409 | P31: =SUM('Report|Charges Summary'!B204,'Report|Charges Summary'!B$7) -> 23.2265303 | Q31: =SUM('Report|Charges Summary'!C204,'Report|Charges Summary'!C$7) -> 26.52530344 | R31: =SUM('Report|Charges Summary'!D204,'Report|Charges Summary'!D$7) -> 29.27464696 | S31: =SUM('Report|Charges Summary'!E204,'Report|Charges Summary'!E$7) -> 31.62528848 | T31: =SUM('Report|Charges Summary'!F204,'Report|Charges Summary'!F$7) -> 33.23401462 | V31: 0 | W31: 3.552713679e-15 | X31: 0 | Y31: 7.105427358e-15 | Z31: 7.105427358e-15
A32: ='Inputs|General'!A58 -> Smart lighting L4 | C32: ='Inputs|General'!E58 -> 25.83 | D32: ='Report|Charges Summary'!B224 -> 65.95545657 | E32: ='Report|Charges Summary'!C224 -> 71.66736478 | F32: ='Report|Charges Summary'!D224 -> 76.61868984 | G32: ='Report|Charges Summary'!E224 -> 81.05766108 | H32: ='Report|Charges Summary'!F224 -> 84.48152112 | J32: =SUM('Report|Charges Summary'!B218,'Report|Charges Summary'!B$6) -> 37.00414562 | K32: =SUM('Report|Charges Summary'!C218,'Report|Charges Summary'!C$6) -> 37.96157306 | L32: =SUM('Report|Charges Summary'!D218,'Report|Charges Summary'!D$6) -> 38.97035335 | M32: =SUM('Report|Charges Summary'!E218,'Report|Charges Summary'!E$6) -> 40.0750439 | N32: =SUM('Report|Charges Summary'!F218,'Report|Charges Summary'!F$6) -> 41.27309409 | P32: =SUM('Report|Charges Summary'!B220,'Report|Charges Summary'!B$7) -> 28.95131095 | Q32: =SUM('Report|Charges Summary'!C220,'Report|Charges Summary'!C$7) -> 33.70579173 | R32: =SUM('Report|Charges Summary'!D220,'Report|Charges Summary'!D$7) -> 37.64833648 | S32: =SUM('Report|Charges Summary'!E220,'Report|Charges Summary'!E$7) -> 40.98261718 | T32: =SUM('Report|Charges Summary'!F220,'Report|Charges Summary'!F$7) -> 43.20842702 | V32: 0 | W32: 7.105427358e-15 | X32: 0 | Y32: 0 | Z32: 7.105427358e-15
C34: Total Tariff | J34: Operations, maintenance and repair Tariff | P34: Replacement Tariff | V34: Check
C35: Actual
A36: ='Inputs|General'!A$63 -> Existing Lights | C36: ='Inputs|General'!P$2 -> HY2021 | D36: ='Inputs|General'!Q$2 -> 2022-06-30 | E36: ='Inputs|General'!R$2 -> 2023-06-30 | F36: ='Inputs|General'!S$2 -> 2024-06-30 | G36: ='Inputs|General'!T$2 -> 2025-06-30 | H36: ='Inputs|General'!U$2 -> 2026-06-30 | J36: =D36 -> 2022-06-30 | K36: =E36 -> 2023-06-30 | L36: 2024-06-30 | M36: 2025-06-30 | N36: 2026-06-30 | P36: =J36 -> 2022-06-30 | Q36: =K36 -> 2023-06-30 | R36: 2024-06-30 | S36: 2025-06-30 | T36: 2026-06-30 | V36: =P36 -> 2022-06-30 | W36: =Q36 -> 2023-06-30 | X36: =R36 -> 2024-06-30 | Y36: =S36 -> 2025-06-30 | Z36: =T36 -> 2026-06-30
A37: ='Inputs|General'!A64 -> Mercury Vapour 80W | C37: ='Inputs|General'!E64 -> 49.95 | D37: ='Report|Charges Summary'!G$22 -> 66.12007849 | E37: ='Report|Charges Summary'!H$22 -> 67.34821227 | F37: ='Report|Charges Summary'!I$22 -> 67.97387436 | G37: ='Report|Charges Summary'!J$22 -> 73.6708761 | H37: ='Report|Charges Summary'!K$22 -> 75.20925545 | J37: =SUM('Report|Charges Summary'!G16,'Report|Charges Summary'!G6) -> 29.53254592 | K37: =SUM('Report|Charges Summary'!H16,'Report|Charges Summary'!H6) -> 30.29317736 | L37: =SUM('Report|Charges Summary'!I16,'Report|Charges Summary'!I6) -> 31.09368809 | M37: =SUM('Report|Charges Summary'!J16,'Report|Charges Summary'!J6) -> 31.97018283 | N37: =SUM('Report|Charges Summary'!K16,'Report|Charges Summary'!K6) -> 32.91976244 | P37: =SUM('Report|Charges Summary'!G18,'Report|Charges Summary'!G7) -> 36.58753256 | Q37: =SUM('Report|Charges Summary'!H18,'Report|Charges Summary'!H7) -> 37.05503491 | R37: =SUM('Report|Charges Summary'!I18,'Report|Charges Summary'!I7) -> 36.88018627 | S37: =SUM('Report|Charges Summary'!J18,'Report|Charges Summary'!J7) -> 41.70069327 | T37: =SUM('Report|Charges Summary'!K18,'Report|Charges Summary'!K7) -> 42.28949302 | V37: =ABS(D37-J37-P37) -> 7.105427358e-15 | W37: =ABS(E37-K37-Q37) -> 7.105427358e-15 | X37: =ABS(F37-L37-R37) -> 0 | Y37: =ABS(G37-M37-S37) -> 7.105427358e-15 | Z37: =ABS(H37-N37-T37) -> 0
A38: ='Inputs|General'!A65 -> HP Sodium 150W | C38: ='Inputs|General'!E65 -> 118.4 | D38: ='Report|Charges Summary'!G$46 -> 131.4537222 | E38: ='Report|Charges Summary'!H$46 -> 134.3879677 | F38: ='Report|Charges Summary'!I$46 -> 135.8931124 | G38: ='Report|Charges Summary'!J$46 -> 144.2728516 | H38: ='Report|Charges Summary'!K$46 -> 148.1271788 | J38: =SUM('Report|Charges Summary'!G40,'Report|Charges Summary'!G6) -> 90.55750669 | K38: =SUM('Report|Charges Summary'!H40,'Report|Charges Summary'!H6) -> 93.03309242 | L38: =SUM('Report|Charges Summary'!I40,'Report|Charges Summary'!I6) -> 95.67353292 | M38: =SUM('Report|Charges Summary'!J40,'Report|Charges Summary'!J6) -> 98.61614511 | N38: =SUM('Report|Charges Summary'!K40,'Report|Charges Summary'!K6) -> 101.859505 | P38: =SUM('Report|Charges Summary'!G42,'Report|Charges Summary'!G7) -> 40.89621552 | Q38: =SUM('Report|Charges Summary'!H42,'Report|Charges Summary'!H7) -> 41.35487526 | R38: =SUM('Report|Charges Summary'!I42,'Report|Charges Summary'!I7) -> 40.21957945 | S38: =SUM('Report|Charges Summary'!J42,'Report|Charges Summary'!J7) -> 45.65670649 | T38: =SUM('Report|Charges Summary'!K42,'Report|Charges Summary'!K7) -> 46.26767374 | V38: =ABS(D38-J38-P38) -> 0 | W38: 2.131628207e-14 | X38: 7.105427358e-15 | Y38: 1.421085472e-14 | Z38: 0
A39: ='Inputs|General'!A66 -> HP Sodium 250W | C39: ='Inputs|General'!E66 -> 117.12 | D39: ='Report|Charges Summary'!G$62 -> 131.2515041 | E39: ='Report|Charges Summary'!H$62 -> 134.2628709 | F39: ='Report|Charges Summary'!I$62 -> 136.2200851 | G39: ='Report|Charges Summary'!J$62 -> 144.6813744 | H39: ='Report|Charges Summary'!K$62 -> 148.4836854 | J39: =SUM('Report|Charges Summary'!G56,'Report|Charges Summary'!G6) -> 90.14497119 | K39: =SUM('Report|Charges Summary'!H56,'Report|Charges Summary'!H6) -> 92.69810987 | L39: =SUM('Report|Charges Summary'!I56,'Report|Charges Summary'!I6) -> 95.29862424 | M39: =SUM('Report|Charges Summary'!J56,'Report|Charges Summary'!J6) -> 98.19318387 | N39: =SUM('Report|Charges Summary'!K56,'Report|Charges Summary'!K6) -> 101.3798684 | P39: =SUM('Report|Charges Summary'!G58,'Report|Charges Summary'!G7) -> 41.10653296 | Q39: =SUM('Report|Charges Summary'!H58,'Report|Charges Summary'!H7) -> 41.56476107 | R39: =SUM('Report|Charges Summary'!I58,'Report|Charges Summary'!I7) -> 40.92146085 | S39: =SUM('Report|Charges Summary'!J58,'Report|Charges Summary'!J7) -> 46.48819052 | T39: =SUM('Report|Charges Summary'!K58,'Report|Charges Summary'!K7) -> 47.10381699 | V39: 0 | W39: 0 | X39: 0 | Y39: 7.105427358e-15 | Z39: 0
A40: ='Inputs|General'!A67 -> Mercury Vapour 50W | C40: ='Inputs|General'!E67 -> 73.93 | D40: =IF('Inputs|General'!$B67='Inputs|General'!$A$64,D$37,IF('Inputs|General'!$B67='Inputs|General'!$A$65,D$38,D$39))*'Inputs|General'!$D67 -> 97.85771616 | E40: =IF('Inputs|General'!$B67='Inputs|General'!$A$64,E$37,IF('Inputs|General'!$B67='Inputs|General'!$A$65,E$38,E$39))*'Inputs|General'!$D67 -> 99.67535416 | F40: =IF('Inputs|General'!$B67='Inputs|General'!$A$64,F$37,IF('Inputs|General'!$B67='Inputs|General'!$A$65,F$38,F$39))*'Inputs|General'!$D67 -> 100.6013341 | G40: =IF('Inputs|General'!$B67='Inputs|General'!$A$64,G$37,IF('Inputs|General'!$B67='Inputs|General'!$A$65,G$38,G$39))*'Inputs|General'!$D67 -> 109.0328966 | H40: =IF('Inputs|General'!$B67='Inputs|General'!$A$64,H$37,IF('Inputs|General'!$B67='Inputs|General'!$A$65,H$38,H$39))*'Inputs|General'!$D67 -> 111.3096981 | J40: =IF('Inputs|General'!$B67='Inputs|General'!$A$64,J$37,IF('Inputs|General'!$B67='Inputs|General'!$A$65,J$38,J$39))*'Inputs|General'!$D67 -> 43.70816797 | K40: =IF('Inputs|General'!$B67='Inputs|General'!$A$64,K$37,IF('Inputs|General'!$B67='Inputs|General'!$A$65,K$38,K$39))*'Inputs|General'!$D67 -> 44.8339025 | L40: =IF('Inputs|General'!$B67='Inputs|General'!$A$64,L$37,IF('Inputs|General'!$B67='Inputs|General'!$A$65,L$38,L$39))*'Inputs|General'!$D67 -> 46.01865837 | M40: =IF('Inputs|General'!$B67='Inputs|General'!$A$64,M$37,IF('Inputs|General'!$B67='Inputs|General'!$A$65,M$38,M$39))*'Inputs|General'!$D67 -> 47.31587059 | N40: =IF('Inputs|General'!$B67='Inputs|General'!$A$64,N$37,IF('Inputs|General'!$B67='Inputs|General'!$A$65,N$38,N$39))*'Inputs|General'!$D67 -> 48.72124841 | P40: =IF('Inputs|General'!$B67='Inputs|General'!$A$64,P$37,IF('Inputs|General'!$B67='Inputs|General'!$A$65,P$38,P$39))*'Inputs|General'!$D67 -> 54.14954819 | Q40: =IF('Inputs|General'!$B67='Inputs|General'!$A$64,Q$37,IF('Inputs|General'!$B67='Inputs|General'!$A$65,Q$38,Q$39))*'Inputs|General'!$D67 -> 54.84145167 | R40: =IF('Inputs|General'!$B67='Inputs|General'!$A$64,R$37,IF('Inputs|General'!$B67='Inputs|General'!$A$65,R$38,R$39))*'Inputs|General'!$D67 -> 54.58267568 | S40: =IF('Inputs|General'!$B67='Inputs|General'!$A$64,S$37,IF('Inputs|General'!$B67='Inputs|General'!$A$65,S$38,S$39))*'Inputs|General'!$D67 -> 61.71702604 | T40: =IF('Inputs|General'!$B67='Inputs|General'!$A$64,T$37,IF('Inputs|General'!$B67='Inputs|General'!$A$65,T$38,T$39))*'Inputs|General'!$D67 -> 62.58844966 | V40: 7.105427358e-15 | W40: 0 | X40: 0 | Y40: 7.105427358e-15 | Z40: 7.105427358e-15
A41: ='Inputs|General'!A68 -> Mercury Vapour 125W | C41: ='Inputs|General'!E68 -> 73.93 | D41: =IF('Inputs|General'!$B68='Inputs|General'!$A$64,D$37,IF('Inputs|General'!$B68='Inputs|General'!$A$65,D$38,D$39))*'Inputs|General'!$D68 -> 97.85771616 | E41: =IF('Inputs|General'!$B68='Inputs|General'!$A$64,E$37,IF('Inputs|General'!$B68='Inputs|General'!$A$65,E$38,E$39))*'Inputs|General'!$D68 -> 99.67535416 | F41: =IF('Inputs|General'!$B68='Inputs|General'!$A$64,F$37,IF('Inputs|General'!$B68='Inputs|General'!$A$65,F$38,F$39))*'Inputs|General'!$D68 -> 100.6013341 | G41: =IF('Inputs|General'!$B68='Inputs|General'!$A$64,G$37,IF('Inputs|General'!$B68='Inputs|General'!$A$65,G$38,G$39))*'Inputs|General'!$D68 -> 109.0328966 | H41: =IF('Inputs|General'!$B68='Inputs|General'!$A$64,H$37,IF('Inputs|General'!$B68='Inputs|General'!$A$65,H$38,H$39))*'Inputs|General'!$D68 -> 111.3096981 | J41: =IF('Inputs|General'!$B68='Inputs|General'!$A$64,J$37,IF('Inputs|General'!$B68='Inputs|General'!$A$65,J$38,J$39))*'Inputs|General'!$D68 -> 43.70816797 | K41: =IF('Inputs|General'!$B68='Inputs|General'!$A$64,K$37,IF('Inputs|General'!$B68='Inputs|General'!$A$65,K$38,K$39))*'Inputs|General'!$D68 -> 44.8339025 | L41: =IF('Inputs|General'!$B68='Inputs|General'!$A$64,L$37,IF('Inputs|General'!$B68='Inputs|General'!$A$65,L$38,L$39))*'Inputs|General'!$D68 -> 46.01865837 | M41: =IF('Inputs|General'!$B68='Inputs|General'!$A$64,M$37,IF('Inputs|General'!$B68='Inputs|General'!$A$65,M$38,M$39))*'Inputs|General'!$D68 -> 47.31587059 | N41: =IF('Inputs|General'!$B68='Inputs|General'!$A$64,N$37,IF('Inputs|General'!$B68='Inputs|General'!$A$65,N$38,N$39))*'Inputs|General'!$D68 -> 48.72124841 | P41: =IF('Inputs|General'!$B68='Inputs|General'!$A$64,P$37,IF('Inputs|General'!$B68='Inputs|General'!$A$65,P$38,P$39))*'Inputs|General'!$D68 -> 54.14954819 | Q41: =IF('Inputs|General'!$B68='Inputs|General'!$A$64,Q$37,IF('Inputs|General'!$B68='Inputs|General'!$A$65,Q$38,Q$39))*'Inputs|General'!$D68 -> 54.84145167 | R41: =IF('Inputs|General'!$B68='Inputs|General'!$A$64,R$37,IF('Inputs|General'!$B68='Inputs|General'!$A$65,R$38,R$39))*'Inputs|General'!$D68 -> 54.58267568 | S41: =IF('Inputs|General'!$B68='Inputs|General'!$A$64,S$37,IF('Inputs|General'!$B68='Inputs|General'!$A$65,S$38,S$39))*'Inputs|General'!$D68 -> 61.71702604 | T41: =IF('Inputs|General'!$B68='Inputs|General'!$A$64,T$37,IF('Inputs|General'!$B68='Inputs|General'!$A$65,T$38,T$39))*'Inputs|General'!$D68 -> 62.58844966 | V41: 7.105427358e-15 | W41: 0 | X41: 0 | Y41: 7.105427358e-15 | Z41: 7.105427358e-15
A42: ='Inputs|General'!A69 -> Mercury Vapour 250W | C42: ='Inputs|General'!E69 -> 121.81 | D42: =IF('Inputs|General'!$B69='Inputs|General'!$A$64,D$37,IF('Inputs|General'!$B69='Inputs|General'!$A$65,D$38,D$39))*'Inputs|General'!$D69 -> 136.5015643 | E42: =IF('Inputs|General'!$B69='Inputs|General'!$A$64,E$37,IF('Inputs|General'!$B69='Inputs|General'!$A$65,E$38,E$39))*'Inputs|General'!$D69 -> 139.6333858 | F42: =IF('Inputs|General'!$B69='Inputs|General'!$A$64,F$37,IF('Inputs|General'!$B69='Inputs|General'!$A$65,F$38,F$39))*'Inputs|General'!$D69 -> 141.6688885 | G42: =IF('Inputs|General'!$B69='Inputs|General'!$A$64,G$37,IF('Inputs|General'!$B69='Inputs|General'!$A$65,G$38,G$39))*'Inputs|General'!$D69 -> 150.4686294 | H42: =IF('Inputs|General'!$B69='Inputs|General'!$A$64,H$37,IF('Inputs|General'!$B69='Inputs|General'!$A$65,H$38,H$39))*'Inputs|General'!$D69 -> 154.4230328 | J42: =IF('Inputs|General'!$B69='Inputs|General'!$A$64,J$37,IF('Inputs|General'!$B69='Inputs|General'!$A$65,J$38,J$39))*'Inputs|General'!$D69 -> 93.75077003 | K42: =IF('Inputs|General'!$B69='Inputs|General'!$A$64,K$37,IF('Inputs|General'!$B69='Inputs|General'!$A$65,K$38,K$39))*'Inputs|General'!$D69 -> 96.40603427 | L42: =IF('Inputs|General'!$B69='Inputs|General'!$A$64,L$37,IF('Inputs|General'!$B69='Inputs|General'!$A$65,L$38,L$39))*'Inputs|General'!$D69 -> 99.11056921 | M42: =IF('Inputs|General'!$B69='Inputs|General'!$A$64,M$37,IF('Inputs|General'!$B69='Inputs|General'!$A$65,M$38,M$39))*'Inputs|General'!$D69 -> 102.1209112 | N42: =IF('Inputs|General'!$B69='Inputs|General'!$A$64,N$37,IF('Inputs|General'!$B69='Inputs|General'!$A$65,N$38,N$39))*'Inputs|General'!$D69 -> 105.4350632 | P42: =IF('Inputs|General'!$B69='Inputs|General'!$A$64,P$37,IF('Inputs|General'!$B69='Inputs|General'!$A$65,P$38,P$39))*'Inputs|General'!$D69 -> 42.75079427 | Q42: =IF('Inputs|General'!$B69='Inputs|General'!$A$64,Q$37,IF('Inputs|General'!$B69='Inputs|General'!$A$65,Q$38,Q$39))*'Inputs|General'!$D69 -> 43.22735151 | R42: =IF('Inputs|General'!$B69='Inputs|General'!$A$64,R$37,IF('Inputs|General'!$B69='Inputs|General'!$A$65,R$38,R$39))*'Inputs|General'!$D69 -> 42.55831929 | S42: =IF('Inputs|General'!$B69='Inputs|General'!$A$64,S$37,IF('Inputs|General'!$B69='Inputs|General'!$A$65,S$38,S$39))*'Inputs|General'!$D69 -> 48.34771814 | T42: =IF('Inputs|General'!$B69='Inputs|General'!$A$64,T$37,IF('Inputs|General'!$B69='Inputs|General'!$A$65,T$38,T$39))*'Inputs|General'!$D69 -> 48.98796967 | V42: 7.105427358e-15 | W42: 0 | X42: 1.421085472e-14 | Y42: 7.105427358e-15 | Z42: 7.105427358e-15
A43: ='Inputs|General'!A70 -> Mercury Vapour 400W | C43: ='Inputs|General'!E70 -> 125.32 | D43: =IF('Inputs|General'!$B70='Inputs|General'!$A$64,D$37,IF('Inputs|General'!$B70='Inputs|General'!$A$65,D$38,D$39))*'Inputs|General'!$D70 -> 140.4391094 | E43: =IF('Inputs|General'!$B70='Inputs|General'!$A$64,E$37,IF('Inputs|General'!$B70='Inputs|General'!$A$65,E$38,E$39))*'Inputs|General'!$D70 -> 143.6612719 | F43: =IF('Inputs|General'!$B70='Inputs|General'!$A$64,F$37,IF('Inputs|General'!$B70='Inputs|General'!$A$65,F$38,F$39))*'Inputs|General'!$D70 -> 145.755491 | G43: =IF('Inputs|General'!$B70='Inputs|General'!$A$64,G$37,IF('Inputs|General'!$B70='Inputs|General'!$A$65,G$38,G$39))*'Inputs|General'!$D70 -> 154.8090706 | H43: =IF('Inputs|General'!$B70='Inputs|General'!$A$64,H$37,IF('Inputs|General'!$B70='Inputs|General'!$A$65,H$38,H$39))*'Inputs|General'!$D70 -> 158.8775434 | J43: =IF('Inputs|General'!$B70='Inputs|General'!$A$64,J$37,IF('Inputs|General'!$B70='Inputs|General'!$A$65,J$38,J$39))*'Inputs|General'!$D70 -> 96.45511917 | K43: =IF('Inputs|General'!$B70='Inputs|General'!$A$64,K$37,IF('Inputs|General'!$B70='Inputs|General'!$A$65,K$38,K$39))*'Inputs|General'!$D70 -> 99.18697757 | L43: =IF('Inputs|General'!$B70='Inputs|General'!$A$64,L$37,IF('Inputs|General'!$B70='Inputs|General'!$A$65,L$38,L$39))*'Inputs|General'!$D70 -> 101.9695279 | M43: =IF('Inputs|General'!$B70='Inputs|General'!$A$64,M$37,IF('Inputs|General'!$B70='Inputs|General'!$A$65,M$38,M$39))*'Inputs|General'!$D70 -> 105.0667067 | N43: =IF('Inputs|General'!$B70='Inputs|General'!$A$64,N$37,IF('Inputs|General'!$B70='Inputs|General'!$A$65,N$38,N$39))*'Inputs|General'!$D70 -> 108.4764592 | P43: =IF('Inputs|General'!$B70='Inputs|General'!$A$64,P$37,IF('Inputs|General'!$B70='Inputs|General'!$A$65,P$38,P$39))*'Inputs|General'!$D70 -> 43.98399026 | Q43: =IF('Inputs|General'!$B70='Inputs|General'!$A$64,Q$37,IF('Inputs|General'!$B70='Inputs|General'!$A$65,Q$38,Q$39))*'Inputs|General'!$D70 -> 44.47429434 | R43: =IF('Inputs|General'!$B70='Inputs|General'!$A$64,R$37,IF('Inputs|General'!$B70='Inputs|General'!$A$65,R$38,R$39))*'Inputs|General'!$D70 -> 43.78596311 | S43: =IF('Inputs|General'!$B70='Inputs|General'!$A$64,S$37,IF('Inputs|General'!$B70='Inputs|General'!$A$65,S$38,S$39))*'Inputs|General'!$D70 -> 49.74236385 | T43: =IF('Inputs|General'!$B70='Inputs|General'!$A$64,T$37,IF('Inputs|General'!$B70='Inputs|General'!$A$65,T$38,T$39))*'Inputs|General'!$D70 -> 50.40108418 | V43: 1.421085472e-14 | W43: 7.105427358e-15 | X43: 0 | Y43: 1.421085472e-14 | Z43: 7.105427358e-15
A44: ='Inputs|General'!A71 -> HP Sodium 100W | C44: ='Inputs|General'!E71 -> 126.69 | D44: =IF('Inputs|General'!$B71='Inputs|General'!$A$64,D$37,IF('Inputs|General'!$B71='Inputs|General'!$A$65,D$38,D$39))*'Inputs|General'!$D71 -> 140.6554828 | E44: =IF('Inputs|General'!$B71='Inputs|General'!$A$64,E$37,IF('Inputs|General'!$B71='Inputs|General'!$A$65,E$38,E$39))*'Inputs|General'!$D71 -> 143.7951254 | F44: =IF('Inputs|General'!$B71='Inputs|General'!$A$64,F$37,IF('Inputs|General'!$B71='Inputs|General'!$A$65,F$38,F$39))*'Inputs|General'!$D71 -> 145.4056302 | G44: =IF('Inputs|General'!$B71='Inputs|General'!$A$64,G$37,IF('Inputs|General'!$B71='Inputs|General'!$A$65,G$38,G$39))*'Inputs|General'!$D71 -> 154.3719512 | H44: =IF('Inputs|General'!$B71='Inputs|General'!$A$64,H$37,IF('Inputs|General'!$B71='Inputs|General'!$A$65,H$38,H$39))*'Inputs|General'!$D71 -> 158.4960813 | J44: =IF('Inputs|General'!$B71='Inputs|General'!$A$64,J$37,IF('Inputs|General'!$B71='Inputs|General'!$A$65,J$38,J$39))*'Inputs|General'!$D71 -> 96.89653216 | K44: =IF('Inputs|General'!$B71='Inputs|General'!$A$64,K$37,IF('Inputs|General'!$B71='Inputs|General'!$A$65,K$38,K$39))*'Inputs|General'!$D71 -> 99.54540889 | L44: =IF('Inputs|General'!$B71='Inputs|General'!$A$64,L$37,IF('Inputs|General'!$B71='Inputs|General'!$A$65,L$38,L$39))*'Inputs|General'!$D71 -> 102.3706802 | M44: =IF('Inputs|General'!$B71='Inputs|General'!$A$64,M$37,IF('Inputs|General'!$B71='Inputs|General'!$A$65,M$38,M$39))*'Inputs|General'!$D71 -> 105.5192753 | N44: =IF('Inputs|General'!$B71='Inputs|General'!$A$64,N$37,IF('Inputs|General'!$B71='Inputs|General'!$A$65,N$38,N$39))*'Inputs|General'!$D71 -> 108.9896704 | P44: =IF('Inputs|General'!$B71='Inputs|General'!$A$64,P$37,IF('Inputs|General'!$B71='Inputs|General'!$A$65,P$38,P$39))*'Inputs|General'!$D71 -> 43.7589506 | Q44: =IF('Inputs|General'!$B71='Inputs|General'!$A$64,Q$37,IF('Inputs|General'!$B71='Inputs|General'!$A$65,Q$38,Q$39))*'Inputs|General'!$D71 -> 44.24971652 | R44: =IF('Inputs|General'!$B71='Inputs|General'!$A$64,R$37,IF('Inputs|General'!$B71='Inputs|General'!$A$65,R$38,R$39))*'Inputs|General'!$D71 -> 43.03495001 | S44: =IF('Inputs|General'!$B71='Inputs|General'!$A$64,S$37,IF('Inputs|General'!$B71='Inputs|General'!$A$65,S$38,S$39))*'Inputs|General'!$D71 -> 48.85267594 | T44: =IF('Inputs|General'!$B71='Inputs|General'!$A$64,T$37,IF('Inputs|General'!$B71='Inputs|General'!$A$65,T$38,T$39))*'Inputs|General'!$D71 -> 49.50641091 | V44: 1.421085472e-14 | W44: 2.842170943e-14 | X44: 7.105427358e-15 | Y44: 7.105427358e-15 | Z44: 7.105427358e-15
A45: ='Inputs|General'!A72 -> HP Sodium 400W | C45: ='Inputs|General'!E72 -> 166.31 | D45: =IF('Inputs|General'!$B72='Inputs|General'!$A$64,D$37,IF('Inputs|General'!$B72='Inputs|General'!$A$65,D$38,D$39))*'Inputs|General'!$D72 -> 186.3771359 | E45: =IF('Inputs|General'!$B72='Inputs|General'!$A$64,E$37,IF('Inputs|General'!$B72='Inputs|General'!$A$65,E$38,E$39))*'Inputs|General'!$D72 -> 190.6532767 | F45: =IF('Inputs|General'!$B72='Inputs|General'!$A$64,F$37,IF('Inputs|General'!$B72='Inputs|General'!$A$65,F$38,F$39))*'Inputs|General'!$D72 -> 193.4325208 | G45: =IF('Inputs|General'!$B72='Inputs|General'!$A$64,G$37,IF('Inputs|General'!$B72='Inputs|General'!$A$65,G$38,G$39))*'Inputs|General'!$D72 -> 205.4475516 | H45: =IF('Inputs|General'!$B72='Inputs|General'!$A$64,H$37,IF('Inputs|General'!$B72='Inputs|General'!$A$65,H$38,H$39))*'Inputs|General'!$D72 -> 210.8468333 | J45: =IF('Inputs|General'!$B72='Inputs|General'!$A$64,J$37,IF('Inputs|General'!$B72='Inputs|General'!$A$65,J$38,J$39))*'Inputs|General'!$D72 -> 128.0058591 | K45: =IF('Inputs|General'!$B72='Inputs|General'!$A$64,K$37,IF('Inputs|General'!$B72='Inputs|General'!$A$65,K$38,K$39))*'Inputs|General'!$D72 -> 131.631316 | L45: =IF('Inputs|General'!$B72='Inputs|General'!$A$64,L$37,IF('Inputs|General'!$B72='Inputs|General'!$A$65,L$38,L$39))*'Inputs|General'!$D72 -> 135.3240464 | M45: =IF('Inputs|General'!$B72='Inputs|General'!$A$64,M$37,IF('Inputs|General'!$B72='Inputs|General'!$A$65,M$38,M$39))*'Inputs|General'!$D72 -> 139.4343211 | N45: =IF('Inputs|General'!$B72='Inputs|General'!$A$64,N$37,IF('Inputs|General'!$B72='Inputs|General'!$A$65,N$38,N$39))*'Inputs|General'!$D72 -> 143.9594132 | P45: =IF('Inputs|General'!$B72='Inputs|General'!$A$64,P$37,IF('Inputs|General'!$B72='Inputs|General'!$A$65,P$38,P$39))*'Inputs|General'!$D72 -> 58.3712768 | Q45: =IF('Inputs|General'!$B72='Inputs|General'!$A$64,Q$37,IF('Inputs|General'!$B72='Inputs|General'!$A$65,Q$38,Q$39))*'Inputs|General'!$D72 -> 59.02196072 | R45: =IF('Inputs|General'!$B72='Inputs|General'!$A$64,R$37,IF('Inputs|General'!$B72='Inputs|General'!$A$65,R$38,R$39))*'Inputs|General'!$D72 -> 58.10847441 | S45: =IF('Inputs|General'!$B72='Inputs|General'!$A$64,S$37,IF('Inputs|General'!$B72='Inputs|General'!$A$65,S$38,S$39))*'Inputs|General'!$D72 -> 66.01323054 | T45: =IF('Inputs|General'!$B72='Inputs|General'!$A$64,T$37,IF('Inputs|General'!$B72='Inputs|General'!$A$65,T$38,T$39))*'Inputs|General'!$D72 -> 66.88742013 | V45: 7.105427358e-15 | W45: 0 | X45: 1.421085472e-14 | Y45: 1.421085472e-14 | Z45: 1.421085472e-14
A46: ='Inputs|General'!A73 -> Metal Halide 70W | C46: ='Inputs|General'!E73 -> 190.05 | D46: =IF('Inputs|General'!$B73='Inputs|General'!$A$64,D$37,IF('Inputs|General'!$B73='Inputs|General'!$A$65,D$38,D$39))*'Inputs|General'!$D73 -> 251.5500061 | E46: =IF('Inputs|General'!$B73='Inputs|General'!$A$64,E$37,IF('Inputs|General'!$B73='Inputs|General'!$A$65,E$38,E$39))*'Inputs|General'!$D73 -> 256.2223699 | F46: =IF('Inputs|General'!$B73='Inputs|General'!$A$64,F$37,IF('Inputs|General'!$B73='Inputs|General'!$A$65,F$38,F$39))*'Inputs|General'!$D73 -> 258.602665 | G46: =IF('Inputs|General'!$B73='Inputs|General'!$A$64,G$37,IF('Inputs|General'!$B73='Inputs|General'!$A$65,G$38,G$39))*'Inputs|General'!$D73 -> 280.2765779 | H46: =IF('Inputs|General'!$B73='Inputs|General'!$A$64,H$37,IF('Inputs|General'!$B73='Inputs|General'!$A$65,H$38,H$39))*'Inputs|General'!$D73 -> 286.129253 | J46: =IF('Inputs|General'!$B73='Inputs|General'!$A$64,J$37,IF('Inputs|General'!$B73='Inputs|General'!$A$65,J$38,J$39))*'Inputs|General'!$D73 -> 112.3548592 | K46: =IF('Inputs|General'!$B73='Inputs|General'!$A$64,K$37,IF('Inputs|General'!$B73='Inputs|General'!$A$65,K$38,K$39))*'Inputs|General'!$D73 -> 115.2486374 | L46: =IF('Inputs|General'!$B73='Inputs|General'!$A$64,L$37,IF('Inputs|General'!$B73='Inputs|General'!$A$65,L$38,L$39))*'Inputs|General'!$D73 -> 118.2941341 | M46: =IF('Inputs|General'!$B73='Inputs|General'!$A$64,M$37,IF('Inputs|General'!$B73='Inputs|General'!$A$65,M$38,M$39))*'Inputs|General'!$D73 -> 121.6287075 | N46: =IF('Inputs|General'!$B73='Inputs|General'!$A$64,N$37,IF('Inputs|General'!$B73='Inputs|General'!$A$65,N$38,N$39))*'Inputs|General'!$D73 -> 125.2413281 | P46: =IF('Inputs|General'!$B73='Inputs|General'!$A$64,P$37,IF('Inputs|General'!$B73='Inputs|General'!$A$65,P$38,P$39))*'Inputs|General'!$D73 -> 139.1951469 | Q46: =IF('Inputs|General'!$B73='Inputs|General'!$A$64,Q$37,IF('Inputs|General'!$B73='Inputs|General'!$A$65,Q$38,Q$39))*'Inputs|General'!$D73 -> 140.9737325 | R46: =IF('Inputs|General'!$B73='Inputs|General'!$A$64,R$37,IF('Inputs|General'!$B73='Inputs|General'!$A$65,R$38,R$39))*'Inputs|General'!$D73 -> 140.308531 | S46: =IF('Inputs|General'!$B73='Inputs|General'!$A$64,S$37,IF('Inputs|General'!$B73='Inputs|General'!$A$65,S$38,S$39))*'Inputs|General'!$D73 -> 158.6478704 | T46: =IF('Inputs|General'!$B73='Inputs|General'!$A$64,T$37,IF('Inputs|General'!$B73='Inputs|General'!$A$65,T$38,T$39))*'Inputs|General'!$D73 -> 160.8879249 | V46: 2.842170943e-14 | W46: 2.842170943e-14 | X46: 0 | Y46: 0 | Z46: 2.842170943e-14
A47: ='Inputs|General'!A74 -> Metal Halide 100W | C47: ='Inputs|General'!E74 -> 250.78 | D47: =IF('Inputs|General'!$B74='Inputs|General'!$A$64,D$37,IF('Inputs|General'!$B74='Inputs|General'!$A$65,D$38,D$39))*'Inputs|General'!$D74 -> 278.4254393 | E47: =IF('Inputs|General'!$B74='Inputs|General'!$A$64,E$37,IF('Inputs|General'!$B74='Inputs|General'!$A$65,E$38,E$39))*'Inputs|General'!$D74 -> 284.6403153 | F47: =IF('Inputs|General'!$B74='Inputs|General'!$A$64,F$37,IF('Inputs|General'!$B74='Inputs|General'!$A$65,F$38,F$39))*'Inputs|General'!$D74 -> 287.8282857 | G47: =IF('Inputs|General'!$B74='Inputs|General'!$A$64,G$37,IF('Inputs|General'!$B74='Inputs|General'!$A$65,G$38,G$39))*'Inputs|General'!$D74 -> 305.5769849 | H47: =IF('Inputs|General'!$B74='Inputs|General'!$A$64,H$37,IF('Inputs|General'!$B74='Inputs|General'!$A$65,H$38,H$39))*'Inputs|General'!$D74 -> 313.7406391 | J47: =IF('Inputs|General'!$B74='Inputs|General'!$A$64,J$37,IF('Inputs|General'!$B74='Inputs|General'!$A$65,J$38,J$39))*'Inputs|General'!$D74 -> 191.8052464 | K47: =IF('Inputs|General'!$B74='Inputs|General'!$A$64,K$37,IF('Inputs|General'!$B74='Inputs|General'!$A$65,K$38,K$39))*'Inputs|General'!$D74 -> 197.0486586 | L47: =IF('Inputs|General'!$B74='Inputs|General'!$A$64,L$37,IF('Inputs|General'!$B74='Inputs|General'!$A$65,L$38,L$39))*'Inputs|General'!$D74 -> 202.6412412 | M47: =IF('Inputs|General'!$B74='Inputs|General'!$A$64,M$37,IF('Inputs|General'!$B74='Inputs|General'!$A$65,M$38,M$39))*'Inputs|General'!$D74 -> 208.8738384 | N47: =IF('Inputs|General'!$B74='Inputs|General'!$A$64,N$37,IF('Inputs|General'!$B74='Inputs|General'!$A$65,N$38,N$39))*'Inputs|General'!$D74 -> 215.7434339 | P47: =IF('Inputs|General'!$B74='Inputs|General'!$A$64,P$37,IF('Inputs|General'!$B74='Inputs|General'!$A$65,P$38,P$39))*'Inputs|General'!$D74 -> 86.62019287 | Q47: =IF('Inputs|General'!$B74='Inputs|General'!$A$64,Q$37,IF('Inputs|General'!$B74='Inputs|General'!$A$65,Q$38,Q$39))*'Inputs|General'!$D74 -> 87.59165672 | R47: =IF('Inputs|General'!$B74='Inputs|General'!$A$64,R$37,IF('Inputs|General'!$B74='Inputs|General'!$A$65,R$38,R$39))*'Inputs|General'!$D74 -> 85.18704445 | S47: =IF('Inputs|General'!$B74='Inputs|General'!$A$64,S$37,IF('Inputs|General'!$B74='Inputs|General'!$A$65,S$38,S$39))*'Inputs|General'!$D74 -> 96.70314653 | T47: =IF('Inputs|General'!$B74='Inputs|General'!$A$64,T$37,IF('Inputs|General'!$B74='Inputs|General'!$A$65,T$38,T$39))*'Inputs|General'!$D74 -> 97.99720519 | V47: 1.421085472e-14 | W47: 7.105427358e-14 | X47: 2.842170943e-14 | Y47: 4.263256415e-14 | Z47: 1.421085472e-14
A48: ='Inputs|General'!A75 -> Metal Halide 150W | C48: ='Inputs|General'!E75 -> 284.91 | D48: =IF('Inputs|General'!$B75='Inputs|General'!$A$64,D$37,IF('Inputs|General'!$B75='Inputs|General'!$A$65,D$38,D$39))*'Inputs|General'!$D75 -> 316.3164118 | E48: =IF('Inputs|General'!$B75='Inputs|General'!$A$64,E$37,IF('Inputs|General'!$B75='Inputs|General'!$A$65,E$38,E$39))*'Inputs|General'!$D75 -> 323.3770715 | F48: =IF('Inputs|General'!$B75='Inputs|General'!$A$64,F$37,IF('Inputs|General'!$B75='Inputs|General'!$A$65,F$38,F$39))*'Inputs|General'!$D75 -> 326.9988934 | G48: =IF('Inputs|General'!$B75='Inputs|General'!$A$64,G$37,IF('Inputs|General'!$B75='Inputs|General'!$A$65,G$38,G$39))*'Inputs|General'!$D75 -> 347.1630166 | H48: =IF('Inputs|General'!$B75='Inputs|General'!$A$64,H$37,IF('Inputs|General'!$B75='Inputs|General'!$A$65,H$38,H$39))*'Inputs|General'!$D75 -> 356.4376641 | J48: =IF('Inputs|General'!$B75='Inputs|General'!$A$64,J$37,IF('Inputs|General'!$B75='Inputs|General'!$A$65,J$38,J$39))*'Inputs|General'!$D75 -> 217.9080599 | K48: =IF('Inputs|General'!$B75='Inputs|General'!$A$64,K$37,IF('Inputs|General'!$B75='Inputs|General'!$A$65,K$38,K$39))*'Inputs|General'!$D75 -> 223.8650491 | L48: =IF('Inputs|General'!$B75='Inputs|General'!$A$64,L$37,IF('Inputs|General'!$B75='Inputs|General'!$A$65,L$38,L$39))*'Inputs|General'!$D75 -> 230.2187274 | M48: =IF('Inputs|General'!$B75='Inputs|General'!$A$64,M$37,IF('Inputs|General'!$B75='Inputs|General'!$A$65,M$38,M$39))*'Inputs|General'!$D75 -> 237.2995199 | N48: =IF('Inputs|General'!$B75='Inputs|General'!$A$64,N$37,IF('Inputs|General'!$B75='Inputs|General'!$A$65,N$38,N$39))*'Inputs|General'!$D75 -> 245.1040001 | P48: =IF('Inputs|General'!$B75='Inputs|General'!$A$64,P$37,IF('Inputs|General'!$B75='Inputs|General'!$A$65,P$38,P$39))*'Inputs|General'!$D75 -> 98.40835186 | Q48: =IF('Inputs|General'!$B75='Inputs|General'!$A$64,Q$37,IF('Inputs|General'!$B75='Inputs|General'!$A$65,Q$38,Q$39))*'Inputs|General'!$D75 -> 99.51202242 | R48: =IF('Inputs|General'!$B75='Inputs|General'!$A$64,R$37,IF('Inputs|General'!$B75='Inputs|General'!$A$65,R$38,R$39))*'Inputs|General'!$D75 -> 96.780166 | S48: =IF('Inputs|General'!$B75='Inputs|General'!$A$64,S$37,IF('Inputs|General'!$B75='Inputs|General'!$A$65,S$38,S$39))*'Inputs|General'!$D75 -> 109.8634967 | T48: =IF('Inputs|General'!$B75='Inputs|General'!$A$64,T$37,IF('Inputs|General'!$B75='Inputs|General'!$A$65,T$38,T$39))*'Inputs|General'!$D75 -> 111.333664 | V48: 1.421085472e-14 | W48: 7.105427358e-14 | X48: 0 | Y48: 5.684341886e-14 | Z48: 2.842170943e-14
